Workbook

Sheet Summary
B1: AOM CTC | C1: 7.1 Reg
B2: CTC Version | C2: v2 | G2: Averages | AC2: Minimum | AV2: Maximum
H3: PSNR | M3: SSIM | N3: MS-SSIM | O3: VMAF | P3: nVMAF | Q3: PSNR HVS | R3: DE 2K | S3: APSNR | X3: CAMBI | Y3: Monotonicity | AA3: Run-time (%) | AC3: PSNR | AH3: SSIM | AI3: MS-SSIM | AJ3: VMAF | AK3: nVMAF | AL3: PSNR HVS | AM3: DE 2K | AN3: APSNR | AS3: CAMBI | AT3: Run-time (%) | AV3: PSNR | BA3: SSIM | BB3: MS-SSIM | BC3: VMAF | BD3: nVMAF | BE3: PSNR HVS | BF3: DE 2K | BG3: APSNR | BL3: CAMBI | BM3: Run-time (%)
B4: Classes | C4: Success | G4: Summary | H4: Y | I4: U | J4: V | K4: YUV | L4: wAverage | M4: Y | N4: Y | O4: Y | P4: Y | Q4: Y | S4: Y | T4: U | U4: V | V4: YUV | W4: wAverage | X4: Y | Y4: VMAF | Z4: VMAF neg | AA4: Enc-time | AB4: Dec-time | AC4: Y | AD4: U | AE4: V | AF4: YUV | AG4: wAverage | AH4: Y | AI4: Y | AJ4: Y | AK4: Y | AL4: Y | AN4: Y | AO4: U | AP4: V | AQ4: YUV | AR4: wAverage | AS4: Y | AT4: Enc-time | AU4: Dec-time | AV4: Y | AW4: U | AX4: V | AY4: YUV | AZ4: wAverage | BA4: Y | BB4: Y | BC4: Y | BD4: Y | BE4: Y | BG4: Y | BH4: U | BI4: V | BJ4: YUV | BK4: wAverage | BL4: Y | BM4: Enc-time | BN4: Dec-time
B5: =Intra!C559 -> Class A1_4K | C5: =Intra!AT558 -> 0 | E5: Overall | F5: Intra | G5: =Intra!C559 -> Class A1_4K | H5: =Intra!AZ559 ->  | I5: =Intra!BA559 ->  | J5: =Intra!BB559 ->  | K5: =Intra!BC559 ->  | L5: =Intra!BD559 ->  | M5: =Intra!BF559 ->  | N5: =Intra!BH559 ->  | O5: =Intra!BJ559 ->  | P5: =Intra!BL559 ->  | Q5: =Intra!BN559 ->  | R5: =Intra!BP559 ->  | S5: =Intra!BR559 ->  | T5: =Intra!BS559 ->  | U5: =Intra!BT559 ->  | V5: =Intra!BU559 ->  | W5: =Intra!BV559 ->  | X5: =Intra!BX559 ->  | Y5: =Intra!BZ559 -> 0 | Z5: =Intra!CB559 -> 0 | AA5: =Intra!AT559 ->  | AB5: =Intra!AU559 ->  | AC5: =Intra!AZ560 ->  | AD5: =Intra!BA560 ->  | AE5: =Intra!BB560 ->  | AF5: =Intra!BC560 ->  | AG5: =Intra!BD560 ->  | AH5: =Intra!BF560 ->  | AI5: =Intra!BH560 ->  | AJ5: =Intra!BJ560 ->  | AK5: =Intra!BL560 ->  | AL5: =Intra!BN560 ->  | AM5: =Intra!BP560 ->  | AN5: =Intra!BR560 ->  | AO5: =Intra!BS560 ->  | AP5: =Intra!BT560 ->  | AQ5: =Intra!BU560 ->  | AR5: =Intra!BV560 ->  | AS5: =Intra!BX560 ->  | AT5: =Intra!AT561 ->  | AU5: =Intra!AU561 ->  | AV5: =Intra!AZ561 ->  | AW5: =Intra!BA561 ->  | AX5: =Intra!BB561 ->  | AY5: =Intra!BC561 ->  | AZ5: =Intra!BD561 ->  | BA5: =Intra!BF561 ->  | BB5: =Intra!BH561 ->  | BC5: =Intra!BJ561 ->  | BD5: =Intra!BL561 ->  | BE5: =Intra!BN561 ->  | BF5: =Intra!BP561 ->  | BG5: =Intra!BR561 ->  | BH5: =Intra!BS561 ->  | BI5: =Intra!BT561 ->  | BJ5: =Intra!BU561 ->  | BK5: =Intra!BV561 ->  | BL5: =Intra!BX561 ->  | BM5: =Intra!AT562 ->  | BN5: =Intra!AU562 -> 
B6: =Intra!C568 -> Class A2_2K | C6: =Intra!AT567 -> 0 | G6: =Intra!C568 -> Class A2_2K | H6: =Intra!AZ568 ->  | I6: =Intra!BA568 ->  | J6: =Intra!BB568 ->  | K6: =Intra!BC568 ->  | L6: =Intra!BD568 ->  | M6: =Intra!BF568 ->  | N6: =Intra!BH568 ->  | O6: =Intra!BJ568 ->  | P6: =Intra!BL568 ->  | Q6: =Intra!BN568 ->  | R6: =Intra!BP568 ->  | S6: =Intra!BR568 ->  | T6: =Intra!BS568 ->  | U6: =Intra!BT568 ->  | V6: =Intra!BU568 ->  | W6: =Intra!BV568 ->  | X6: =Intra!BX568 ->  | Y6: =Intra!BZ568 -> 0 | Z6: =Intra!CB568 -> 0 | AA6: =Intra!AT568 ->  | AB6: =Intra!AU568 ->  | AC6: =Intra!AZ569 ->  | AD6: =Intra!BA569 ->  | AE6: =Intra!BB569 ->  | AF6: =Intra!BC569 ->  | AG6: =Intra!BD569 ->  | AH6: =Intra!BF569 ->  | AI6: =Intra!BH569 ->  | AJ6: =Intra!BJ569 ->  | AK6: =Intra!BL569 ->  | AL6: =Intra!BN569 ->  | AM6: =Intra!BP569 ->  | AN6: =Intra!BR569 ->  | AO6: =Intra!BS569 ->  | AP6: =Intra!BT569 ->  | AQ6: =Intra!BU569 ->  | AR6: =Intra!BV569 ->  | AS6: =Intra!BX569 ->  | AT6: =Intra!AT570 ->  | AU6: =Intra!AU570 ->  | AV6: =Intra!AZ570 ->  | AW6: =Intra!BA570 ->  | AX6: =Intra!BB570 ->  | AY6: =Intra!BC570 ->  | AZ6: =Intra!BD570 ->  | BA6: =Intra!BF570 ->  | BB6: =Intra!BH570 ->  | BC6: =Intra!BJ570 ->  | BD6: =Intra!BL570 ->  | BE6: =Intra!BN570 ->  | BF6: =Intra!BP570 ->  | BG6: =Intra!BR570 ->  | BH6: =Intra!BS570 ->  | BI6: =Intra!BT570 ->  | BJ6: =Intra!BU570 ->  | BK6: =Intra!BV570 ->  | BL6: =Intra!BX570 ->  | BM6: =Intra!AT571 ->  | BN6: =Intra!AU571 -> 
B7: =Intra!C577 -> Class A3_720p | C7: =Intra!AT576 -> 0 | G7: =Intra!C577 -> Class A3_720p | H7: =Intra!AZ577 ->  | I7: =Intra!BA577 ->  | J7: =Intra!BB577 ->  | K7: =Intra!BC577 ->  | L7: =Intra!BD577 ->  | M7: =Intra!BF577 ->  | N7: =Intra!BH577 ->  | O7: =Intra!BJ577 ->  | P7: =Intra!BL577 ->  | Q7: =Intra!BN577 ->  | R7: =Intra!BP577 ->  | S7: =Intra!BR577 ->  | T7: =Intra!BS577 ->  | U7: =Intra!BT577 ->  | V7: =Intra!BU577 ->  | W7: =Intra!BV577 ->  | X7: =Intra!BX577 ->  | Y7: =Intra!BZ577 -> 0 | Z7: =Intra!CB577 -> 0 | AA7: =Intra!AT577 ->  | AB7: =Intra!AU577 ->  | AC7: =Intra!AZ578 ->  | AD7: =Intra!BA578 ->  | AE7: =Intra!BB578 ->  | AF7: =Intra!BC578 ->  | AG7: =Intra!BD578 ->  | AH7: =Intra!BF578 ->  | AI7: =Intra!BH578 ->  | AJ7: =Intra!BJ578 ->  | AK7: =Intra!BL578 ->  | AL7: =Intra!BN578 ->  | AM7: =Intra!BP578 ->  | AN7: =Intra!BR578 ->  | AO7: =Intra!BS578 ->  | AP7: =Intra!BT578 ->  | AQ7: =Intra!BU578 ->  | AR7: =Intra!BV578 ->  | AS7: =Intra!BX578 ->  | AT7: =Intra!AT579 ->  | AU7: =Intra!AU579 ->  | AV7: =Intra!AZ579 ->  | AW7: =Intra!BA579 ->  | AX7: =Intra!BB579 ->  | AY7: =Intra!BC579 ->  | AZ7: =Intra!BD579 ->  | BA7: =Intra!BF579 ->  | BB7: =Intra!BH579 ->  | BC7: =Intra!BJ579 ->  | BD7: =Intra!BL579 ->  | BE7: =Intra!BN579 ->  | BF7: =Intra!BP579 ->  | BG7: =Intra!BR579 ->  | BH7: =Intra!BS579 ->  | BI7: =Intra!BT579 ->  | BJ7: =Intra!BU579 ->  | BK7: =Intra!BV579 ->  | BL7: =Intra!BX579 ->  | BM7: =Intra!AT580 ->  | BN7: =Intra!AU580 -> 
B8: =Intra!C586 -> Class A4_360p | C8: =Intra!AT585 -> 0 | G8: =Intra!C586 -> Class A4_360p | H8: =Intra!AZ586 ->  | I8: =Intra!BA586 ->  | J8: =Intra!BB586 ->  | K8: =Intra!BC586 ->  | L8: =Intra!BD586 ->  | M8: =Intra!BF586 ->  | N8: =Intra!BH586 ->  | O8: =Intra!BJ586 ->  | P8: =Intra!BL586 ->  | Q8: =Intra!BN586 ->  | R8: =Intra!BP586 ->  | S8: =Intra!BR586 ->  | T8: =Intra!BS586 ->  | U8: =Intra!BT586 ->  | V8: =Intra!BU586 ->  | W8: =Intra!BV586 ->  | X8: =Intra!BX586 ->  | Y8: =Intra!BZ586 -> 0 | Z8: =Intra!CB586 -> 0 | AA8: =Intra!AT586 ->  | AB8: =Intra!AU586 ->  | AC8: =Intra!AZ587 ->  | AD8: =Intra!BA587 ->  | AE8: =Intra!BB587 ->  | AF8: =Intra!BC587 ->  | AG8: =Intra!BD587 ->  | AH8: =Intra!BF587 ->  | AI8: =Intra!BH587 ->  | AJ8: =Intra!BJ587 ->  | AK8: =Intra!BL587 ->  | AL8: =Intra!BN587 ->  | AM8: =Intra!BP587 ->  | AN8: =Intra!BR587 ->  | AO8: =Intra!BS587 ->  | AP8: =Intra!BT587 ->  | AQ8: =Intra!BU587 ->  | AR8: =Intra!BV587 ->  | AS8: =Intra!BX587 ->  | AT8: =Intra!AT588 ->  | AU8: =Intra!AU588 ->  | AV8: =Intra!AZ588 ->  | AW8: =Intra!BA588 ->  | AX8: =Intra!BB588 ->  | AY8: =Intra!BC588 ->  | AZ8: =Intra!BD588 ->  | BA8: =Intra!BF588 ->  | BB8: =Intra!BH588 ->  | BC8: =Intra!BJ588 ->  | BD8: =Intra!BL588 ->  | BE8: =Intra!BN588 ->  | BF8: =Intra!BP588 ->  | BG8: =Intra!BR588 ->  | BH8: =Intra!BS588 ->  | BI8: =Intra!BT588 ->  | BJ8: =Intra!BU588 ->  | BK8: =Intra!BV588 ->  | BL8: =Intra!BX588 ->  | BM8: =Intra!AT589 ->  | BN8: =Intra!AU589 -> 
B9: =Intra!C595 -> Class A5_270p | C9: =Intra!AT594 -> 0 | G9: =Intra!C595 -> Class A5_270p | H9: =Intra!AZ595 ->  | I9: =Intra!BA595 ->  | J9: =Intra!BB595 ->  | K9: =Intra!BC595 ->  | L9: =Intra!BD595 ->  | M9: =Intra!BF595 ->  | N9: =Intra!BH595 ->  | O9: =Intra!BJ595 ->  | P9: =Intra!BL595 ->  | Q9: =Intra!BN595 ->  | R9: =Intra!BP595 ->  | S9: =Intra!BR595 ->  | T9: =Intra!BS595 ->  | U9: =Intra!BT595 ->  | V9: =Intra!BU595 ->  | W9: =Intra!BV595 ->  | X9: =Intra!BX595 ->  | Y9: =Intra!BZ595 -> 0 | Z9: =Intra!CB595 -> 0 | AA9: =Intra!AT595 ->  | AB9: =Intra!AU595 ->  | AC9: =Intra!AZ596 ->  | AD9: =Intra!BA596 ->  | AE9: =Intra!BB596 ->  | AF9: =Intra!BC596 ->  | AG9: =Intra!BD596 ->  | AH9: =Intra!BF596 ->  | AI9: =Intra!BH596 ->  | AJ9: =Intra!BJ596 ->  | AK9: =Intra!BL596 ->  | AL9: =Intra!BN596 ->  | AM9: =Intra!BP596 ->  | AN9: =Intra!BR596 ->  | AO9: =Intra!BS596 ->  | AP9: =Intra!BT596 ->  | AQ9: =Intra!BU596 ->  | AR9: =Intra!BV596 ->  | AS9: =Intra!BX596 ->  | AT9: =Intra!AT597 ->  | AU9: =Intra!AU597 ->  | AV9: =Intra!AZ597 ->  | AW9: =Intra!BA597 ->  | AX9: =Intra!BB597 ->  | AY9: =Intra!BC597 ->  | AZ9: =Intra!BD597 ->  | BA9: =Intra!BF597 ->  | BB9: =Intra!BH597 ->  | BC9: =Intra!BJ597 ->  | BD9: =Intra!BL597 ->  | BE9: =Intra!BN597 ->  | BF9: =Intra!BP597 ->  | BG9: =Intra!BR597 ->  | BH9: =Intra!BS597 ->  | BI9: =Intra!BT597 ->  | BJ9: =Intra!BU597 ->  | BK9: =Intra!BV597 ->  | BL9: =Intra!BX597 ->  | BM9: =Intra!AT598 ->  | BN9: =Intra!AU598 -> 
B10: =Intra!C604 -> Class B1_SYN | C10: =Intra!AT603 -> 0 | G10: =Intra!C604 -> Class B1_SYN | H10: =Intra!AZ604 ->  | I10: =Intra!BA604 ->  | J10: =Intra!BB604 ->  | K10: =Intra!BC604 ->  | L10: =Intra!BD604 ->  | M10: =Intra!BF604 ->  | N10: =Intra!BH604 ->  | O10: =Intra!BJ604 ->  | P10: =Intra!BL604 ->  | Q10: =Intra!BN604 ->  | R10: =Intra!BP604 ->  | S10: =Intra!BR604 ->  | T10: =Intra!BS604 ->  | U10: =Intra!BT604 ->  | V10: =Intra!BU604 ->  | W10: =Intra!BV604 ->  | X10: =Intra!BX604 ->  | Y10: =Intra!BZ604 -> 0 | Z10: =Intra!CB604 -> 0 | AA10: =Intra!AT604 ->  | AB10: =Intra!AU604 ->  | AC10: =Intra!AZ605 ->  | AD10: =Intra!BA605 ->  | AE10: =Intra!BB605 ->  | AF10: =Intra!BC605 ->  | AG10: =Intra!BD605 ->  | AH10: =Intra!BF605 ->  | AI10: =Intra!BH605 ->  | AJ10: =Intra!BJ605 ->  | AK10: =Intra!BL605 ->  | AL10: =Intra!BN605 ->  | AM10: =Intra!BP605 ->  | AN10: =Intra!BR605 ->  | AO10: =Intra!BS605 ->  | AP10: =Intra!BT605 ->  | AQ10: =Intra!BU605 ->  | AR10: =Intra!BV605 ->  | AS10: =Intra!BX605 ->  | AT10: =Intra!AT606 ->  | AU10: =Intra!AU606 ->  | AV10: =Intra!AZ606 ->  | AW10: =Intra!BA606 ->  | AX10: =Intra!BB606 ->  | AY10: =Intra!BC606 ->  | AZ10: =Intra!BD606 ->  | BA10: =Intra!BF606 ->  | BB10: =Intra!BH606 ->  | BC10: =Intra!BJ606 ->  | BD10: =Intra!BL606 ->  | BE10: =Intra!BN606 ->  | BF10: =Intra!BP606 ->  | BG10: =Intra!BR606 ->  | BH10: =Intra!BS606 ->  | BI10: =Intra!BT606 ->  | BJ10: =Intra!BU606 ->  | BK10: =Intra!BV606 ->  | BL10: =Intra!BX606 ->  | BM10: =Intra!AT607 ->  | BN10: =Intra!AU607 -> 
B11: =Intra!C613 -> Class B2_SCC | C11: =Intra!AT612 -> 0 | G11: =Intra!C613 -> Class B2_SCC | H11: =Intra!AZ613 ->  | I11: =Intra!BA613 ->  | J11: =Intra!BB613 ->  | K11: =Intra!BC613 ->  | L11: =Intra!BD613 ->  | M11: =Intra!BF613 ->  | N11: =Intra!BH613 ->  | O11: =Intra!BJ613 ->  | P11: =Intra!BL613 ->  | Q11: =Intra!BN613 ->  | R11: =Intra!BP613 ->  | S11: =Intra!BR613 ->  | T11: =Intra!BS613 ->  | U11: =Intra!BT613 ->  | V11: =Intra!BU613 ->  | W11: =Intra!BV613 ->  | X11: =Intra!BX613 ->  | Y11: =Intra!BZ613 -> 0 | Z11: =Intra!CB613 -> 0 | AA11: =Intra!AT613 ->  | AB11: =Intra!AU613 ->  | AC11: =Intra!AZ614 ->  | AD11: =Intra!BA614 ->  | AE11: =Intra!BB614 ->  | AF11: =Intra!BC614 ->  | AG11: =Intra!BD614 ->  | AH11: =Intra!BF614 ->  | AI11: =Intra!BH614 ->  | AJ11: =Intra!BJ614 ->  | AK11: =Intra!BL614 ->  | AL11: =Intra!BN614 ->  | AM11: =Intra!BP614 ->  | AN11: =Intra!BR614 ->  | AO11: =Intra!BS614 ->  | AP11: =Intra!BT614 ->  | AQ11: =Intra!BU614 ->  | AR11: =Intra!BV614 ->  | AS11: =Intra!BX614 ->  | AT11: =Intra!AT615 ->  | AU11: =Intra!AU615 ->  | AV11: =Intra!AZ615 ->  | AW11: =Intra!BA615 ->  | AX11: =Intra!BB615 ->  | AY11: =Intra!BC615 ->  | AZ11: =Intra!BD615 ->  | BA11: =Intra!BF615 ->  | BB11: =Intra!BH615 ->  | BC11: =Intra!BJ615 ->  | BD11: =Intra!BL615 ->  | BE11: =Intra!BN615 ->  | BF11: =Intra!BP615 ->  | BG11: =Intra!BR615 ->  | BH11: =Intra!BS615 ->  | BI11: =Intra!BT615 ->  | BJ11: =Intra!BU615 ->  | BK11: =Intra!BV615 ->  | BL11: =Intra!BX615 ->  | BM11: =Intra!AT616 ->  | BN11: =Intra!AU616 -> 
B12: =Intra!C662 -> Overall Mandatory w/o B2 | C12: =Intra!AT661 -> 0 | G12: =Intra!C662 -> Overall Mandatory w/o B2 | H12: =Intra!AZ662 ->  | I12: =Intra!BA662 ->  | J12: =Intra!BB662 ->  | K12: =Intra!BC662 ->  | L12: =Intra!BD662 ->  | M12: =Intra!BF662 ->  | N12: =Intra!BH662 ->  | O12: =Intra!BJ662 ->  | P12: =Intra!BL662 ->  | Q12: =Intra!BN662 ->  | R12: =Intra!BP662 ->  | S12: =Intra!BR662 ->  | T12: =Intra!BS662 ->  | U12: =Intra!BT662 ->  | V12: =Intra!BU662 ->  | W12: =Intra!BV662 ->  | X12: =Intra!BX662 ->  | Y12: =Intra!BZ662 -> 0 | Z12: =Intra!CB662 -> 0 | AA12: =Intra!AT662 ->  | AB12: =Intra!AU662 ->  | AC12: =Intra!AZ663 ->  | AD12: =Intra!BA663 ->  | AE12: =Intra!BB663 ->  | AF12: =Intra!BC663 ->  | AG12: =Intra!BD663 ->  | AH12: =Intra!BF663 ->  | AI12: =Intra!BH663 ->  | AJ12: =Intra!BJ663 ->  | AK12: =Intra!BL663 ->  | AL12: =Intra!BN663 ->  | AM12: =Intra!BP663 ->  | AN12: =Intra!BR663 ->  | AO12: =Intra!BS663 ->  | AP12: =Intra!BT663 ->  | AQ12: =Intra!BU663 ->  | AR12: =Intra!BV663 ->  | AS12: =Intra!BX663 ->  | AT12: =Intra!AT665 ->  | AU12: =Intra!AU665 ->  | AV12: =Intra!AZ664 ->  | AW12: =Intra!BA664 ->  | AX12: =Intra!BB664 ->  | AY12: =Intra!BC664 ->  | AZ12: =Intra!BD664 ->  | BA12: =Intra!BF664 ->  | BB12: =Intra!BH664 ->  | BC12: =Intra!BJ664 ->  | BD12: =Intra!BL664 ->  | BE12: =Intra!BN664 ->  | BF12: =Intra!BP664 ->  | BG12: =Intra!BR664 ->  | BH12: =Intra!BS664 ->  | BI12: =Intra!BT664 ->  | BJ12: =Intra!BU664 ->  | BK12: =Intra!BV664 ->  | BL12: =Intra!BX664 ->  | BM12: =Intra!AT664 ->  | BN12: =Intra!AU664 -> 
B13: =Intra!$C$673 -> Overall Mandatory w/ B2 | C13: =Intra!$AT$672 -> 0 | G13: =Intra!$C$673 -> Overall Mandatory w/ B2 | H13: =Intra!AZ673 ->  | I13: =Intra!BA673 ->  | J13: =Intra!BB673 ->  | K13: =Intra!BC673 ->  | L13: =Intra!BD673 ->  | M13: =Intra!BF673 ->  | N13: =Intra!BH673 ->  | O13: =Intra!BJ673 ->  | P13: =Intra!BL673 ->  | Q13: =Intra!BN673 ->  | R13: =Intra!BP673 ->  | S13: =Intra!BR673 ->  | T13: =Intra!BS673 ->  | U13: =Intra!BT673 ->  | V13: =Intra!BU673 ->  | W13: =Intra!BV673 ->  | X13: =Intra!BX673 ->  | Y13: =Intra!BZ673 -> 0 | Z13: =Intra!CB673 -> 0 | AA13: =Intra!AT673 ->  | AB13: =Intra!AU673 ->  | AC13: =Intra!AZ674 ->  | AD13: =Intra!BA674 ->  | AE13: =Intra!BB674 ->  | AF13: =Intra!BC674 ->  | AG13: =Intra!BD674 ->  | AH13: =Intra!BF674 ->  | AI13: =Intra!BH674 ->  | AJ13: =Intra!BJ674 ->  | AK13: =Intra!BL674 ->  | AL13: =Intra!BN674 ->  | AM13: =Intra!BP674 ->  | AN13: =Intra!BR674 ->  | AO13: =Intra!BS674 ->  | AP13: =Intra!BT674 ->  | AQ13: =Intra!BU674 ->  | AR13: =Intra!BV674 ->  | AS13: =Intra!BX674 ->  | AT13: =Intra!AT676 ->  | AU13: =Intra!AU676 ->  | AV13: =Intra!AZ675 ->  | AW13: =Intra!BA675 ->  | AX13: =Intra!BB675 ->  | AY13: =Intra!BC675 ->  | AZ13: =Intra!BD675 ->  | BA13: =Intra!BF675 ->  | BB13: =Intra!BH675 ->  | BC13: =Intra!BJ675 ->  | BD13: =Intra!BL675 ->  | BE13: =Intra!BN675 ->  | BF13: =Intra!BP675 ->  | BG13: =Intra!BR675 ->  | BH13: =Intra!BS675 ->  | BI13: =Intra!BT675 ->  | BJ13: =Intra!BU675 ->  | BK13: =Intra!BV675 ->  | BL13: =Intra!BX675 ->  | BM13: =Intra!AT675 ->  | BN13: =Intra!AU675 -> 
B15: =Intra!C622 -> Class HDR1_4K | C15: =Intra!AT621 -> 0 | G15: =Intra!C622 -> Class HDR1_4K | H15: =Intra!AZ622 ->  | I15: =Intra!BA622 ->  | J15: =Intra!BB622 ->  | K15: =Intra!BC622 ->  | L15: =Intra!BD622 ->  | M15: =Intra!BF622 ->  | N15: =Intra!BH622 ->  | O15: =Intra!BJ622 ->  | P15: =Intra!BL622 ->  | Q15: =Intra!BN622 ->  | R15: =Intra!BP622 ->  | S15: =Intra!BR622 ->  | T15: =Intra!BS622 ->  | U15: =Intra!BT622 ->  | V15: =Intra!BU622 ->  | W15: =Intra!BV622 ->  | X15: =Intra!BX622 ->  | Y15: =Intra!BZ622 -> 0 | Z15: =Intra!CB622 -> 0 | AA15: =Intra!AT622 ->  | AB15: =Intra!AU622 ->  | AC15: =Intra!AZ623 ->  | AD15: =Intra!BA623 ->  | AE15: =Intra!BB623 ->  | AF15: =Intra!BC623 ->  | AG15: =Intra!BD623 ->  | AH15: =Intra!BF623 ->  | AI15: =Intra!BH623 ->  | AJ15: =Intra!BJ623 ->  | AK15: =Intra!BL623 ->  | AL15: =Intra!BN623 ->  | AM15: =Intra!BP623 ->  | AN15: =Intra!BR623 ->  | AO15: =Intra!BS623 ->  | AP15: =Intra!BT623 ->  | AQ15: =Intra!BU623 ->  | AR15: =Intra!BV623 ->  | AS15: =Intra!BX623 ->  | AT15: =Intra!AT624 ->  | AU15: =Intra!AU624 ->  | AV15: =Intra!AZ624 ->  | AW15: =Intra!BA624 ->  | AX15: =Intra!BB624 ->  | AY15: =Intra!BC624 ->  | AZ15: =Intra!BD624 ->  | BA15: =Intra!BF624 ->  | BB15: =Intra!BH624 ->  | BC15: =Intra!BJ624 ->  | BD15: =Intra!BL624 ->  | BE15: =Intra!BN624 ->  | BF15: =Intra!BP624 ->  | BG15: =Intra!BR624 ->  | BH15: =Intra!BS624 ->  | BI15: =Intra!BT624 ->  | BJ15: =Intra!BU624 ->  | BK15: =Intra!BV624 ->  | BL15: =Intra!BX624 ->  | BM15: =Intra!AT625 ->  | BN15: =Intra!AU625 -> 
B16: =Intra!C631 -> Class HDR2_2K | C16: =Intra!AT630 -> 0 | G16: =Intra!C631 -> Class HDR2_2K | H16: =Intra!AZ631 ->  | I16: =Intra!BA631 ->  | J16: =Intra!BB631 ->  | K16: =Intra!BC631 ->  | L16: =Intra!BD631 ->  | M16: =Intra!BF631 ->  | N16: =Intra!BH631 ->  | O16: =Intra!BJ631 ->  | P16: =Intra!BL631 ->  | Q16: =Intra!BN631 ->  | R16: =Intra!BP631 ->  | S16: =Intra!BR631 ->  | T16: =Intra!BS631 ->  | U16: =Intra!BT631 ->  | V16: =Intra!BU631 ->  | W16: =Intra!BV631 ->  | X16: =Intra!BX631 ->  | Y16: =Intra!BZ631 -> 0 | Z16: =Intra!CB631 -> 0 | AA16: =Intra!AT631 ->  | AB16: =Intra!AU631 ->  | AC16: =Intra!AZ632 ->  | AD16: =Intra!BA632 ->  | AE16: =Intra!BB632 ->  | AF16: =Intra!BC632 ->  | AG16: =Intra!BD632 ->  | AH16: =Intra!BF632 ->  | AI16: =Intra!BH632 ->  | AJ16: =Intra!BJ632 ->  | AK16: =Intra!BL632 ->  | AL16: =Intra!BN632 ->  | AM16: =Intra!BP632 ->  | AN16: =Intra!BR632 ->  | AO16: =Intra!BS632 ->  | AP16: =Intra!BT632 ->  | AQ16: =Intra!BU632 ->  | AR16: =Intra!BV632 ->  | AS16: =Intra!BX632 ->  | AT16: =Intra!AT633 ->  | AU16: =Intra!AU633 ->  | AV16: =Intra!AZ633 ->  | AW16: =Intra!BA633 ->  | AX16: =Intra!BB633 ->  | AY16: =Intra!BC633 ->  | AZ16: =Intra!BD633 ->  | BA16: =Intra!BF633 ->  | BB16: =Intra!BH633 ->  | BC16: =Intra!BJ633 ->  | BD16: =Intra!BL633 ->  | BE16: =Intra!BN633 ->  | BF16: =Intra!BP633 ->  | BG16: =Intra!BR633 ->  | BH16: =Intra!BS633 ->  | BI16: =Intra!BT633 ->  | BJ16: =Intra!BU633 ->  | BK16: =Intra!BV633 ->  | BL16: =Intra!BX633 ->  | BM16: =Intra!AT634 ->  | BN16: =Intra!AU634 -> 
B17: =Intra!C684 -> Overall HDR | C17: =Intra!AT683 -> 0 | G17: =Intra!C684 -> Overall HDR | H17: =Intra!AZ684 ->  | I17: =Intra!BA684 ->  | J17: =Intra!BB684 ->  | K17: =Intra!BC684 ->  | L17: =Intra!BD684 ->  | M17: =Intra!BF684 ->  | N17: =Intra!BH684 ->  | O17: =Intra!BJ684 ->  | P17: =Intra!BL684 ->  | Q17: =Intra!BN684 ->  | R17: =Intra!BP684 ->  | S17: =Intra!BR684 ->  | T17: =Intra!BS684 ->  | U17: =Intra!BT684 ->  | V17: =Intra!BU684 ->  | W17: =Intra!BV684 ->  | X17: =Intra!BX684 ->  | Y17: =Intra!BZ684 -> 0 | Z17: =Intra!CB684 -> 0 | AA17: =Intra!AT684 ->  | AB17: =Intra!AU684 ->  | AC17: =Intra!AZ685 ->  | AD17: =Intra!BA685 ->  | AE17: =Intra!BB685 ->  | AF17: =Intra!BC685 ->  | AG17: =Intra!BD685 ->  | AH17: =Intra!BF685 ->  | AI17: =Intra!BH685 ->  | AJ17: =Intra!BJ685 ->  | AK17: =Intra!BL685 ->  | AL17: =Intra!BN685 ->  | AM17: =Intra!BP685 ->  | AN17: =Intra!BR685 ->  | AO17: =Intra!BS685 ->  | AP17: =Intra!BT685 ->  | AQ17: =Intra!BU685 ->  | AR17: =Intra!BV685 ->  | AS17: =Intra!BX685 ->  | AT17: =Intra!AT686 ->  | AU17: =Intra!AU686 ->  | AV17: =Intra!AZ686 ->  | AW17: =Intra!BA686 ->  | AX17: =Intra!BB686 ->  | AY17: =Intra!BC686 ->  | AZ17: =Intra!BD686 ->  | BA17: =Intra!BF686 ->  | BB17: =Intra!BH686 ->  | BC17: =Intra!BJ686 ->  | BD17: =Intra!BL686 ->  | BE17: =Intra!BN686 ->  | BF17: =Intra!BP686 ->  | BG17: =Intra!BR686 ->  | BH17: =Intra!BS686 ->  | BI17: =Intra!BT686 ->  | BJ17: =Intra!BU686 ->  | BK17: =Intra!BV686 ->  | BL17: =Intra!BX686 ->  | BM17: =Intra!AT687 ->  | BN17: =Intra!AU687 -> 
B18: =Intra!C640 -> Class E | C18: =Intra!AT639 -> 0 | G18: =Intra!C640 -> Class E | H18: =Intra!AZ640 ->  | I18: =Intra!BA640 ->  | J18: =Intra!BB640 ->  | K18: =Intra!BC640 ->  | L18: =Intra!BD640 ->  | M18: =Intra!BF640 ->  | N18: =Intra!BH640 ->  | O18: =Intra!BJ640 ->  | P18: =Intra!BL640 ->  | Q18: =Intra!BN640 ->  | R18: =Intra!BP640 ->  | S18: =Intra!BR640 ->  | T18: =Intra!BS640 ->  | U18: =Intra!BT640 ->  | V18: =Intra!BU640 ->  | W18: =Intra!BV640 ->  | X18: =Intra!BX640 ->  | Y18: =Intra!BZ640 -> 0 | Z18: =Intra!CB640 -> 0 | AA18: =Intra!AT640 ->  | AB18: =Intra!AU640 ->  | AC18: =Intra!AZ641 ->  | AD18: =Intra!BA641 ->  | AE18: =Intra!BB641 ->  | AF18: =Intra!BC641 ->  | AG18: =Intra!BD641 ->  | AH18: =Intra!BF641 ->  | AI18: =Intra!BH641 ->  | AJ18: =Intra!BJ641 ->  | AK18: =Intra!BL641 ->  | AL18: =Intra!BN641 ->  | AM18: =Intra!BP641 ->  | AN18: =Intra!BR641 ->  | AO18: =Intra!BS641 ->  | AP18: =Intra!BT641 ->  | AQ18: =Intra!BU641 ->  | AR18: =Intra!BV641 ->  | AS18: =Intra!BX641 ->  | AT18: =Intra!AT642 ->  | AU18: =Intra!AU642 ->  | AV18: =Intra!AZ642 ->  | AW18: =Intra!BA642 ->  | AX18: =Intra!BB642 ->  | AY18: =Intra!BC642 ->  | AZ18: =Intra!BD642 ->  | BA18: =Intra!BF642 ->  | BB18: =Intra!BH642 ->  | BC18: =Intra!BJ642 ->  | BD18: =Intra!BL642 ->  | BE18: =Intra!BN642 ->  | BF18: =Intra!BP642 ->  | BG18: =Intra!BR642 ->  | BH18: =Intra!BS642 ->  | BI18: =Intra!BT642 ->  | BJ18: =Intra!BU642 ->  | BK18: =Intra!BV642 ->  | BL18: =Intra!BX642 ->  | BM18: =Intra!AT643 ->  | BN18: =Intra!AU643 -> 
B19: =Intra!C651 -> Overall | C19: =Intra!AT650 -> 0 | G19: =Intra!C651 -> Overall | H19: =Intra!AZ651 ->  | I19: =Intra!BA651 ->  | J19: =Intra!BB651 ->  | K19: =Intra!BC651 ->  | L19: =Intra!BD651 ->  | M19: =Intra!BF651 ->  | N19: =Intra!BH651 ->  | O19: =Intra!BJ651 ->  | P19: =Intra!BL651 ->  | Q19: =Intra!BN651 ->  | R19: =Intra!BP651 ->  | S19: =Intra!BR651 ->  | T19: =Intra!BS651 ->  | U19: =Intra!BT651 ->  | V19: =Intra!BU651 ->  | W19: =Intra!BV651 ->  | X19: =Intra!BX651 ->  | Y19: =Intra!BZ651 -> 0 | Z19: =Intra!CB651 -> 0 | AA19: =Intra!AT651 ->  | AB19: =Intra!AU651 ->  | AC19: =Intra!AZ652 ->  | AD19: =Intra!BA652 ->  | AE19: =Intra!BB652 ->  | AF19: =Intra!BC652 ->  | AG19: =Intra!BD652 ->  | AH19: =Intra!BF652 ->  | AI19: =Intra!BH652 ->  | AJ19: =Intra!BI652 ->  | AK19: =Intra!BL652 ->  | AL19: =Intra!BN652 ->  | AM19: =Intra!BP652 ->  | AN19: =Intra!BR652 ->  | AO19: =Intra!BS652 ->  | AP19: =Intra!BM652 ->  | AQ19: =Intra!BU652 ->  | AR19: =Intra!BV652 ->  | AS19: =Intra!BX652 ->  | AT19: =Intra!AT653 ->  | AU19: =Intra!AU653 ->  | AV19: =Intra!AZ653 ->  | AW19: =Intra!BA653 ->  | AX19: =Intra!BB653 ->  | AY19: =Intra!BC653 ->  | AZ19: =Intra!BD653 ->  | BA19: =Intra!BF653 ->  | BB19: =Intra!BH653 ->  | BC19: =Intra!BJ653 ->  | BD19: =Intra!BL653 ->  | BE19: =Intra!BN653 ->  | BF19: =Intra!BP653 ->  | BG19: =Intra!BR653 ->  | BH19: =Intra!BS653 ->  | BI19: =Intra!BT653 ->  | BJ19: =Intra!BU653 ->  | BK19: =Intra!BV653 ->  | BL19: =Intra!BX653 ->  | BM19: =Intra!AT654 ->  | BN19: =Intra!AU654 -> 
B21: =RA!C559 -> Class A1_4K | C21: =RA!AT558 -> 0 | F21: RA | G21: =RA!C559 -> Class A1_4K | H21: =RA!AZ559 ->  | I21: =RA!BA559 ->  | J21: =RA!BB559 ->  | K21: =RA!BC559 ->  | L21: =RA!BD559 ->  | M21: =RA!BF559 ->  | N21: =RA!BH559 ->  | O21: =RA!BJ559 ->  | P21: =RA!BL559 ->  | Q21: =RA!BN559 ->  | R21: =RA!BP559 ->  | S21: =RA!BR559 ->  | T21: =RA!BS559 ->  | U21: =RA!BT559 ->  | V21: =RA!BU559 ->  | W21: =RA!BV559 ->  | X21: =RA!BX559 ->  | Y21: =RA!BZ559 -> 0 | Z21: =RA!CB559 -> 0 | AA21: =RA!AT559 ->  | AB21: =RA!AU559 ->  | AC21: =RA!AZ560 ->  | AD21: =RA!BA560 ->  | AE21: =RA!BB560 ->  | AF21: =RA!BC560 ->  | AG21: =RA!BD560 ->  | AH21: =RA!BF560 ->  | AI21: =RA!BH560 ->  | AJ21: =RA!BJ560 ->  | AK21: =RA!BL560 ->  | AL21: =RA!BN560 ->  | AM21: =RA!BP560 ->  | AN21: =RA!BR560 ->  | AO21: =RA!BS560 ->  | AP21: =RA!BT560 ->  | AQ21: =RA!BU560 ->  | AR21: =RA!BV560 ->  | AS21: =RA!BX560 ->  | AT21: =RA!AT561 ->  | AU21: =RA!AU561 ->  | AV21: =RA!AZ561 ->  | AW21: =RA!BA561 ->  | AX21: =RA!BB561 ->  | AY21: =RA!BC561 ->  | AZ21: =RA!BD561 ->  | BA21: =RA!BF561 ->  | BB21: =RA!BH561 ->  | BC21: =RA!BJ561 ->  | BD21: =RA!BL561 ->  | BE21: =RA!BN561 ->  | BF21: =RA!BP561 ->  | BG21: =RA!BR561 ->  | BH21: =RA!BS561 ->  | BI21: =RA!BT561 ->  | BJ21: =RA!BU561 ->  | BK21: =RA!BV561 ->  | BL21: =RA!BX561 ->  | BM21: =RA!AT562 ->  | BN21: =RA!AU562 -> 
B22: =RA!C568 -> Class A2_2K | C22: =RA!AT567 -> 0 | G22: =RA!C568 -> Class A2_2K | H22: =RA!AZ568 ->  | I22: =RA!BA568 ->  | J22: =RA!BB568 ->  | K22: =RA!BC568 ->  | L22: =RA!BD568 ->  | M22: =RA!BF568 ->  | N22: =RA!BH568 ->  | O22: =RA!BJ568 ->  | P22: =RA!BL568 ->  | Q22: =RA!BN568 ->  | R22: =RA!BP568 ->  | S22: =RA!BR568 ->  | T22: =RA!BS568 ->  | U22: =RA!BT568 ->  | V22: =RA!BU568 ->  | W22: =RA!BV568 ->  | X22: =RA!BX568 ->  | Y22: =RA!BZ568 -> 0 | Z22: =RA!CB568 -> 0 | AA22: =RA!AT568 ->  | AB22: =RA!AU568 ->  | AC22: =RA!AZ569 ->  | AD22: =RA!BA569 ->  | AE22: =RA!BB569 ->  | AF22: =RA!BC569 ->  | AG22: =RA!BD569 ->  | AH22: =RA!BF569 ->  | AI22: =RA!BH569 ->  | AJ22: =RA!BJ569 ->  | AK22: =RA!BL569 ->  | AL22: =RA!BN569 ->  | AM22: =RA!BP569 ->  | AN22: =RA!BR569 ->  | AO22: =RA!BS569 ->  | AP22: =RA!BT569 ->  | AQ22: =RA!BU569 ->  | AR22: =RA!BV569 ->  | AS22: =RA!BX569 ->  | AT22: =RA!AT570 ->  | AU22: =RA!AU570 ->  | AV22: =RA!AZ570 ->  | AW22: =RA!BA570 ->  | AX22: =RA!BB570 ->  | AY22: =RA!BC570 ->  | AZ22: =RA!BD570 ->  | BA22: =RA!BF570 ->  | BB22: =RA!BH570 ->  | BC22: =RA!BJ570 ->  | BD22: =RA!BL570 ->  | BE22: =RA!BN570 ->  | BF22: =RA!BP570 ->  | BG22: =RA!BR570 ->  | BH22: =RA!BS570 ->  | BI22: =RA!BT570 ->  | BJ22: =RA!BU570 ->  | BK22: =RA!BV570 ->  | BL22: =RA!BX570 ->  | BM22: =RA!AT571 ->  | BN22: =RA!AU571 -> 
B23: =RA!C577 -> Class A3_720p | C23: =RA!AT576 -> 0 | G23: =RA!C577 -> Class A3_720p | H23: =RA!AZ577 ->  | I23: =RA!BA577 ->  | J23: =RA!BB577 ->  | K23: =RA!BC577 ->  | L23: =RA!BD577 ->  | M23: =RA!BF577 ->  | N23: =RA!BH577 ->  | O23: =RA!BJ577 ->  | P23: =RA!BL577 ->  | Q23: =RA!BN577 ->  | R23: =RA!BP577 ->  | S23: =RA!BR577 ->  | T23: =RA!BS577 ->  | U23: =RA!BT577 ->  | V23: =RA!BU577 ->  | W23: =RA!BV577 ->  | X23: =RA!BX577 ->  | Y23: =RA!BZ577 -> 0 | Z23: =RA!CB577 -> 0 | AA23: =RA!AT577 ->  | AB23: =RA!AU577 ->  | AC23: =RA!AZ578 ->  | AD23: =RA!BA578 ->  | AE23: =RA!BB578 ->  | AF23: =RA!BC578 ->  | AG23: =RA!BD578 ->  | AH23: =RA!BF578 ->  | AI23: =RA!BH578 ->  | AJ23: =RA!BJ578 ->  | AK23: =RA!BL578 ->  | AL23: =RA!BN578 ->  | AM23: =RA!BP578 ->  | AN23: =RA!BR578 ->  | AO23: =RA!BS578 ->  | AP23: =RA!BT578 ->  | AQ23: =RA!BU578 ->  | AR23: =RA!BV578 ->  | AS23: =RA!BX578 ->  | AT23: =RA!AT579 ->  | AU23: =RA!AU579 ->  | AV23: =RA!AZ579 ->  | AW23: =RA!BA579 ->  | AX23: =RA!BB579 ->  | AY23: =RA!BC579 ->  | AZ23: =RA!BD579 ->  | BA23: =RA!BF579 ->  | BB23: =RA!BH579 ->  | BC23: =RA!BJ579 ->  | BD23: =RA!BL579 ->  | BE23: =RA!BN579 ->  | BF23: =RA!BP579 ->  | BG23: =RA!BR579 ->  | BH23: =RA!BS579 ->  | BI23: =RA!BT579 ->  | BJ23: =RA!BU579 ->  | BK23: =RA!BV579 ->  | BL23: =RA!BX579 ->  | BM23: =RA!AT580 ->  | BN23: =RA!AU580 -> 
B24: =RA!C586 -> Class A4_360p | C24: =RA!AT585 -> 0 | G24: =RA!C586 -> Class A4_360p | H24: =RA!AZ586 ->  | I24: =RA!BA586 ->  | J24: =RA!BB586 ->  | K24: =RA!BC586 ->  | L24: =RA!BD586 ->  | M24: =RA!BF586 ->  | N24: =RA!BH586 ->  | O24: =RA!BJ586 ->  | P24: =RA!BL586 ->  | Q24: =RA!BN586 ->  | R24: =RA!BP586 ->  | S24: =RA!BR586 ->  | T24: =RA!BS586 ->  | U24: =RA!BT586 ->  | V24: =RA!BU586 ->  | W24: =RA!BV586 ->  | X24: =RA!BX586 ->  | Y24: =RA!BZ586 -> 0 | Z24: =RA!CB586 -> 0 | AA24: =RA!AT586 ->  | AB24: =RA!AU586 ->  | AC24: =RA!AZ587 ->  | AD24: =RA!BA587 ->  | AE24: =RA!BB587 ->  | AF24: =RA!BC587 ->  | AG24: =RA!BD587 ->  | AH24: =RA!BF587 ->  | AI24: =RA!BH587 ->  | AJ24: =RA!BJ587 ->  | AK24: =RA!BL587 ->  | AL24: =RA!BN587 ->  | AM24: =RA!BP587 ->  | AN24: =RA!BR587 ->  | AO24: =RA!BS587 ->  | AP24: =RA!BT587 ->  | AQ24: =RA!BU587 ->  | AR24: =RA!BV587 ->  | AS24: =RA!BX587 ->  | AT24: =RA!AT588 ->  | AU24: =RA!AU588 ->  | AV24: =RA!AZ588 ->  | AW24: =RA!BA588 ->  | AX24: =RA!BB588 ->  | AY24: =RA!BC588 ->  | AZ24: =RA!BD588 ->  | BA24: =RA!BF588 ->  | BB24: =RA!BH588 ->  | BC24: =RA!BJ588 ->  | BD24: =RA!BL588 ->  | BE24: =RA!BN588 ->  | BF24: =RA!BP588 ->  | BG24: =RA!BR588 ->  | BH24: =RA!BS588 ->  | BI24: =RA!BT588 ->  | BJ24: =RA!BU588 ->  | BK24: =RA!BV588 ->  | BL24: =RA!BX588 ->  | BM24: =RA!AT589 ->  | BN24: =RA!AU589 -> 
B25: =RA!C595 -> Class A5_270p | C25: =RA!AT594 -> 0 | G25: =RA!C595 -> Class A5_270p | H25: =RA!AZ595 ->  | I25: =RA!BA595 ->  | J25: =RA!BB595 ->  | K25: =RA!BC595 ->  | L25: =RA!BD595 ->  | M25: =RA!BF595 ->  | N25: =RA!BH595 ->  | O25: =RA!BJ595 ->  | P25: =RA!BL595 ->  | Q25: =RA!BN595 ->  | R25: =RA!BP595 ->  | S25: =RA!BR595 ->  | T25: =RA!BS595 ->  | U25: =RA!BT595 ->  | V25: =RA!BU595 ->  | W25: =RA!BV595 ->  | X25: =RA!BX595 ->  | Y25: =RA!BZ595 -> 0 | Z25: =RA!CB595 -> 0 | AA25: =RA!AT595 ->  | AB25: =RA!AU595 ->  | AC25: =RA!AZ596 ->  | AD25: =RA!BA596 ->  | AE25: =RA!BB596 ->  | AF25: =RA!BC596 ->  | AG25: =RA!BD596 ->  | AH25: =RA!BF596 ->  | AI25: =RA!BH596 ->  | AJ25: =RA!BJ596 ->  | AK25: =RA!BL596 ->  | AL25: =RA!BN596 ->  | AM25: =RA!BP596 ->  | AN25: =RA!BR596 ->  | AO25: =RA!BS596 ->  | AP25: =RA!BT596 ->  | AQ25: =RA!BU596 ->  | AR25: =RA!BV596 ->  | AS25: =RA!BX596 ->  | AT25: =RA!AT597 ->  | AU25: =RA!AU597 ->  | AV25: =RA!AZ597 ->  | AW25: =RA!BA597 ->  | AX25: =RA!BB597 ->  | AY25: =RA!BC597 ->  | AZ25: =RA!BD597 ->  | BA25: =RA!BF597 ->  | BB25: =RA!BH597 ->  | BC25: =RA!BJ597 ->  | BD25: =RA!BL597 ->  | BE25: =RA!BN597 ->  | BF25: =RA!BP597 ->  | BG25: =RA!BR597 ->  | BH25: =RA!BS597 ->  | BI25: =RA!BT597 ->  | BJ25: =RA!BU597 ->  | BK25: =RA!BV597 ->  | BL25: =RA!BX597 ->  | BM25: =RA!AT598 ->  | BN25: =RA!AU598 -> 
B26: =RA!C604 -> Class B1_SYN | C26: =RA!AT603 -> 0 | G26: =RA!C604 -> Class B1_SYN | H26: =RA!AZ604 ->  | I26: =RA!BA604 ->  | J26: =RA!BB604 ->  | K26: =RA!BC604 ->  | L26: =RA!BD604 ->  | M26: =RA!BF604 ->  | N26: =RA!BH604 ->  | O26: =RA!BJ604 ->  | P26: =RA!BL604 ->  | Q26: =RA!BN604 ->  | R26: =RA!BP604 ->  | S26: =RA!BR604 ->  | T26: =RA!BS604 ->  | U26: =RA!BT604 ->  | V26: =RA!BU604 ->  | W26: =RA!BV604 ->  | X26: =RA!BX604 ->  | Y26: =RA!BZ604 -> 0 | Z26: =RA!CB604 -> 0 | AA26: =RA!AT604 ->  | AB26: =RA!AU604 ->  | AC26: =RA!AZ605 ->  | AD26: =RA!BA605 ->  | AE26: =RA!BB605 ->  | AF26: =RA!BC605 ->  | AG26: =RA!BD605 ->  | AH26: =RA!BF605 ->  | AI26: =RA!BH605 ->  | AJ26: =RA!BJ605 ->  | AK26: =RA!BL605 ->  | AL26: =RA!BN605 ->  | AM26: =RA!BP605 ->  | AN26: =RA!BR605 ->  | AO26: =RA!BS605 ->  | AP26: =RA!BT605 ->  | AQ26: =RA!BU605 ->  | AR26: =RA!BV605 ->  | AS26: =RA!BX605 ->  | AT26: =RA!AT606 ->  | AU26: =RA!AU606 ->  | AV26: =RA!AZ606 ->  | AW26: =RA!BA606 ->  | AX26: =RA!BB606 ->  | AY26: =RA!BC606 ->  | AZ26: =RA!BD606 ->  | BA26: =RA!BF606 ->  | BB26: =RA!BH606 ->  | BC26: =RA!BJ606 ->  | BD26: =RA!BL606 ->  | BE26: =RA!BN606 ->  | BF26: =RA!BP606 ->  | BG26: =RA!BR606 ->  | BH26: =RA!BS606 ->  | BI26: =RA!BT606 ->  | BJ26: =RA!BU606 ->  | BK26: =RA!BV606 ->  | BL26: =RA!BX606 ->  | BM26: =RA!AT607 ->  | BN26: =RA!AU607 -> 
B27: =RA!C613 -> Class B2_SCC | C27: =RA!AT612 -> 0 | G27: =RA!C613 -> Class B2_SCC | H27: =RA!AZ613 ->  | I27: =RA!BA613 ->  | J27: =RA!BB613 ->  | K27: =RA!BC613 ->  | L27: =RA!BD613 ->  | M27: =RA!BF613 ->  | N27: =RA!BH613 ->  | O27: =RA!BJ613 ->  | P27: =RA!BL613 ->  | Q27: =RA!BN613 ->  | R27: =RA!BP613 ->  | S27: =RA!BR613 ->  | T27: =RA!BS613 ->  | U27: =RA!BT613 ->  | V27: =RA!BU613 ->  | W27: =RA!BV613 ->  | X27: =RA!BX613 ->  | Y27: =RA!BZ613 -> 0 | Z27: =RA!CB613 -> 0 | AA27: =RA!AT613 ->  | AB27: =RA!AU613 ->  | AC27: =RA!AZ614 ->  | AD27: =RA!BA614 ->  | AE27: =RA!BB614 ->  | AF27: =RA!BC614 ->  | AG27: =RA!BD614 ->  | AH27: =RA!BF614 ->  | AI27: =RA!BH614 ->  | AJ27: =RA!BJ614 ->  | AK27: =RA!BL614 ->  | AL27: =RA!BN614 ->  | AM27: =RA!BP614 ->  | AN27: =RA!BR614 ->  | AO27: =RA!BS614 ->  | AP27: =RA!BT614 ->  | AQ27: =RA!BU614 ->  | AR27: =RA!BV614 ->  | AS27: =RA!BX614 ->  | AT27: =RA!AT615 ->  | AU27: =RA!AU615 ->  | AV27: =RA!AZ615 ->  | AW27: =RA!BA615 ->  | AX27: =RA!BB615 ->  | AY27: =RA!BC615 ->  | AZ27: =RA!BD615 ->  | BA27: =RA!BF615 ->  | BB27: =RA!BH615 ->  | BC27: =RA!BJ615 ->  | BD27: =RA!BL615 ->  | BE27: =RA!BN615 ->  | BF27: =RA!BP615 ->  | BG27: =RA!BR615 ->  | BH27: =RA!BS615 ->  | BI27: =RA!BT615 ->  | BJ27: =RA!BU615 ->  | BK27: =RA!BV615 ->  | BL27: =RA!BX615 ->  | BM27: =RA!AT616 ->  | BN27: =RA!AU616 -> 
B28: =RA!C662 -> Overall Mandatory w/o B2 | C28: =RA!AT661 -> 0 | G28: =RA!C662 -> Overall Mandatory w/o B2 | H28: =RA!AZ662 ->  | I28: =RA!BA662 ->  | J28: =RA!BB662 ->  | K28: =RA!BC662 ->  | L28: =RA!BD662 ->  | M28: =RA!BF662 ->  | N28: =RA!BH662 ->  | O28: =RA!BJ662 ->  | P28: =RA!BL662 ->  | Q28: =RA!BN662 ->  | R28: =RA!BP662 ->  | S28: =RA!BR662 ->  | T28: =RA!BS662 ->  | U28: =RA!BT662 ->  | V28: =RA!BU662 ->  | W28: =RA!BV662 ->  | X28: =RA!BX662 ->  | Y28: =RA!BZ662 -> 0 | Z28: =RA!CB662 -> 0 | AA28: =RA!AT662 ->  | AB28: =RA!AU662 ->  | AC28: =RA!AZ663 ->  | AD28: =RA!BA663 ->  | AE28: =RA!BB663 ->  | AF28: =RA!BC663 ->  | AG28: =RA!BD663 ->  | AH28: =RA!BF663 ->  | AI28: =RA!BH663 ->  | AJ28: =RA!BJ663 ->  | AK28: =RA!BL663 ->  | AL28: =RA!BN663 ->  | AM28: =RA!BP663 ->  | AN28: =RA!BR663 ->  | AO28: =RA!BS663 ->  | AP28: =RA!BT663 ->  | AQ28: =RA!BU663 ->  | AR28: =RA!BV663 ->  | AS28: =RA!BX663 ->  | AT28: =RA!AT665 ->  | AU28: =RA!AU665 ->  | AV28: =RA!AZ664 ->  | AW28: =RA!BA664 ->  | AX28: =RA!BB664 ->  | AY28: =RA!BC664 ->  | AZ28: =RA!BD664 ->  | BA28: =RA!BF664 ->  | BB28: =RA!BH664 ->  | BC28: =RA!BJ664 ->  | BD28: =RA!BL664 ->  | BE28: =RA!BN664 ->  | BF28: =RA!BP664 ->  | BG28: =RA!BR664 ->  | BH28: =RA!BS664 ->  | BI28: =RA!BT664 ->  | BJ28: =RA!BU664 ->  | BK28: =RA!BV664 ->  | BL28: =RA!BX664 ->  | BM28: =RA!AT664 ->  | BN28: =RA!AU664 -> 
B29: =RA!$C$673 -> Overall Mandatory w/ B2 | C29: =RA!$AT$672 -> 0 | G29: =RA!$C$673 -> Overall Mandatory w/ B2 | H29: =RA!AZ673 ->  | I29: =RA!BA673 ->  | J29: =RA!BB673 ->  | K29: =RA!BC673 ->  | L29: =RA!BD673 ->  | M29: =RA!BF673 ->  | N29: =RA!BH673 ->  | O29: =RA!BJ673 ->  | P29: =RA!BL673 ->  | Q29: =RA!BN673 ->  | R29: =RA!BP673 ->  | S29: =RA!BR673 ->  | T29: =RA!BS673 ->  | U29: =RA!BT673 ->  | V29: =RA!BU673 ->  | W29: =RA!BV673 ->  | X29: =RA!BX673 ->  | Y29: =RA!BZ673 -> 0 | Z29: =RA!CB673 -> 0 | AA29: =RA!AT673 ->  | AB29: =RA!AU673 ->  | AC29: =RA!AZ674 ->  | AD29: =RA!BA674 ->  | AE29: =RA!BB674 ->  | AF29: =RA!BC674 ->  | AG29: =RA!BD674 ->  | AH29: =RA!BF674 ->  | AI29: =RA!BH674 ->  | AJ29: =RA!BJ674 ->  | AK29: =RA!BL674 ->  | AL29: =RA!BN674 ->  | AM29: =RA!BP674 ->  | AN29: =RA!BR674 ->  | AO29: =RA!BS674 ->  | AP29: =RA!BT674 ->  | AQ29: =RA!BU674 ->  | AR29: =RA!BV674 ->  | AS29: =RA!BX674 ->  | AT29: =RA!AT676 ->  | AU29: =RA!AU676 ->  | AV29: =RA!AZ675 ->  | AW29: =RA!BA675 ->  | AX29: =RA!BB675 ->  | AY29: =RA!BC675 ->  | AZ29: =RA!BD675 ->  | BA29: =RA!BF675 ->  | BB29: =RA!BH675 ->  | BC29: =RA!BJ675 ->  | BD29: =RA!BL675 ->  | BE29: =RA!BN675 ->  | BF29: =RA!BP675 ->  | BG29: =RA!BR675 ->  | BH29: =RA!BS675 ->  | BI29: =RA!BT675 ->  | BJ29: =RA!BU675 ->  | BK29: =RA!BV675 ->  | BL29: =RA!BX675 ->  | BM29: =RA!AT675 ->  | BN29: =RA!AU675 -> 
B31: =RA!C622 -> Class HDR1_4K | C31: =RA!AT621 -> 0 | G31: =RA!C622 -> Class HDR1_4K | H31: =RA!AZ622 ->  | I31: =RA!BA622 ->  | J31: =RA!BB622 ->  | K31: =RA!BC622 ->  | L31: =RA!BD622 ->  | M31: =RA!BF622 ->  | N31: =RA!BH622 ->  | O31: =RA!BJ622 ->  | P31: =RA!BL622 ->  | Q31: =RA!BN622 ->  | R31: =RA!BP622 ->  | S31: =RA!BR622 ->  | T31: =RA!BS622 ->  | U31: =RA!BT622 ->  | V31: =RA!BU622 ->  | W31: =RA!BV622 ->  | X31: =RA!BX622 ->  | Y31: =RA!BZ622 -> 0 | Z31: =RA!CB622 -> 0 | AA31: =RA!AT622 ->  | AB31: =RA!AU622 ->  | AC31: =RA!AZ623 ->  | AD31: =RA!BA623 ->  | AE31: =RA!BB623 ->  | AF31: =RA!BC623 ->  | AG31: =RA!BD623 ->  | AH31: =RA!BF623 ->  | AI31: =RA!BH623 ->  | AJ31: =RA!BJ623 ->  | AK31: =RA!BL623 ->  | AL31: =RA!BN623 ->  | AM31: =RA!BP623 ->  | AN31: =RA!BR623 ->  | AO31: =RA!BS623 ->  | AP31: =RA!BT623 ->  | AQ31: =RA!BU623 ->  | AR31: =RA!BV623 ->  | AS31: =RA!BX623 ->  | AT31: =RA!AT624 ->  | AU31: =RA!AU624 ->  | AV31: =RA!AZ624 ->  | AW31: =RA!BA624 ->  | AX31: =RA!BB624 ->  | AY31: =RA!BC624 ->  | AZ31: =RA!BD624 ->  | BA31: =RA!BF624 ->  | BB31: =RA!BH624 ->  | BC31: =RA!BJ624 ->  | BD31: =RA!BL624 ->  | BE31: =RA!BN624 ->  | BF31: =RA!BP624 ->  | BG31: =RA!BR624 ->  | BH31: =RA!BS624 ->  | BI31: =RA!BT624 ->  | BJ31: =RA!BU624 ->  | BK31: =RA!BV624 ->  | BL31: =RA!BX624 ->  | BM31: =RA!AT625 ->  | BN31: =RA!AU625 -> 
B32: =RA!C631 -> Class HDR2_2K | C32: =RA!AT630 -> 0 | G32: =RA!C631 -> Class HDR2_2K | H32: =RA!AZ631 ->  | I32: =RA!BA631 ->  | J32: =RA!BB631 ->  | K32: =RA!BC631 ->  | L32: =RA!BD631 ->  | M32: =RA!BF631 ->  | N32: =RA!BH631 ->  | O32: =RA!BJ631 ->  | P32: =RA!BL631 ->  | Q32: =RA!BN631 ->  | R32: =RA!BP631 ->  | S32: =RA!BR631 ->  | T32: =RA!BS631 ->  | U32: =RA!BT631 ->  | V32: =RA!BU631 ->  | W32: =RA!BV631 ->  | X32: =RA!BX631 ->  | Y32: =RA!BZ631 -> 0 | Z32: =RA!CB631 -> 0 | AA32: =RA!AT631 ->  | AB32: =RA!AU631 ->  | AC32: =RA!AZ632 ->  | AD32: =RA!BA632 ->  | AE32: =RA!BB632 ->  | AF32: =RA!BC632 ->  | AG32: =RA!BD632 ->  | AH32: =RA!BF632 ->  | AI32: =RA!BH632 ->  | AJ32: =RA!BJ632 ->  | AK32: =RA!BL632 ->  | AL32: =RA!BN632 ->  | AM32: =RA!BP632 ->  | AN32: =RA!BR632 ->  | AO32: =RA!BS632 ->  | AP32: =RA!BT632 ->  | AQ32: =RA!BU632 ->  | AR32: =RA!BV632 ->  | AS32: =RA!BX632 ->  | AT32: =RA!AT633 ->  | AU32: =RA!AU633 ->  | AV32: =RA!AZ633 ->  | AW32: =RA!BA633 ->  | AX32: =RA!BB633 ->  | AY32: =RA!BC633 ->  | AZ32: =RA!BD633 ->  | BA32: =RA!BF633 ->  | BB32: =RA!BH633 ->  | BC32: =RA!BJ633 ->  | BD32: =RA!BL633 ->  | BE32: =RA!BN633 ->  | BF32: =RA!BP633 ->  | BG32: =RA!BR633 ->  | BH32: =RA!BS633 ->  | BI32: =RA!BT633 ->  | BJ32: =RA!BU633 ->  | BK32: =RA!BV633 ->  | BL32: =RA!BX633 ->  | BM32: =RA!AT634 ->  | BN32: =RA!AU634 -> 
B33: =RA!C684 -> Overall HDR | C33: =RA!AT683 -> 0 | G33: =RA!C684 -> Overall HDR | H33: =RA!AZ684 ->  | I33: =RA!BA684 ->  | J33: =RA!BB684 ->  | K33: =RA!BC684 ->  | L33: =RA!BD684 ->  | M33: =RA!BF684 ->  | N33: =RA!BH684 ->  | O33: =RA!BJ684 ->  | P33: =RA!BL684 ->  | Q33: =RA!BN684 ->  | R33: =RA!BP684 ->  | S33: =RA!BR684 ->  | T33: =RA!BS684 ->  | U33: =RA!BT684 ->  | V33: =RA!BU684 ->  | W33: =RA!BV684 ->  | X33: =RA!BX684 ->  | Y33: =RA!BZ684 -> 0 | Z33: =RA!CB684 -> 0 | AA33: =RA!AT684 ->  | AB33: =RA!AU684 ->  | AC33: =RA!AZ685 ->  | AD33: =RA!BA685 ->  | AE33: =RA!BB685 ->  | AF33: =RA!BC685 ->  | AG33: =RA!BD685 ->  | AH33: =RA!BF685 ->  | AI33: =RA!BH685 ->  | AJ33: =RA!BJ685 ->  | AK33: =RA!BL685 ->  | AL33: =RA!BN685 ->  | AM33: =RA!BP685 ->  | AN33: =RA!BR685 ->  | AO33: =RA!BS685 ->  | AP33: =RA!BT685 ->  | AQ33: =RA!BU685 ->  | AR33: =RA!BV685 ->  | AS33: =RA!BX685 ->  | AT33: =RA!AT686 ->  | AU33: =RA!AU686 ->  | AV33: =RA!AZ686 ->  | AW33: =RA!BA686 ->  | AX33: =RA!BB686 ->  | AY33: =RA!BC686 ->  | AZ33: =RA!BD686 ->  | BA33: =RA!BF686 ->  | BB33: =RA!BH686 ->  | BC33: =RA!BJ686 ->  | BD33: =RA!BL686 ->  | BE33: =RA!BN686 ->  | BF33: =RA!BP686 ->  | BG33: =RA!BR686 ->  | BH33: =RA!BS686 ->  | BI33: =RA!BT686 ->  | BJ33: =RA!BU686 ->  | BK33: =RA!BV686 ->  | BL33: =RA!BX686 ->  | BM33: =RA!AT687 ->  | BN33: =RA!AU687 -> 
B34: =RA!C640 -> Class E | C34: =RA!AT639 -> 0 | G34: =RA!C640 -> Class E | H34: =RA!AZ640 ->  | I34: =RA!BA640 ->  | J34: =RA!BB640 ->  | K34: =RA!BC640 ->  | L34: =RA!BD640 ->  | M34: =RA!BF640 ->  | N34: =RA!BH640 ->  | O34: =RA!BJ640 ->  | P34: =RA!BL640 ->  | Q34: =RA!BN640 ->  | R34: =RA!BP640 ->  | S34: =RA!BR640 ->  | T34: =RA!BS640 ->  | U34: =RA!BT640 ->  | V34: =RA!BU640 ->  | W34: =RA!BV640 ->  | X34: =RA!BX640 ->  | Y34: =RA!BZ640 -> 0 | Z34: =RA!CB640 -> 0 | AA34: =RA!AT640 ->  | AB34: =RA!AU640 ->  | AC34: =RA!AZ641 ->  | AD34: =RA!BA641 ->  | AE34: =RA!BB641 ->  | AF34: =RA!BC641 ->  | AG34: =RA!BD641 ->  | AH34: =RA!BF641 ->  | AI34: =RA!BH641 ->  | AJ34: =RA!BJ641 ->  | AK34: =RA!BL641 ->  | AL34: =RA!BN641 ->  | AM34: =RA!BP641 ->  | AN34: =RA!BR641 ->  | AO34: =RA!BS641 ->  | AP34: =RA!BT641 ->  | AQ34: =RA!BU641 ->  | AR34: =RA!BV641 ->  | AS34: =RA!BX641 ->  | AT34: =RA!AT642 ->  | AU34: =RA!AU642 ->  | AV34: =RA!AZ642 ->  | AW34: =RA!BA642 ->  | AX34: =RA!BB642 ->  | AY34: =RA!BC642 ->  | AZ34: =RA!BD642 ->  | BA34: =RA!BF642 ->  | BB34: =RA!BH642 ->  | BC34: =RA!BJ642 ->  | BD34: =RA!BL642 ->  | BE34: =RA!BN642 ->  | BF34: =RA!BP642 ->  | BG34: =RA!BR642 ->  | BH34: =RA!BS642 ->  | BI34: =RA!BT642 ->  | BJ34: =RA!BU642 ->  | BK34: =RA!BV642 ->  | BL34: =RA!BX642 ->  | BM34: =RA!AT643 ->  | BN34: =RA!AU643 -> 
B35: =RA!C651 -> Overall | C35: =RA!AT650 -> 0 | G35: =RA!C651 -> Overall | H35: =RA!AZ651 ->  | I35: =RA!BA651 ->  | J35: =RA!BB651 ->  | K35: =RA!BC651 ->  | L35: =RA!BD651 ->  | M35: =RA!BF651 ->  | N35: =RA!BH651 ->  | O35: =RA!BJ651 ->  | P35: =RA!BL651 ->  | Q35: =RA!BN651 ->  | R35: =RA!BP651 ->  | S35: =RA!BR651 ->  | T35: =RA!BS651 ->  | U35: =RA!BT651 ->  | V35: =RA!BU651 ->  | W35: =RA!BV651 ->  | X35: =RA!BX651 ->  | Y35: =RA!BZ651 -> 0 | Z35: =RA!CB651 -> 0 | AA35: =RA!AT651 ->  | AB35: =RA!AU651 ->  | AC35: =RA!AZ652 ->  | AD35: =RA!BA652 ->  | AE35: =RA!BB652 ->  | AF35: =RA!BC652 ->  | AG35: =RA!BD652 ->  | AH35: =RA!BF652 ->  | AI35: =RA!BH652 ->  | AJ35: =RA!BJ652 ->  | AK35: =RA!BL652 ->  | AL35: =RA!BN652 ->  | AM35: =RA!BP652 ->  | AN35: =RA!BR652 ->  | AO35: =RA!BS652 ->  | AP35: =RA!BM652 ->  | AQ35: =RA!BU652 ->  | AR35: =RA!BV652 ->  | AS35: =RA!BX652 ->  | AT35: =RA!AT653 ->  | AU35: =RA!AU653 ->  | AV35: =RA!AZ653 ->  | AW35: =RA!BA653 ->  | AX35: =RA!BB653 ->  | AY35: =RA!BC653 ->  | AZ35: =RA!BD653 ->  | BA35: =RA!BF653 ->  | BB35: =RA!BH653 ->  | BC35: =RA!BJ653 ->  | BD35: =RA!BL653 ->  | BE35: =RA!BN653 ->  | BF35: =RA!BP653 ->  | BG35: =RA!BR653 ->  | BH35: =RA!BS653 ->  | BI35: =RA!BT653 ->  | BJ35: =RA!BU653 ->  | BK35: =RA!BV653 ->  | BL35: =RA!BX653 ->  | BM35: =RA!AT654 ->  | BN35: =RA!AU654 -> 
B37: =LD!C559 -> Class A1_4K | C37: =LD!AT558 -> 0 | F37: LD | G37: =LD!C559 -> Class A1_4K
B38: =LD!C568 -> Class A2_2K | C38: =LD!AT567 -> 0 | G38: =LD!C568 -> Class A2_2K | H38: =LD!AZ568 ->  | I38: =LD!BA568 ->  | J38: =LD!BB568 ->  | K38: =LD!BC568 ->  | L38: =LD!BD568 ->  | M38: =LD!BF568 ->  | N38: =LD!BH568 ->  | O38: =LD!BJ568 ->  | P38: =LD!BL568 ->  | Q38: =LD!BN568 ->  | R38: =LD!BP568 ->  | S38: =LD!BR568 ->  | T38: =LD!BS568 ->  | U38: =LD!BT568 ->  | V38: =LD!BU568 ->  | W38: =LD!BV568 ->  | X38: =LD!BX568 ->  | Y38: =LD!BZ568 -> 0 | Z38: =LD!CB568 -> 0 | AA38: =LD!AT568 ->  | AB38: =LD!AU568 ->  | AC38: =LD!AZ569 ->  | AD38: =LD!BA569 ->  | AE38: =LD!BB569 ->  | AF38: =LD!BC569 ->  | AG38: =LD!BD569 ->  | AH38: =LD!BF569 ->  | AI38: =LD!BH569 ->  | AJ38: =LD!BJ569 ->  | AK38: =LD!BL569 ->  | AL38: =LD!BN569 ->  | AM38: =LD!BP569 ->  | AN38: =LD!BR569 ->  | AO38: =LD!BS569 ->  | AP38: =LD!BT569 ->  | AQ38: =LD!BU569 ->  | AR38: =LD!BV569 ->  | AS38: =LD!BX569 ->  | AT38: =LD!AT570 ->  | AU38: =LD!AU570 ->  | AV38: =LD!AZ570 ->  | AW38: =LD!BA570 ->  | AX38: =LD!BB570 ->  | AY38: =LD!BC570 ->  | AZ38: =LD!BD570 ->  | BA38: =LD!BF570 ->  | BB38: =LD!BH570 ->  | BC38: =LD!BJ570 ->  | BD38: =LD!BL570 ->  | BE38: =LD!BN570 ->  | BF38: =LD!BP570 ->  | BG38: =LD!BR570 ->  | BH38: =LD!BS570 ->  | BI38: =LD!BT570 ->  | BJ38: =LD!BU570 ->  | BK38: =LD!BV570 ->  | BL38: =LD!BX570 ->  | BM38: =LD!AT571 ->  | BN38: =LD!AU571 -> 
B39: =LD!C577 -> Class A3_720p | C39: =LD!AT576 -> 0 | G39: =LD!C577 -> Class A3_720p | H39: =LD!AZ577 ->  | I39: =LD!BA577 ->  | J39: =LD!BB577 ->  | K39: =LD!BC577 ->  | L39: =LD!BD577 ->  | M39: =LD!BF577 ->  | N39: =LD!BH577 ->  | O39: =LD!BJ577 ->  | P39: =LD!BL577 ->  | Q39: =LD!BN577 ->  | R39: =LD!BP577 ->  | S39: =LD!BR577 ->  | T39: =LD!BS577 ->  | U39: =LD!BT577 ->  | V39: =LD!BU577 ->  | W39: =LD!BV577 ->  | X39: =LD!BX577 ->  | Y39: =LD!BZ577 -> 0 | Z39: =LD!CB577 -> 0 | AA39: =LD!AT577 ->  | AB39: =LD!AU577 ->  | AC39: =LD!AZ578 ->  | AD39: =LD!BA578 ->  | AE39: =LD!BB578 ->  | AF39: =LD!BC578 ->  | AG39: =LD!BD578 ->  | AH39: =LD!BF578 ->  | AI39: =LD!BH578 ->  | AJ39: =LD!BJ578 ->  | AK39: =LD!BL578 ->  | AL39: =LD!BN578 ->  | AM39: =LD!BP578 ->  | AN39: =LD!BR578 ->  | AO39: =LD!BS578 ->  | AP39: =LD!BT578 ->  | AQ39: =LD!BU578 ->  | AR39: =LD!BV578 ->  | AS39: =LD!BX578 ->  | AT39: =LD!AT579 ->  | AU39: =LD!AU579 ->  | AV39: =LD!AZ579 ->  | AW39: =LD!BA579 ->  | AX39: =LD!BB579 ->  | AY39: =LD!BC579 ->  | AZ39: =LD!BD579 ->  | BA39: =LD!BF579 ->  | BB39: =LD!BH579 ->  | BC39: =LD!BJ579 ->  | BD39: =LD!BL579 ->  | BE39: =LD!BN579 ->  | BF39: =LD!BP579 ->  | BG39: =LD!BR579 ->  | BH39: =LD!BS579 ->  | BI39: =LD!BT579 ->  | BJ39: =LD!BU579 ->  | BK39: =LD!BV579 ->  | BL39: =LD!BX579 ->  | BM39: =LD!AT580 ->  | BN39: =LD!AU580 -> 
B40: =LD!C586 -> Class A4_360p | C40: =LD!AT585 -> 0 | G40: =LD!C586 -> Class A4_360p | H40: =LD!AZ586 ->  | I40: =LD!BA586 ->  | J40: =LD!BB586 ->  | K40: =LD!BC586 ->  | L40: =LD!BD586 ->  | M40: =LD!BF586 ->  | N40: =LD!BH586 ->  | O40: =LD!BJ586 ->  | P40: =LD!BL586 ->  | Q40: =LD!BN586 ->  | R40: =LD!BP586 ->  | S40: =LD!BR586 ->  | T40: =LD!BS586 ->  | U40: =LD!BT586 ->  | V40: =LD!BU586 ->  | W40: =LD!BV586 ->  | X40: =LD!BX586 ->  | Y40: =LD!BZ586 -> 0 | Z40: =LD!CB586 -> 0 | AA40: =LD!AT586 ->  | AB40: =LD!AU586 ->  | AC40: =LD!AZ587 ->  | AD40: =LD!BA587 ->  | AE40: =LD!BB587 ->  | AF40: =LD!BC587 ->  | AG40: =LD!BD587 ->  | AH40: =LD!BF587 ->  | AI40: =LD!BH587 ->  | AJ40: =LD!BJ587 ->  | AK40: =LD!BL587 ->  | AL40: =LD!BN587 ->  | AM40: =LD!BP587 ->  | AN40: =LD!BR587 ->  | AO40: =LD!BS587 ->  | AP40: =LD!BT587 ->  | AQ40: =LD!BU587 ->  | AR40: =LD!BV587 ->  | AS40: =LD!BX587 ->  | AT40: =LD!AT588 ->  | AU40: =LD!AU588 ->  | AV40: =LD!AZ588 ->  | AW40: =LD!BA588 ->  | AX40: =LD!BB588 ->  | AY40: =LD!BC588 ->  | AZ40: =LD!BD588 ->  | BA40: =LD!BF588 ->  | BB40: =LD!BH588 ->  | BC40: =LD!BJ588 ->  | BD40: =LD!BL588 ->  | BE40: =LD!BN588 ->  | BF40: =LD!BP588 ->  | BG40: =LD!BR588 ->  | BH40: =LD!BS588 ->  | BI40: =LD!BT588 ->  | BJ40: =LD!BU588 ->  | BK40: =LD!BV588 ->  | BL40: =LD!BX588 ->  | BM40: =LD!AT589 ->  | BN40: =LD!AU589 -> 
B41: =LD!C595 -> Class A5_270p | C41: =LD!AT594 -> 0 | G41: =LD!C595 -> Class A5_270p | H41: =LD!AZ595 ->  | I41: =LD!BA595 ->  | J41: =LD!BB595 ->  | K41: =LD!BC595 ->  | L41: =LD!BD595 ->  | M41: =LD!BF595 ->  | N41: =LD!BH595 ->  | O41: =LD!BJ595 ->  | P41: =LD!BL595 ->  | Q41: =LD!BN595 ->  | R41: =LD!BP595 ->  | S41: =LD!BR595 ->  | T41: =LD!BS595 ->  | U41: =LD!BT595 ->  | V41: =LD!BU595 ->  | W41: =LD!BV595 ->  | X41: =LD!BX595 ->  | Y41: =LD!BZ595 -> 0 | Z41: =LD!CB595 -> 0 | AA41: =LD!AT595 ->  | AB41: =LD!AU595 ->  | AC41: =LD!AZ596 ->  | AD41: =LD!BA596 ->  | AE41: =LD!BB596 ->  | AF41: =LD!BC596 ->  | AG41: =LD!BD596 ->  | AH41: =LD!BF596 ->  | AI41: =LD!BH596 ->  | AJ41: =LD!BJ596 ->  | AK41: =LD!BL596 ->  | AL41: =LD!BN596 ->  | AM41: =LD!BP596 ->  | AN41: =LD!BR596 ->  | AO41: =LD!BS596 ->  | AP41: =LD!BT596 ->  | AQ41: =LD!BU596 ->  | AR41: =LD!BV596 ->  | AS41: =LD!BX596 ->  | AT41: =LD!AT597 ->  | AU41: =LD!AU597 ->  | AV41: =LD!AZ597 ->  | AW41: =LD!BA597 ->  | AX41: =LD!BB597 ->  | AY41: =LD!BC597 ->  | AZ41: =LD!BD597 ->  | BA41: =LD!BF597 ->  | BB41: =LD!BH597 ->  | BC41: =LD!BJ597 ->  | BD41: =LD!BL597 ->  | BE41: =LD!BN597 ->  | BF41: =LD!BP597 ->  | BG41: =LD!BR597 ->  | BH41: =LD!BS597 ->  | BI41: =LD!BT597 ->  | BJ41: =LD!BU597 ->  | BK41: =LD!BV597 ->  | BL41: =LD!BX597 ->  | BM41: =LD!AT598 ->  | BN41: =LD!AU598 -> 
B42: =LD!C604 -> Class B1_SYN | C42: =LD!AT603 -> 0 | G42: =LD!C604 -> Class B1_SYN | H42: =LD!AZ604 ->  | I42: =LD!BA604 ->  | J42: =LD!BB604 ->  | K42: =LD!BC604 ->  | L42: =LD!BD604 ->  | M42: =LD!BF604 ->  | N42: =LD!BH604 ->  | O42: =LD!BJ604 ->  | P42: =LD!BL604 ->  | Q42: =LD!BN604 ->  | R42: =LD!BP604 ->  | S42: =LD!BR604 ->  | T42: =LD!BS604 ->  | U42: =LD!BT604 ->  | V42: =LD!BU604 ->  | W42: =LD!BV604 ->  | X42: =LD!BX604 ->  | Y42: =LD!BZ604 -> 0 | Z42: =LD!CB604 -> 0 | AA42: =LD!AT604 ->  | AB42: =LD!AU604 ->  | AC42: =LD!AZ605 ->  | AD42: =LD!BA605 ->  | AE42: =LD!BB605 ->  | AF42: =LD!BC605 ->  | AG42: =LD!BD605 ->  | AH42: =LD!BF605 ->  | AI42: =LD!BH605 ->  | AJ42: =LD!BJ605 ->  | AK42: =LD!BL605 ->  | AL42: =LD!BN605 ->  | AM42: =LD!BP605 ->  | AN42: =LD!BR605 ->  | AO42: =LD!BS605 ->  | AP42: =LD!BT605 ->  | AQ42: =LD!BU605 ->  | AR42: =LD!BV605 ->  | AS42: =LD!BX605 ->  | AT42: =LD!AT606 ->  | AU42: =LD!AU606 ->  | AV42: =LD!AZ606 ->  | AW42: =LD!BA606 ->  | AX42: =LD!BB606 ->  | AY42: =LD!BC606 ->  | AZ42: =LD!BD606 ->  | BA42: =LD!BF606 ->  | BB42: =LD!BH606 ->  | BC42: =LD!BJ606 ->  | BD42: =LD!BL606 ->  | BE42: =LD!BN606 ->  | BF42: =LD!BP606 ->  | BG42: =LD!BR606 ->  | BH42: =LD!BS606 ->  | BI42: =LD!BT606 ->  | BJ42: =LD!BU606 ->  | BK42: =LD!BV606 ->  | BL42: =LD!BX606 ->  | BM42: =LD!AT607 ->  | BN42: =LD!AU607 -> 
B43: =LD!C613 -> Class B2_SCC | C43: =LD!AT612 -> 0 | G43: =LD!C613 -> Class B2_SCC | H43: =LD!AZ613 ->  | I43: =LD!BA613 ->  | J43: =LD!BB613 ->  | K43: =LD!BC613 ->  | L43: =LD!BD613 ->  | M43: =LD!BF613 ->  | N43: =LD!BH613 ->  | O43: =LD!BJ613 ->  | P43: =LD!BL613 ->  | Q43: =LD!BN613 ->  | R43: =LD!BP613 ->  | S43: =LD!BR613 ->  | T43: =LD!BS613 ->  | U43: =LD!BT613 ->  | V43: =LD!BU613 ->  | W43: =LD!BV613 ->  | X43: =LD!BX613 ->  | Y43: =LD!BZ613 -> 0 | Z43: =LD!CB613 -> 0 | AA43: =LD!AT613 ->  | AB43: =LD!AU613 ->  | AC43: =LD!AZ614 ->  | AD43: =LD!BA614 ->  | AE43: =LD!BB614 ->  | AF43: =LD!BC614 ->  | AG43: =LD!BD614 ->  | AH43: =LD!BF614 ->  | AI43: =LD!BH614 ->  | AJ43: =LD!BJ614 ->  | AK43: =LD!BL614 ->  | AL43: =LD!BN614 ->  | AM43: =LD!BP614 ->  | AN43: =LD!BR614 ->  | AO43: =LD!BS614 ->  | AP43: =LD!BT614 ->  | AQ43: =LD!BU614 ->  | AR43: =LD!BV614 ->  | AS43: =LD!BX614 ->  | AT43: =LD!AT615 ->  | AU43: =LD!AU615 ->  | AV43: =LD!AZ615 ->  | AW43: =LD!BA615 ->  | AX43: =LD!BB615 ->  | AY43: =LD!BC615 ->  | AZ43: =LD!BD615 ->  | BA43: =LD!BF615 ->  | BB43: =LD!BH615 ->  | BC43: =LD!BJ615 ->  | BD43: =LD!BL615 ->  | BE43: =LD!BN615 ->  | BF43: =LD!BP615 ->  | BG43: =LD!BR615 ->  | BH43: =LD!BS615 ->  | BI43: =LD!BT615 ->  | BJ43: =LD!BU615 ->  | BK43: =LD!BV615 ->  | BL43: =LD!BX615 ->  | BM43: =LD!AT616 ->  | BN43: =LD!AU616 -> 
B44: =LD!C662 -> Overall Mandatory w/o B2 | C44: =LD!AT661 -> 0 | G44: =LD!C662 -> Overall Mandatory w/o B2 | H44: =LD!AZ662 ->  | I44: =LD!BA662 ->  | J44: =LD!BB662 ->  | K44: =LD!BC662 ->  | L44: =LD!BD662 ->  | M44: =LD!BF662 ->  | N44: =LD!BH662 ->  | O44: =LD!BJ662 ->  | P44: =LD!BL662 ->  | Q44: =LD!BN662 ->  | R44: =LD!BP662 ->  | S44: =LD!BR662 ->  | T44: =LD!BS662 ->  | U44: =LD!BT662 ->  | V44: =LD!BU662 ->  | W44: =LD!BV662 ->  | X44: =LD!BX662 ->  | Y44: =LD!BZ662 -> 0 | Z44: =LD!CB662 -> 0 | AA44: =LD!AT662 ->  | AB44: =LD!AU662 ->  | AC44: =LD!AZ663 ->  | AD44: =LD!BA663 ->  | AE44: =LD!BB663 ->  | AF44: =LD!BC663 ->  | AG44: =LD!BD663 ->  | AH44: =LD!BF663 ->  | AI44: =LD!BH663 ->  | AJ44: =LD!BJ663 ->  | AK44: =LD!BL663 ->  | AL44: =LD!BN663 ->  | AM44: =LD!BP663 ->  | AN44: =LD!BR663 ->  | AO44: =LD!BS663 ->  | AP44: =LD!BT663 ->  | AQ44: =LD!BU663 ->  | AR44: =LD!BV663 ->  | AS44: =LD!BX663 ->  | AT44: =LD!AT665 ->  | AU44: =LD!AU665 ->  | AV44: =LD!AZ664 ->  | AW44: =LD!BA664 ->  | AX44: =LD!BB664 ->  | AY44: =LD!BC664 ->  | AZ44: =LD!BD664 ->  | BA44: =LD!BF664 ->  | BB44: =LD!BH664 ->  | BC44: =LD!BJ664 ->  | BD44: =LD!BL664 ->  | BE44: =LD!BN664 ->  | BF44: =LD!BP664 ->  | BG44: =LD!BR664 ->  | BH44: =LD!BS664 ->  | BI44: =LD!BT664 ->  | BJ44: =LD!BU664 ->  | BK44: =LD!BV664 ->  | BL44: =LD!BX664 ->  | BM44: =LD!AT664 ->  | BN44: =LD!AU664 -> 
B45: =LD!$C$673 -> Overall Mandatory w/ B2 | C45: =LD!$AT$672 -> 0 | G45: =LD!$C$673 -> Overall Mandatory w/ B2 | H45: =LD!AZ673 ->  | I45: =LD!BA673 ->  | J45: =LD!BB673 ->  | K45: =LD!BC673 ->  | L45: =LD!BD673 ->  | M45: =LD!BF673 ->  | N45: =LD!BH673 ->  | O45: =LD!BJ673 ->  | P45: =LD!BL673 ->  | Q45: =LD!BN673 ->  | R45: =LD!BP673 ->  | S45: =LD!BR673 ->  | T45: =LD!BS673 ->  | U45: =LD!BT673 ->  | V45: =LD!BU673 ->  | W45: =LD!BV673 ->  | X45: =LD!BX673 ->  | Y45: =LD!BZ673 -> 0 | Z45: =LD!CB673 -> 0 | AA45: =LD!AT673 ->  | AB45: =LD!AU673 ->  | AC45: =LD!AZ674 ->  | AD45: =LD!BA674 ->  | AE45: =LD!BB674 ->  | AF45: =LD!BC674 ->  | AG45: =LD!BD674 ->  | AH45: =LD!BF674 ->  | AI45: =LD!BH674 ->  | AJ45: =LD!BJ674 ->  | AK45: =LD!BL674 ->  | AL45: =LD!BN674 ->  | AM45: =LD!BP674 ->  | AN45: =LD!BR674 ->  | AO45: =LD!BS674 ->  | AP45: =LD!BT674 ->  | AQ45: =LD!BU674 ->  | AR45: =LD!BV674 ->  | AS45: =LD!BX674 ->  | AT45: =LD!AT676 ->  | AU45: =LD!AU676 ->  | AV45: =LD!AZ675 ->  | AW45: =LD!BA675 ->  | AX45: =LD!BB675 ->  | AY45: =LD!BC675 ->  | AZ45: =LD!BD675 ->  | BA45: =LD!BF675 ->  | BB45: =LD!BH675 ->  | BC45: =LD!BJ675 ->  | BD45: =LD!BL675 ->  | BE45: =LD!BN675 ->  | BF45: =LD!BP675 ->  | BG45: =LD!BR675 ->  | BH45: =LD!BS675 ->  | BI45: =LD!BT675 ->  | BJ45: =LD!BU675 ->  | BK45: =LD!BV675 ->  | BL45: =LD!BX675 ->  | BM45: =LD!AT675 ->  | BN45: =LD!AU675 -> 
B47: =LD!C622 -> Class HDR1_4K | C47: =LD!AT621 -> 0 | G47: =LD!C622 -> Class HDR1_4K | H47: =LD!AZ622 ->  | I47: =LD!BA622 ->  | J47: =LD!BB622 ->  | K47: =LD!BC622 ->  | L47: =LD!BD622 ->  | M47: =LD!BF622 ->  | N47: =LD!BH622 ->  | O47: =LD!BJ622 ->  | P47: =LD!BL622 ->  | Q47: =LD!BN622 ->  | R47: =LD!BP622 ->  | S47: =LD!BR622 ->  | T47: =LD!BS622 ->  | U47: =LD!BT622 ->  | V47: =LD!BU622 ->  | W47: =LD!BV622 ->  | Y47: =LD!BZ622 -> 0 | Z47: =LD!CB622 -> 0 | AA47: =LD!AT622 ->  | AB47: =LD!AU622 ->  | AC47: =LD!AZ623 ->  | AD47: =LD!BA623 ->  | AE47: =LD!BB623 ->  | AF47: =LD!BC623 ->  | AG47: =LD!BD623 ->  | AH47: =LD!BF623 ->  | AI47: =LD!BH623 ->  | AJ47: =LD!BJ623 ->  | AK47: =LD!BL623 ->  | AL47: =LD!BN623 ->  | AM47: =LD!BP623 ->  | AN47: =LD!BR623 ->  | AO47: =LD!BS623 ->  | AP47: =LD!BT623 ->  | AQ47: =LD!BU623 ->  | AR47: =LD!BV623 ->  | AS47: =LD!BX623 ->  | AT47: =LD!AT624 ->  | AU47: =LD!AU624 ->  | AV47: =LD!AZ624 ->  | AW47: =LD!BA624 ->  | AX47: =LD!BB624 ->  | AY47: =LD!BC624 ->  | AZ47: =LD!BD624 ->  | BA47: =LD!BF624 ->  | BB47: =LD!BH624 ->  | BC47: =LD!BJ624 ->  | BD47: =LD!BL624 ->  | BE47: =LD!BN624 ->  | BF47: =LD!BP624 ->  | BG47: =LD!BR624 ->  | BH47: =LD!BS624 ->  | BI47: =LD!BT624 ->  | BJ47: =LD!BU624 ->  | BK47: =LD!BV624 ->  | BM47: =LD!AT625 ->  | BN47: =LD!AU625 -> 
B48: =LD!C631 -> Class HDR2_2K | C48: =LD!AT630 -> 0 | G48: =LD!C631 -> Class HDR2_2K | H48: =LD!AZ631 ->  | I48: =LD!BA631 ->  | J48: =LD!BB631 ->  | K48: =LD!BC631 ->  | L48: =LD!BD631 ->  | M48: =LD!BF631 ->  | N48: =LD!BH631 ->  | O48: =LD!BJ631 ->  | P48: =LD!BL631 ->  | Q48: =LD!BN631 ->  | R48: =LD!BP631 ->  | S48: =LD!BR631 ->  | T48: =LD!BS631 ->  | U48: =LD!BT631 ->  | V48: =LD!BU631 ->  | W48: =LD!BV631 ->  | Y48: =LD!BZ631 -> 0 | Z48: =LD!CB631 -> 0 | AA48: =LD!AT631 ->  | AB48: =LD!AU631 ->  | AC48: =LD!AZ632 ->  | AD48: =LD!BA632 ->  | AE48: =LD!BB632 ->  | AF48: =LD!BC632 ->  | AG48: =LD!BD632 ->  | AH48: =LD!BF632 ->  | AI48: =LD!BH632 ->  | AJ48: =LD!BJ632 ->  | AK48: =LD!BL632 ->  | AL48: =LD!BN632 ->  | AM48: =LD!BP632 ->  | AN48: =LD!BR632 ->  | AO48: =LD!BS632 ->  | AP48: =LD!BT632 ->  | AQ48: =LD!BU632 ->  | AR48: =LD!BV632 ->  | AS48: =LD!BX632 ->  | AT48: =LD!AT633 ->  | AU48: =LD!AU633 ->  | AV48: =LD!AZ633 ->  | AW48: =LD!BA633 ->  | AX48: =LD!BB633 ->  | AY48: =LD!BC633 ->  | AZ48: =LD!BD633 ->  | BA48: =LD!BF633 ->  | BB48: =LD!BH633 ->  | BC48: =LD!BJ633 ->  | BD48: =LD!BL633 ->  | BE48: =LD!BN633 ->  | BF48: =LD!BP633 ->  | BG48: =LD!BR633 ->  | BH48: =LD!BS633 ->  | BI48: =LD!BT633 ->  | BJ48: =LD!BU633 ->  | BK48: =LD!BV633 ->  | BM48: =LD!AT634 ->  | BN48: =LD!AU634 -> 
B49: =LD!C684 -> Overall HDR | C49: =LD!AT683 -> 0 | G49: =LD!C684 -> Overall HDR | H49: =LD!AZ684 ->  | I49: =LD!BA684 ->  | J49: =LD!BB684 ->  | K49: =LD!BC684 ->  | L49: =LD!BD684 ->  | M49: =LD!BF684 ->  | N49: =LD!BH684 ->  | O49: =LD!BJ684 ->  | P49: =LD!BL684 ->  | Q49: =LD!BN684 ->  | R49: =LD!BP684 ->  | S49: =LD!BR684 ->  | T49: =LD!BS684 ->  | U49: =LD!BT684 ->  | V49: =LD!BU684 ->  | W49: =LD!BV684 ->  | Y49: =LD!BZ684 -> 0 | Z49: =LD!CB684 -> 0 | AA49: =LD!AT684 ->  | AB49: =LD!AU684 ->  | AC49: =LD!AZ685 ->  | AD49: =LD!BA685 ->  | AE49: =LD!BB685 ->  | AF49: =LD!BC685 ->  | AG49: =LD!BD685 ->  | AH49: =LD!BF685 ->  | AI49: =LD!BH685 ->  | AJ49: =LD!BJ685 ->  | AK49: =LD!BL685 ->  | AL49: =LD!BN685 ->  | AM49: =LD!BP685 ->  | AN49: =LD!BR685 ->  | AO49: =LD!BS685 ->  | AP49: =LD!BT685 ->  | AQ49: =LD!BU685 ->  | AR49: =LD!BV685 ->  | AS49: =LD!BX685 ->  | AT49: =LD!AT686 ->  | AU49: =LD!AU686 ->  | AV49: =LD!AZ686 ->  | AW49: =LD!BA686 ->  | AX49: =LD!BB686 ->  | AY49: =LD!BC686 ->  | AZ49: =LD!BD686 ->  | BA49: =LD!BF686 ->  | BB49: =LD!BH686 ->  | BC49: =LD!BJ686 ->  | BD49: =LD!BL686 ->  | BE49: =LD!BN686 ->  | BF49: =LD!BP686 ->  | BG49: =LD!BR686 ->  | BH49: =LD!BS686 ->  | BI49: =LD!BT686 ->  | BJ49: =LD!BU686 ->  | BK49: =LD!BV686 ->  | BM49: =LD!AT687 ->  | BN49: =LD!AU687 -> 
B50: =LD!C640 -> Class E | C50: =LD!AT639 -> 0 | G50: =LD!C640 -> Class E | H50: =LD!AZ640 ->  | I50: =LD!BA640 ->  | J50: =LD!BB640 ->  | K50: =LD!BC640 ->  | L50: =LD!BD640 ->  | M50: =LD!BF640 ->  | N50: =LD!BH640 ->  | O50: =LD!BJ640 ->  | P50: =LD!BL640 ->  | Q50: =LD!BN640 ->  | R50: =LD!BP640 ->  | S50: =LD!BR640 ->  | T50: =LD!BS640 ->  | U50: =LD!BT640 ->  | V50: =LD!BU640 ->  | W50: =LD!BV640 ->  | Y50: =LD!BZ640 -> 0 | Z50: =LD!CB640 -> 0 | AA50: =LD!AT640 ->  | AB50: =LD!AU640 ->  | AC50: =LD!AZ641 ->  | AD50: =LD!BA641 ->  | AE50: =LD!BB641 ->  | AF50: =LD!BC641 ->  | AG50: =LD!BD641 ->  | AH50: =LD!BF641 ->  | AI50: =LD!BH641 ->  | AJ50: =LD!BJ641 ->  | AK50: =LD!BL641 ->  | AL50: =LD!BN641 ->  | AM50: =LD!BP641 ->  | AN50: =LD!BR641 ->  | AO50: =LD!BS641 ->  | AP50: =LD!BT641 ->  | AQ50: =LD!BU641 ->  | AR50: =LD!BV641 ->  | AS50: =LD!BX641 ->  | AT50: =LD!AT642 ->  | AU50: =LD!AU642 ->  | AV50: =LD!AZ642 ->  | AW50: =LD!BA642 ->  | AX50: =LD!BB642 ->  | AY50: =LD!BC642 ->  | AZ50: =LD!BD642 ->  | BA50: =LD!BF642 ->  | BB50: =LD!BH642 ->  | BC50: =LD!BJ642 ->  | BD50: =LD!BL642 ->  | BE50: =LD!BN642 ->  | BF50: =LD!BP642 ->  | BG50: =LD!BR642 ->  | BH50: =LD!BS642 ->  | BI50: =LD!BT642 ->  | BJ50: =LD!BU642 ->  | BK50: =LD!BV642 ->  | BM50: =LD!AT643 ->  | BN50: =LD!AU643 -> 
E52: Overall (Still image) | G52: Averages | AC52: Minimum | AV52: Maximum
H53: PSNR | M53: SSIM | N53: MS-SSIM | O53: VMAF | P53: nVMAF | Q53: PSNR HVS | R53: DE 2K | S53: APSNR | X53: CAMBI | Y53: Monotonicity | AA53: Run-time (%) | AC53: PSNR | AH53: SSIM | AI53: MS-SSIM | AJ53: VMAF | AK53: nVMAF | AL53: PSNR HVS | AM53: DE 2K | AN53: APSNR | AS53: CAMBI | AT53: Run-time (%) | AV53: PSNR | BA53: SSIM | BB53: MS-SSIM | BC53: VMAF | BD53: nVMAF | BE53: PSNR HVS | BF53: DE 2K | BG53: APSNR | BL53: CAMBI | BM53: Run-time (%)
B54: Classes | C54: Success | G54: Summary | H54: Y | I54: U | J54: V | K54: YUV | L54: wAverage | M54: Y | N54: Y | O54: Y | P54: Y | Q54: Y | S54: Y | T54: U | U54: V | V54: YUV | W54: wAverage | X54: Y | Y54: VMAF | Z54: VMAF neg | AA54: Enc-time | AB54: Dec-time | AC54: Y | AD54: U | AE54: V | AF54: YUV | AG54: wAverage | AH54: Y | AI54: Y | AJ54: Y | AK54: Y | AL54: Y | AN54: Y | AO54: U | AP54: V | AQ54: YUV | AR54: wAverage | AS54: Y | AT54: Enc-time | AU54: Dec-time | AV54: Y | AW54: U | AX54: V | AY54: YUV | AZ54: wAverage | BA54: Y | BB54: Y | BC54: Y | BD54: Y | BE54: Y | BG54: Y | BH54: U | BI54: V | BJ54: YUV | BK54: wAverage | BL54: Y | BM54: Enc-time | BN54: Dec-time
B55: =Still!A4 -> F1 High Resolutions | C55: =Still!AT349 -> 0 | G55: =Still!A4 -> F1 High Resolutions | H55: =Still!AZ350 ->  | I55: =Still!BA350 ->  | J55: =Still!BB350 ->  | K55: =Still!BC350 ->  | L55: =Still!BD350 ->  | M55: =Still!BF350 ->  | N55: =Still!BH350 ->  | O55: =Still!BJ350 ->  | P55: =Still!BL350 ->  | Q55: =Still!BN350 ->  | R55: =Still!BP350 ->  | S55: =Still!BR350 ->  | T55: =Still!BS350 ->  | U55: =Still!BT350 ->  | V55: =Still!BU350 ->  | W55: =Still!BV350 ->  | X55: =Still!BX350 ->  | Y55: =Still!BZ350 -> 0 | Z55: =Still!CB350 -> 0 | AA55: =Still!AT350 ->  | AB55: =Still!AU350 ->  | AC55: =Still!AZ351 ->  | AD55: =Still!BA351 ->  | AE55: =Still!BB351 ->  | AF55: =Still!BC351 ->  | AG55: =Still!BD351 ->  | AH55: =Still!BF351 ->  | AI55: =Still!BH351 ->  | AJ55: =Still!BJ351 ->  | AK55: =Still!BL351 ->  | AL55: =Still!BN351 ->  | AM55: =Still!BP351 ->  | AN55: =Still!BR351 ->  | AO55: =Still!BS351 ->  | AP55: =Still!BT351 ->  | AQ55: =Still!BU351 ->  | AR55: =Still!BV351 ->  | AS55: =Still!BX351 ->  | AT55: =Still!AT352 ->  | AU55: =Still!AU352 ->  | AV55: =Still!AZ352 ->  | AW55: =Still!BA352 ->  | AX55: =Still!BB352 ->  | AY55: =Still!BC352 ->  | AZ55: =Still!BD352 ->  | BA55: =Still!BF352 ->  | BB55: =Still!BH352 ->  | BC55: =Still!BJ352 ->  | BD55: =Still!BL352 ->  | BE55: =Still!BN352 ->  | BF55: =Still!BP352 ->  | BG55: =Still!BR352 ->  | BH55: =Still!BS352 ->  | BI55: =Still!BT352 ->  | BJ55: =Still!BU352 ->  | BK55: =Still!BV352 ->  | BL55: =Still!BX352 ->  | BM55: =Still!AT353 ->  | BN55: =Still!AU353 -> 
B56: =Still!A172 -> F2 Medium Resolution | C56: =Still!AT358 -> 0 | G56: =Still!A172 -> F2 Medium Resolution | H56: =Still!AZ359 ->  | I56: =Still!BA359 ->  | J56: =Still!BB359 ->  | K56: =Still!BC359 ->  | L56: =Still!BD359 ->  | M56: =Still!BF359 ->  | N56: =Still!BH359 ->  | O56: =Still!BJ359 ->  | P56: =Still!BL359 ->  | Q56: =Still!BN359 ->  | R56: =Still!BP359 ->  | S56: =Still!BR359 ->  | T56: =Still!BS359 ->  | U56: =Still!BT359 ->  | V56: =Still!BU359 ->  | W56: =Still!BV359 ->  | X56: =Still!BX359 ->  | Y56: =Still!BZ359 -> 0 | Z56: =Still!CB359 -> 0 | AA56: =Still!AT359 ->  | AB56: =Still!AU359 ->  | AC56: =Still!AZ360 ->  | AD56: =Still!BA360 ->  | AE56: =Still!BB360 ->  | AF56: =Still!BC360 ->  | AG56: =Still!BD360 ->  | AH56: =Still!BF360 ->  | AI56: =Still!BH360 ->  | AJ56: =Still!BJ360 ->  | AK56: =Still!BL360 ->  | AL56: =Still!BN360 ->  | AM56: =Still!BP360 ->  | AN56: =Still!BR360 ->  | AO56: =Still!BS360 ->  | AP56: =Still!BT360 ->  | AQ56: =Still!BU360 ->  | AR56: =Still!BV360 ->  | AS56: =Still!BX360 ->  | AT56: =Still!AT361 ->  | AU56: =Still!AU361 ->  | AV56: =Still!AZ361 ->  | AW56: =Still!BA361 ->  | AX56: =Still!BB361 ->  | AY56: =Still!BC361 ->  | AZ56: =Still!BD361 ->  | BA56: =Still!BF361 ->  | BB56: =Still!BH361 ->  | BC56: =Still!BJ361 ->  | BD56: =Still!BL361 ->  | BE56: =Still!BN361 ->  | BF56: =Still!BP361 ->  | BG56: =Still!BR361 ->  | BH56: =Still!BS361 ->  | BI56: =Still!BT361 ->  | BJ56: =Still!BU361 ->  | BK56: =Still!BV361 ->  | BL56: =Still!BX361 ->  | BM56: =Still!AT362 ->  | BN56: =Still!AU362 -> 
E62: High | H62: Averages | S62: Minimum | AB62: Maximum
B63: YUV PSNR Weights | H63: PSNR | I63: SSIM | J63: MS-SSIM | K63: VMAF | L63: nVMAF | M63: PSNR HVS | N63: DE 2K | O63: APSNR | P63: CAMBI | Q63: VMAF | R63: nVMAF | S63: PSNR | T63: SSIM | U63: MS-SSIM | V63: VMAF | W63: nVMAF | X63: PSNR HVS | Y63: DE 2K | Z63: APSNR | AA63: CAMBI | AB63: PSNR | AC63: SSIM | AD63: MS-SSIM | AE63: VMAF | AF63: nVMAF | AG63: PSNR HVS | AH63: DE 2K | AI63: APSNR | AJ63: CAMBI
B64: Y | C64: 14 | G64: Summary | H64: Y | I64: Y | J64: Y | K64: Y | L64: Y | M64: Y | O64: Y | P64: Y | Q64: Monotonicity | S64: Y | T64: Y | U64: Y | V64: Y | W64: Y | X64: Y | Z64: Y | AA64: Y | AB64: Y | AC64: Y | AD64: Y | AE64: Y | AF64: Y | AG64: Y | AI64: Y | AJ64: Y
B65: U | C65: 1 | F65: Intra | G65: =Intra!C559 -> Class A1_4K | H65: =Intra!AY559 ->  | I65: =Intra!BE559 ->  | J65: =Intra!BG559 ->  | K65: =Intra!BI559 ->  | L65: =Intra!BK559 ->  | M65: =Intra!BM559 ->  | N65: =Intra!BO559 ->  | O65: =Intra!BQ559 ->  | P65: =Intra!BW559 ->  | Q65: =Intra!BY559 -> 0 | R65: =Intra!CA559 -> 0 | S65: =Intra!AY560 ->  | T65: =Intra!BE560 ->  | U65: =Intra!BG560 ->  | V65: =Intra!BI560 ->  | W65: =Intra!BK560 ->  | X65: =Intra!BM560 ->  | Y65: =Intra!BO560 ->  | Z65: =Intra!BQ560 ->  | AA65: =Intra!BW560 ->  | AB65: =Intra!AY561 ->  | AC65: =Intra!BE561 ->  | AD65: =Intra!BG561 ->  | AE65: =Intra!BI561 ->  | AF65: =Intra!BK561 ->  | AG65: =Intra!BM561 ->  | AH65: =Intra!BO561 ->  | AI65: =Intra!BQ561 ->  | AJ65: =Intra!BW561 -> 
B66: V | C66: 1 | G66: =Intra!C568 -> Class A2_2K | H66: =Intra!AY568 ->  | I66: =Intra!BE568 ->  | J66: =Intra!BG568 ->  | K66: =Intra!BI568 ->  | L66: =Intra!BK568 ->  | M66: =Intra!BM568 ->  | N66: =Intra!BO568 ->  | O66: =Intra!BQ568 ->  | P66: =Intra!BW568 ->  | Q66: =Intra!BY568 -> 0 | R66: =Intra!CA568 -> 0 | S66: =Intra!AY569 ->  | T66: =Intra!BE569 ->  | U66: =Intra!BG569 ->  | V66: =Intra!BI569 ->  | W66: =Intra!BK569 ->  | X66: =Intra!BM569 ->  | Y66: =Intra!BO569 ->  | Z66: =Intra!BQ569 ->  | AA66: =Intra!BW569 ->  | AB66: =Intra!AY570 ->  | AC66: =Intra!BE570 ->  | AD66: =Intra!BG570 ->  | AE66: =Intra!BI570 ->  | AF66: =Intra!BK570 ->  | AG66: =Intra!BM570 ->  | AH66: =Intra!BO570 ->  | AI66: =Intra!BQ570 ->  | AJ66: =Intra!BW570 -> 
B67: Sum | C67: =SUM(C64:C66) -> 16 | G67: =Intra!C577 -> Class A3_720p | H67: =Intra!AY577 ->  | I67: =Intra!BE577 ->  | J67: =Intra!BG577 ->  | K67: =Intra!BI577 ->  | L67: =Intra!BK577 ->  | M67: =Intra!BM577 ->  | N67: =Intra!BO577 ->  | O67: =Intra!BQ577 ->  | P67: =Intra!BW577 ->  | Q67: =Intra!BY577 -> 0 | R67: =Intra!CA577 -> 0 | S67: =Intra!AY578 ->  | T67: =Intra!BE578 ->  | U67: =Intra!BG578 ->  | V67: =Intra!BI578 ->  | W67: =Intra!BK578 ->  | X67: =Intra!BM578 ->  | Y67: =Intra!BO578 ->  | Z67: =Intra!BQ578 ->  | AA67: =Intra!BW578 ->  | AB67: =Intra!AY579 ->  | AC67: =Intra!BE579 ->  | AD67: =Intra!BG579 ->  | AE67: =Intra!BI579 ->  | AF67: =Intra!BK579 ->  | AG67: =Intra!BM579 ->  | AH67: =Intra!BO579 ->  | AI67: =Intra!BQ579 ->  | AJ67: =Intra!BW579 -> 
G68: =Intra!C586 -> Class A4_360p | H68: =Intra!AY586 ->  | I68: =Intra!BE586 ->  | J68: =Intra!BG586 ->  | K68: =Intra!BI586 ->  | L68: =Intra!BK586 ->  | M68: =Intra!BM586 ->  | N68: =Intra!BO586 ->  | O68: =Intra!BQ586 ->  | P68: =Intra!BW586 ->  | Q68: =Intra!BY586 -> 0 | R68: =Intra!CA586 -> 0 | S68: =Intra!AY587 ->  | T68: =Intra!BE587 ->  | U68: =Intra!BG587 ->  | V68: =Intra!BI587 ->  | W68: =Intra!BK587 ->  | X68: =Intra!BM587 ->  | Y68: =Intra!BO587 ->  | Z68: =Intra!BQ587 ->  | AA68: =Intra!BW587 ->  | AB68: =Intra!AY588 ->  | AC68: =Intra!BE588 ->  | AD68: =Intra!BG588 ->  | AE68: =Intra!BI588 ->  | AF68: =Intra!BK588 ->  | AG68: =Intra!BM588 ->  | AH68: =Intra!BO588 ->  | AI68: =Intra!BQ588 ->  | AJ68: =Intra!BW588 -> 
G69: =Intra!C595 -> Class A5_270p | H69: =Intra!AY595 ->  | I69: =Intra!BE595 ->  | J69: =Intra!BG595 ->  | K69: =Intra!BI595 ->  | L69: =Intra!BK595 ->  | M69: =Intra!BM595 ->  | N69: =Intra!BO595 ->  | O69: =Intra!BQ595 ->  | P69: =Intra!BW595 ->  | Q69: =Intra!BY595 -> 0 | R69: =Intra!CA595 -> 0 | S69: =Intra!AY596 ->  | T69: =Intra!BE596 ->  | U69: =Intra!BG596 ->  | V69: =Intra!BI596 ->  | W69: =Intra!BK596 ->  | X69: =Intra!BM596 ->  | Y69: =Intra!BO596 ->  | Z69: =Intra!BQ596 ->  | AA69: =Intra!BW596 ->  | AB69: =Intra!AY597 ->  | AC69: =Intra!BE597 ->  | AD69: =Intra!BG597 ->  | AE69: =Intra!BI597 ->  | AF69: =Intra!BK597 ->  | AG69: =Intra!BM597 ->  | AH69: =Intra!BO597 ->  | AI69: =Intra!BQ597 ->  | AJ69: =Intra!BW597 -> 
G70: =Intra!C604 -> Class B1_SYN | H70: =Intra!AY604 ->  | I70: =Intra!BE604 ->  | J70: =Intra!BG604 ->  | K70: =Intra!BI604 ->  | L70: =Intra!BK604 ->  | M70: =Intra!BM604 ->  | N70: =Intra!BO604 ->  | O70: =Intra!BQ604 ->  | P70: =Intra!BW604 ->  | Q70: =Intra!BY604 -> 0 | R70: =Intra!CA604 -> 0 | S70: =Intra!AY605 ->  | T70: =Intra!BE605 ->  | U70: =Intra!BG605 ->  | V70: =Intra!BI605 ->  | W70: =Intra!BK605 ->  | X70: =Intra!BM605 ->  | Y70: =Intra!BO605 ->  | Z70: =Intra!BQ605 ->  | AA70: =Intra!BW605 ->  | AB70: =Intra!AY606 ->  | AC70: =Intra!BE606 ->  | AD70: =Intra!BG606 ->  | AE70: =Intra!BI606 ->  | AF70: =Intra!BK606 ->  | AG70: =Intra!BM606 ->  | AH70: =Intra!BO606 ->  | AI70: =Intra!BQ606 ->  | AJ70: =Intra!BW606 -> 
G71: =Intra!AV662 -> Overall Mandatory w/o B2 | H71: =Intra!AY662 ->  | I71: =Intra!BE662 ->  | J71: =Intra!BG662 ->  | K71: =Intra!BI662 ->  | L71: =Intra!BK662 ->  | M71: =Intra!BM662 ->  | N71: =Intra!BO662 ->  | O71: =Intra!BQ662 ->  | P71: =Intra!BW662 ->  | Q71: =Intra!BY662 -> 0 | R71: =Intra!CA662 -> 0 | S71: =Intra!AY663 ->  | T71: =Intra!BE663 ->  | U71: =Intra!BG663 ->  | V71: =Intra!BI663 ->  | W71: =Intra!BK663 ->  | X71: =Intra!BM663 ->  | Y71: =Intra!BO663 ->  | Z71: =Intra!BQ663 ->  | AA71: =Intra!BW663 ->  | AB71: =Intra!AY664 ->  | AC71: =Intra!BE664 ->  | AD71: =Intra!BG664 ->  | AE71: =Intra!BI664 ->  | AF71: =Intra!BK664 ->  | AG71: =Intra!BM664 ->  | AH71: =Intra!BO664 ->  | AI71: =Intra!BQ664 ->  | AJ71: =Intra!BW664 -> 
G73: =Intra!C622 -> Class HDR1_4K | H73: =Intra!AY622 ->  | I73: =Intra!BE622 ->  | J73: =Intra!BG622 ->  | K73: =Intra!BI622 ->  | L73: =Intra!BK622 ->  | M73: =Intra!BM622 ->  | N73: =Intra!BO622 ->  | O73: =Intra!BQ622 ->  | P73: =Intra!BW622 ->  | Q73: =Intra!BY622 -> 0 | R73: =Intra!CA622 -> 0 | S73: =Intra!AY623 ->  | T73: =Intra!BE623 ->  | U73: =Intra!BG623 ->  | V73: =Intra!BI623 ->  | W73: =Intra!BK623 ->  | X73: =Intra!BM623 ->  | Y73: =Intra!BO623 ->  | Z73: =Intra!BQ623 ->  | AA73: =Intra!BW623 ->  | AB73: =Intra!AY624 ->  | AC73: =Intra!BE624 ->  | AD73: =Intra!BG624 ->  | AE73: =Intra!BI624 ->  | AF73: =Intra!BK624 ->  | AG73: =Intra!BM624 ->  | AH73: =Intra!BO624 ->  | AI73: =Intra!BQ624 ->  | AJ73: =Intra!BW624 -> 
G74: =Intra!C631 -> Class HDR2_2K | H74: =Intra!AY631 ->  | I74: =Intra!BE631 ->  | J74: =Intra!BG631 ->  | K74: =Intra!BI631 ->  | L74: =Intra!BK631 ->  | M74: =Intra!BM631 ->  | N74: =Intra!BO631 ->  | O74: =Intra!BQ631 ->  | P74: =Intra!BW631 ->  | Q74: =Intra!BY631 -> 0 | R74: =Intra!CA631 -> 0 | S74: =Intra!AY632 ->  | T74: =Intra!BE632 ->  | U74: =Intra!BG632 ->  | V74: =Intra!BI632 ->  | W74: =Intra!BK632 ->  | X74: =Intra!BM632 ->  | Y74: =Intra!BO632 ->  | Z74: =Intra!BQ632 ->  | AA74: =Intra!BW632 ->  | AB74: =Intra!AY633 ->  | AC74: =Intra!BE633 ->  | AD74: =Intra!BG633 ->  | AE74: =Intra!BI633 ->  | AF74: =Intra!BK633 ->  | AG74: =Intra!BM633 ->  | AH74: =Intra!BO633 ->  | AI74: =Intra!BQ633 ->  | AJ74: =Intra!BW633 -> 
G75: =Intra!AV684 -> Overall HDR | H75: =Intra!AY684 ->  | I75: =Intra!BE684 ->  | J75: =Intra!BG684 ->  | K75: =Intra!BI684 ->  | L75: =Intra!BK684 ->  | M75: =Intra!BM684 ->  | N75: =Intra!BO684 ->  | O75: =Intra!BQ684 ->  | P75: =Intra!BW684 ->  | Q75: =Intra!BY684 -> 0 | R75: =Intra!CA684 -> 0 | S75: =Intra!AY685 ->  | T75: =Intra!BE685 ->  | U75: =Intra!BG685 ->  | V75: =Intra!BI685 ->  | W75: =Intra!BK685 ->  | X75: =Intra!BM685 ->  | Y75: =Intra!BO685 ->  | Z75: =Intra!BQ685 ->  | AA75: =Intra!BW685 ->  | AB75: =Intra!AY686 ->  | AC75: =Intra!BE686 ->  | AD75: =Intra!BG686 ->  | AE75: =Intra!BI686 ->  | AF75: =Intra!BK686 ->  | AG75: =Intra!BM686 ->  | AH75: =Intra!BO686 ->  | AI75: =Intra!BQ686 ->  | AJ75: =Intra!BW686 -> 
G76: =Intra!AV640 -> Class E | H76: =Intra!AY640 ->  | I76: =Intra!BE640 ->  | J76: =Intra!BG640 ->  | K76: =Intra!BI640 ->  | L76: =Intra!BK640 ->  | M76: =Intra!BM640 ->  | N76: =Intra!BO640 ->  | O76: =Intra!BQ640 ->  | P76: =Intra!BW640 ->  | Q76: =Intra!BY640 -> 0 | R76: =Intra!CA640 -> 0 | S76: =Intra!AY641 ->  | T76: =Intra!BE641 ->  | U76: =Intra!BG641 ->  | V76: =Intra!BI641 ->  | W76: =Intra!BK641 ->  | X76: =Intra!BM641 ->  | Y76: =Intra!BO641 ->  | Z76: =Intra!BQ641 ->  | AA76: =Intra!BW641 ->  | AB76: =Intra!AY642 ->  | AC76: =Intra!BE642 ->  | AD76: =Intra!BG642 ->  | AE76: =Intra!BI642 ->  | AF76: =Intra!BK642 ->  | AG76: =Intra!BM642 ->  | AH76: =Intra!BO642 ->  | AI76: =Intra!BQ642 ->  | AJ76: =Intra!BW642 -> 
G77: =Intra!AV651 -> Overall | H77: =Intra!AY651 ->  | I77: =Intra!BE651 ->  | J77: =Intra!BG651 ->  | K77: =Intra!BI651 ->  | L77: =Intra!BK651 ->  | M77: =Intra!BM651 ->  | N77: =Intra!BO651 ->  | O77: =Intra!BQ651 ->  | P77: =Intra!BW651 ->  | Q77: =Intra!BY651 -> 0 | R77: =Intra!CA651 -> 0 | S77: =Intra!AY652 ->  | T77: =Intra!BE652 ->  | U77: =Intra!BG652 ->  | V77: =Intra!BI652 ->  | W77: =Intra!BK652 ->  | X77: =Intra!BM652 ->  | Y77: =Intra!BO652 ->  | Z77: =Intra!BQ652 ->  | AA77: =Intra!BW652 ->  | AB77: =Intra!AY653 ->  | AC77: =Intra!BE653 ->  | AD77: =Intra!BG653 ->  | AE77: =Intra!BI653 ->  | AF77: =Intra!BK653 ->  | AG77: =Intra!BM653 ->  | AH77: =Intra!BO653 ->  | AI77: =Intra!BQ653 ->  | AJ77: =Intra!BW653 -> 
F79: RA | G79: =RA!C559 -> Class A1_4K | H79: =RA!AY559 ->  | I79: =RA!BE559 ->  | J79: =RA!BG559 ->  | K79: =RA!BI559 ->  | L79: =RA!BK559 ->  | M79: =RA!BM559 ->  | N79: =RA!BO559 ->  | O79: =RA!BQ559 ->  | P79: =RA!BW559 ->  | Q79: =RA!BY559 -> 0 | R79: =RA!CA559 -> 0 | S79: =RA!AY560 ->  | T79: =RA!BE560 ->  | U79: =RA!BG560 ->  | V79: =RA!BI560 ->  | W79: =RA!BK560 ->  | X79: =RA!BM560 ->  | Y79: =RA!BO560 ->  | Z79: =RA!BQ560 ->  | AA79: =RA!BW560 ->  | AB79: =RA!AY561 ->  | AC79: =RA!BE561 ->  | AD79: =RA!BG561 ->  | AE79: =RA!BI561 ->  | AF79: =RA!BK561 ->  | AG79: =RA!BM561 ->  | AH79: =RA!BO561 ->  | AI79: =RA!BQ561 ->  | AJ79: =RA!BW561 -> 
B80: YUV APSNR Weights | G80: =RA!C568 -> Class A2_2K | H80: =RA!AY568 ->  | I80: =RA!BE568 ->  | J80: =RA!BG568 ->  | K80: =RA!BI568 ->  | L80: =RA!BK568 ->  | M80: =RA!BM568 ->  | N80: =RA!BO568 ->  | O80: =RA!BQ568 ->  | P80: =RA!BW568 ->  | Q80: =RA!BY568 -> 0 | R80: =RA!CA568 -> 0 | S80: =RA!AY569 ->  | T80: =RA!BE569 ->  | U80: =RA!BG569 ->  | V80: =RA!BI569 ->  | W80: =RA!BK569 ->  | X80: =RA!BM569 ->  | Y80: =RA!BO569 ->  | Z80: =RA!BQ569 ->  | AA80: =RA!BW569 ->  | AB80: =RA!AY570 ->  | AC80: =RA!BE570 ->  | AD80: =RA!BG570 ->  | AE80: =RA!BI570 ->  | AF80: =RA!BK570 ->  | AG80: =RA!BM570 ->  | AH80: =RA!BO570 ->  | AI80: =RA!BQ570 ->  | AJ80: =RA!BW570 -> 
B81: Y | C81: 4 | G81: =RA!C577 -> Class A3_720p | H81: =RA!AY577 ->  | I81: =RA!BE577 ->  | J81: =RA!BG577 ->  | K81: =RA!BI577 ->  | L81: =RA!BK577 ->  | M81: =RA!BM577 ->  | N81: =RA!BO577 ->  | O81: =RA!BQ577 ->  | P81: =RA!BW577 ->  | Q81: =RA!BY577 -> 0 | R81: =RA!CA577 -> 0 | S81: =RA!AY578 ->  | T81: =RA!BE578 ->  | U81: =RA!BG578 ->  | V81: =RA!BI578 ->  | W81: =RA!BK578 ->  | X81: =RA!BM578 ->  | Y81: =RA!BO578 ->  | Z81: =RA!BQ578 ->  | AA81: =RA!BW578 ->  | AB81: =RA!AY579 ->  | AC81: =RA!BE579 ->  | AD81: =RA!BG579 ->  | AE81: =RA!BI579 ->  | AF81: =RA!BK579 ->  | AG81: =RA!BM579 ->  | AH81: =RA!BO579 ->  | AI81: =RA!BQ579 ->  | AJ81: =RA!BW579 -> 
B82: U | C82: 1 | G82: =RA!C586 -> Class A4_360p | H82: =RA!AY586 ->  | I82: =RA!BE586 ->  | J82: =RA!BG586 ->  | K82: =RA!BI586 ->  | L82: =RA!BK586 ->  | M82: =RA!BM586 ->  | N82: =RA!BO586 ->  | O82: =RA!BQ586 ->  | P82: =RA!BW586 ->  | Q82: =RA!BY586 -> 0 | R82: =RA!CA586 -> 0 | S82: =RA!AY587 ->  | T82: =RA!BE587 ->  | U82: =RA!BG587 ->  | V82: =RA!BI587 ->  | W82: =RA!BK587 ->  | X82: =RA!BM587 ->  | Y82: =RA!BO587 ->  | Z82: =RA!BQ587 ->  | AA82: =RA!BW587 ->  | AB82: =RA!AY588 ->  | AC82: =RA!BE588 ->  | AD82: =RA!BG588 ->  | AE82: =RA!BI588 ->  | AF82: =RA!BK588 ->  | AG82: =RA!BM588 ->  | AH82: =RA!BO588 ->  | AI82: =RA!BQ588 ->  | AJ82: =RA!BW588 -> 
B83: V | C83: 1 | G83: =RA!C595 -> Class A5_270p | H83: =RA!AY595 ->  | I83: =RA!BE595 ->  | J83: =RA!BG595 ->  | K83: =RA!BI595 ->  | L83: =RA!BK595 ->  | M83: =RA!BM595 ->  | N83: =RA!BO595 ->  | O83: =RA!BQ595 ->  | P83: =RA!BW595 ->  | Q83: =RA!BY595 -> 0 | R83: =RA!CA595 -> 0 | S83: =RA!AY596 ->  | T83: =RA!BE596 ->  | U83: =RA!BG596 ->  | V83: =RA!BI596 ->  | W83: =RA!BK596 ->  | X83: =RA!BM596 ->  | Y83: =RA!BO596 ->  | Z83: =RA!BQ596 ->  | AA83: =RA!BW596 ->  | AB83: =RA!AY597 ->  | AC83: =RA!BE597 ->  | AD83: =RA!BG597 ->  | AE83: =RA!BI597 ->  | AF83: =RA!BK597 ->  | AG83: =RA!BM597 ->  | AH83: =RA!BO597 ->  | AI83: =RA!BQ597 ->  | AJ83: =RA!BW597 -> 
B84: Sum | C84: =SUM(C81:C83) -> 6 | G84: =RA!C604 -> Class B1_SYN | H84: =RA!AY604 ->  | I84: =RA!BE604 ->  | J84: =RA!BG604 ->  | K84: =RA!BI604 ->  | L84: =RA!BK604 ->  | M84: =RA!BM604 ->  | N84: =RA!BO604 ->  | O84: =RA!BQ604 ->  | P84: =RA!BW604 ->  | Q84: =RA!BY604 -> 0 | R84: =RA!CA604 -> 0 | S84: =RA!AY605 ->  | T84: =RA!BE605 ->  | U84: =RA!BG605 ->  | V84: =RA!BI605 ->  | W84: =RA!BK605 ->  | X84: =RA!BM605 ->  | Y84: =RA!BO605 ->  | Z84: =RA!BQ605 ->  | AA84: =RA!BW605 ->  | AB84: =RA!AY606 ->  | AC84: =RA!BE606 ->  | AD84: =RA!BG606 ->  | AE84: =RA!BI606 ->  | AF84: =RA!BK606 ->  | AG84: =RA!BM606 ->  | AH84: =RA!BO606 ->  | AI84: =RA!BQ606 ->  | AJ84: =RA!BW606 -> 
G85: =RA!AV662 -> Overall Mandatory w/o B2 | H85: =RA!AY662 ->  | I85: =RA!BE662 ->  | J85: =RA!BG662 ->  | K85: =RA!BI662 ->  | L85: =RA!BK662 ->  | M85: =RA!BM662 ->  | N85: =RA!BO662 ->  | O85: =RA!BQ662 ->  | P85: =RA!BW662 ->  | Q85: =RA!BY662 -> 0 | R85: =RA!CA662 -> 0 | S85: =RA!AY663 ->  | T85: =RA!BE663 ->  | U85: =RA!BG663 ->  | V85: =RA!BI663 ->  | W85: =RA!BK663 ->  | X85: =RA!BM663 ->  | Y85: =RA!BO663 ->  | Z85: =RA!BQ663 ->  | AA85: =RA!BW663 ->  | AB85: =RA!AY664 ->  | AC85: =RA!BE664 ->  | AD85: =RA!BG664 ->  | AE85: =RA!BI664 ->  | AF85: =RA!BK664 ->  | AG85: =RA!BM664 ->  | AH85: =RA!BO664 ->  | AI85: =RA!BQ664 ->  | AJ85: =RA!BW664 -> 
G87: =RA!C622 -> Class HDR1_4K | H87: =RA!AY622 ->  | I87: =RA!BE622 ->  | J87: =RA!BG622 ->  | K87: =RA!BI622 ->  | L87: =RA!BK622 ->  | M87: =RA!BM622 ->  | N87: =RA!BO622 ->  | O87: =RA!BQ622 ->  | P87: =RA!BW622 ->  | Q87: =RA!BY622 -> 0 | R87: =RA!CA622 -> 0 | S87: =RA!AY623 ->  | T87: =RA!BE623 ->  | U87: =RA!BG623 ->  | V87: =RA!BI623 ->  | W87: =RA!BK623 ->  | X87: =RA!BM623 ->  | Y87: =RA!BO623 ->  | Z87: =RA!BQ623 ->  | AA87: =RA!BW623 ->  | AB87: =RA!AY624 ->  | AC87: =RA!BE624 ->  | AD87: =RA!BG624 ->  | AE87: =RA!BI624 ->  | AF87: =RA!BK624 ->  | AG87: =RA!BM624 ->  | AH87: =RA!BO624 ->  | AI87: =RA!BQ624 ->  | AJ87: =RA!BW624 -> 
G88: =RA!C631 -> Class HDR2_2K | H88: =RA!AY631 ->  | I88: =RA!BE631 ->  | J88: =RA!BG631 ->  | K88: =RA!BI631 ->  | L88: =RA!BK631 ->  | M88: =RA!BM631 ->  | N88: =RA!BO631 ->  | O88: =RA!BQ631 ->  | P88: =RA!BW631 ->  | Q88: =RA!BY631 -> 0 | R88: =RA!CA631 -> 0 | S88: =RA!AY632 ->  | T88: =RA!BE632 ->  | U88: =RA!BG632 ->  | V88: =RA!BI632 ->  | W88: =RA!BK632 ->  | X88: =RA!BM632 ->  | Y88: =RA!BO632 ->  | Z88: =RA!BQ632 ->  | AA88: =RA!BW632 ->  | AB88: =RA!AY633 ->  | AC88: =RA!BE633 ->  | AD88: =RA!BG633 ->  | AE88: =RA!BI633 ->  | AF88: =RA!BK633 ->  | AG88: =RA!BM633 ->  | AH88: =RA!BO633 ->  | AI88: =RA!BQ633 ->  | AJ88: =RA!BW633 -> 
G89: =RA!AV684 -> Overall HDR | H89: =RA!AY684 ->  | I89: =RA!BE684 ->  | J89: =RA!BG684 ->  | K89: =RA!BI684 ->  | L89: =RA!BK684 ->  | M89: =RA!BM684 ->  | N89: =RA!BO684 ->  | O89: =RA!BQ684 ->  | P89: =RA!BW684 ->  | Q89: =RA!BY684 -> 0 | R89: =RA!CA684 -> 0 | S89: =RA!AY685 ->  | T89: =RA!BE685 ->  | U89: =RA!BG685 ->  | V89: =RA!BI685 ->  | W89: =RA!BK685 ->  | X89: =RA!BM685 ->  | Y89: =RA!BO685 ->  | Z89: =RA!BQ685 ->  | AA89: =RA!BW685 ->  | AB89: =RA!AY686 ->  | AC89: =RA!BE686 ->  | AD89: =RA!BG686 ->  | AE89: =RA!BI686 ->  | AF89: =RA!BK686 ->  | AG89: =RA!BM686 ->  | AH89: =RA!BO686 ->  | AI89: =RA!BQ686 ->  | AJ89: =RA!BW686 -> 
G90: =RA!AV640 -> Class E | H90: =RA!AY640 ->  | I90: =RA!BE640 ->  | J90: =RA!BG640 ->  | K90: =RA!BI640 ->  | L90: =RA!BK640 ->  | M90: =RA!BM640 ->  | N90: =RA!BO640 ->  | O90: =RA!BQ640 ->  | P90: =RA!BW640 ->  | Q90: =RA!BY640 -> 0 | R90: =RA!CA640 -> 0 | S90: =RA!AY641 ->  | T90: =RA!BE641 ->  | U90: =RA!BG641 ->  | V90: =RA!BI641 ->  | W90: =RA!BK641 ->  | X90: =RA!BM641 ->  | Y90: =RA!BO641 ->  | Z90: =RA!BQ641 ->  | AA90: =RA!BW641 ->  | AB90: =RA!AY642 ->  | AC90: =RA!BE642 ->  | AD90: =RA!BG642 ->  | AE90: =RA!BI642 ->  | AF90: =RA!BK642 ->  | AG90: =RA!BM642 ->  | AH90: =RA!BO642 ->  | AI90: =RA!BQ642 ->  | AJ90: =RA!BW642 -> 
G91: =RA!AV651 -> Overall | H91: =RA!AY651 ->  | I91: =RA!BE651 ->  | J91: =RA!BG651 ->  | K91: =RA!BI651 ->  | L91: =RA!BK651 ->  | M91: =RA!BM651 ->  | N91: =RA!BO651 ->  | O91: =RA!BQ651 ->  | P91: =RA!BW651 ->  | Q91: =RA!BY651 -> 0 | R91: =RA!CA651 -> 0 | S91: =RA!AY652 ->  | T91: =RA!BE652 ->  | U91: =RA!BG652 ->  | V91: =RA!BI652 ->  | W91: =RA!BK652 ->  | X91: =RA!BM652 ->  | Y91: =RA!BO652 ->  | Z91: =RA!BQ652 ->  | AA91: =RA!BW652 ->  | AB91: =RA!AY653 ->  | AC91: =RA!BE653 ->  | AD91: =RA!BG653 ->  | AE91: =RA!BI653 ->  | AF91: =RA!BK653 ->  | AG91: =RA!BM653 ->  | AH91: =RA!BO653 ->  | AI91: =RA!BQ653 ->  | AJ91: =RA!BW653 -> 
B93: weighted PSNR BD-rate Weights | F93: LD | G93: =LD!C559 -> Class A1_4K
G94: =LD!C568 -> Class A2_2K | H94: =LD!AY568 ->  | I94: =LD!BE568 ->  | J94: =LD!BG568 ->  | K94: =LD!BI568 ->  | L94: =LD!BK568 ->  | M94: =LD!BM568 ->  | N94: =LD!BO568 ->  | O94: =LD!BQ568 ->  | P94: =LD!BW568 ->  | Q94: =LD!BY568 -> 0 | R94: =LD!CA568 -> 0 | S94: =LD!AY569 ->  | T94: =LD!BE569 ->  | U94: =LD!BG569 ->  | V94: =LD!BI569 ->  | W94: =LD!BK569 ->  | X94: =LD!BM569 ->  | Y94: =LD!BO569 ->  | Z94: =LD!BQ569 ->  | AA94: =LD!BW569 ->  | AB94: =LD!AY570 ->  | AC94: =LD!BE570 ->  | AD94: =LD!BG570 ->  | AE94: =LD!BI570 ->  | AF94: =LD!BK570 ->  | AG94: =LD!BM570 ->  | AH94: =LD!BO570 ->  | AI94: =LD!BQ570 ->  | AJ94: =LD!BW570 -> 
B95: Y | C95: 23 | G95: =LD!C577 -> Class A3_720p | H95: =LD!AY577 ->  | I95: =LD!BE577 ->  | J95: =LD!BG577 ->  | K95: =LD!BI577 ->  | L95: =LD!BK577 ->  | M95: =LD!BM577 ->  | N95: =LD!BO577 ->  | O95: =LD!BQ577 ->  | P95: =LD!BW577 ->  | Q95: =LD!BY577 -> 0 | R95: =LD!CA577 -> 0 | S95: =LD!AY578 ->  | T95: =LD!BE578 ->  | U95: =LD!BG578 ->  | V95: =LD!BI578 ->  | W95: =LD!BK578 ->  | X95: =LD!BM578 ->  | Y95: =LD!BO578 ->  | Z95: =LD!BQ578 ->  | AA95: =LD!BW578 ->  | AB95: =LD!AY579 ->  | AC95: =LD!BE579 ->  | AD95: =LD!BG579 ->  | AE95: =LD!BI579 ->  | AF95: =LD!BK579 ->  | AG95: =LD!BM579 ->  | AH95: =LD!BO579 ->  | AI95: =LD!BQ579 ->  | AJ95: =LD!BW579 -> 
B96: U | C96: 1 | G96: =LD!C586 -> Class A4_360p | H96: =LD!AY586 ->  | I96: =LD!BE586 ->  | J96: =LD!BG586 ->  | K96: =LD!BI586 ->  | L96: =LD!BK586 ->  | M96: =LD!BM586 ->  | N96: =LD!BO586 ->  | O96: =LD!BQ586 ->  | P96: =LD!BW586 ->  | Q96: =LD!BY586 -> 0 | R96: =LD!CA586 -> 0 | S96: =LD!AY587 ->  | T96: =LD!BE587 ->  | U96: =LD!BG587 ->  | V96: =LD!BI587 ->  | W96: =LD!BK587 ->  | X96: =LD!BM587 ->  | Y96: =LD!BO587 ->  | Z96: =LD!BQ587 ->  | AA96: =LD!BW587 ->  | AB96: =LD!AY588 ->  | AC96: =LD!BE588 ->  | AD96: =LD!BG588 ->  | AE96: =LD!BI588 ->  | AF96: =LD!BK588 ->  | AG96: =LD!BM588 ->  | AH96: =LD!BO588 ->  | AI96: =LD!BQ588 ->  | AJ96: =LD!BW588 -> 
B97: V | C97: 1 | G97: =LD!C595 -> Class A5_270p | H97: =LD!AY595 ->  | I97: =LD!BE595 ->  | J97: =LD!BG595 ->  | K97: =LD!BI595 ->  | L97: =LD!BK595 ->  | M97: =LD!BM595 ->  | N97: =LD!BO595 ->  | O97: =LD!BQ595 ->  | P97: =LD!BW595 ->  | Q97: =LD!BY595 -> 0 | R97: =LD!CA595 -> 0 | S97: =LD!AY596 ->  | T97: =LD!BE596 ->  | U97: =LD!BG596 ->  | V97: =LD!BI596 ->  | W97: =LD!BK596 ->  | X97: =LD!BM596 ->  | Y97: =LD!BO596 ->  | Z97: =LD!BQ596 ->  | AA97: =LD!BW596 ->  | AB97: =LD!AY597 ->  | AC97: =LD!BE597 ->  | AD97: =LD!BG597 ->  | AE97: =LD!BI597 ->  | AF97: =LD!BK597 ->  | AG97: =LD!BM597 ->  | AH97: =LD!BO597 ->  | AI97: =LD!BQ597 ->  | AJ97: =LD!BW597 -> 
B98: Sum | C98: =SUM(C95:C97) -> 25 | G98: =LD!C604 -> Class B1_SYN | H98: =LD!AY604 ->  | I98: =LD!BE604 ->  | J98: =LD!BG604 ->  | K98: =LD!BI604 ->  | L98: =LD!BK604 ->  | M98: =LD!BM604 ->  | N98: =LD!BO604 ->  | O98: =LD!BQ604 ->  | P98: =LD!BW604 ->  | Q98: =LD!BY604 -> 0 | R98: =LD!CA604 -> 0 | S98: =LD!AY605 ->  | T98: =LD!BE605 ->  | U98: =LD!BG605 ->  | V98: =LD!BI605 ->  | W98: =LD!BK605 ->  | X98: =LD!BM605 ->  | Y98: =LD!BO605 ->  | Z98: =LD!BQ605 ->  | AA98: =LD!BW605 ->  | AB98: =LD!AY606 ->  | AC98: =LD!BE606 ->  | AD98: =LD!BG606 ->  | AE98: =LD!BI606 ->  | AF98: =LD!BK606 ->  | AG98: =LD!BM606 ->  | AH98: =LD!BO606 ->  | AI98: =LD!BQ606 ->  | AJ98: =LD!BW606 -> 
G99: =LD!AV662 -> Overall Mandatory w/o B2 | H99: =LD!AY662 ->  | I99: =LD!BE662 ->  | J99: =LD!BG662 ->  | K99: =LD!BI662 ->  | L99: =LD!BK662 ->  | M99: =LD!BM662 ->  | N99: =LD!BO662 ->  | O99: =LD!BQ662 ->  | P99: =LD!BW662 ->  | Q99: =LD!BY662 -> 0 | R99: =LD!CA662 -> 0 | S99: =LD!AY663 ->  | T99: =LD!BE663 ->  | U99: =LD!BG663 ->  | V99: =LD!BI663 ->  | W99: =LD!BK663 ->  | X99: =LD!BM663 ->  | Y99: =LD!BO663 ->  | Z99: =LD!BQ663 ->  | AA99: =LD!BW663 ->  | AB99: =LD!AY664 ->  | AC99: =LD!BE664 ->  | AD99: =LD!BG664 ->  | AE99: =LD!BI664 ->  | AF99: =LD!BK664 ->  | AG99: =LD!BM664 ->  | AH99: =LD!BO664 ->  | AI99: =LD!BQ664 ->  | AJ99: =LD!BW664 -> 
G101: =LD!C622 -> Class HDR1_4K | H101: =LD!AY622 ->  | I101: =LD!BE622 ->  | J101: =LD!BG622 ->  | K101: =LD!BI622 ->  | L101: =LD!BK622 ->  | M101: =LD!BM622 ->  | N101: =LD!BO622 ->  | O101: =LD!BQ622 ->  | P101: =LD!BW622 ->  | Q101: =LD!BY622 -> 0 | R101: =LD!CA622 -> 0 | S101: =LD!AY623 ->  | T101: =LD!BE623 ->  | U101: =LD!BG623 ->  | V101: =LD!BI623 ->  | W101: =LD!BK623 ->  | X101: =LD!BM623 ->  | Y101: =LD!BO623 ->  | Z101: =LD!BQ623 ->  | AA101: =LD!BW623 ->  | AB101: =LD!AY624 ->  | AC101: =LD!BE624 ->  | AD101: =LD!BG624 ->  | AE101: =LD!BI624 ->  | AF101: =LD!BK624 ->  | AG101: =LD!BM624 ->  | AH101: =LD!BO624 ->  | AI101: =LD!BQ624 ->  | AJ101: =LD!BW624 -> 
G102: =LD!C631 -> Class HDR2_2K | H102: =LD!AY631 ->  | I102: =LD!BE631 ->  | J102: =LD!BG631 ->  | K102: =LD!BI631 ->  | L102: =LD!BK631 ->  | M102: =LD!BM631 ->  | N102: =LD!BO631 ->  | O102: =LD!BQ631 ->  | P102: =LD!BW631 ->  | Q102: =LD!BY631 -> 0 | R102: =LD!CA631 -> 0 | S102: =LD!AY632 ->  | T102: =LD!BE632 ->  | U102: =LD!BG632 ->  | V102: =LD!BI632 ->  | W102: =LD!BK632 ->  | X102: =LD!BM632 ->  | Y102: =LD!BO632 ->  | Z102: =LD!BQ632 ->  | AA102: =LD!BW632 ->  | AB102: =LD!AY633 ->  | AC102: =LD!BE633 ->  | AD102: =LD!BG633 ->  | AE102: =LD!BI633 ->  | AF102: =LD!BK633 ->  | AG102: =LD!BM633 ->  | AH102: =LD!BO633 ->  | AI102: =LD!BQ633 ->  | AJ102: =LD!BW633 -> 
G103: =LD!AV684 -> Overall HDR | H103: =LD!AY684 ->  | I103: =LD!BE684 ->  | J103: =LD!BG684 ->  | K103: =LD!BI684 ->  | L103: =LD!BK684 ->  | M103: =LD!BM684 ->  | N103: =LD!BO684 ->  | O103: =LD!BQ684 ->  | P103: =LD!BW684 ->  | Q103: =LD!BY684 -> 0 | R103: =LD!CA684 -> 0 | S103: =LD!AY685 ->  | T103: =LD!BE685 ->  | U103: =LD!BG685 ->  | V103: =LD!BI685 ->  | W103: =LD!BK685 ->  | X103: =LD!BM685 ->  | Y103: =LD!BO685 ->  | Z103: =LD!BQ685 ->  | AA103: =LD!BW685 ->  | AB103: =LD!AY686 ->  | AC103: =LD!BE686 ->  | AD103: =LD!BG686 ->  | AE103: =LD!BI686 ->  | AF103: =LD!BK686 ->  | AG103: =LD!BM686 ->  | AH103: =LD!BO686 ->  | AI103: =LD!BQ686 ->  | AJ103: =LD!BW686 -> 
G104: =LD!AV640 -> Class E | H104: =LD!AY640 ->  | I104: =LD!BE640 ->  | J104: =LD!BG640 ->  | K104: =LD!BI640 ->  | L104: =LD!BK640 ->  | M104: =LD!BM640 ->  | N104: =LD!BO640 ->  | O104: =LD!BQ640 ->  | P104: =LD!BW640 ->  | Q104: =LD!BY640 -> 0 | R104: =LD!CA640 -> 0 | S104: =LD!AY641 ->  | T104: =LD!BE641 ->  | U104: =LD!BG641 ->  | V104: =LD!BI641 ->  | W104: =LD!BK641 ->  | X104: =LD!BM641 ->  | Y104: =LD!BO641 ->  | Z104: =LD!BQ641 ->  | AA104: =LD!BW641 ->  | AB104: =LD!AY642 ->  | AC104: =LD!BE642 ->  | AD104: =LD!BG642 ->  | AE104: =LD!BI642 ->  | AF104: =LD!BK642 ->  | AG104: =LD!BM642 ->  | AH104: =LD!BO642 ->  | AI104: =LD!BQ642 ->  | AJ104: =LD!BW642 -> 
B107: weighted APSNR BD-rate Weights | E107: Medium | H107: Averages | S107: Minimum | AB107: Maximum
H108: PSNR | I108: SSIM | J108: MS-SSIM | K108: VMAF | L108: nVMAF | M108: PSNR HVS | N108: DE 2K | O108: APSNR | P108: CAMBI | Q108: VMAF | R108: nVMAF | S108: PSNR | T108: SSIM | U108: MS-SSIM | V108: VMAF | W108: nVMAF | X108: PSNR HVS | Y108: DE 2K | Z108: APSNR | AA108: CAMBI | AB108: PSNR | AC108: SSIM | AD108: MS-SSIM | AE108: VMAF | AF108: nVMAF | AG108: PSNR HVS | AH108: DE 2K | AI108: APSNR | AJ108: CAMBI
B109: Y | C109: 23 | G109: Summary | H109: Y | I109: Y | J109: Y | K109: Y | L109: Y | M109: Y | O109: Y | P109: Y | Q109: Monotonicity | S109: Y | T109: Y | U109: Y | V109: Y | W109: Y | X109: Y | Z109: Y | AA109: Y | AB109: Y | AC109: Y | AD109: Y | AE109: Y | AF109: Y | AG109: Y | AI109: Y | AJ109: Y
B110: U | C110: 1 | F110: Intra | G110: =Intra!C559 -> Class A1_4K | H110: =Intra!AY562 ->  | I110: =Intra!BE562 ->  | J110: =Intra!BG562 ->  | K110: =Intra!BI562 ->  | L110: =Intra!BK562 ->  | M110: =Intra!BM562 ->  | N110: =Intra!BO562 ->  | O110: =Intra!BQ562 ->  | P110: =Intra!BW562 ->  | Q110: =Intra!BY562 -> 0 | R110: =Intra!CA562 -> 0 | S110: =Intra!AY563 ->  | T110: =Intra!BE563 ->  | U110: =Intra!BG563 ->  | V110: =Intra!BI563 ->  | W110: =Intra!BK563 ->  | X110: =Intra!BM563 ->  | Y110: =Intra!BO563 ->  | Z110: =Intra!BQ563 ->  | AA110: =Intra!BW563 ->  | AB110: =Intra!AY564 ->  | AC110: =Intra!BE564 ->  | AD110: =Intra!BG564 ->  | AE110: =Intra!BI564 ->  | AF110: =Intra!BK564 ->  | AG110: =Intra!BM564 ->  | AH110: =Intra!BO564 ->  | AI110: =Intra!BQ564 ->  | AJ110: =Intra!BW564 -> 
B111: V | C111: 1 | G111: =Intra!C568 -> Class A2_2K | H111: =Intra!AY571 ->  | I111: =Intra!BE571 ->  | J111: =Intra!BG571 ->  | K111: =Intra!BI571 ->  | L111: =Intra!BK571 ->  | M111: =Intra!BM571 ->  | N111: =Intra!BO571 ->  | O111: =Intra!BQ571 ->  | P111: =Intra!BW571 ->  | Q111: =Intra!BY571 -> 0 | R111: =Intra!CA571 -> 0 | S111: =Intra!AY572 ->  | T111: =Intra!BE572 ->  | U111: =Intra!BG572 ->  | V111: =Intra!BI572 ->  | W111: =Intra!BK572 ->  | X111: =Intra!BM572 ->  | Y111: =Intra!BO572 ->  | Z111: =Intra!BQ572 ->  | AA111: =Intra!BW572 ->  | AB111: =Intra!AY573 ->  | AC111: =Intra!BE573 ->  | AD111: =Intra!BG573 ->  | AE111: =Intra!BI573 ->  | AF111: =Intra!BK573 ->  | AG111: =Intra!BM573 ->  | AH111: =Intra!BO573 ->  | AI111: =Intra!BQ573 ->  | AJ111: =Intra!BW573 -> 
B112: Sum | C112: =SUM(C109:C111) -> 25 | G112: =Intra!C577 -> Class A3_720p | H112: =Intra!AY580 ->  | I112: =Intra!BE580 ->  | J112: =Intra!BG580 ->  | K112: =Intra!BI580 ->  | L112: =Intra!BK580 ->  | M112: =Intra!BM580 ->  | N112: =Intra!BO580 ->  | O112: =Intra!BQ580 ->  | P112: =Intra!BW580 ->  | Q112: =Intra!BY580 -> 0 | R112: =Intra!CA580 -> 0 | S112: =Intra!AY581 ->  | T112: =Intra!BE581 ->  | U112: =Intra!BG581 ->  | V112: =Intra!BI581 ->  | W112: =Intra!BK581 ->  | X112: =Intra!BM581 ->  | Y112: =Intra!BO581 ->  | Z112: =Intra!BQ581 ->  | AA112: =Intra!BW581 ->  | AB112: =Intra!AY582 ->  | AC112: =Intra!BE582 ->  | AD112: =Intra!BG582 ->  | AE112: =Intra!BI582 ->  | AF112: =Intra!BK582 ->  | AG112: =Intra!BM582 ->  | AH112: =Intra!BO582 ->  | AI112: =Intra!BQ582 ->  | AJ112: =Intra!BW582 -> 
G113: =Intra!C586 -> Class A4_360p | H113: =Intra!AY589 ->  | I113: =Intra!BE589 ->  | J113: =Intra!BG589 ->  | K113: =Intra!BI589 ->  | L113: =Intra!BK589 ->  | M113: =Intra!BM589 ->  | N113: =Intra!BO589 ->  | O113: =Intra!BQ589 ->  | P113: =Intra!BW589 ->  | Q113: =Intra!BY589 -> 0 | R113: =Intra!CA589 -> 0 | S113: =Intra!AY590 ->  | T113: =Intra!BE590 ->  | U113: =Intra!BG590 ->  | V113: =Intra!BI590 ->  | W113: =Intra!BK590 ->  | X113: =Intra!BM590 ->  | Y113: =Intra!BO590 ->  | Z113: =Intra!BQ590 ->  | AA113: =Intra!BW590 ->  | AB113: =Intra!AY591 ->  | AC113: =Intra!BE591 ->  | AD113: =Intra!BG591 ->  | AE113: =Intra!BI591 ->  | AF113: =Intra!BK591 ->  | AG113: =Intra!BM591 ->  | AH113: =Intra!BO591 ->  | AI113: =Intra!BQ591 ->  | AJ113: =Intra!BW591 -> 
G114: =Intra!C595 -> Class A5_270p | H114: =Intra!AY598 ->  | I114: =Intra!BE598 ->  | J114: =Intra!BG598 ->  | K114: =Intra!BI598 ->  | L114: =Intra!BK598 ->  | M114: =Intra!BM598 ->  | N114: =Intra!BO598 ->  | O114: =Intra!BQ598 ->  | P114: =Intra!BW598 ->  | Q114: =Intra!BY598 -> 0 | R114: =Intra!CA598 -> 0 | S114: =Intra!AY599 ->  | T114: =Intra!BE599 ->  | U114: =Intra!BG599 ->  | V114: =Intra!BI599 ->  | W114: =Intra!BK599 ->  | X114: =Intra!BM599 ->  | Y114: =Intra!BO599 ->  | Z114: =Intra!BQ599 ->  | AA114: =Intra!BW599 ->  | AB114: =Intra!AY600 ->  | AC114: =Intra!BE600 ->  | AD114: =Intra!BG600 ->  | AE114: =Intra!BI600 ->  | AF114: =Intra!BK600 ->  | AG114: =Intra!BM600 ->  | AH114: =Intra!BO600 ->  | AI114: =Intra!BQ600 ->  | AJ114: =Intra!BW600 -> 
G115: =Intra!C604 -> Class B1_SYN | H115: =Intra!AY607 ->  | I115: =Intra!BE607 ->  | J115: =Intra!BG607 ->  | K115: =Intra!BI607 ->  | L115: =Intra!BK607 ->  | M115: =Intra!BM607 ->  | N115: =Intra!BO607 ->  | O115: =Intra!BQ607 ->  | P115: =Intra!BW607 ->  | Q115: =Intra!BY607 -> 0 | R115: =Intra!CA607 -> 0 | S115: =Intra!AY608 ->  | T115: =Intra!BE608 ->  | U115: =Intra!BG608 ->  | V115: =Intra!BI608 ->  | W115: =Intra!BK608 ->  | X115: =Intra!BM608 ->  | Y115: =Intra!BO608 ->  | Z115: =Intra!BQ608 ->  | AA115: =Intra!BW608 ->  | AB115: =Intra!AY609 ->  | AC115: =Intra!BE609 ->  | AD115: =Intra!BG609 ->  | AE115: =Intra!BI609 ->  | AF115: =Intra!BK609 ->  | AG115: =Intra!BM609 ->  | AH115: =Intra!BO609 ->  | AI115: =Intra!BQ609 ->  | AJ115: =Intra!BW609 -> 
G116: =Intra!AV662 -> Overall Mandatory w/o B2 | H116: =Intra!AY665 ->  | I116: =Intra!BE665 ->  | J116: =Intra!BG665 ->  | K116: =Intra!BI665 ->  | L116: =Intra!BK665 ->  | M116: =Intra!BM665 ->  | N116: =Intra!BO665 ->  | O116: =Intra!BQ665 ->  | P116: =Intra!BW665 ->  | Q116: =Intra!BY665 -> 0 | R116: =Intra!CA665 -> 0 | S116: =Intra!AY657 ->  | T116: =Intra!BE657 ->  | U116: =Intra!BG657 ->  | V116: =Intra!BI657 ->  | W116: =Intra!BK657 ->  | X116: =Intra!BM657 ->  | Y116: =Intra!BO657 ->  | Z116: =Intra!BQ657 ->  | AA116: =Intra!BW657 ->  | AB116: =Intra!AY658 ->  | AC116: =Intra!BE658 ->  | AD116: =Intra!BG658 ->  | AE116: =Intra!BI658 ->  | AF116: =Intra!BK658 ->  | AG116: =Intra!BM658 ->  | AH116: =Intra!BO658 ->  | AI116: =Intra!BQ658 ->  | AJ116: =Intra!BW658 -> 
G118: =Intra!C622 -> Class HDR1_4K | H118: =Intra!AY625 ->  | I118: =Intra!BE625 ->  | J118: =Intra!BG625 ->  | K118: =Intra!BI625 ->  | L118: =Intra!BK625 ->  | M118: =Intra!BM625 ->  | N118: =Intra!BO625 ->  | O118: =Intra!BQ625 ->  | P118: =Intra!BW625 ->  | Q118: =Intra!BY625 -> 0 | R118: =Intra!CA625 -> 0 | S118: =Intra!AY626 ->  | T118: =Intra!BE626 ->  | U118: =Intra!BG626 ->  | V118: =Intra!BI626 ->  | W118: =Intra!BK626 ->  | X118: =Intra!BM626 ->  | Y118: =Intra!BO626 ->  | Z118: =Intra!BQ626 ->  | AA118: =Intra!BW626 ->  | AB118: =Intra!AY627 ->  | AC118: =Intra!BE627 ->  | AD118: =Intra!BG627 ->  | AE118: =Intra!BI627 ->  | AF118: =Intra!BK627 ->  | AG118: =Intra!BM627 ->  | AH118: =Intra!BO627 ->  | AI118: =Intra!BQ627 ->  | AJ118: =Intra!BW627 -> 
G119: =Intra!C631 -> Class HDR2_2K | H119: =Intra!AY634 ->  | I119: =Intra!BE634 ->  | J119: =Intra!BG634 ->  | K119: =Intra!BI634 ->  | L119: =Intra!BK634 ->  | M119: =Intra!BM634 ->  | N119: =Intra!BO634 ->  | O119: =Intra!BQ634 ->  | P119: =Intra!BW634 ->  | Q119: =Intra!BY634 -> 0 | R119: =Intra!CA634 -> 0 | S119: =Intra!AY635 ->  | T119: =Intra!BE635 ->  | U119: =Intra!BG635 ->  | V119: =Intra!BI635 ->  | W119: =Intra!BK635 ->  | X119: =Intra!BM635 ->  | Y119: =Intra!BO635 ->  | Z119: =Intra!BQ635 ->  | AA119: =Intra!BW635 ->  | AB119: =Intra!AY636 ->  | AC119: =Intra!BE636 ->  | AD119: =Intra!BG636 ->  | AE119: =Intra!BI636 ->  | AF119: =Intra!BK636 ->  | AG119: =Intra!BM636 ->  | AH119: =Intra!BO636 ->  | AI119: =Intra!BQ636 ->  | AJ119: =Intra!BW636 -> 
G120: =Intra!AV684 -> Overall HDR | H120: =Intra!AY687 ->  | I120: =Intra!BE687 ->  | J120: =Intra!BG687 ->  | K120: =Intra!BI687 ->  | L120: =Intra!BK687 ->  | M120: =Intra!BM687 ->  | N120: =Intra!BO687 ->  | O120: =Intra!BQ687 ->  | P120: =Intra!BW687 ->  | Q120: =Intra!BY687 -> 0 | R120: =Intra!CA687 -> 0 | S120: =Intra!AY688 ->  | T120: =Intra!BE688 ->  | U120: =Intra!BG688 ->  | V120: =Intra!BI688 ->  | W120: =Intra!BK688 ->  | X120: =Intra!BM688 ->  | Y120: =Intra!BO688 ->  | Z120: =Intra!BQ688 ->  | AA120: =Intra!BW688 ->  | AB120: =Intra!AY689 ->  | AC120: =Intra!BE689 ->  | AD120: =Intra!BG689 ->  | AE120: =Intra!BI689 ->  | AF120: =Intra!BK689 ->  | AG120: =Intra!BM689 ->  | AH120: =Intra!BO689 ->  | AI120: =Intra!BQ689 ->  | AJ120: =Intra!BW689 -> 
G121: =Intra!AV640 -> Class E | H121: =Intra!AY643 ->  | I121: =Intra!BE643 ->  | J121: =Intra!BG643 ->  | K121: =Intra!BI643 ->  | L121: =Intra!BK643 ->  | M121: =Intra!BM643 ->  | N121: =Intra!BO643 ->  | O121: =Intra!BQ643 ->  | P121: =Intra!BW643 ->  | Q121: =Intra!BY643 -> 0 | R121: =Intra!CA643 -> 0 | S121: =Intra!AY644 ->  | T121: =Intra!BE644 ->  | U121: =Intra!BG644 ->  | V121: =Intra!BI644 ->  | W121: =Intra!BK644 ->  | X121: =Intra!BM644 ->  | Y121: =Intra!BO644 ->  | Z121: =Intra!BQ644 ->  | AA121: =Intra!BW644 ->  | AB121: =Intra!AY645 ->  | AC121: =Intra!BE645 ->  | AD121: =Intra!BG645 ->  | AE121: =Intra!BI645 ->  | AF121: =Intra!BK645 ->  | AG121: =Intra!BM645 ->  | AH121: =Intra!BO645 ->  | AI121: =Intra!BQ645 ->  | AJ121: =Intra!BW645 -> 
G122: =Intra!AV651 -> Overall | H122: =Intra!AY654 ->  | I122: =Intra!BE654 ->  | J122: =Intra!BG654 ->  | K122: =Intra!BI654 ->  | L122: =Intra!BK654 ->  | M122: =Intra!BM654 ->  | N122: =Intra!BO654 ->  | O122: =Intra!BQ654 ->  | P122: =Intra!BW654 ->  | Q122: =Intra!BY654 -> 0 | R122: =Intra!CA654 -> 0 | S122: =Intra!AY655 ->  | T122: =Intra!BE655 ->  | U122: =Intra!BG655 ->  | V122: =Intra!BI655 ->  | W122: =Intra!BK655 ->  | X122: =Intra!BM655 ->  | Y122: =Intra!BO655 ->  | Z122: =Intra!BQ655 ->  | AA122: =Intra!BW655 ->  | AB122: =Intra!AY656 ->  | AC122: =Intra!BE656 ->  | AD122: =Intra!BG656 ->  | AE122: =Intra!BI656 ->  | AF122: =Intra!BK656 ->  | AG122: =Intra!BM656 ->  | AH122: =Intra!BO656 ->  | AI122: =Intra!BQ656 ->  | AJ122: =Intra!BW656 -> 
F124: RA | G124: =RA!C559 -> Class A1_4K | H124: =RA!AY562 ->  | I124: =RA!BE562 ->  | J124: =RA!BG562 ->  | K124: =RA!BI562 ->  | L124: =RA!BK562 ->  | M124: =RA!BM562 ->  | N124: =RA!BO562 ->  | O124: =RA!BQ562 ->  | P124: =RA!BW562 ->  | Q124: =RA!BY562 -> 0 | R124: =RA!CA562 -> 0 | S124: =RA!AY563 ->  | T124: =RA!BE563 ->  | U124: =RA!BG563 ->  | V124: =RA!BI563 ->  | W124: =RA!BK563 ->  | X124: =RA!BM563 ->  | Y124: =RA!BO563 ->  | Z124: =RA!BQ563 ->  | AA124: =RA!BW563 ->  | AB124: =RA!AY564 ->  | AC124: =RA!BE564 ->  | AD124: =RA!BG564 ->  | AE124: =RA!BI564 ->  | AF124: =RA!BK564 ->  | AG124: =RA!BM564 ->  | AH124: =RA!BO564 ->  | AI124: =RA!BQ564 ->  | AJ124: =RA!BW564 -> 
G125: =RA!C568 -> Class A2_2K | H125: =RA!AY571 ->  | I125: =RA!BE571 ->  | J125: =RA!BG571 ->  | K125: =RA!BI571 ->  | L125: =RA!BK571 ->  | M125: =RA!BM571 ->  | N125: =RA!BO571 ->  | O125: =RA!BQ571 ->  | P125: =RA!BW571 ->  | Q125: =RA!BY571 -> 0 | R125: =RA!CA571 -> 0 | S125: =RA!AY572 ->  | T125: =RA!BE572 ->  | U125: =RA!BG572 ->  | V125: =RA!BI572 ->  | W125: =RA!BK572 ->  | X125: =RA!BM572 ->  | Y125: =RA!BO572 ->  | Z125: =RA!BQ572 ->  | AA125: =RA!BW572 ->  | AB125: =RA!AY573 ->  | AC125: =RA!BE573 ->  | AD125: =RA!BG573 ->  | AE125: =RA!BI573 ->  | AF125: =RA!BK573 ->  | AG125: =RA!BM573 ->  | AH125: =RA!BO573 ->  | AI125: =RA!BQ573 ->  | AJ125: =RA!BW573 -> 
G126: =RA!C577 -> Class A3_720p | H126: =RA!AY580 ->  | I126: =RA!BE580 ->  | J126: =RA!BG580 ->  | K126: =RA!BI580 ->  | L126: =RA!BK580 ->  | M126: =RA!BM580 ->  | N126: =RA!BO580 ->  | O126: =RA!BQ580 ->  | P126: =RA!BW580 ->  | Q126: =RA!BY580 -> 0 | R126: =RA!CA580 -> 0 | S126: =RA!AY581 ->  | T126: =RA!BE581 ->  | U126: =RA!BG581 ->  | V126: =RA!BI581 ->  | W126: =RA!BK581 ->  | X126: =RA!BM581 ->  | Y126: =RA!BO581 ->  | Z126: =RA!BQ581 ->  | AA126: =RA!BW581 ->  | AB126: =RA!AY582 ->  | AC126: =RA!BE582 ->  | AD126: =RA!BG582 ->  | AE126: =RA!BI582 ->  | AF126: =RA!BK582 ->  | AG126: =RA!BM582 ->  | AH126: =RA!BO582 ->  | AI126: =RA!BQ582 ->  | AJ126: =RA!BW582 -> 
G127: =RA!C586 -> Class A4_360p | H127: =RA!AY589 ->  | I127: =RA!BE589 ->  | J127: =RA!BG589 ->  | K127: =RA!BI589 ->  | L127: =RA!BK589 ->  | M127: =RA!BM589 ->  | N127: =RA!BO589 ->  | O127: =RA!BQ589 ->  | P127: =RA!BW589 ->  | Q127: =RA!BY589 -> 0 | R127: =RA!CA589 -> 0 | S127: =RA!AY590 ->  | T127: =RA!BE590 ->  | U127: =RA!BG590 ->  | V127: =RA!BI590 ->  | W127: =RA!BK590 ->  | X127: =RA!BM590 ->  | Y127: =RA!BO590 ->  | Z127: =RA!BQ590 ->  | AA127: =RA!BW590 ->  | AB127: =RA!AY591 ->  | AC127: =RA!BE591 ->  | AD127: =RA!BG591 ->  | AE127: =RA!BI591 ->  | AF127: =RA!BK591 ->  | AG127: =RA!BM591 ->  | AH127: =RA!BO591 ->  | AI127: =RA!BQ591 ->  | AJ127: =RA!BW591 -> 
G128: =RA!C595 -> Class A5_270p | H128: =RA!AY598 ->  | I128: =RA!BE598 ->  | J128: =RA!BG598 ->  | K128: =RA!BI598 ->  | L128: =RA!BK598 ->  | M128: =RA!BM598 ->  | N128: =RA!BO598 ->  | O128: =RA!BQ598 ->  | P128: =RA!BW598 ->  | Q128: =RA!BY598 -> 0 | R128: =RA!CA598 -> 0 | S128: =RA!AY599 ->  | T128: =RA!BE599 ->  | U128: =RA!BG599 ->  | V128: =RA!BI599 ->  | W128: =RA!BK599 ->  | X128: =RA!BM599 ->  | Y128: =RA!BO599 ->  | Z128: =RA!BQ599 ->  | AA128: =RA!BW599 ->  | AB128: =RA!AY600 ->  | AC128: =RA!BE600 ->  | AD128: =RA!BG600 ->  | AE128: =RA!BI600 ->  | AF128: =RA!BK600 ->  | AG128: =RA!BM600 ->  | AH128: =RA!BO600 ->  | AI128: =RA!BQ600 ->  | AJ128: =RA!BW600 -> 
G129: =RA!C604 -> Class B1_SYN | H129: =RA!AY607 ->  | I129: =RA!BE607 ->  | J129: =RA!BG607 ->  | K129: =RA!BI607 ->  | L129: =RA!BK607 ->  | M129: =RA!BM607 ->  | N129: =RA!BO607 ->  | O129: =RA!BQ607 ->  | P129: =RA!BW607 ->  | Q129: =RA!BY607 -> 0 | R129: =RA!CA607 -> 0 | S129: =RA!AY608 ->  | T129: =RA!BE608 ->  | U129: =RA!BG608 ->  | V129: =RA!BI608 ->  | W129: =RA!BK608 ->  | X129: =RA!BM608 ->  | Y129: =RA!BO608 ->  | Z129: =RA!BQ608 ->  | AA129: =RA!BW608 ->  | AB129: =RA!AY609 ->  | AC129: =RA!BE609 ->  | AD129: =RA!BG609 ->  | AE129: =RA!BI609 ->  | AF129: =RA!BK609 ->  | AG129: =RA!BM609 ->  | AH129: =RA!BO609 ->  | AI129: =RA!BQ609 ->  | AJ129: =RA!BW609 -> 
G130: =RA!AV662 -> Overall Mandatory w/o B2 | H130: =RA!AY665 ->  | I130: =RA!BE665 ->  | J130: =RA!BG665 ->  | K130: =RA!BI665 ->  | L130: =RA!BK665 ->  | M130: =RA!BM665 ->  | N130: =RA!BO665 ->  | O130: =RA!BQ665 ->  | P130: =RA!BW665 ->  | Q130: =RA!BY665 -> 0 | R130: =RA!CA665 -> 0 | S130: =RA!AY657 ->  | T130: =RA!BE657 ->  | U130: =RA!BG657 ->  | V130: =RA!BI657 ->  | W130: =RA!BK657 ->  | X130: =RA!BM657 ->  | Y130: =RA!BO657 ->  | Z130: =RA!BQ657 ->  | AA130: =RA!BW657 ->  | AB130: =RA!AY658 ->  | AC130: =RA!BE658 ->  | AD130: =RA!BG658 ->  | AE130: =RA!BI658 ->  | AF130: =RA!BK658 ->  | AG130: =RA!BM658 ->  | AH130: =RA!BO658 ->  | AI130: =RA!BQ658 ->  | AJ130: =RA!BW658 -> 
G132: =RA!C622 -> Class HDR1_4K | H132: =RA!AY625 ->  | I132: =RA!BE625 ->  | J132: =RA!BG625 ->  | K132: =RA!BI625 ->  | L132: =RA!BK625 ->  | M132: =RA!BM625 ->  | N132: =RA!BO625 ->  | O132: =RA!BQ625 ->  | P132: =RA!BW625 ->  | Q132: =RA!BY625 -> 0 | R132: =RA!CA625 -> 0 | S132: =RA!AY626 ->  | T132: =RA!BE626 ->  | U132: =RA!BG626 ->  | V132: =RA!BI626 ->  | W132: =RA!BK626 ->  | X132: =RA!BM626 ->  | Y132: =RA!BO626 ->  | Z132: =RA!BQ626 ->  | AA132: =RA!BW626 ->  | AB132: =RA!AY627 ->  | AC132: =RA!BE627 ->  | AD132: =RA!BG627 ->  | AE132: =RA!BI627 ->  | AF132: =RA!BK627 ->  | AG132: =RA!BM627 ->  | AH132: =RA!BO627 ->  | AI132: =RA!BQ627 ->  | AJ132: =RA!BW627 -> 
G133: =RA!C631 -> Class HDR2_2K | H133: =RA!AY634 ->  | I133: =RA!BE634 ->  | J133: =RA!BG634 ->  | K133: =RA!BI634 ->  | L133: =RA!BK634 ->  | M133: =RA!BM634 ->  | N133: =RA!BO634 ->  | O133: =RA!BQ634 ->  | P133: =RA!BW634 ->  | Q133: =RA!BY634 -> 0 | R133: =RA!CA634 -> 0 | S133: =RA!AY635 ->  | T133: =RA!BE635 ->  | U133: =RA!BG635 ->  | V133: =RA!BI635 ->  | W133: =RA!BK635 ->  | X133: =RA!BM635 ->  | Y133: =RA!BO635 ->  | Z133: =RA!BQ635 ->  | AA133: =RA!BW635 ->  | AB133: =RA!AY636 ->  | AC133: =RA!BE636 ->  | AD133: =RA!BG636 ->  | AE133: =RA!BI636 ->  | AF133: =RA!BK636 ->  | AG133: =RA!BM636 ->  | AH133: =RA!BO636 ->  | AI133: =RA!BQ636 ->  | AJ133: =RA!BW636 -> 
G134: =RA!AV684 -> Overall HDR | H134: =RA!AY687 ->  | I134: =RA!BE687 ->  | J134: =RA!BG687 ->  | K134: =RA!BI687 ->  | L134: =RA!BK687 ->  | M134: =RA!BM687 ->  | N134: =RA!BO687 ->  | O134: =RA!BQ687 ->  | P134: =RA!BW687 ->  | Q134: =RA!BY687 -> 0 | R134: =RA!CA687 -> 0 | S134: =RA!AY688 ->  | T134: =RA!BE688 ->  | U134: =RA!BG688 ->  | V134: =RA!BI688 ->  | W134: =RA!BK688 ->  | X134: =RA!BM688 ->  | Y134: =RA!BO688 ->  | Z134: =RA!BQ688 ->  | AA134: =RA!BW688 ->  | AB134: =RA!AY689 ->  | AC134: =RA!BE689 ->  | AD134: =RA!BG689 ->  | AE134: =RA!BI689 ->  | AF134: =RA!BK689 ->  | AG134: =RA!BM689 ->  | AH134: =RA!BO689 ->  | AI134: =RA!BQ689 ->  | AJ134: =RA!BW689 -> 
G135: =RA!AV640 -> Class E | H135: =RA!AY643 ->  | I135: =RA!BE643 ->  | J135: =RA!BG643 ->  | K135: =RA!BI643 ->  | L135: =RA!BK643 ->  | M135: =RA!BM643 ->  | N135: =RA!BO643 ->  | O135: =RA!BQ643 ->  | P135: =RA!BW643 ->  | Q135: =RA!BY643 -> 0 | R135: =RA!CA643 -> 0 | S135: =RA!AY644 ->  | T135: =RA!BE644 ->  | U135: =RA!BG644 ->  | V135: =RA!BI644 ->  | W135: =RA!BK644 ->  | X135: =RA!BM644 ->  | Y135: =RA!BO644 ->  | Z135: =RA!BQ644 ->  | AA135: =RA!BW644 ->  | AB135: =RA!AY645 ->  | AC135: =RA!BE645 ->  | AD135: =RA!BG645 ->  | AE135: =RA!BI645 ->  | AF135: =RA!BK645 ->  | AG135: =RA!BM645 ->  | AH135: =RA!BO645 ->  | AI135: =RA!BQ645 ->  | AJ135: =RA!BW645 -> 
G136: =RA!AV651 -> Overall | H136: =RA!AY654 ->  | I136: =RA!BE654 ->  | J136: =RA!BG654 ->  | K136: =RA!BI654 ->  | L136: =RA!BK654 ->  | M136: =RA!BM654 ->  | N136: =RA!BO654 ->  | O136: =RA!BQ654 ->  | P136: =RA!BW654 ->  | Q136: =RA!BY654 -> 0 | R136: =RA!CA654 -> 0 | S136: =RA!AY655 ->  | T136: =RA!BE655 ->  | U136: =RA!BG655 ->  | V136: =RA!BI655 ->  | W136: =RA!BK655 ->  | X136: =RA!BM655 ->  | Y136: =RA!BO655 ->  | Z136: =RA!BQ655 ->  | AA136: =RA!BW655 ->  | AB136: =RA!AY656 ->  | AC136: =RA!BE656 ->  | AD136: =RA!BG656 ->  | AE136: =RA!BI656 ->  | AF136: =RA!BK656 ->  | AG136: =RA!BM656 ->  | AH136: =RA!BO656 ->  | AI136: =RA!BQ656 ->  | AJ136: =RA!BW656 -> 
F138: LD | G138: =LD!C559 -> Class A1_4K
G139: =LD!C568 -> Class A2_2K | H139: =LD!AY571 ->  | I139: =LD!BE571 ->  | J139: =LD!BG571 ->  | K139: =LD!BI571 ->  | L139: =LD!BK571 ->  | M139: =LD!BM571 ->  | N139: =LD!BO571 ->  | O139: =LD!BQ571 ->  | P139: =LD!BW571 ->  | Q139: =LD!BY571 -> 0 | R139: =LD!CA571 -> 0 | S139: =LD!AY572 ->  | T139: =LD!BE572 ->  | U139: =LD!BG572 ->  | V139: =LD!BI572 ->  | W139: =LD!BK572 ->  | X139: =LD!BM572 ->  | Y139: =LD!BO572 ->  | Z139: =LD!BQ572 ->  | AA139: =LD!BW572 ->  | AB139: =LD!AY573 ->  | AC139: =LD!BE573 ->  | AD139: =LD!BG573 ->  | AE139: =LD!BI573 ->  | AF139: =LD!BK573 ->  | AG139: =LD!BM573 ->  | AH139: =LD!BO573 ->  | AI139: =LD!BQ573 ->  | AJ139: =LD!BW573 -> 
G140: =LD!C577 -> Class A3_720p | H140: =LD!AY580 ->  | I140: =LD!BE580 ->  | J140: =LD!BG580 ->  | K140: =LD!BI580 ->  | L140: =LD!BK580 ->  | M140: =LD!BM580 ->  | N140: =LD!BO580 ->  | O140: =LD!BQ580 ->  | P140: =LD!BW580 ->  | Q140: =LD!BY580 -> 0 | R140: =LD!CA580 -> 0 | S140: =LD!AY581 ->  | T140: =LD!BE581 ->  | U140: =LD!BG581 ->  | V140: =LD!BI581 ->  | W140: =LD!BK581 ->  | X140: =LD!BM581 ->  | Y140: =LD!BO581 ->  | Z140: =LD!BQ581 ->  | AA140: =LD!BW581 ->  | AB140: =LD!AY582 ->  | AC140: =LD!BE582 ->  | AD140: =LD!BG582 ->  | AE140: =LD!BI582 ->  | AF140: =LD!BK582 ->  | AG140: =LD!BM582 ->  | AH140: =LD!BO582 ->  | AI140: =LD!BQ582 ->  | AJ140: =LD!BW582 -> 
G141: =LD!C586 -> Class A4_360p | H141: =LD!AY589 ->  | I141: =LD!BE589 ->  | J141: =LD!BG589 ->  | K141: =LD!BI589 ->  | L141: =LD!BK589 ->  | M141: =LD!BM589 ->  | N141: =LD!BO589 ->  | O141: =LD!BQ589 ->  | P141: =LD!BW589 ->  | Q141: =LD!BY589 -> 0 | R141: =LD!CA589 -> 0 | S141: =LD!AY590 ->  | T141: =LD!BE590 ->  | U141: =LD!BG590 ->  | V141: =LD!BI590 ->  | W141: =LD!BK590 ->  | X141: =LD!BM590 ->  | Y141: =LD!BO590 ->  | Z141: =LD!BQ590 ->  | AA141: =LD!BW590 ->  | AB141: =LD!AY591 ->  | AC141: =LD!BE591 ->  | AD141: =LD!BG591 ->  | AE141: =LD!BI591 ->  | AF141: =LD!BK591 ->  | AG141: =LD!BM591 ->  | AH141: =LD!BO591 ->  | AI141: =LD!BQ591 ->  | AJ141: =LD!BW591 -> 
G142: =LD!C595 -> Class A5_270p | H142: =LD!AY598 ->  | I142: =LD!BE598 ->  | J142: =LD!BG598 ->  | K142: =LD!BI598 ->  | L142: =LD!BK598 ->  | M142: =LD!BM598 ->  | N142: =LD!BO598 ->  | O142: =LD!BQ598 ->  | P142: =LD!BW598 ->  | Q142: =LD!BY598 -> 0 | R142: =LD!CA598 -> 0 | S142: =LD!AY599 ->  | T142: =LD!BE599 ->  | U142: =LD!BG599 ->  | V142: =LD!BI599 ->  | W142: =LD!BK599 ->  | X142: =LD!BM599 ->  | Y142: =LD!BO599 ->  | Z142: =LD!BQ599 ->  | AA142: =LD!BW599 ->  | AB142: =LD!AY600 ->  | AC142: =LD!BE600 ->  | AD142: =LD!BG600 ->  | AE142: =LD!BI600 ->  | AF142: =LD!BK600 ->  | AG142: =LD!BM600 ->  | AH142: =LD!BO600 ->  | AI142: =LD!BQ600 ->  | AJ142: =LD!BW600 -> 
G143: =LD!C604 -> Class B1_SYN | H143: =LD!AY607 ->  | I143: =LD!BE607 ->  | J143: =LD!BG607 ->  | K143: =LD!BI607 ->  | L143: =LD!BK607 ->  | M143: =LD!BM607 ->  | N143: =LD!BO607 ->  | O143: =LD!BQ607 ->  | P143: =LD!BW607 ->  | Q143: =LD!BY607 -> 0 | R143: =LD!CA607 -> 0 | S143: =LD!AY608 ->  | T143: =LD!BE608 ->  | U143: =LD!BG608 ->  | V143: =LD!BI608 ->  | W143: =LD!BK608 ->  | X143: =LD!BM608 ->  | Y143: =LD!BO608 ->  | Z143: =LD!BQ608 ->  | AA143: =LD!BW608 ->  | AB143: =LD!AY609 ->  | AC143: =LD!BE609 ->  | AD143: =LD!BG609 ->  | AE143: =LD!BI609 ->  | AF143: =LD!BK609 ->  | AG143: =LD!BM609 ->  | AH143: =LD!BO609 ->  | AI143: =LD!BQ609 ->  | AJ143: =LD!BW609 -> 
G144: =LD!AV662 -> Overall Mandatory w/o B2 | H144: =LD!AY665 ->  | I144: =LD!BE665 ->  | J144: =LD!BG665 ->  | K144: =LD!BI665 ->  | L144: =LD!BK665 ->  | M144: =LD!BM665 ->  | N144: =LD!BO665 ->  | O144: =LD!BQ665 ->  | P144: =LD!BW665 ->  | Q144: =LD!BY665 -> 0 | R144: =LD!CA665 -> 0 | S144: =LD!AY657 ->  | T144: =LD!BE657 ->  | U144: =LD!BG657 ->  | V144: =LD!BI657 ->  | W144: =LD!BK657 ->  | X144: =LD!BM657 ->  | Y144: =LD!BO657 ->  | Z144: =LD!BQ657 ->  | AA144: =LD!BW657 ->  | AB144: =LD!AY658 ->  | AC144: =LD!BE658 ->  | AD144: =LD!BG658 ->  | AE144: =LD!BI658 ->  | AF144: =LD!BK658 ->  | AG144: =LD!BM658 ->  | AH144: =LD!BO658 ->  | AI144: =LD!BQ658 ->  | AJ144: =LD!BW658 -> 
G146: =LD!C622 -> Class HDR1_4K | H146: =LD!AY625 ->  | I146: =LD!BE625 ->  | J146: =LD!BG625 ->  | K146: =LD!BI625 ->  | L146: =LD!BK625 ->  | M146: =LD!BM625 ->  | N146: =LD!BO625 ->  | O146: =LD!BQ625 ->  | P146: =LD!BW625 ->  | Q146: =LD!BY625 -> 0 | R146: =LD!CA625 -> 0 | S146: =LD!AY626 ->  | T146: =LD!BE626 ->  | U146: =LD!BG626 ->  | V146: =LD!BI626 ->  | W146: =LD!BK626 ->  | X146: =LD!BM626 ->  | Y146: =LD!BO626 ->  | Z146: =LD!BQ626 ->  | AA146: =LD!BW626 ->  | AB146: =LD!AY627 ->  | AC146: =LD!BE627 ->  | AD146: =LD!BG627 ->  | AE146: =LD!BI627 ->  | AF146: =LD!BK627 ->  | AG146: =LD!BM627 ->  | AH146: =LD!BO627 ->  | AI146: =LD!BQ627 ->  | AJ146: =LD!BW627 -> 
G147: =LD!C631 -> Class HDR2_2K | H147: =LD!AY634 ->  | I147: =LD!BE634 ->  | J147: =LD!BG634 ->  | K147: =LD!BI634 ->  | L147: =LD!BK634 ->  | M147: =LD!BM634 ->  | N147: =LD!BO634 ->  | O147: =LD!BQ634 ->  | P147: =LD!BW634 ->  | Q147: =LD!BY634 -> 0 | R147: =LD!CA634 -> 0 | S147: =LD!AY635 ->  | T147: =LD!BE635 ->  | U147: =LD!BG635 ->  | V147: =LD!BI635 ->  | W147: =LD!BK635 ->  | X147: =LD!BM635 ->  | Y147: =LD!BO635 ->  | Z147: =LD!BQ635 ->  | AA147: =LD!BW635 ->  | AB147: =LD!AY636 ->  | AC147: =LD!BE636 ->  | AD147: =LD!BG636 ->  | AE147: =LD!BI636 ->  | AF147: =LD!BK636 ->  | AG147: =LD!BM636 ->  | AH147: =LD!BO636 ->  | AI147: =LD!BQ636 ->  | AJ147: =LD!BW636 -> 
G148: =LD!AV684 -> Overall HDR | H148: =LD!AY687 ->  | I148: =LD!BE687 ->  | J148: =LD!BG687 ->  | K148: =LD!BI687 ->  | L148: =LD!BK687 ->  | M148: =LD!BM687 ->  | N148: =LD!BO687 ->  | O148: =LD!BQ687 ->  | P148: =LD!BW687 ->  | Q148: =LD!BY687 -> 0 | R148: =LD!CA687 -> 0 | S148: =LD!AY688 ->  | T148: =LD!BE688 ->  | U148: =LD!BG688 ->  | V148: =LD!BI688 ->  | W148: =LD!BK688 ->  | X148: =LD!BM688 ->  | Y148: =LD!BO688 ->  | Z148: =LD!BQ688 ->  | AA148: =LD!BW688 ->  | AB148: =LD!AY689 ->  | AC148: =LD!BE689 ->  | AD148: =LD!BG689 ->  | AE148: =LD!BI689 ->  | AF148: =LD!BK689 ->  | AG148: =LD!BM689 ->  | AH148: =LD!BO689 ->  | AI148: =LD!BQ689 ->  | AJ148: =LD!BW689 -> 
G149: =LD!AV640 -> Class E | H149: =LD!AY643 ->  | I149: =LD!BE643 ->  | J149: =LD!BG643 ->  | K149: =LD!BI643 ->  | L149: =LD!BK643 ->  | M149: =LD!BM643 ->  | N149: =LD!BO643 ->  | O149: =LD!BQ643 ->  | P149: =LD!BW643 ->  | Q149: =LD!BY643 -> 0 | R149: =LD!CA643 -> 0 | S149: =LD!AY644 ->  | T149: =LD!BE644 ->  | U149: =LD!BG644 ->  | V149: =LD!BI644 ->  | W149: =LD!BK644 ->  | X149: =LD!BM644 ->  | Y149: =LD!BO644 ->  | Z149: =LD!BQ644 ->  | AA149: =LD!BW644 ->  | AB149: =LD!AY645 ->  | AC149: =LD!BE645 ->  | AD149: =LD!BG645 ->  | AE149: =LD!BI645 ->  | AF149: =LD!BK645 ->  | AG149: =LD!BM645 ->  | AH149: =LD!BO645 ->  | AI149: =LD!BQ645 ->  | AJ149: =LD!BW645 -> 
E152: Low | H152: Averages | S152: Minimum | AB152: Maximum
H153: PSNR | I153: SSIM | J153: MS-SSIM | K153: VMAF | L153: nVMAF | M153: PSNR HVS | N153: DE2K | O153: APSNR | P153: CAMBI | Q153: VMAF | R153: nVMAF | S153: PSNR | T153: SSIM | U153: MS-SSIM | V153: VMAF | W153: nVMAF | X153: PSNR HVS | Y153: DE2K | Z153: APSNR | AA153: CAMBI | AB153: PSNR | AC153: SSIM | AD153: MS-SSIM | AE153: VMAF | AF153: nVMAF | AG153: PSNR HVS | AH153: DE2K | AI153: APSNR | AJ153: CAMBI
G154: Summary | H154: Y | I154: Y | J154: Y | K154: Y | L154: Y | M154: Y | O154: Y | P154: Y | Q154: Monotonicity | S154: Y | T154: Y | U154: Y | V154: Y | W154: Y | X154: Y | Z154: Y | AA154: Y | AB154: Y | AC154: Y | AD154: Y | AE154: Y | AF154: Y | AG154: Y | AI154: Y | AJ154: Y
F155: Intra | G155: =Intra!C559 -> Class A1_4K | H155: =Intra!AY565 ->  | I155: =Intra!BE565 ->  | J155: =Intra!BG565 ->  | K155: =Intra!BI565 ->  | L155: =Intra!BK565 ->  | M155: =Intra!BM565 ->  | N155: =Intra!BO565 ->  | O155: =Intra!BQ565 ->  | P155: =Intra!BW565 ->  | Q155: =Intra!BY565 -> 0 | R155: =Intra!CA565 -> 0 | S155: =Intra!AY566 ->  | T155: =Intra!BE566 ->  | U155: =Intra!BG566 ->  | V155: =Intra!BI566 ->  | W155: =Intra!BK566 ->  | X155: =Intra!BM566 ->  | Y155: =Intra!BO566 ->  | Z155: =Intra!BQ566 ->  | AA155: =Intra!BW566 ->  | AB155: =Intra!AY567 ->  | AC155: =Intra!BE567 ->  | AD155: =Intra!BG567 ->  | AE155: =Intra!BI567 ->  | AF155: =Intra!BK567 ->  | AG155: =Intra!BM567 ->  | AH155: =Intra!BO567 ->  | AI155: =Intra!BQ567 ->  | AJ155: =Intra!BW567 -> 
G156: =Intra!C568 -> Class A2_2K | H156: =Intra!AY574 ->  | I156: =Intra!BE574 ->  | J156: =Intra!BG574 ->  | K156: =Intra!BI574 ->  | L156: =Intra!BK574 ->  | M156: =Intra!BM574 ->  | N156: =Intra!BO574 ->  | O156: =Intra!BQ574 ->  | P156: =Intra!BW574 ->  | Q156: =Intra!BY574 -> 0 | R156: =Intra!CA574 -> 0 | S156: =Intra!AY575 ->  | T156: =Intra!BE575 ->  | U156: =Intra!BG575 ->  | V156: =Intra!BI575 ->  | W156: =Intra!BK575 ->  | X156: =Intra!BM575 ->  | Y156: =Intra!BO575 ->  | Z156: =Intra!BQ575 ->  | AA156: =Intra!BW575 ->  | AB156: =Intra!AY576 ->  | AC156: =Intra!BE576 ->  | AD156: =Intra!BG576 ->  | AE156: =Intra!BI576 ->  | AF156: =Intra!BK576 ->  | AG156: =Intra!BM576 ->  | AH156: =Intra!BO576 ->  | AI156: =Intra!BQ576 ->  | AJ156: =Intra!BW576 -> 
G157: =Intra!C577 -> Class A3_720p | H157: =Intra!AY583 ->  | I157: =Intra!BE583 ->  | J157: =Intra!BG583 ->  | K157: =Intra!BI583 ->  | L157: =Intra!BK583 ->  | M157: =Intra!BM583 ->  | N157: =Intra!BO583 ->  | O157: =Intra!BQ583 ->  | P157: =Intra!BW583 ->  | Q157: =Intra!BY583 -> 0 | R157: =Intra!CA583 -> 0 | S157: =Intra!AY584 ->  | T157: =Intra!BE584 ->  | U157: =Intra!BG584 ->  | V157: =Intra!BI584 ->  | W157: =Intra!BK584 ->  | X157: =Intra!BM584 ->  | Y157: =Intra!BO584 ->  | Z157: =Intra!BQ584 ->  | AA157: =Intra!BW584 ->  | AB157: =Intra!AY585 ->  | AC157: =Intra!BE585 ->  | AD157: =Intra!BG585 ->  | AE157: =Intra!BI585 ->  | AF157: =Intra!BK585 ->  | AG157: =Intra!BM585 ->  | AH157: =Intra!BO585 ->  | AI157: =Intra!BQ585 ->  | AJ157: =Intra!BW585 -> 
G158: =Intra!C586 -> Class A4_360p | H158: =Intra!AY592 ->  | I158: =Intra!BE592 ->  | J158: =Intra!BG592 ->  | K158: =Intra!BI592 ->  | L158: =Intra!BK592 ->  | M158: =Intra!BM592 ->  | N158: =Intra!BO592 ->  | O158: =Intra!BQ592 ->  | P158: =Intra!BW592 ->  | Q158: =Intra!BY592 -> 0 | R158: =Intra!CA592 -> 0 | S158: =Intra!AY593 ->  | T158: =Intra!BE593 ->  | U158: =Intra!BG593 ->  | V158: =Intra!BI593 ->  | W158: =Intra!BK593 ->  | X158: =Intra!BM593 ->  | Y158: =Intra!BO593 ->  | Z158: =Intra!BQ593 ->  | AA158: =Intra!BW593 ->  | AB158: =Intra!AY594 ->  | AC158: =Intra!BE594 ->  | AD158: =Intra!BG594 ->  | AE158: =Intra!BI594 ->  | AF158: =Intra!BK594 ->  | AG158: =Intra!BM594 ->  | AH158: =Intra!BO594 ->  | AI158: =Intra!BQ594 ->  | AJ158: =Intra!BW594 -> 
G159: =Intra!C595 -> Class A5_270p | H159: =Intra!AY601 ->  | I159: =Intra!BE601 ->  | J159: =Intra!BG601 ->  | K159: =Intra!BI601 ->  | L159: =Intra!BK601 ->  | M159: =Intra!BM601 ->  | N159: =Intra!BO601 ->  | O159: =Intra!BQ601 ->  | P159: =Intra!BW601 ->  | Q159: =Intra!BY601 -> 0 | R159: =Intra!CA601 -> 0 | S159: =Intra!AY602 ->  | T159: =Intra!BE602 ->  | U159: =Intra!BG602 ->  | V159: =Intra!BI602 ->  | W159: =Intra!BK602 ->  | X159: =Intra!BM602 ->  | Y159: =Intra!BO602 ->  | Z159: =Intra!BQ602 ->  | AA159: =Intra!BW602 ->  | AB159: =Intra!AY603 ->  | AC159: =Intra!BE603 ->  | AD159: =Intra!BG603 ->  | AE159: =Intra!BI603 ->  | AF159: =Intra!BK603 ->  | AG159: =Intra!BM603 ->  | AH159: =Intra!BO603 ->  | AI159: =Intra!BQ603 ->  | AJ159: =Intra!BW603 -> 
G160: =Intra!C604 -> Class B1_SYN | H160: =Intra!AY610 ->  | I160: =Intra!BE610 ->  | J160: =Intra!BG610 ->  | K160: =Intra!BI610 ->  | L160: =Intra!BK610 ->  | M160: =Intra!BM610 ->  | N160: =Intra!BO610 ->  | O160: =Intra!BQ610 ->  | P160: =Intra!BW610 ->  | Q160: =Intra!BY610 -> 0 | R160: =Intra!CA610 -> 0 | S160: =Intra!AY611 ->  | T160: =Intra!BE611 ->  | U160: =Intra!BG611 ->  | V160: =Intra!BI611 ->  | W160: =Intra!BK611 ->  | X160: =Intra!BM611 ->  | Y160: =Intra!BO611 ->  | Z160: =Intra!BQ611 ->  | AA160: =Intra!BW611 ->  | AB160: =Intra!AY621 ->  | AC160: =Intra!BE621 ->  | AD160: =Intra!BG621 ->  | AE160: =Intra!BI621 ->  | AF160: =Intra!BK621 ->  | AG160: =Intra!BM621 ->  | AH160: =Intra!BO621 ->  | AI160: =Intra!BQ621 ->  | AJ160: =Intra!BW621 -> 
G161: =Intra!AV662 -> Overall Mandatory w/o B2 | H161: =Intra!AY668 ->  | I161: =Intra!BE668 ->  | J161: =Intra!BG668 ->  | K161: =Intra!BI668 ->  | L161: =Intra!BK668 ->  | M161: =Intra!BM668 ->  | N161: =Intra!BO668 ->  | O161: =Intra!BQ668 ->  | P161: =Intra!BW668 ->  | Q161: =Intra!BY668 -> 0 | R161: =Intra!CA668 -> 0 | S161: =Intra!AY669 ->  | T161: =Intra!BE669 ->  | U161: =Intra!BG669 ->  | V161: =Intra!BI669 ->  | W161: =Intra!BK669 ->  | X161: =Intra!BM669 ->  | Y161: =Intra!BO669 ->  | Z161: =Intra!BQ669 ->  | AA161: =Intra!BW669 ->  | AB161: =Intra!AY670 ->  | AC161: =Intra!BE670 ->  | AD161: =Intra!BG670 ->  | AE161: =Intra!BI670 ->  | AF161: =Intra!BK670 ->  | AG161: =Intra!BM670 ->  | AH161: =Intra!BO670 ->  | AI161: =Intra!BQ670 ->  | AJ161: =Intra!BW670 -> 
G163: =Intra!C622 -> Class HDR1_4K | H163: =Intra!AY628 ->  | I163: =Intra!BE628 ->  | J163: =Intra!BG628 ->  | K163: =Intra!BI628 ->  | L163: =Intra!BK628 ->  | M163: =Intra!BM628 ->  | N163: =Intra!BO628 ->  | O163: =Intra!BQ628 ->  | P163: =Intra!BW628 ->  | Q163: =Intra!BY628 -> 0 | R163: =Intra!CA628 -> 0 | S163: =Intra!AY629 ->  | T163: =Intra!BE629 ->  | U163: =Intra!BG629 ->  | V163: =Intra!BI629 ->  | W163: =Intra!BK629 ->  | X163: =Intra!BM629 ->  | Y163: =Intra!BO629 ->  | Z163: =Intra!BQ629 ->  | AA163: =Intra!BW629 ->  | AB163: =Intra!AY630 ->  | AC163: =Intra!BE630 ->  | AD163: =Intra!BG630 ->  | AE163: =Intra!BI630 ->  | AF163: =Intra!BK630 ->  | AG163: =Intra!BM630 ->  | AH163: =Intra!BO630 ->  | AI163: =Intra!BQ630 ->  | AJ163: =Intra!BW630 -> 
G164: =Intra!C631 -> Class HDR2_2K | H164: =Intra!AY637 ->  | I164: =Intra!BE637 ->  | J164: =Intra!BG637 ->  | K164: =Intra!BI637 ->  | L164: =Intra!BK637 ->  | M164: =Intra!BM637 ->  | N164: =Intra!BO637 ->  | O164: =Intra!BQ637 ->  | P164: =Intra!BW637 ->  | Q164: =Intra!BY637 -> 0 | R164: =Intra!CA637 -> 0 | S164: =Intra!AY638 ->  | T164: =Intra!BE638 ->  | U164: =Intra!BG638 ->  | V164: =Intra!BI638 ->  | W164: =Intra!BK638 ->  | X164: =Intra!BM638 ->  | Y164: =Intra!BO638 ->  | Z164: =Intra!BQ638 ->  | AA164: =Intra!BW638 ->  | AB164: =Intra!AY639 ->  | AC164: =Intra!BE639 ->  | AD164: =Intra!BG639 ->  | AE164: =Intra!BI639 ->  | AF164: =Intra!BK639 ->  | AG164: =Intra!BM639 ->  | AH164: =Intra!BO639 ->  | AI164: =Intra!BQ639 ->  | AJ164: =Intra!BW639 -> 
G165: =Intra!AV684 -> Overall HDR | H165: =Intra!AY690 ->  | I165: =Intra!BE690 ->  | J165: =Intra!BG690 ->  | K165: =Intra!BI690 ->  | L165: =Intra!BK690 ->  | M165: =Intra!BM690 ->  | N165: =Intra!BO690 ->  | O165: =Intra!BQ690 ->  | P165: =Intra!BW690 ->  | Q165: =Intra!BY690 -> 0 | R165: =Intra!CA690 -> 0 | S165: =Intra!AY691 ->  | T165: =Intra!BE691 ->  | U165: =Intra!BG691 ->  | V165: =Intra!BI691 ->  | W165: =Intra!BK691 ->  | X165: =Intra!BM691 ->  | Y165: =Intra!BO691 ->  | Z165: =Intra!BQ691 ->  | AA165: =Intra!BW691 ->  | AB165: =Intra!AY692 ->  | AC165: =Intra!BE692 ->  | AD165: =Intra!BG692 ->  | AE165: =Intra!BI692 ->  | AF165: =Intra!BK692 ->  | AG165: =Intra!BM692 ->  | AH165: =Intra!BO692 ->  | AI165: =Intra!BQ692 ->  | AJ165: =Intra!BW692 -> 
G166: =Intra!AV640 -> Class E | H166: =Intra!AY646 ->  | I166: =Intra!BE646 ->  | J166: =Intra!BG646 ->  | K166: =Intra!BI646 ->  | L166: =Intra!BK646 ->  | M166: =Intra!BM646 ->  | N166: =Intra!BO646 ->  | O166: =Intra!BQ646 ->  | P166: =Intra!BW646 ->  | Q166: =Intra!BY646 -> 0 | R166: =Intra!CA646 -> 0 | S166: =Intra!AY647 ->  | T166: =Intra!BE647 ->  | U166: =Intra!BG647 ->  | V166: =Intra!BI647 ->  | W166: =Intra!BK647 ->  | X166: =Intra!BM647 ->  | Y166: =Intra!BO647 ->  | Z166: =Intra!BQ647 ->  | AA166: =Intra!BW647 ->  | AB166: =Intra!AY648 ->  | AC166: =Intra!BE648 ->  | AD166: =Intra!BG648 ->  | AE166: =Intra!BI648 ->  | AF166: =Intra!BK648 ->  | AG166: =Intra!BM648 ->  | AH166: =Intra!BO648 ->  | AI166: =Intra!BQ648 ->  | AJ166: =Intra!BW648 -> 
G167: =Intra!AV651 -> Overall | H167: =Intra!AY657 ->  | I167: =Intra!BE657 ->  | J167: =Intra!BG657 ->  | K167: =Intra!BI657 ->  | L167: =Intra!BK657 ->  | M167: =Intra!BM657 ->  | N167: =Intra!BO657 ->  | O167: =Intra!BQ657 ->  | P167: =Intra!BW657 ->  | Q167: =Intra!BY657 -> 0 | R167: =Intra!CA657 -> 0 | S167: =Intra!AY658 ->  | T167: =Intra!BE658 ->  | U167: =Intra!BG658 ->  | V167: =Intra!BI658 ->  | W167: =Intra!BK658 ->  | X167: =Intra!BM658 ->  | Y167: =Intra!BO658 ->  | Z167: =Intra!BQ658 ->  | AA167: =Intra!BW658 ->  | AB167: =Intra!AY659 ->  | AC167: =Intra!BE659 ->  | AD167: =Intra!BG659 ->  | AE167: =Intra!BI659 ->  | AF167: =Intra!BK659 ->  | AG167: =Intra!BM659 ->  | AH167: =Intra!BO659 ->  | AI167: =Intra!BQ659 ->  | AJ167: =Intra!BW659 -> 
F169: RA | G169: =RA!C559 -> Class A1_4K | H169: =RA!AY565 ->  | I169: =RA!BE565 ->  | J169: =RA!BG565 ->  | K169: =RA!BI565 ->  | L169: =RA!BK565 ->  | M169: =RA!BM565 ->  | N169: =RA!BO565 ->  | O169: =RA!BQ565 ->  | P169: =RA!BW565 ->  | Q169: =RA!BY565 -> 0 | R169: =RA!CA565 -> 0 | S169: =RA!AY566 ->  | T169: =RA!BE566 ->  | U169: =RA!BG566 ->  | V169: =RA!BI566 ->  | W169: =RA!BK566 ->  | X169: =RA!BM566 ->  | Y169: =RA!BO566 ->  | Z169: =RA!BQ566 ->  | AA169: =RA!BW566 ->  | AB169: =RA!AY567 ->  | AC169: =RA!BE567 ->  | AD169: =RA!BG567 ->  | AE169: =RA!BI567 ->  | AF169: =RA!BK567 ->  | AG169: =RA!BM567 ->  | AH169: =RA!BO567 ->  | AI169: =RA!BQ567 ->  | AJ169: =RA!BW567 -> 
G170: =RA!C568 -> Class A2_2K | H170: =RA!AY574 ->  | I170: =RA!BE574 ->  | J170: =RA!BG574 ->  | K170: =RA!BI574 ->  | L170: =RA!BK574 ->  | M170: =RA!BM574 ->  | N170: =RA!BO574 ->  | O170: =RA!BQ574 ->  | P170: =RA!BW574 ->  | Q170: =RA!BY574 -> 0 | R170: =RA!CA574 -> 0 | S170: =RA!AY575 ->  | T170: =RA!BE575 ->  | U170: =RA!BG575 ->  | V170: =RA!BI575 ->  | W170: =RA!BK575 ->  | X170: =RA!BM575 ->  | Y170: =RA!BO575 ->  | Z170: =RA!BQ575 ->  | AA170: =RA!BW575 ->  | AB170: =RA!AY576 ->  | AC170: =RA!BE576 ->  | AD170: =RA!BG576 ->  | AE170: =RA!BI576 ->  | AF170: =RA!BK576 ->  | AG170: =RA!BM576 ->  | AH170: =RA!BO576 ->  | AI170: =RA!BQ576 ->  | AJ170: =RA!BW576 -> 
G171: =RA!C577 -> Class A3_720p | H171: =RA!AY583 ->  | I171: =RA!BE583 ->  | J171: =RA!BG583 ->  | K171: =RA!BI583 ->  | L171: =RA!BK583 ->  | M171: =RA!BM583 ->  | N171: =RA!BO583 ->  | O171: =RA!BQ583 ->  | P171: =RA!BW583 ->  | Q171: =RA!BY583 -> 0 | R171: =RA!CA583 -> 0 | S171: =RA!AY584 ->  | T171: =RA!BE584 ->  | U171: =RA!BG584 ->  | V171: =RA!BI584 ->  | W171: =RA!BK584 ->  | X171: =RA!BM584 ->  | Y171: =RA!BO584 ->  | Z171: =RA!BQ584 ->  | AA171: =RA!BW584 ->  | AB171: =RA!AY585 ->  | AC171: =RA!BE585 ->  | AD171: =RA!BG585 ->  | AE171: =RA!BI585 ->  | AF171: =RA!BK585 ->  | AG171: =RA!BM585 ->  | AH171: =RA!BO585 ->  | AI171: =RA!BQ585 ->  | AJ171: =RA!BW585 -> 
G172: =RA!C586 -> Class A4_360p | H172: =RA!AY592 ->  | I172: =RA!BE592 ->  | J172: =RA!BG592 ->  | K172: =RA!BI592 ->  | L172: =RA!BK592 ->  | M172: =RA!BM592 ->  | N172: =RA!BO592 ->  | O172: =RA!BQ592 ->  | P172: =RA!BW592 ->  | Q172: =RA!BY592 -> 0 | R172: =RA!CA592 -> 0 | S172: =RA!AY593 ->  | T172: =RA!BE593 ->  | U172: =RA!BG593 ->  | V172: =RA!BI593 ->  | W172: =RA!BK593 ->  | X172: =RA!BM593 ->  | Y172: =RA!BO593 ->  | Z172: =RA!BQ593 ->  | AA172: =RA!BW593 ->  | AB172: =RA!AY594 ->  | AC172: =RA!BE594 ->  | AD172: =RA!BG594 ->  | AE172: =RA!BI594 ->  | AF172: =RA!BK594 ->  | AG172: =RA!BM594 ->  | AH172: =RA!BO594 ->  | AI172: =RA!BQ594 ->  | AJ172: =RA!BW594 -> 
G173: =RA!C595 -> Class A5_270p | H173: =RA!AY601 ->  | I173: =RA!BE601 ->  | J173: =RA!BG601 ->  | K173: =RA!BI601 ->  | L173: =RA!BK601 ->  | M173: =RA!BM601 ->  | N173: =RA!BO601 ->  | O173: =RA!BQ601 ->  | P173: =RA!BW601 ->  | Q173: =RA!BY601 -> 0 | R173: =RA!CA601 -> 0 | S173: =RA!AY602 ->  | T173: =RA!BE602 ->  | U173: =RA!BG602 ->  | V173: =RA!BI602 ->  | W173: =RA!BK602 ->  | X173: =RA!BM602 ->  | Y173: =RA!BO602 ->  | Z173: =RA!BQ602 ->  | AA173: =RA!BW602 ->  | AB173: =RA!AY603 ->  | AC173: =RA!BE603 ->  | AD173: =RA!BG603 ->  | AE173: =RA!BI603 ->  | AF173: =RA!BK603 ->  | AG173: =RA!BM603 ->  | AH173: =RA!BO603 ->  | AI173: =RA!BQ603 ->  | AJ173: =RA!BW603 -> 
G174: =RA!C604 -> Class B1_SYN | H174: =RA!AY610 ->  | I174: =RA!BE610 ->  | J174: =RA!BG610 ->  | K174: =RA!BI610 ->  | L174: =RA!BK610 ->  | M174: =RA!BM610 ->  | N174: =RA!BO610 ->  | O174: =RA!BQ610 ->  | P174: =RA!BW610 ->  | Q174: =RA!BY610 -> 0 | R174: =RA!CA610 -> 0 | S174: =RA!AY611 ->  | T174: =RA!BE611 ->  | U174: =RA!BG611 ->  | V174: =RA!BI611 ->  | W174: =RA!BK611 ->  | X174: =RA!BM611 ->  | Y174: =RA!BO611 ->  | Z174: =RA!BQ611 ->  | AA174: =RA!BW611 ->  | AB174: =RA!AY621 ->  | AC174: =RA!BE621 ->  | AD174: =RA!BG621 ->  | AE174: =RA!BI621 ->  | AF174: =RA!BK621 ->  | AG174: =RA!BM621 ->  | AH174: =RA!BO621 ->  | AI174: =RA!BQ621 ->  | AJ174: =RA!BW621 -> 
G175: =RA!AV662 -> Overall Mandatory w/o B2 | H175: =RA!AY668 ->  | I175: =RA!BE668 ->  | J175: =RA!BG668 ->  | K175: =RA!BI668 ->  | L175: =RA!BK668 ->  | M175: =RA!BM668 ->  | N175: =RA!BO668 ->  | O175: =RA!BQ668 ->  | P175: =RA!BW668 ->  | Q175: =RA!BY668 -> 0 | R175: =RA!CA668 -> 0 | S175: =RA!AY669 ->  | T175: =RA!BE669 ->  | U175: =RA!BG669 ->  | V175: =RA!BI669 ->  | W175: =RA!BK669 ->  | X175: =RA!BM669 ->  | Y175: =RA!BO669 ->  | Z175: =RA!BQ669 ->  | AA175: =RA!BW669 ->  | AB175: =RA!AY670 ->  | AC175: =RA!BE670 ->  | AD175: =RA!BG670 ->  | AE175: =RA!BI670 ->  | AF175: =RA!BK670 ->  | AG175: =RA!BM670 ->  | AH175: =RA!BO670 ->  | AI175: =RA!BQ670 ->  | AJ175: =RA!BW670 -> 
G177: =RA!C622 -> Class HDR1_4K | H177: =RA!AY628 ->  | I177: =RA!BE628 ->  | J177: =RA!BG628 ->  | K177: =RA!BI628 ->  | L177: =RA!BK628 ->  | M177: =RA!BM628 ->  | N177: =RA!BO628 ->  | O177: =RA!BQ628 ->  | P177: =RA!BW628 ->  | Q177: =RA!BY628 -> 0 | R177: =RA!CA628 -> 0 | S177: =RA!AY629 ->  | T177: =RA!BE629 ->  | U177: =RA!BG629 ->  | V177: =RA!BI629 ->  | W177: =RA!BK629 ->  | X177: =RA!BM629 ->  | Y177: =RA!BO629 ->  | Z177: =RA!BQ629 ->  | AA177: =RA!BW629 ->  | AB177: =RA!AY630 ->  | AC177: =RA!BE630 ->  | AD177: =RA!BG630 ->  | AE177: =RA!BI630 ->  | AF177: =RA!BK630 ->  | AG177: =RA!BM630 ->  | AH177: =RA!BO630 ->  | AI177: =RA!BQ630 ->  | AJ177: =RA!BW630 -> 
G178: =RA!C631 -> Class HDR2_2K | H178: =RA!AY637 ->  | I178: =RA!BE637 ->  | J178: =RA!BG637 ->  | K178: =RA!BI637 ->  | L178: =RA!BK637 ->  | M178: =RA!BM637 ->  | N178: =RA!BO637 ->  | O178: =RA!BQ637 ->  | P178: =RA!BW637 ->  | Q178: =RA!BY637 -> 0 | R178: =RA!CA637 -> 0 | S178: =RA!AY638 ->  | T178: =RA!BE638 ->  | U178: =RA!BG638 ->  | V178: =RA!BI638 ->  | W178: =RA!BK638 ->  | X178: =RA!BM638 ->  | Y178: =RA!BO638 ->  | Z178: =RA!BQ638 ->  | AA178: =RA!BW638 ->  | AB178: =RA!AY639 ->  | AC178: =RA!BE639 ->  | AD178: =RA!BG639 ->  | AE178: =RA!BI639 ->  | AF178: =RA!BK639 ->  | AG178: =RA!BM639 ->  | AH178: =RA!BO639 ->  | AI178: =RA!BQ639 ->  | AJ178: =RA!BW639 -> 
G179: =RA!AV684 -> Overall HDR | H179: =RA!AY690 ->  | I179: =RA!BE690 ->  | J179: =RA!BG690 ->  | K179: =RA!BI690 ->  | L179: =RA!BK690 ->  | M179: =RA!BM690 ->  | N179: =RA!BO690 ->  | O179: =RA!BQ690 ->  | P179: =RA!BW690 ->  | Q179: =RA!BY690 -> 0 | R179: =RA!CA690 -> 0 | S179: =RA!AY691 ->  | T179: =RA!BE691 ->  | U179: =RA!BG691 ->  | V179: =RA!BI691 ->  | W179: =RA!BK691 ->  | X179: =RA!BM691 ->  | Y179: =RA!BO691 ->  | Z179: =RA!BQ691 ->  | AA179: =RA!BW691 ->  | AB179: =RA!AY692 ->  | AC179: =RA!BE692 ->  | AD179: =RA!BG692 ->  | AE179: =RA!BI692 ->  | AF179: =RA!BK692 ->  | AG179: =RA!BM692 ->  | AH179: =RA!BO692 ->  | AI179: =RA!BQ692 ->  | AJ179: =RA!BW692 -> 
G180: =RA!AV640 -> Class E | H180: =RA!AY646 ->  | I180: =RA!BE646 ->  | J180: =RA!BG646 ->  | K180: =RA!BI646 ->  | L180: =RA!BK646 ->  | M180: =RA!BM646 ->  | N180: =RA!BO646 ->  | O180: =RA!BQ646 ->  | P180: =RA!BW646 ->  | Q180: =RA!BY646 -> 0 | R180: =RA!CA646 -> 0 | S180: =RA!AY647 ->  | T180: =RA!BE647 ->  | U180: =RA!BG647 ->  | V180: =RA!BI647 ->  | W180: =RA!BK647 ->  | X180: =RA!BM647 ->  | Y180: =RA!BO647 ->  | Z180: =RA!BQ647 ->  | AA180: =RA!BW647 ->  | AB180: =RA!AY648 ->  | AC180: =RA!BE648 ->  | AD180: =RA!BG648 ->  | AE180: =RA!BI648 ->  | AF180: =RA!BK648 ->  | AG180: =RA!BM648 ->  | AH180: =RA!BO648 ->  | AI180: =RA!BQ648 ->  | AJ180: =RA!BW648 -> 
G181: =RA!AV651 -> Overall | H181: =RA!AY657 ->  | I181: =RA!BE657 ->  | J181: =RA!BG657 ->  | K181: =RA!BI657 ->  | L181: =RA!BK657 ->  | M181: =RA!BM657 ->  | N181: =RA!BO657 ->  | O181: =RA!BQ657 ->  | P181: =RA!BW657 ->  | Q181: =RA!BY657 -> 0 | R181: =RA!CA657 -> 0 | S181: =RA!AY658 ->  | T181: =RA!BE658 ->  | U181: =RA!BG658 ->  | V181: =RA!BI658 ->  | W181: =RA!BK658 ->  | X181: =RA!BM658 ->  | Y181: =RA!BO658 ->  | Z181: =RA!BQ658 ->  | AA181: =RA!BW658 ->  | AB181: =RA!AY659 ->  | AC181: =RA!BE659 ->  | AD181: =RA!BG659 ->  | AE181: =RA!BI659 ->  | AF181: =RA!BK659 ->  | AG181: =RA!BM659 ->  | AH181: =RA!BO659 ->  | AI181: =RA!BQ659 ->  | AJ181: =RA!BW659 -> 
F183: LD | G183: =LD!C559 -> Class A1_4K
G184: =LD!C568 -> Class A2_2K | H184: =LD!AY574 ->  | I184: =LD!BE574 ->  | J184: =LD!BG574 ->  | K184: =LD!BI574 ->  | L184: =LD!BK574 ->  | M184: =LD!BM574 ->  | N184: =LD!BO574 ->  | O184: =LD!BQ574 ->  | P184: =LD!BW574 ->  | Q184: =LD!BY574 -> 0 | R184: =LD!CA574 -> 0 | S184: =LD!AY575 ->  | T184: =LD!BE575 ->  | U184: =LD!BG575 ->  | V184: =LD!BI575 ->  | W184: =LD!BK575 ->  | X184: =LD!BM575 ->  | Y184: =LD!BO575 ->  | Z184: =LD!BQ575 ->  | AA184: =LD!BW575 ->  | AB184: =LD!AY576 ->  | AC184: =LD!BE576 ->  | AD184: =LD!BG576 ->  | AE184: =LD!BI576 ->  | AF184: =LD!BK576 ->  | AG184: =LD!BM576 ->  | AH184: =LD!BO576 ->  | AI184: =LD!BQ576 ->  | AJ184: =LD!BW576 -> 
G185: =LD!C577 -> Class A3_720p | H185: =LD!AY583 ->  | I185: =LD!BE583 ->  | J185: =LD!BG583 ->  | K185: =LD!BI583 ->  | L185: =LD!BK583 ->  | M185: =LD!BM583 ->  | N185: =LD!BO583 ->  | O185: =LD!BQ583 ->  | P185: =LD!BW583 ->  | Q185: =LD!BY583 -> 0 | R185: =LD!CA583 -> 0 | S185: =LD!AY584 ->  | T185: =LD!BE584 ->  | U185: =LD!BG584 ->  | V185: =LD!BI584 ->  | W185: =LD!BK584 ->  | X185: =LD!BM584 ->  | Y185: =LD!BO584 ->  | Z185: =LD!BQ584 ->  | AA185: =LD!BW584 ->  | AB185: =LD!AY585 ->  | AC185: =LD!BE585 ->  | AD185: =LD!BG585 ->  | AE185: =LD!BI585 ->  | AF185: =LD!BK585 ->  | AG185: =LD!BM585 ->  | AH185: =LD!BO585 ->  | AI185: =LD!BQ585 ->  | AJ185: =LD!BW585 -> 
G186: =LD!C586 -> Class A4_360p | H186: =LD!AY592 ->  | I186: =LD!BE592 ->  | J186: =LD!BG592 ->  | K186: =LD!BI592 ->  | L186: =LD!BK592 ->  | M186: =LD!BM592 ->  | N186: =LD!BO592 ->  | O186: =LD!BQ592 ->  | P186: =LD!BW592 ->  | Q186: =LD!BY592 -> 0 | R186: =LD!CA592 -> 0 | S186: =LD!AY593 ->  | T186: =LD!BE593 ->  | U186: =LD!BG593 ->  | V186: =LD!BI593 ->  | W186: =LD!BK593 ->  | X186: =LD!BM593 ->  | Y186: =LD!BO593 ->  | Z186: =LD!BQ593 ->  | AA186: =LD!BW593 ->  | AB186: =LD!AY594 ->  | AC186: =LD!BE594 ->  | AD186: =LD!BG594 ->  | AE186: =LD!BI594 ->  | AF186: =LD!BK594 ->  | AG186: =LD!BM594 ->  | AH186: =LD!BO594 ->  | AI186: =LD!BQ594 ->  | AJ186: =LD!BW594 -> 
G187: =LD!C595 -> Class A5_270p | H187: =LD!AY601 ->  | I187: =LD!BE601 ->  | J187: =LD!BG601 ->  | K187: =LD!BI601 ->  | L187: =LD!BK601 ->  | M187: =LD!BM601 ->  | N187: =LD!BO601 ->  | O187: =LD!BQ601 ->  | P187: =LD!BW601 ->  | Q187: =LD!BY601 -> 0 | R187: =LD!CA601 -> 0 | S187: =LD!AY602 ->  | T187: =LD!BE602 ->  | U187: =LD!BG602 ->  | V187: =LD!BI602 ->  | W187: =LD!BK602 ->  | X187: =LD!BM602 ->  | Y187: =LD!BO602 ->  | Z187: =LD!BQ602 ->  | AA187: =LD!BW602 ->  | AB187: =LD!AY603 ->  | AC187: =LD!BE603 ->  | AD187: =LD!BG603 ->  | AE187: =LD!BI603 ->  | AF187: =LD!BK603 ->  | AG187: =LD!BM603 ->  | AH187: =LD!BO603 ->  | AI187: =LD!BQ603 ->  | AJ187: =LD!BW603 -> 
G188: =LD!C604 -> Class B1_SYN | H188: =LD!AY610 ->  | I188: =LD!BE610 ->  | J188: =LD!BG610 ->  | K188: =LD!BI610 ->  | L188: =LD!BK610 ->  | M188: =LD!BM610 ->  | N188: =LD!BO610 ->  | O188: =LD!BQ610 ->  | P188: =LD!BW610 ->  | Q188: =LD!BY610 -> 0 | R188: =LD!CA610 -> 0 | S188: =LD!AY611 ->  | T188: =LD!BE611 ->  | U188: =LD!BG611 ->  | V188: =LD!BI611 ->  | W188: =LD!BK611 ->  | X188: =LD!BM611 ->  | Y188: =LD!BO611 ->  | Z188: =LD!BQ611 ->  | AA188: =LD!BW611 ->  | AB188: =LD!AY621 ->  | AC188: =LD!BE621 ->  | AD188: =LD!BG621 ->  | AE188: =LD!BI621 ->  | AF188: =LD!BK621 ->  | AG188: =LD!BM621 ->  | AH188: =LD!BO621 ->  | AI188: =LD!BQ621 ->  | AJ188: =LD!BW621 -> 
G189: =LD!AV662 -> Overall Mandatory w/o B2 | H189: =LD!AY668 ->  | I189: =LD!BE668 ->  | J189: =LD!BG668 ->  | K189: =LD!BI668 ->  | L189: =LD!BK668 ->  | M189: =LD!BM668 ->  | N189: =LD!BO668 ->  | O189: =LD!BQ668 ->  | P189: =LD!BW668 ->  | Q189: =LD!BY668 -> 0 | R189: =LD!CA668 -> 0 | S189: =LD!AY669 ->  | T189: =LD!BE669 ->  | U189: =LD!BG669 ->  | V189: =LD!BI669 ->  | W189: =LD!BK669 ->  | X189: =LD!BM669 ->  | Y189: =LD!BO669 ->  | Z189: =LD!BQ669 ->  | AA189: =LD!BW669 ->  | AB189: =LD!AY670 ->  | AC189: =LD!BE670 ->  | AD189: =LD!BG670 ->  | AE189: =LD!BI670 ->  | AF189: =LD!BK670 ->  | AG189: =LD!BM670 ->  | AH189: =LD!BO670 ->  | AI189: =LD!BQ670 ->  | AJ189: =LD!BW670 -> 
G191: =LD!C622 -> Class HDR1_4K | H191: =LD!AY628 ->  | I191: =LD!BE628 ->  | J191: =LD!BG628 ->  | K191: =LD!BI628 ->  | L191: =LD!BK628 ->  | M191: =LD!BM628 ->  | N191: =LD!BO628 ->  | O191: =LD!BQ628 ->  | P191: =LD!BW628 ->  | Q191: =LD!BY628 -> 0 | R191: =LD!CA628 -> 0 | S191: =LD!AY629 ->  | T191: =LD!BE629 ->  | U191: =LD!BG629 ->  | V191: =LD!BI629 ->  | W191: =LD!BK629 ->  | X191: =LD!BM629 ->  | Y191: =LD!BO629 ->  | Z191: =LD!BQ629 ->  | AA191: =LD!BW629 ->  | AB191: =LD!AY630 ->  | AC191: =LD!BE630 ->  | AD191: =LD!BG630 ->  | AE191: =LD!BI630 ->  | AF191: =LD!BK630 ->  | AG191: =LD!BM630 ->  | AH191: =LD!BO630 ->  | AI191: =LD!BQ630 ->  | AJ191: =LD!BW630 -> 
G192: =LD!C631 -> Class HDR2_2K | H192: =LD!AY637 ->  | I192: =LD!BE637 ->  | J192: =LD!BG637 ->  | K192: =LD!BI637 ->  | L192: =LD!BK637 ->  | M192: =LD!BM637 ->  | N192: =LD!BO637 ->  | O192: =LD!BQ637 ->  | P192: =LD!BW637 ->  | Q192: =LD!BY637 -> 0 | R192: =LD!CA637 -> 0 | S192: =LD!AY638 ->  | T192: =LD!BE638 ->  | U192: =LD!BG638 ->  | V192: =LD!BI638 ->  | W192: =LD!BK638 ->  | X192: =LD!BM638 ->  | Y192: =LD!BO638 ->  | Z192: =LD!BQ638 ->  | AA192: =LD!BW638 ->  | AB192: =LD!AY639 ->  | AC192: =LD!BE639 ->  | AD192: =LD!BG639 ->  | AE192: =LD!BI639 ->  | AF192: =LD!BK639 ->  | AG192: =LD!BM639 ->  | AH192: =LD!BO639 ->  | AI192: =LD!BQ639 ->  | AJ192: =LD!BW639 -> 
G193: =LD!AV684 -> Overall HDR | H193: =LD!AY690 ->  | I193: =LD!BE690 ->  | J193: =LD!BG690 ->  | K193: =LD!BI690 ->  | L193: =LD!BK690 ->  | M193: =LD!BM690 ->  | N193: =LD!BO690 ->  | O193: =LD!BQ690 ->  | P193: =LD!BW690 ->  | Q193: =LD!BY690 -> 0 | R193: =LD!CA690 -> 0 | S193: =LD!AY691 ->  | T193: =LD!BE691 ->  | U193: =LD!BG691 ->  | V193: =LD!BI691 ->  | W193: =LD!BK691 ->  | X193: =LD!BM691 ->  | Y193: =LD!BO691 ->  | Z193: =LD!BQ691 ->  | AA193: =LD!BW691 ->  | AB193: =LD!AY692 ->  | AC193: =LD!BE692 ->  | AD193: =LD!BG692 ->  | AE193: =LD!BI692 ->  | AF193: =LD!BK692 ->  | AG193: =LD!BM692 ->  | AH193: =LD!BO692 ->  | AI193: =LD!BQ692 ->  | AJ193: =LD!BW692 -> 
G194: =LD!AV640 -> Class E | H194: =LD!AY646 ->  | I194: =LD!BE646 ->  | J194: =LD!BG646 ->  | K194: =LD!BI646 ->  | L194: =LD!BK646 ->  | M194: =LD!BM646 ->  | N194: =LD!BO646 ->  | O194: =LD!BQ646 ->  | P194: =LD!BW646 ->  | Q194: =LD!BY646 -> 0 | R194: =LD!CA646 -> 0 | S194: =LD!AY647 ->  | T194: =LD!BE647 ->  | U194: =LD!BG647 ->  | V194: =LD!BI647 ->  | W194: =LD!BK647 ->  | X194: =LD!BM647 ->  | Y194: =LD!BO647 ->  | Z194: =LD!BQ647 ->  | AA194: =LD!BW647 ->  | AB194: =LD!AY648 ->  | AC194: =LD!BE648 ->  | AD194: =LD!BG648 ->  | AE194: =LD!BI648 ->  | AF194: =LD!BK648 ->  | AG194: =LD!BM648 ->  | AH194: =LD!BO648 ->  | AI194: =LD!BQ648 ->  | AJ194: =LD!BW648 -> 

Sheet Plots
A1: Select the coding condition and sequence from the dropbox below | AD1: 7 | AE1: =AD1+1 -> 8 | AF1: 9 | AG1: 10 | AH1: 11 | AI1: 12 | AJ1: 13 | AK1: 14 | AL1: 15 | AM1: 16 | AN1: 17 | AO1: 18 | AP1: 19 | AQ1: 20 | AU1: 27 | AV1: =AU1+1 -> 28 | AW1: 29 | AX1: 30 | AY1: 31 | AZ1: 32 | BA1: 33 | BB1: 34 | BC1: 35 | BD1: 36 | BE1: 37 | BF1: 38 | BG1: 39 | BH1: 40
AD2: Line 1 - Reference | AU2: Line 2 - Test
A3: RA | B3: Noise_Animation_1280x720_2398fps | AD3: =#REF! ->  | AE3: =#REF! ->  | AI3: =#REF! ->  | AJ3: =#REF! ->  | AK3: =#REF! ->  | AL3: =#REF! ->  | AM3: =#REF! ->  | AN3: =#REF! ->  | AO3: =#REF! ->  | AU3: =#REF! ->  | AV3: =#REF! ->  | AZ3: =#REF! ->  | BA3: =#REF! ->  | BB3: =#REF! ->  | BC3: =#REF! ->  | BD3: =#REF! ->  | BE3: =#REF! ->  | BF3: =#REF! -> 
Z4: Intra | AA4: BoxingPractice_3840x2160_5994fps_10bit_420 | AB4: 4 | AD4: =#REF! ->  | AE4: =#REF! ->  | AF4: =#REF! ->  | AG4: =#REF! ->  | AH4: =#REF! ->  | AI4: =#REF! ->  | AJ4: =#REF! ->  | AK4: =#REF! ->  | AL4: =#REF! ->  | AM4: =#REF! ->  | AN4: =#REF! ->  | AO4: =#REF! ->  | AP4: =#REF! ->  | AQ4: =#REF! ->  | AU4: =#REF! ->  | AV4: =#REF! ->  | AW4: =#REF! ->  | AX4: =#REF! ->  | AY4: =#REF! ->  | AZ4: =#REF! ->  | BA4: =#REF! ->  | BB4: =#REF! ->  | BC4: =#REF! ->  | BD4: =#REF! ->  | BE4: =#REF! ->  | BF4: =#REF! ->  | BG4: =#REF! ->  | BH4: =#REF! -> 
Z5: RA | AA5: Crosswalk_3840x2160_5994fps_10bit_420 | AB5: =AB4+6 -> 10 | AC5: =VLOOKUP(B3,AA4:AB89,2,FALSE) -> 514 | AD5: =INDIRECT("'"&$A$3&"'!"&ADDRESS($AC5,AD$1)) -> 0 | AE5: 0 | AF5: 0 | AG5: 0 | AH5: 0 | AI5: 0 | AJ5: 0 | AK5: 0 | AL5: 0 | AM5: 0 | AN5: 0 | AO5: 0 | AP5: 0 | AQ5: 0 | AU5: =INDIRECT("'"&$A$3&"'!"&ADDRESS($AC5,AU$1)) -> 0 | AV5: 0 | AW5: 0 | AX5: 0 | AY5: 0 | AZ5: 0 | BA5: 0 | BB5: 0 | BC5: 0 | BD5: 0 | BE5: 0 | BF5: 0 | BG5: 0 | BH5: 0
Z6: LD | AA6: FoodMarket2_3840x2160_5994fps_10bit_420 | AB6: 16 | AC6: =AC5+1 -> 515 | AD6: 0 | AE6: 0 | AF6: 0 | AG6: 0 | AH6: 0 | AI6: 0 | AJ6: 0 | AK6: 0 | AL6: 0 | AM6: 0 | AN6: 0 | AO6: 0 | AP6: 0 | AQ6: 0 | AU6: 0 | AV6: 0 | AW6: 0 | AX6: 0 | AY6: 0 | AZ6: 0 | BA6: 0 | BB6: 0 | BC6: 0 | BD6: 0 | BE6: 0 | BF6: 0 | BG6: 0 | BH6: 0
AA7: Neon1224_3840x2160_2997fps | AB7: 22 | AC7: =AC6+1 -> 516 | AD7: 0 | AE7: 0 | AF7: 0 | AG7: 0 | AH7: 0 | AI7: 0 | AJ7: 0 | AK7: 0 | AL7: 0 | AM7: 0 | AN7: 0 | AO7: 0 | AP7: 0 | AQ7: 0 | AU7: 0 | AV7: 0 | AW7: 0 | AX7: 0 | AY7: 0 | AZ7: 0 | BA7: 0 | BB7: 0 | BC7: 0 | BD7: 0 | BE7: 0 | BF7: 0 | BG7: 0 | BH7: 0
AA8: NocturneDance_3840x2160p_10bit_60fps | AB8: 28 | AC8: =AC7+1 -> 517 | AD8: 0 | AE8: 0 | AF8: 0 | AG8: 0 | AH8: 0 | AI8: 0 | AJ8: 0 | AK8: 0 | AL8: 0 | AM8: 0 | AN8: 0 | AO8: 0 | AP8: 0 | AQ8: 0 | AU8: 0 | AV8: 0 | AW8: 0 | AX8: 0 | AY8: 0 | AZ8: 0 | BA8: 0 | BB8: 0 | BC8: 0 | BD8: 0 | BE8: 0 | BF8: 0 | BG8: 0 | BH8: 0
AA9: PierSeaSide_3840x2160_2997fps_10bit_420 | AB9: 34 | AC9: =AC8+1 -> 518 | AD9: 0 | AE9: 0 | AF9: 0 | AG9: 0 | AH9: 0 | AI9: 0 | AJ9: 0 | AK9: 0 | AL9: 0 | AM9: 0 | AN9: 0 | AO9: 0 | AP9: 0 | AQ9: 0 | AU9: 0 | AV9: 0 | AW9: 0 | AX9: 0 | AY9: 0 | AZ9: 0 | BA9: 0 | BB9: 0 | BC9: 0 | BD9: 0 | BE9: 0 | BF9: 0 | BG9: 0 | BH9: 0
AA10: Tango_3840x2160_5994fps_10bit_420 | AB10: 40 | AC10: =AC9+1 -> 519 | AD10: 0 | AE10: 0 | AF10: 0 | AG10: 0 | AH10: 0 | AI10: 0 | AJ10: 0 | AK10: 0 | AL10: 0 | AM10: 0 | AN10: 0 | AO10: 0 | AP10: 0 | AQ10: 0 | AU10: 0 | AV10: 0 | AW10: 0 | AX10: 0 | AY10: 0 | AZ10: 0 | BA10: 0 | BB10: 0 | BC10: 0 | BD10: 0 | BE10: 0 | BF10: 0 | BG10: 0 | BH10: 0
AA11: TimeLapse_3840x2160_5994fps_10bit_420 | AB11: 46
AA12: Aerial3200_1920x1080_5994_10bit_420 | AB12: 52
AA13: Boat_1920x1080_5994_10bit_420 | AB13: 58
AA14: CrowdRun_1920x1080p50 | AB14: 64 | AD14: ="Sequence: "&B3 & " Coding Conditions: " & A3 -> Sequence: Noise_Animation_1280x720_2398fps Coding Conditions: RA
AA15: DinnerSceneCropped_1920x1080_2997fps_10bit_420 | AB15: 70
AA16: FoodMarket_1920x1080_5994_10bit_420 | AB16: 76
AA17: MeridianTalk_sdr_1920x1080p_5994_10bit | AB17: 82 | AD17: rate | AE17: y | AF17: u | AG17: v | AH17: yuv
AA18: Motorcycle_1920x1080_30fps_8bit | AB18: 88 | AD18: =MAX(AD5:AD10,AU5:AU10) -> 0 | AE18: =MAX(AE5:AE10,AV5:AV10) -> 0 | AF18: =MAX(AF5:AF10,AW5:AW10) -> 0 | AG18: =MAX(AG5:AG10,AX5:AX10) -> 0 | AH18: =MAX(AH5:AH10,AZ5:AZ10) -> 0 | AI18: =MAX(AI5:AI10,AZ5:AZ10) -> 0 | AJ18: =MAX(AJ5:AJ10,BA5:BA10, BJ5:BJ10) -> 0 | AK18: 0 | AL18: 0 | AM18: 0 | AN18: 0 | AO18: 0 | AP18: 0 | AQ18: 0
AA19: MountainBike_1920x1080_30fps_8bit | AB19: 94 | AD19: =MIN(AD5:AD10,AU5:AU10) -> 0 | AE19: =MIN(AE5:AE10,AV5:AV10) -> 0 | AF19: =MIN(AF5:AF10,AW5:AW10) -> 0 | AG19: =MIN(AG5:AG10,AX5:AX10) -> 0 | AH19: =MIN(AH5:AH10,AZ5:AZ10) -> 0 | AI19: =MIN(AI5:AI10,AZ5:AZ10) -> 0 | AJ19: =MIN(AJ5:AJ10,BA5:BA10,BJ5:BJ10) -> 0 | AK19: 0 | AL19: 0 | AM19: 0 | AN19: 0 | AO19: 0 | AP19: 0 | AQ19: 0
AA20: OldTownCross_1920x1080p50 | AB20: 100
AA21: PedestrianArea_1920x1080p25 | AB21: 106 | AD21: =POWER(10,CEILING(LOG(AD18+1),1)) -> 1 | AE21: =CEILING(AE18+0.25,0.5) -> 0.5 | AF21: 0.5 | AG21: 0.5 | AH21: 0.5 | AI21: 0.5 | AJ21: 0.5 | AK21: 0.5 | AL21: 0.5 | AM21: 0.5 | AN21: 0.5 | AO21: 0.5 | AP21: 0.5 | AQ21: 0.5
AA22: RitualDance_1920x1080_5994_10bit_420 | AB22: 112 | AD22: =POWER(10,FLOOR(LOG(AD19+10),1)) -> 10 | AE22: =FLOOR(AE19-0.25,0.5) -> -0.5 | AF22: -0.5 | AG22: -0.5 | AH22: -0.5 | AI22: -0.5 | AJ22: -0.5 | AK22: -0.5 | AL22: -0.5 | AM22: -0.5 | AN22: -0.5 | AO22: -0.5 | AP22: -0.5 | AQ22: -0.5
AA23: Riverbed_1920x1080p25 | AB23: 118
AA24: RushFieldCuts_1920x1080_2997 | AB24: 124 | AD24: =CEILING(AD18*110%/100,1)*100 -> 0
AA25: Skater227_1920x1080_30fps | AB25: 130 | AD25: 0
AA26: ToddlerFountain_1920x1080_2997fps_10bit_420 | AB26: 136
AA27: TreesAndGrass_1920_1080_30fps_8bit | AB27: 142
AA28: TunnelFlag_1920x1080_5994_10bit_420 | AB28: 148
AA29: Vertical_bees_1080x1920_2997 | AB29: 154
AA30: Vertical_Carnaby_1080x1920_5994 | AB30: 160
AA31: WalkingInStreet_1920x1080_30fps | AB31: 166
AA32: WorldCup_1920x1080_30p | AB32: 172
AA33: WorldCup_far_1920x1080_30p | AB33: 178
AA34: ControlledBurn_1280x720p30_420 | AB34: 184
AA35: DrivingPOV_1280x720p_5994_10bit_420 | AB35: 190
AA36: Johnny_1280x720_60 | AB36: 196
AA37: KristenAndSara_1280x720_60 | AB37: =AB36+6 -> 202
AA38: RollerCoaster_1280x720p_5994_10bit_420 | AB38: 208
AA39: Vidyo3_1280x720p_60fps | AB39: 214
AA40: Vidyo4_1280x720p_60fps | AB40: 220
AA41: WestWindEasy_1280x720p30_420 | AB41: 226
AA42: BlueSky_360p25 | AB42: 232
AA43: RedKayak_360_2997 | AB43: 238
AA44: SnowMountain_640x360_2997 | AB44: 244
AA45: SpeedBag_640x360_2997 | AB45: 250
AA46: Stockholm_640x360_5994 | AB46: 256
AA47: TouchdownPass_640x360_2997 | AB47: 262
AA48: FourPeople_480x270_60 | AB48: 268
AA49: ParkJoy_480x270_50 | AB49: 274
AA50: SparksElevator_480x270p_5994_10bit | AB50: 280
AA51: Vertical_Bayshore_270x480_2997 | AB51: 286
AA52: CosmosTreeTrunk_sdr_2048x858_25_8bit | AB52: 292
AA53: DOTA2_1920x1080_60_8bit_420 | AB53: 298
AA54: EuroTruckSimulator2_1920x1080p60 | AB54: 304
AA55: GlassHalf_1920x1080p_24p_8bit_420 | AB55: 310
AA56: Life_1080p30 | AB56: 316
AA57: MINECRAFT_1080p_60_8bit | AB57: 322
AA58: Sniper_1920x1080P_30fps_8bit | AB58: 328
AA59: SolLevanteDragons_sdr_1920x1080_24_10bit | AB59: 334
AA60: SolLevanteFace_sdr_1920x1080_24_10bit | AB60: 340
AA61: WITCHER3_1920x1080_60_8bit_420 | AB61: 346
AA62: BigBuckBunnyStudio1_1920x1080_60fps_10bit_420_020_0149 | AB62: 352
AA63: Debugging_1920x1080_30fps_8bit_420 | AB63: 358
AA64: MissionControlClip1_1920x1080_60fps_10bit_420_0450_0579 | AB64: 364
AA65: MissionControlClip3_1920x1080_60_420 | AB65: 370
AA66: MobileDeviceScreenSharing | AB66: 376
AA67: SceneComposition_1 | AB67: 382
AA68: SceneComposition_2 | AB68: 388
AA69: Slides1_1920x1080_30fps_8bit_420 | AB69: =AB68+6 -> 394
AA70: Slides2r_1920x1080_30fps_8bit_420 | AB70: 400
AA71: Spreadsheet_1920x1080_30fps_8bit_420_130f | AB71: 406
AA72: Wikipedia_1920x1080p30 | AB72: 412
AA73: MeridianRoad_3840x2160_5994_hdr10 | AB73: 418
AA74: NocturneDance_3840x2160_60fps_hdr10 | AB74: 424
AA75: NocturneRoom_3840x2160_60fps_hdr10 | AB75: 430
AA76: SparksWelding_4096x2160_5994_hdr10 | AB76: 436
AA77: CosmosCaterpillar_2048x858p24_hdr10 | AB77: 442
AA78: CosmosTreeTrunk_2048x858p24_hdr10 | AB78: 448
AA79: MeridianShore_1920x1080_5994_hdr10 | AB79: 454
AA80: MeridianTalk_1920x1080_5994_hdr10 | AB80: 460
AA81: SolLevanteDragons_1920x1080p24_hdr10 | AB81: 466
AA82: SolLevanteFace_1920x1080p24_hdr10 | AB82: 472
AA83: SparksTruck_2048x1080_5994_hdr10 | AB83: 478
AA84: Artistic_Concert_1920x1080_25fps | AB84: 484
AA85: Artistic_Intro_1920x1080_2997fps | AB85: 490
AA86: MixedCoding_NewsIntroAnchor_1280x720_2997fps | AB86: 496
AA87: MixedCoding_NewsIntroOnly_1280x720_2997fps | AB87: 502
AA88: Noise_AnimationCrayon_1920x1080_2398fps | AB88: 508
AA89: Noise_Animation_1280x720_2398fps | AB89: 514
AA90: Noise_Ocean_1920x1080_60fps | AB90: 520
AA91: Noise_Soccer_1920x1080_50fps | AB91: 526
AA92: Shaky_Baseball_3840x2160_5994fps | AB92: 532
AA93: Shaky_Fireworks_3840x2160_2997fps | AB93: 538
AA94: Shaky_Quad_1920x1080_30fps | AB94: 544
AA95: Shaky_Walk_1920x1080_25fps | AB95: 550

Sheet Plot-Stills
A1: Select the coding condition and sequence from the dropbox below | AD1: 7 | AE1: =AD1+1 -> 8 | AF1: 9 | AG1: 10 | AH1: 11 | AI1: 12 | AJ1: 13 | AK1: 14 | AL1: 15 | AM1: 16 | AN1: 17 | AO1: 18 | AP1: 19 | AQ1: 20 | AU1: 27 | AV1: =AU1+1 -> 28 | AW1: 29 | AX1: 30 | AY1: 31 | AZ1: 32 | BA1: 33 | BB1: 34 | BC1: 35 | BD1: 36 | BE1: 37 | BF1: 38 | BG1: 39 | BH1: 40
AD2: Line 1 - Reference | AU2: Line 2 - Test
A3: Still | B3: Animals_00 | AD3: =#REF! ->  | AE3: =#REF! ->  | AI3: =#REF! ->  | AJ3: =#REF! ->  | AK3: =#REF! ->  | AL3: =#REF! ->  | AM3: =#REF! ->  | AN3: =#REF! ->  | AO3: =#REF! ->  | AU3: =#REF! ->  | AV3: =#REF! ->  | AZ3: =#REF! ->  | BA3: =#REF! ->  | BB3: =#REF! ->  | BC3: =#REF! ->  | BD3: =#REF! ->  | BE3: =#REF! ->  | BF3: =#REF! -> 
Z4: Still | AA4: Animals_00 | AB4: 4 | AD4: =#REF! ->  | AE4: =#REF! ->  | AF4: =#REF! ->  | AG4: =#REF! ->  | AH4: =#REF! ->  | AI4: =#REF! ->  | AJ4: =#REF! ->  | AK4: =#REF! ->  | AL4: =#REF! ->  | AM4: =#REF! ->  | AN4: =#REF! ->  | AO4: =#REF! ->  | AP4: =#REF! ->  | AQ4: =#REF! ->  | AU4: =#REF! ->  | AV4: =#REF! ->  | AW4: =#REF! ->  | AX4: =#REF! ->  | AY4: =#REF! ->  | AZ4: =#REF! ->  | BA4: =#REF! ->  | BB4: =#REF! ->  | BC4: =#REF! ->  | BD4: =#REF! ->  | BE4: =#REF! ->  | BF4: =#REF! ->  | BG4: =#REF! ->  | BH4: =#REF! -> 
AA5: Animals_03 | AB5: =AB4+6 -> 10 | AC5: =VLOOKUP(B3,AA4:AB89,2,FALSE) -> 4 | AD5: =INDIRECT("'"&$A$3&"'!"&ADDRESS($AC5,AD$1)) -> 0 | AE5: 0 | AF5: 0 | AG5: 0 | AH5: 0 | AI5: 0 | AJ5: 0 | AK5: 0 | AL5: 0 | AM5: 0 | AN5: 0 | AO5: 0 | AP5: 0 | AQ5: 0 | AU5: =INDIRECT("'"&$A$3&"'!"&ADDRESS($AC5,AU$1)) -> 0 | AV5: 0 | AW5: 0 | AX5: 0 | AY5: 0 | AZ5: 0 | BA5: 0 | BB5: 0 | BC5: 0 | BD5: 0 | BE5: 0 | BF5: 0 | BG5: 0 | BH5: 0
AA6: Animals_09 | AB6: 16 | AC6: =AC5+1 -> 5 | AD6: 0 | AE6: 0 | AF6: 0 | AG6: 0 | AH6: 0 | AI6: 0 | AJ6: 0 | AK6: 0 | AL6: 0 | AM6: 0 | AN6: 0 | AO6: 0 | AP6: 0 | AQ6: 0 | AU6: 0 | AV6: 0 | AW6: 0 | AX6: 0 | AY6: 0 | AZ6: 0 | BA6: 0 | BB6: 0 | BC6: 0 | BD6: 0 | BE6: 0 | BF6: 0 | BG6: 0 | BH6: 0
AA7: Buildings_02 | AB7: 22 | AC7: =AC6+1 -> 6 | AD7: 0 | AE7: 0 | AF7: 0 | AG7: 0 | AH7: 0 | AI7: 0 | AJ7: 0 | AK7: 0 | AL7: 0 | AM7: 0 | AN7: 0 | AO7: 0 | AP7: 0 | AQ7: 0 | AU7: 0 | AV7: 0 | AW7: 0 | AX7: 0 | AY7: 0 | AZ7: 0 | BA7: 0 | BB7: 0 | BC7: 0 | BD7: 0 | BE7: 0 | BF7: 0 | BG7: 0 | BH7: 0
AA8: Buildings_03 | AB8: 28 | AC8: =AC7+1 -> 7 | AD8: 0 | AE8: 0 | AF8: 0 | AG8: 0 | AH8: 0 | AI8: 0 | AJ8: 0 | AK8: 0 | AL8: 0 | AM8: 0 | AN8: 0 | AO8: 0 | AP8: 0 | AQ8: 0 | AU8: 0 | AV8: 0 | AW8: 0 | AX8: 0 | AY8: 0 | AZ8: 0 | BA8: 0 | BB8: 0 | BC8: 0 | BD8: 0 | BE8: 0 | BF8: 0 | BG8: 0 | BH8: 0
AA9: Church | AB9: 34 | AC9: =AC8+1 -> 8 | AD9: 0 | AE9: 0 | AF9: 0 | AG9: 0 | AH9: 0 | AI9: 0 | AJ9: 0 | AK9: 0 | AL9: 0 | AM9: 0 | AN9: 0 | AO9: 0 | AP9: 0 | AQ9: 0 | AU9: 0 | AV9: 0 | AW9: 0 | AX9: 0 | AY9: 0 | AZ9: 0 | BA9: 0 | BB9: 0 | BC9: 0 | BD9: 0 | BE9: 0 | BF9: 0 | BG9: 0 | BH9: 0
AA10: Fireworks_01 | AB10: 40 | AC10: =AC9+1 -> 9 | AD10: 0 | AE10: 0 | AF10: 0 | AG10: 0 | AH10: 0 | AI10: 0 | AJ10: 0 | AK10: 0 | AL10: 0 | AM10: 0 | AN10: 0 | AO10: 0 | AP10: 0 | AQ10: 0 | AU10: 0 | AV10: 0 | AW10: 0 | AX10: 0 | AY10: 0 | AZ10: 0 | BA10: 0 | BB10: 0 | BC10: 0 | BD10: 0 | BE10: 0 | BF10: 0 | BG10: 0 | BH10: 0
AA11: Flowerfield | AB11: 46
AA12: Flowers_08 | AB12: 52
AA13: Flowers_12 | AB13: 58
AA14: Food_02 | AB14: 64 | AD14: ="Sequence: "&B3 & " Coding Conditions: " & A3 -> Sequence: Animals_00 Coding Conditions: Still
AA15: Fountain | AB15: 70
AA16: Lady | AB16: 76
AA17: Landscape_5 | AB17: 82 | AD17: rate | AE17: y | AF17: u | AG17: v | AH17: yuv
AA18: Landscape_15 | AB18: 88 | AD18: =MAX(AD5:AD10,AU5:AU10) -> 0 | AE18: =MAX(AE5:AE10,AV5:AV10) -> 0 | AF18: =MAX(AF5:AF10,AW5:AW10) -> 0 | AG18: =MAX(AG5:AG10,AX5:AX10) -> 0 | AH18: =MAX(AH5:AH10,AZ5:AZ10) -> 0 | AI18: =MAX(AI5:AI10,AZ5:AZ10) -> 0 | AJ18: =MAX(AJ5:AJ10,BA5:BA10, BJ5:BJ10) -> 0 | AK18: 0 | AL18: 0 | AM18: 0 | AN18: 0 | AO18: 0 | AP18: 0 | AQ18: 0
AA19: Landscape_16 | AB19: 94 | AD19: =MIN(AD5:AD10,AU5:AU10) -> 0 | AE19: =MIN(AE5:AE10,AV5:AV10) -> 0 | AF19: =MIN(AF5:AF10,AW5:AW10) -> 0 | AG19: =MIN(AG5:AG10,AX5:AX10) -> 0 | AH19: =MIN(AH5:AH10,AZ5:AZ10) -> 0 | AI19: =MIN(AI5:AI10,AZ5:AZ10) -> 0 | AJ19: =MIN(AJ5:AJ10,BA5:BA10,BJ5:BJ10) -> 0 | AK19: 0 | AL19: 0 | AM19: 0 | AN19: 0 | AO19: 0 | AP19: 0 | AQ19: 0
AA20: Landscape_18 | AB20: 100
AA21: Landscape_25 | AB21: 106 | AD21: =POWER(10,CEILING(LOG(AD18+1),1)) -> 1 | AE21: =CEILING(AE18+0.25,0.5) -> 0.5 | AF21: 0.5 | AG21: 0.5 | AH21: 0.5 | AI21: 0.5 | AJ21: 0.5 | AK21: 0.5 | AL21: 0.5 | AM21: 0.5 | AN21: 0.5 | AO21: 0.5 | AP21: 0.5 | AQ21: 0.5
AA22: Landscape_26 | AB22: 112 | AD22: =POWER(10,FLOOR(LOG(AD19+10),1)) -> 10 | AE22: =FLOOR(AE19-0.25,0.5) -> -0.5 | AF22: -0.5 | AG22: -0.5 | AH22: -0.5 | AI22: -0.5 | AJ22: -0.5 | AK22: -0.5 | AL22: -0.5 | AM22: -0.5 | AN22: -0.5 | AO22: -0.5 | AP22: -0.5 | AQ22: -0.5
AA23: Landscape_28 | AB23: 118
AA24: Lodge | AB24: 124 | AD24: =CEILING(AD18*110%/1000,1)*1000 -> 0
AA25: Party | AB25: 130 | AD25: 0
AA26: River | AB26: 136
AA27: Santa | AB27: 142
AA28: Seafood | AB28: 148
AA29: Snow_00 | AB29: 154
AA30: Trees | AB30: 160
AA31: Underwater_01 | AB31: 166
AA32: Adventure_with_the_Windmills | AB32: 172
AA33: Agapanthus_Postbloom2 | AB33: 178
AA34: Baruch | AB34: 184
AA35: Berlin-Fernsehturm | AB35: 190
AA36: Big_Easy_chair | AB36: 196
AA37: Butterfly | AB37: =AB36+6 -> 202
AA38: Cecret_Lake_Panorama | AB38: 208
AA39: Claudette | AB39: 214
AA40: Collage_Oppeln | AB40: 220
AA41: Corona_Arch | AB41: 226
AA42: Correfocs_Festa_Major_del_Clot | AB42: 232
AA43: Crepuscular_rays_at_Sunset_near_Waterberg_Plateau | AB43: 238
AA44: Esquibien_Jean_Perrot | AB44: 244
AA45: Florac-Le_Vibron-Source_du_Pecher | AB45: 250
AA46: Fontaine_Place_Stanislas | AB46: 256
AA47: Genmaicha_Tea | AB47: 262
AA48: Homestead_in_Montana | AB48: 268
AA49: Madeira_151_Funchal_Mercado_dos_Lavradores | AB49: 274
AA50: Madeira_159_Funchal_Mercado_dos_Lavradores | AB50: 280
AA51: MagicKindom | AB51: 286
AA52: Michigan_Stadium | AB52: 292
AA53: OperaLamps | AB53: 298
AA54: Orion_Nebula | AB54: 304
AA55: Saint_Catherine-Caravaggio | AB55: 310
AA56: Streptopelia_orientalis | AB56: 316
AA57: Swallowtail | AB57: 322
AA58: Washington_Monument | AB58: 328
AA59: Wasserfassstelle_von_1898_im_Schanerloch | AB59: 334
AA60: Zoo_de_la_Barben | AB60: 340
AB61: 346
AB62: 352
AB63: 358
AB64: 364
AB65: 370
AB66: 376
AB67: 382
AB68: 388
AB69: =AB68+6 -> 394
AB70: 400
AB71: 406
AB72: 412
AB73: 418
AB74: 424

Sheet Intra
G1: Reference | AA1: Tested | AX1: BD-rate
G2: Bitrate | H2: PSNR | L2: SSIM (dB) | M2: MS-SSIM (dB) | N2: VMAF | O2: nVMAF | P2: PSNR-HVS | Q2: DE2K | R2: APSNR | V2: CAMBI | W2: Enc T [s] | X2: Dec T [s] | Y2: Enc T [h] | AA2: Bitrate | AB2: PSNR | AF2: SSIM (dB) | AG2: MS-SSIM (dB) | AH2: VMAF | AI2: nVMAF | AJ2: PSNR-HVS | AK2: DE2K | AL2: APSNR | AP2: CAMBI | AQ2: Enc T [s] | AR2: Dec T [s] | AS2: Enc T [h] | AX2: PSNR | BE2: SSIM | BG2: MS-SSIM | BI2: VMAF | BK2: nVMAF | BM2: PSNR-HVS | BO2: DE-2K | BQ2: APSNR | BW2: CAMBI | BY2: VMAF | CA2: nVMAF
B3: Res | C3: Name | D3: fps | E3: Bit depth | F3: QPISlice | G3: kbps | H3: Y | I3: U | J3: V | K3: YUV | L3: Y | M3: Y | N3: Y | O3: Y | P3: Y | R3: Y | S3: U | T3: V | U3: YUV | V3: Y | AA3: kbps | AB3: Y | AC3: U | AD3: V | AE3: YUV | AF3: Y | AG3: Y | AH3: Y | AI3: Y | AJ3: Y | AL3: Y | AM3: U | AN3: V | AO3: YUV | AP3: Y | AT3: EncR | AU3: DecR | AX3: Range | AZ3: Y | BA3: U | BB3: V | BC3: YUV | BD3: wAverage | BE3: Range | BF3: Y | BG3: Range | BH3: Y | BI3: Range | BJ3: Y | BK3: Range | BL3: Y | BM3: Range | BN3: Y | BO3: Range | BP3: Y | BQ3: Range | BR3: Y | BS3: U | BT3: V | BU3: YUV | BV3: wAverage | BW3: Range | BX3: Y | BY3: Range | BZ3: Y | CA3: Range | CB3: Y
A4: A1_4K | B4: 3840x2160 | C4: BoxingPractice_3840x2160_5994fps_10bit_420 | D4: 59.94 | E4: 10 | F4: 85 | G4: ='Anchor-AI'!L2 -> 0 | H4: ='Anchor-AI'!M2 -> 0 | I4: ='Anchor-AI'!N2 -> 0 | J4: ='Anchor-AI'!O2 -> 0 | K4: =(Summary!$C$64*H4+Summary!$C$65*I4+Summary!$C$66*J4)/Summary!$C$67 -> 0 | L4: ='Anchor-AI'!P2 -> 0 | M4: ='Anchor-AI'!Q2 -> 0 | N4: ='Anchor-AI'!R2 -> 0 | O4: ='Anchor-AI'!S2 -> 0 | P4: ='Anchor-AI'!T2 -> 0 | Q4: ='Anchor-AI'!U2 -> 0 | R4: ='Anchor-AI'!V2 -> 0 | S4: ='Anchor-AI'!W2 -> 0 | T4: ='Anchor-AI'!X2 -> 0 | U4: =10*LOG10(1/((Summary!$C$81/10^(R4/10)+Summary!$C$82/10^(S4/10)+Summary!$C$83/10^(T4/10))/Summary!$C$84)) -> 0 | V4: ='Anchor-AI'!Y2 -> 0 | W4: ='Anchor-AI'!Z2 -> 0 | X4: ='Anchor-AI'!AA2 -> 0 | Y4: =W4/3600 -> 0 | AA4: ='Test-AI'!L2 -> 0 | AB4: ='Test-AI'!M2 -> 0 | AC4: ='Test-AI'!N2 -> 0 | AD4: ='Test-AI'!O2 -> 0 | AE4: =(Summary!$C$64*AB4+Summary!$C$65*AC4+Summary!$C$66*AD4)/Summary!$C$67 -> 0 | AF4: ='Test-AI'!P2 -> 0 | AG4: ='Test-AI'!Q2 -> 0 | AH4: ='Test-AI'!R2 -> 0 | AI4: ='Test-AI'!S2 -> 0 | AJ4: ='Test-AI'!T2 -> 0 | AK4: ='Test-AI'!U2 -> 0 | AL4: ='Test-AI'!V2 -> 0 | AM4: ='Test-AI'!W2 -> 0 | AN4: ='Test-AI'!X2 -> 0 | AO4: =10*LOG10(1/((Summary!$C$81/10^(AL4/10)+Summary!$C$82/10^(AM4/10)+Summary!$C$83/10^(AN4/10))/Summary!$C$84)) -> 0 | AP4: ='Test-AI'!Y2 -> 0 | AQ4: ='Test-AI'!Z2 -> 0 | AR4: ='Test-AI'!AA2 -> 0 | AS4: =AQ4/3600 -> 0 | AT4: =AQ4/W4 ->  | AU4: =AR4/X4 ->  | AX4: High | AY4: =bdRateExtend($G4:$G7,H4:H7,$AA4:$AA7,AB4:AB7) ->  | AZ4: =bdRateExtend($G4:$G9,H4:H9,$AA4:$AA9,AB4:AB9) ->  | BA4: =bdRateExtend($G4:$G9,I4:I9,$AA4:$AA9,AC4:AC9) ->  | BB4: =bdRateExtend($G4:$G9,J4:J9,$AA4:$AA9,AD4:AD9) ->  | BC4: =bdRateExtend($G4:$G9,K4:K9,$AA4:$AA9,AE4:AE9) ->  | BD4: =(Summary!$C$95*AZ4+Summary!$C$96*BA4+Summary!$C$97*BB4)/Summary!$C$98 ->  | BE4: =bdRateExtend($G4:$G7,L4:L7,$AA4:$AA7,AF4:AF7) ->  | BF4: =bdRateExtend($G4:$G9,L4:L9,$AA4:$AA9,AF4:AF9) ->  | BG4: =bdRateExtend($G4:$G7,M4:M7,$AA4:$AA7,AG4:AG7) ->  | BH4: =bdRateExtend($G4:$G9,M4:M9,$AA4:$AA9,AG4:AG9) ->  | BI4: =bdRateExtend($G4:$G7,N4:N7,$AA4:$AA7,AH4:AH7,"None", FALSE,1) ->  | BJ4: =bdRateExtend($G4:$G9,N4:N9,$AA4:$AA9,AH4:AH9,"None", FALSE,1) ->  | BK4: =bdRateExtend($G4:$G7,O4:O7,$AA4:$AA7,AI4:AI7,"None", FALSE,1) ->  | BL4: =bdRateExtend($G4:$G9,O4:O9,$AA4:$AA9,AI4:AI9,"None", FALSE,1) ->  | BM4: =bdRateExtend($G4:$G7,P4:P7,$AA4:$AA7,AJ4:AJ7) ->  | BN4: =bdRateExtend($G4:$G9,P4:P9,$AA4:$AA9,AJ4:AJ9) ->  | BO4: =bdRateExtend($G4:$G7,Q4:Q7,$AA4:$AA7,AK4:AK7) ->  | BP4: =bdRateExtend($G4:$G9,Q4:Q9,$AA4:$AA9,AK4:AK9) ->  | BQ4: =bdRateExtend($G4:$G7,R4:R7,$AA4:$AA7,AL4:AL7) ->  | BR4: =bdRateExtend($G4:$G9,R4:R9,$AA4:$AA9,AL4:AL9) ->  | BS4: =bdRateExtend($G4:$G9,S4:S9,$AA4:$AA9,AM4:AM9) ->  | BT4: =bdRateExtend($G4:$G9,T4:T9,$AA4:$AA9,AN4:AN9) ->  | BU4: =bdRateExtend($G4:$G9,U4:U9,$AA4:$AA9,AO4:AO9) ->  | BV4: =(Summary!$C$109*BR4+Summary!$C$110*BS4+Summary!$C$111*BT4)/Summary!$C$112 ->  | BW4: =bdCAMBIExtend($G4:$G7,V4:V7,$AA4:$AA7,AP4:AP7) ->  | BX4: =bdCAMBIExtend($G4:$G9,V4:V9,$AA4:$AA9,AP4:AP9) ->  | BY4: =testVMAFRange($G4:$G7,N4:N7,$AA4:$AA7,AH4:AH7) -> 0 | BZ4: =testVMAFRange($G4:$G9,N4:N9,$AA4:$AA9,AH4:AH9) -> 0 | CA4: =testVMAFRange($G4:$G7,O4:O7,$AA4:$AA7,AI4:AI7) -> 0 | CB4: =testVMAFRange($G4:$G9,O4:O9,$AA4:$AA9,AI4:AI9) -> 0
F5: 110 | G5: ='Anchor-AI'!L3 -> 0 | H5: ='Anchor-AI'!M3 -> 0 | I5: ='Anchor-AI'!N3 -> 0 | J5: ='Anchor-AI'!O3 -> 0 | K5: =(Summary!$C$64*H5+Summary!$C$65*I5+Summary!$C$66*J5)/Summary!$C$67 -> 0 | L5: ='Anchor-AI'!P3 -> 0 | M5: ='Anchor-AI'!Q3 -> 0 | N5: ='Anchor-AI'!R3 -> 0 | O5: ='Anchor-AI'!S3 -> 0 | P5: ='Anchor-AI'!T3 -> 0 | Q5: ='Anchor-AI'!U3 -> 0 | R5: ='Anchor-AI'!V3 -> 0 | S5: ='Anchor-AI'!W3 -> 0 | T5: ='Anchor-AI'!X3 -> 0 | U5: =10*LOG10(1/((Summary!$C$81/10^(R5/10)+Summary!$C$82/10^(S5/10)+Summary!$C$83/10^(T5/10))/Summary!$C$84)) -> 0 | V5: ='Anchor-AI'!Y3 -> 0 | W5: ='Anchor-AI'!Z3 -> 0 | X5: ='Anchor-AI'!AA3 -> 0 | Y5: 0 | AA5: ='Test-AI'!L3 -> 0 | AB5: ='Test-AI'!M3 -> 0 | AC5: ='Test-AI'!N3 -> 0 | AD5: ='Test-AI'!O3 -> 0 | AE5: =(Summary!$C$64*AB5+Summary!$C$65*AC5+Summary!$C$66*AD5)/Summary!$C$67 -> 0 | AF5: ='Test-AI'!P3 -> 0 | AG5: ='Test-AI'!Q3 -> 0 | AH5: ='Test-AI'!R3 -> 0 | AI5: ='Test-AI'!S3 -> 0 | AJ5: ='Test-AI'!T3 -> 0 | AK5: ='Test-AI'!U3 -> 0 | AL5: ='Test-AI'!V3 -> 0 | AM5: ='Test-AI'!W3 -> 0 | AN5: ='Test-AI'!X3 -> 0 | AO5: =10*LOG10(1/((Summary!$C$81/10^(AL5/10)+Summary!$C$82/10^(AM5/10)+Summary!$C$83/10^(AN5/10))/Summary!$C$84)) -> 0 | AP5: ='Test-AI'!Y3 -> 0 | AQ5: ='Test-AI'!Z3 -> 0 | AR5: ='Test-AI'!AA3 -> 0 | AS5: 0
F6: 135 | G6: ='Anchor-AI'!L4 -> 0 | H6: ='Anchor-AI'!M4 -> 0 | I6: ='Anchor-AI'!N4 -> 0 | J6: ='Anchor-AI'!O4 -> 0 | K6: =(Summary!$C$64*H6+Summary!$C$65*I6+Summary!$C$66*J6)/Summary!$C$67 -> 0 | L6: ='Anchor-AI'!P4 -> 0 | M6: ='Anchor-AI'!Q4 -> 0 | N6: ='Anchor-AI'!R4 -> 0 | O6: ='Anchor-AI'!S4 -> 0 | P6: ='Anchor-AI'!T4 -> 0 | Q6: ='Anchor-AI'!U4 -> 0 | R6: ='Anchor-AI'!V4 -> 0 | S6: ='Anchor-AI'!W4 -> 0 | T6: ='Anchor-AI'!X4 -> 0 | U6: =10*LOG10(1/((Summary!$C$81/10^(R6/10)+Summary!$C$82/10^(S6/10)+Summary!$C$83/10^(T6/10))/Summary!$C$84)) -> 0 | V6: ='Anchor-AI'!Y4 -> 0 | W6: ='Anchor-AI'!Z4 -> 0 | X6: ='Anchor-AI'!AA4 -> 0 | Y6: 0 | AA6: ='Test-AI'!L4 -> 0 | AB6: ='Test-AI'!M4 -> 0 | AC6: ='Test-AI'!N4 -> 0 | AD6: ='Test-AI'!O4 -> 0 | AE6: =(Summary!$C$64*AB6+Summary!$C$65*AC6+Summary!$C$66*AD6)/Summary!$C$67 -> 0 | AF6: ='Test-AI'!P4 -> 0 | AG6: ='Test-AI'!Q4 -> 0 | AH6: ='Test-AI'!R4 -> 0 | AI6: ='Test-AI'!S4 -> 0 | AJ6: ='Test-AI'!T4 -> 0 | AK6: ='Test-AI'!U4 -> 0 | AL6: ='Test-AI'!V4 -> 0 | AM6: ='Test-AI'!W4 -> 0 | AN6: ='Test-AI'!X4 -> 0 | AO6: =10*LOG10(1/((Summary!$C$81/10^(AL6/10)+Summary!$C$82/10^(AM6/10)+Summary!$C$83/10^(AN6/10))/Summary!$C$84)) -> 0 | AP6: ='Test-AI'!Y4 -> 0 | AQ6: ='Test-AI'!Z4 -> 0 | AR6: ='Test-AI'!AA4 -> 0 | AS6: 0 | AX6: Med | AY6: =bdRateExtend($G5:$G8,H5:H8,$AA5:$AA8,AB5:AB8) ->  | BE6: =bdRateExtend($G5:$G8,L5:L8,$AA5:$AA8,AF5:AF8) ->  | BG6: =bdRateExtend($G5:$G8,M5:M8,$AA5:$AA8,AG5:AG8) ->  | BI6: =bdRateExtend($G5:$G8,N5:N8,$AA5:$AA8,AH5:AH8,"None", FALSE,1) ->  | BK6: =bdRateExtend($G5:$G8,O5:O8,$AA5:$AA8,AI5:AI8,"None", FALSE,1) ->  | BM6: =bdRateExtend($G5:$G8,P5:P8,$AA5:$AA8,AJ5:AJ8) ->  | BO6: =bdRateExtend($G5:$G8,Q5:Q8,$AA5:$AA8,AK5:AK8) ->  | BQ6: =bdRateExtend($G5:$G8,R5:R8,$AA5:$AA8,AL5:AL8) ->  | BW6: =bdCAMBIExtend($G5:$G8,V5:V8,$AA5:$AA8,AP5:AP8) ->  | BY6: =testVMAFRange($G5:$G8,N5:N8,$AA5:$AA8,AH5:AH8) -> 0 | CA6: =testVMAFRange($G5:$G8,O5:O8,$AA5:$AA8,AI5:AI8) -> 0
F7: 160 | G7: ='Anchor-AI'!L5 -> 0 | H7: ='Anchor-AI'!M5 -> 0 | I7: ='Anchor-AI'!N5 -> 0 | J7: ='Anchor-AI'!O5 -> 0 | K7: =(Summary!$C$64*H7+Summary!$C$65*I7+Summary!$C$66*J7)/Summary!$C$67 -> 0 | L7: ='Anchor-AI'!P5 -> 0 | M7: ='Anchor-AI'!Q5 -> 0 | N7: ='Anchor-AI'!R5 -> 0 | O7: ='Anchor-AI'!S5 -> 0 | P7: ='Anchor-AI'!T5 -> 0 | Q7: ='Anchor-AI'!U5 -> 0 | R7: ='Anchor-AI'!V5 -> 0 | S7: ='Anchor-AI'!W5 -> 0 | T7: ='Anchor-AI'!X5 -> 0 | U7: =10*LOG10(1/((Summary!$C$81/10^(R7/10)+Summary!$C$82/10^(S7/10)+Summary!$C$83/10^(T7/10))/Summary!$C$84)) -> 0 | V7: ='Anchor-AI'!Y5 -> 0 | W7: ='Anchor-AI'!Z5 -> 0 | X7: ='Anchor-AI'!AA5 -> 0 | Y7: 0 | AA7: ='Test-AI'!L5 -> 0 | AB7: ='Test-AI'!M5 -> 0 | AC7: ='Test-AI'!N5 -> 0 | AD7: ='Test-AI'!O5 -> 0 | AE7: =(Summary!$C$64*AB7+Summary!$C$65*AC7+Summary!$C$66*AD7)/Summary!$C$67 -> 0 | AF7: ='Test-AI'!P5 -> 0 | AG7: ='Test-AI'!Q5 -> 0 | AH7: ='Test-AI'!R5 -> 0 | AI7: ='Test-AI'!S5 -> 0 | AJ7: ='Test-AI'!T5 -> 0 | AK7: ='Test-AI'!U5 -> 0 | AL7: ='Test-AI'!V5 -> 0 | AM7: ='Test-AI'!W5 -> 0 | AN7: ='Test-AI'!X5 -> 0 | AO7: =10*LOG10(1/((Summary!$C$81/10^(AL7/10)+Summary!$C$82/10^(AM7/10)+Summary!$C$83/10^(AN7/10))/Summary!$C$84)) -> 0 | AP7: ='Test-AI'!Y5 -> 0 | AQ7: ='Test-AI'!Z5 -> 0 | AR7: ='Test-AI'!AA5 -> 0 | AS7: 0
F8: 185 | G8: ='Anchor-AI'!L6 -> 0 | H8: ='Anchor-AI'!M6 -> 0 | I8: ='Anchor-AI'!N6 -> 0 | J8: ='Anchor-AI'!O6 -> 0 | K8: =(Summary!$C$64*H8+Summary!$C$65*I8+Summary!$C$66*J8)/Summary!$C$67 -> 0 | L8: ='Anchor-AI'!P6 -> 0 | M8: ='Anchor-AI'!Q6 -> 0 | N8: ='Anchor-AI'!R6 -> 0 | O8: ='Anchor-AI'!S6 -> 0 | P8: ='Anchor-AI'!T6 -> 0 | Q8: ='Anchor-AI'!U6 -> 0 | R8: ='Anchor-AI'!V6 -> 0 | S8: ='Anchor-AI'!W6 -> 0 | T8: ='Anchor-AI'!X6 -> 0 | U8: =10*LOG10(1/((Summary!$C$81/10^(R8/10)+Summary!$C$82/10^(S8/10)+Summary!$C$83/10^(T8/10))/Summary!$C$84)) -> 0 | V8: ='Anchor-AI'!Y6 -> 0 | W8: ='Anchor-AI'!Z6 -> 0 | X8: ='Anchor-AI'!AA6 -> 0 | Y8: 0 | AA8: ='Test-AI'!L6 -> 0 | AB8: ='Test-AI'!M6 -> 0 | AC8: ='Test-AI'!N6 -> 0 | AD8: ='Test-AI'!O6 -> 0 | AE8: =(Summary!$C$64*AB8+Summary!$C$65*AC8+Summary!$C$66*AD8)/Summary!$C$67 -> 0 | AF8: ='Test-AI'!P6 -> 0 | AG8: ='Test-AI'!Q6 -> 0 | AH8: ='Test-AI'!R6 -> 0 | AI8: ='Test-AI'!S6 -> 0 | AJ8: ='Test-AI'!T6 -> 0 | AK8: ='Test-AI'!U6 -> 0 | AL8: ='Test-AI'!V6 -> 0 | AM8: ='Test-AI'!W6 -> 0 | AN8: ='Test-AI'!X6 -> 0 | AO8: =10*LOG10(1/((Summary!$C$81/10^(AL8/10)+Summary!$C$82/10^(AM8/10)+Summary!$C$83/10^(AN8/10))/Summary!$C$84)) -> 0 | AP8: ='Test-AI'!Y6 -> 0 | AQ8: ='Test-AI'!Z6 -> 0 | AR8: ='Test-AI'!AA6 -> 0 | AS8: 0 | AX8: Low | AY8: =bdRateExtend($G6:$G9,H6:H9,$AA6:$AA9,AB6:AB9) ->  | BE8: =bdRateExtend($G6:$G9,L6:L9,$AA6:$AA9,AF6:AF9) ->  | BG8: =bdRateExtend($G6:$G9,M6:M9,$AA6:$AA9,AG6:AG9) ->  | BI8: =bdRateExtend($G6:$G9,N6:N9,$AA6:$AA9,AH6:AH9,"None", FALSE,1) ->  | BK8: =bdRateExtend($G6:$G9,O6:O9,$AA6:$AA9,AI6:AI9,"None", FALSE,1) ->  | BM8: =bdRateExtend($G6:$G9,P6:P9,$AA6:$AA9,AJ6:AJ9) ->  | BO8: =bdRateExtend($G6:$G9,Q6:Q9,$AA6:$AA9,AK6:AK9) ->  | BQ8: =bdRateExtend($G6:$G9,R6:R9,$AA6:$AA9,AL6:AL9) ->  | BW8: =bdCAMBIExtend($G6:$G9,V6:V9,$AA6:$AA9,AP6:AP9) ->  | BY8: =testVMAFRange($G6:$G9,N6:N9,$AA6:$AA9,AH6:AH9) -> 0 | CA8: =testVMAFRange($G6:$G9,O6:O9,$AA6:$AA9,AI6:AI9) -> 0
F9: 210 | G9: ='Anchor-AI'!L7 -> 0 | H9: ='Anchor-AI'!M7 -> 0 | I9: ='Anchor-AI'!N7 -> 0 | J9: ='Anchor-AI'!O7 -> 0 | K9: =(Summary!$C$64*H9+Summary!$C$65*I9+Summary!$C$66*J9)/Summary!$C$67 -> 0 | L9: ='Anchor-AI'!P7 -> 0 | M9: ='Anchor-AI'!Q7 -> 0 | N9: ='Anchor-AI'!R7 -> 0 | O9: ='Anchor-AI'!S7 -> 0 | P9: ='Anchor-AI'!T7 -> 0 | Q9: ='Anchor-AI'!U7 -> 0 | R9: ='Anchor-AI'!V7 -> 0 | S9: ='Anchor-AI'!W7 -> 0 | T9: ='Anchor-AI'!X7 -> 0 | U9: =10*LOG10(1/((Summary!$C$81/10^(R9/10)+Summary!$C$82/10^(S9/10)+Summary!$C$83/10^(T9/10))/Summary!$C$84)) -> 0 | V9: ='Anchor-AI'!Y7 -> 0 | W9: ='Anchor-AI'!Z7 -> 0 | X9: ='Anchor-AI'!AA7 -> 0 | Y9: 0 | AA9: ='Test-AI'!L7 -> 0 | AB9: ='Test-AI'!M7 -> 0 | AC9: ='Test-AI'!N7 -> 0 | AD9: ='Test-AI'!O7 -> 0 | AE9: =(Summary!$C$64*AB9+Summary!$C$65*AC9+Summary!$C$66*AD9)/Summary!$C$67 -> 0 | AF9: ='Test-AI'!P7 -> 0 | AG9: ='Test-AI'!Q7 -> 0 | AH9: ='Test-AI'!R7 -> 0 | AI9: ='Test-AI'!S7 -> 0 | AJ9: ='Test-AI'!T7 -> 0 | AK9: ='Test-AI'!U7 -> 0 | AL9: ='Test-AI'!V7 -> 0 | AM9: ='Test-AI'!W7 -> 0 | AN9: ='Test-AI'!X7 -> 0 | AO9: =10*LOG10(1/((Summary!$C$81/10^(AL9/10)+Summary!$C$82/10^(AM9/10)+Summary!$C$83/10^(AN9/10))/Summary!$C$84)) -> 0 | AP9: ='Test-AI'!Y7 -> 0 | AQ9: ='Test-AI'!Z7 -> 0 | AR9: ='Test-AI'!AA7 -> 0 | AS9: 0
B10: 3840x2160 | C10: Crosswalk_3840x2160_5994fps_10bit_420 | D10: 59.94 | E10: 10 | F10: 85 | G10: ='Anchor-AI'!L8 -> 0 | H10: ='Anchor-AI'!M8 -> 0 | I10: ='Anchor-AI'!N8 -> 0 | J10: ='Anchor-AI'!O8 -> 0 | K10: =(Summary!$C$64*H10+Summary!$C$65*I10+Summary!$C$66*J10)/Summary!$C$67 -> 0 | L10: ='Anchor-AI'!P8 -> 0 | M10: ='Anchor-AI'!Q8 -> 0 | N10: ='Anchor-AI'!R8 -> 0 | O10: ='Anchor-AI'!S8 -> 0 | P10: ='Anchor-AI'!T8 -> 0 | Q10: ='Anchor-AI'!U8 -> 0 | R10: ='Anchor-AI'!V8 -> 0 | S10: ='Anchor-AI'!W8 -> 0 | T10: ='Anchor-AI'!X8 -> 0 | U10: =10*LOG10(1/((Summary!$C$81/10^(R10/10)+Summary!$C$82/10^(S10/10)+Summary!$C$83/10^(T10/10))/Summary!$C$84)) -> 0 | V10: ='Anchor-AI'!Y8 -> 0 | W10: ='Anchor-AI'!Z8 -> 0 | X10: ='Anchor-AI'!AA8 -> 0 | Y10: 0 | AA10: ='Test-AI'!L8 -> 0 | AB10: ='Test-AI'!M8 -> 0 | AC10: ='Test-AI'!N8 -> 0 | AD10: ='Test-AI'!O8 -> 0 | AE10: =(Summary!$C$64*AB10+Summary!$C$65*AC10+Summary!$C$66*AD10)/Summary!$C$67 -> 0 | AF10: ='Test-AI'!P8 -> 0 | AG10: ='Test-AI'!Q8 -> 0 | AH10: ='Test-AI'!R8 -> 0 | AI10: ='Test-AI'!S8 -> 0 | AJ10: ='Test-AI'!T8 -> 0 | AK10: ='Test-AI'!U8 -> 0 | AL10: ='Test-AI'!V8 -> 0 | AM10: ='Test-AI'!W8 -> 0 | AN10: ='Test-AI'!X8 -> 0 | AO10: =10*LOG10(1/((Summary!$C$81/10^(AL10/10)+Summary!$C$82/10^(AM10/10)+Summary!$C$83/10^(AN10/10))/Summary!$C$84)) -> 0 | AP10: ='Test-AI'!Y8 -> 0 | AQ10: ='Test-AI'!Z8 -> 0 | AR10: ='Test-AI'!AA8 -> 0 | AS10: 0 | AX10: High | AY10: =bdRateExtend($G10:$G13,H10:H13,$AA10:$AA13,AB10:AB13) ->  | AZ10: =bdRateExtend($G10:$G15,H10:H15,$AA10:$AA15,AB10:AB15) ->  | BA10: =bdRateExtend($G10:$G15,I10:I15,$AA10:$AA15,AC10:AC15) ->  | BB10: =bdRateExtend($G10:$G15,J10:J15,$AA10:$AA15,AD10:AD15) ->  | BC10: =bdRateExtend($G10:$G15,K10:K15,$AA10:$AA15,AE10:AE15) ->  | BD10: =(Summary!$C$95*AZ10+Summary!$C$96*BA10+Summary!$C$97*BB10)/Summary!$C$98 ->  | BE10: =bdRateExtend($G10:$G13,L10:L13,$AA10:$AA13,AF10:AF13) ->  | BF10: =bdRateExtend($G10:$G15,L10:L15,$AA10:$AA15,AF10:AF15) ->  | BG10: =bdRateExtend($G10:$G13,M10:M13,$AA10:$AA13,AG10:AG13) ->  | BH10: =bdRateExtend($G10:$G15,M10:M15,$AA10:$AA15,AG10:AG15) ->  | BI10: =bdRateExtend($G10:$G13,N10:N13,$AA10:$AA13,AH10:AH13,"None", FALSE,1) ->  | BJ10: =bdRateExtend($G10:$G15,N10:N15,$AA10:$AA15,AH10:AH15,"None", FALSE,1) ->  | BK10: =bdRateExtend($G10:$G13,O10:O13,$AA10:$AA13,AI10:AI13,"None", FALSE,1) ->  | BL10: =bdRateExtend($G10:$G15,O10:O15,$AA10:$AA15,AI10:AI15,"None", FALSE,1) ->  | BM10: =bdRateExtend($G10:$G13,P10:P13,$AA10:$AA13,AJ10:AJ13) ->  | BN10: =bdRateExtend($G10:$G15,P10:P15,$AA10:$AA15,AJ10:AJ15) ->  | BO10: =bdRateExtend($G10:$G13,Q10:Q13,$AA10:$AA13,AK10:AK13) ->  | BP10: =bdRateExtend($G10:$G15,Q10:Q15,$AA10:$AA15,AK10:AK15) ->  | BQ10: =bdRateExtend($G10:$G13,R10:R13,$AA10:$AA13,AL10:AL13) ->  | BR10: =bdRateExtend($G10:$G15,R10:R15,$AA10:$AA15,AL10:AL15) ->  | BS10: =bdRateExtend($G10:$G15,S10:S15,$AA10:$AA15,AM10:AM15) ->  | BT10: =bdRateExtend($G10:$G15,T10:T15,$AA10:$AA15,AN10:AN15) ->  | BU10: =bdRateExtend($G10:$G15,U10:U15,$AA10:$AA15,AO10:AO15) ->  | BV10: =(Summary!$C$109*BR10+Summary!$C$110*BS10+Summary!$C$111*BT10)/Summary!$C$112 ->  | BW10: =bdCAMBIExtend($G10:$G13,V10:V13,$AA10:$AA13,AP10:AP13) ->  | BX10: =bdCAMBIExtend($G10:$G15,V10:V15,$AA10:$AA15,AP10:AP15) ->  | BY10: =testVMAFRange($G10:$G13,N10:N13,$AA10:$AA13,AH10:AH13) -> 0 | BZ10: =testVMAFRange($G10:$G15,N10:N15,$AA10:$AA15,AH10:AH15) -> 0 | CA10: =testVMAFRange($G10:$G13,O10:O13,$AA10:$AA13,AI10:AI13) -> 0 | CB10: =testVMAFRange($G10:$G15,O10:O15,$AA10:$AA15,AI10:AI15) -> 0
F11: 110 | G11: ='Anchor-AI'!L9 -> 0 | H11: ='Anchor-AI'!M9 -> 0 | I11: ='Anchor-AI'!N9 -> 0 | J11: ='Anchor-AI'!O9 -> 0 | K11: =(Summary!$C$64*H11+Summary!$C$65*I11+Summary!$C$66*J11)/Summary!$C$67 -> 0 | L11: ='Anchor-AI'!P9 -> 0 | M11: ='Anchor-AI'!Q9 -> 0 | N11: ='Anchor-AI'!R9 -> 0 | O11: ='Anchor-AI'!S9 -> 0 | P11: ='Anchor-AI'!T9 -> 0 | Q11: ='Anchor-AI'!U9 -> 0 | R11: ='Anchor-AI'!V9 -> 0 | S11: ='Anchor-AI'!W9 -> 0 | T11: ='Anchor-AI'!X9 -> 0 | U11: =10*LOG10(1/((Summary!$C$81/10^(R11/10)+Summary!$C$82/10^(S11/10)+Summary!$C$83/10^(T11/10))/Summary!$C$84)) -> 0 | V11: ='Anchor-AI'!Y9 -> 0 | W11: ='Anchor-AI'!Z9 -> 0 | X11: ='Anchor-AI'!AA9 -> 0 | Y11: 0 | AA11: ='Test-AI'!L9 -> 0 | AB11: ='Test-AI'!M9 -> 0 | AC11: ='Test-AI'!N9 -> 0 | AD11: ='Test-AI'!O9 -> 0 | AE11: =(Summary!$C$64*AB11+Summary!$C$65*AC11+Summary!$C$66*AD11)/Summary!$C$67 -> 0 | AF11: ='Test-AI'!P9 -> 0 | AG11: ='Test-AI'!Q9 -> 0 | AH11: ='Test-AI'!R9 -> 0 | AI11: ='Test-AI'!S9 -> 0 | AJ11: ='Test-AI'!T9 -> 0 | AK11: ='Test-AI'!U9 -> 0 | AL11: ='Test-AI'!V9 -> 0 | AM11: ='Test-AI'!W9 -> 0 | AN11: ='Test-AI'!X9 -> 0 | AO11: =10*LOG10(1/((Summary!$C$81/10^(AL11/10)+Summary!$C$82/10^(AM11/10)+Summary!$C$83/10^(AN11/10))/Summary!$C$84)) -> 0 | AP11: ='Test-AI'!Y9 -> 0 | AQ11: ='Test-AI'!Z9 -> 0 | AR11: ='Test-AI'!AA9 -> 0 | AS11: 0
F12: 135 | G12: ='Anchor-AI'!L10 -> 0 | H12: ='Anchor-AI'!M10 -> 0 | I12: ='Anchor-AI'!N10 -> 0 | J12: ='Anchor-AI'!O10 -> 0 | K12: =(Summary!$C$64*H12+Summary!$C$65*I12+Summary!$C$66*J12)/Summary!$C$67 -> 0 | L12: ='Anchor-AI'!P10 -> 0 | M12: ='Anchor-AI'!Q10 -> 0 | N12: ='Anchor-AI'!R10 -> 0 | O12: ='Anchor-AI'!S10 -> 0 | P12: ='Anchor-AI'!T10 -> 0 | Q12: ='Anchor-AI'!U10 -> 0 | R12: ='Anchor-AI'!V10 -> 0 | S12: ='Anchor-AI'!W10 -> 0 | T12: ='Anchor-AI'!X10 -> 0 | U12: =10*LOG10(1/((Summary!$C$81/10^(R12/10)+Summary!$C$82/10^(S12/10)+Summary!$C$83/10^(T12/10))/Summary!$C$84)) -> 0 | V12: ='Anchor-AI'!Y10 -> 0 | W12: ='Anchor-AI'!Z10 -> 0 | X12: ='Anchor-AI'!AA10 -> 0 | Y12: 0 | AA12: ='Test-AI'!L10 -> 0 | AB12: ='Test-AI'!M10 -> 0 | AC12: ='Test-AI'!N10 -> 0 | AD12: ='Test-AI'!O10 -> 0 | AE12: =(Summary!$C$64*AB12+Summary!$C$65*AC12+Summary!$C$66*AD12)/Summary!$C$67 -> 0 | AF12: ='Test-AI'!P10 -> 0 | AG12: ='Test-AI'!Q10 -> 0 | AH12: ='Test-AI'!R10 -> 0 | AI12: ='Test-AI'!S10 -> 0 | AJ12: ='Test-AI'!T10 -> 0 | AK12: ='Test-AI'!U10 -> 0 | AL12: ='Test-AI'!V10 -> 0 | AM12: ='Test-AI'!W10 -> 0 | AN12: ='Test-AI'!X10 -> 0 | AO12: =10*LOG10(1/((Summary!$C$81/10^(AL12/10)+Summary!$C$82/10^(AM12/10)+Summary!$C$83/10^(AN12/10))/Summary!$C$84)) -> 0 | AP12: ='Test-AI'!Y10 -> 0 | AQ12: ='Test-AI'!Z10 -> 0 | AR12: ='Test-AI'!AA10 -> 0 | AS12: 0 | AX12: Med | AY12: =bdRateExtend($G11:$G14,H11:H14,$AA11:$AA14,AB11:AB14) ->  | BE12: =bdRateExtend($G11:$G14,L11:L14,$AA11:$AA14,AF11:AF14) ->  | BG12: =bdRateExtend($G11:$G14,M11:M14,$AA11:$AA14,AG11:AG14) ->  | BI12: =bdRateExtend($G11:$G14,N11:N14,$AA11:$AA14,AH11:AH14,"None", FALSE,1) ->  | BK12: =bdRateExtend($G11:$G14,O11:O14,$AA11:$AA14,AI11:AI14,"None", FALSE,1) ->  | BM12: =bdRateExtend($G11:$G14,P11:P14,$AA11:$AA14,AJ11:AJ14) ->  | BO12: =bdRateExtend($G11:$G14,Q11:Q14,$AA11:$AA14,AK11:AK14) ->  | BQ12: =bdRateExtend($G11:$G14,R11:R14,$AA11:$AA14,AL11:AL14) ->  | BW12: =bdCAMBIExtend($G11:$G14,V11:V14,$AA11:$AA14,AP11:AP14) ->  | BY12: =testVMAFRange($G11:$G14,N11:N14,$AA11:$AA14,AH11:AH14) -> 0 | CA12: =testVMAFRange($G11:$G14,O11:O14,$AA11:$AA14,AI11:AI14) -> 0
F13: 160 | G13: ='Anchor-AI'!L11 -> 0 | H13: ='Anchor-AI'!M11 -> 0 | I13: ='Anchor-AI'!N11 -> 0 | J13: ='Anchor-AI'!O11 -> 0 | K13: =(Summary!$C$64*H13+Summary!$C$65*I13+Summary!$C$66*J13)/Summary!$C$67 -> 0 | L13: ='Anchor-AI'!P11 -> 0 | M13: ='Anchor-AI'!Q11 -> 0 | N13: ='Anchor-AI'!R11 -> 0 | O13: ='Anchor-AI'!S11 -> 0 | P13: ='Anchor-AI'!T11 -> 0 | Q13: ='Anchor-AI'!U11 -> 0 | R13: ='Anchor-AI'!V11 -> 0 | S13: ='Anchor-AI'!W11 -> 0 | T13: ='Anchor-AI'!X11 -> 0 | U13: =10*LOG10(1/((Summary!$C$81/10^(R13/10)+Summary!$C$82/10^(S13/10)+Summary!$C$83/10^(T13/10))/Summary!$C$84)) -> 0 | V13: ='Anchor-AI'!Y11 -> 0 | W13: ='Anchor-AI'!Z11 -> 0 | X13: ='Anchor-AI'!AA11 -> 0 | Y13: 0 | AA13: ='Test-AI'!L11 -> 0 | AB13: ='Test-AI'!M11 -> 0 | AC13: ='Test-AI'!N11 -> 0 | AD13: ='Test-AI'!O11 -> 0 | AE13: =(Summary!$C$64*AB13+Summary!$C$65*AC13+Summary!$C$66*AD13)/Summary!$C$67 -> 0 | AF13: ='Test-AI'!P11 -> 0 | AG13: ='Test-AI'!Q11 -> 0 | AH13: ='Test-AI'!R11 -> 0 | AI13: ='Test-AI'!S11 -> 0 | AJ13: ='Test-AI'!T11 -> 0 | AK13: ='Test-AI'!U11 -> 0 | AL13: ='Test-AI'!V11 -> 0 | AM13: ='Test-AI'!W11 -> 0 | AN13: ='Test-AI'!X11 -> 0 | AO13: =10*LOG10(1/((Summary!$C$81/10^(AL13/10)+Summary!$C$82/10^(AM13/10)+Summary!$C$83/10^(AN13/10))/Summary!$C$84)) -> 0 | AP13: ='Test-AI'!Y11 -> 0 | AQ13: ='Test-AI'!Z11 -> 0 | AR13: ='Test-AI'!AA11 -> 0 | AS13: 0
F14: 185 | G14: ='Anchor-AI'!L12 -> 0 | H14: ='Anchor-AI'!M12 -> 0 | I14: ='Anchor-AI'!N12 -> 0 | J14: ='Anchor-AI'!O12 -> 0 | K14: =(Summary!$C$64*H14+Summary!$C$65*I14+Summary!$C$66*J14)/Summary!$C$67 -> 0 | L14: ='Anchor-AI'!P12 -> 0 | M14: ='Anchor-AI'!Q12 -> 0 | N14: ='Anchor-AI'!R12 -> 0 | O14: ='Anchor-AI'!S12 -> 0 | P14: ='Anchor-AI'!T12 -> 0 | Q14: ='Anchor-AI'!U12 -> 0 | R14: ='Anchor-AI'!V12 -> 0 | S14: ='Anchor-AI'!W12 -> 0 | T14: ='Anchor-AI'!X12 -> 0 | U14: =10*LOG10(1/((Summary!$C$81/10^(R14/10)+Summary!$C$82/10^(S14/10)+Summary!$C$83/10^(T14/10))/Summary!$C$84)) -> 0 | V14: ='Anchor-AI'!Y12 -> 0 | W14: ='Anchor-AI'!Z12 -> 0 | X14: ='Anchor-AI'!AA12 -> 0 | Y14: 0 | AA14: ='Test-AI'!L12 -> 0 | AB14: ='Test-AI'!M12 -> 0 | AC14: ='Test-AI'!N12 -> 0 | AD14: ='Test-AI'!O12 -> 0 | AE14: =(Summary!$C$64*AB14+Summary!$C$65*AC14+Summary!$C$66*AD14)/Summary!$C$67 -> 0 | AF14: ='Test-AI'!P12 -> 0 | AG14: ='Test-AI'!Q12 -> 0 | AH14: ='Test-AI'!R12 -> 0 | AI14: ='Test-AI'!S12 -> 0 | AJ14: ='Test-AI'!T12 -> 0 | AK14: ='Test-AI'!U12 -> 0 | AL14: ='Test-AI'!V12 -> 0 | AM14: ='Test-AI'!W12 -> 0 | AN14: ='Test-AI'!X12 -> 0 | AO14: =10*LOG10(1/((Summary!$C$81/10^(AL14/10)+Summary!$C$82/10^(AM14/10)+Summary!$C$83/10^(AN14/10))/Summary!$C$84)) -> 0 | AP14: ='Test-AI'!Y12 -> 0 | AQ14: ='Test-AI'!Z12 -> 0 | AR14: ='Test-AI'!AA12 -> 0 | AS14: 0 | AX14: Low | AY14: =bdRateExtend($G12:$G15,H12:H15,$AA12:$AA15,AB12:AB15) ->  | BE14: =bdRateExtend($G12:$G15,L12:L15,$AA12:$AA15,AF12:AF15) ->  | BG14: =bdRateExtend($G12:$G15,M12:M15,$AA12:$AA15,AG12:AG15) ->  | BI14: =bdRateExtend($G12:$G15,N12:N15,$AA12:$AA15,AH12:AH15,"None", FALSE,1) ->  | BK14: =bdRateExtend($G12:$G15,O12:O15,$AA12:$AA15,AI12:AI15,"None", FALSE,1) ->  | BM14: =bdRateExtend($G12:$G15,P12:P15,$AA12:$AA15,AJ12:AJ15) ->  | BO14: =bdRateExtend($G12:$G15,Q12:Q15,$AA12:$AA15,AK12:AK15) ->  | BQ14: =bdRateExtend($G12:$G15,R12:R15,$AA12:$AA15,AL12:AL15) ->  | BW14: =bdCAMBIExtend($G12:$G15,V12:V15,$AA12:$AA15,AP12:AP15) ->  | BY14: =testVMAFRange($G12:$G15,N12:N15,$AA12:$AA15,AH12:AH15) -> 0 | CA14: =testVMAFRange($G12:$G15,O12:O15,$AA12:$AA15,AI12:AI15) -> 0
F15: 210 | G15: ='Anchor-AI'!L13 -> 0 | H15: ='Anchor-AI'!M13 -> 0 | I15: ='Anchor-AI'!N13 -> 0 | J15: ='Anchor-AI'!O13 -> 0 | K15: =(Summary!$C$64*H15+Summary!$C$65*I15+Summary!$C$66*J15)/Summary!$C$67 -> 0 | L15: ='Anchor-AI'!P13 -> 0 | M15: ='Anchor-AI'!Q13 -> 0 | N15: ='Anchor-AI'!R13 -> 0 | O15: ='Anchor-AI'!S13 -> 0 | P15: ='Anchor-AI'!T13 -> 0 | Q15: ='Anchor-AI'!U13 -> 0 | R15: ='Anchor-AI'!V13 -> 0 | S15: ='Anchor-AI'!W13 -> 0 | T15: ='Anchor-AI'!X13 -> 0 | U15: =10*LOG10(1/((Summary!$C$81/10^(R15/10)+Summary!$C$82/10^(S15/10)+Summary!$C$83/10^(T15/10))/Summary!$C$84)) -> 0 | V15: ='Anchor-AI'!Y13 -> 0 | W15: ='Anchor-AI'!Z13 -> 0 | X15: ='Anchor-AI'!AA13 -> 0 | Y15: 0 | AA15: ='Test-AI'!L13 -> 0 | AB15: ='Test-AI'!M13 -> 0 | AC15: ='Test-AI'!N13 -> 0 | AD15: ='Test-AI'!O13 -> 0 | AE15: =(Summary!$C$64*AB15+Summary!$C$65*AC15+Summary!$C$66*AD15)/Summary!$C$67 -> 0 | AF15: ='Test-AI'!P13 -> 0 | AG15: ='Test-AI'!Q13 -> 0 | AH15: ='Test-AI'!R13 -> 0 | AI15: ='Test-AI'!S13 -> 0 | AJ15: ='Test-AI'!T13 -> 0 | AK15: ='Test-AI'!U13 -> 0 | AL15: ='Test-AI'!V13 -> 0 | AM15: ='Test-AI'!W13 -> 0 | AN15: ='Test-AI'!X13 -> 0 | AO15: =10*LOG10(1/((Summary!$C$81/10^(AL15/10)+Summary!$C$82/10^(AM15/10)+Summary!$C$83/10^(AN15/10))/Summary!$C$84)) -> 0 | AP15: ='Test-AI'!Y13 -> 0 | AQ15: ='Test-AI'!Z13 -> 0 | AR15: ='Test-AI'!AA13 -> 0 | AS15: 0
B16: 3840x2160 | C16: FoodMarket2_3840x2160_5994fps_10bit_420 | D16: 59.94 | E16: 10 | F16: 85 | G16: ='Anchor-AI'!L14 -> 0 | H16: ='Anchor-AI'!M14 -> 0 | I16: ='Anchor-AI'!N14 -> 0 | J16: ='Anchor-AI'!O14 -> 0 | K16: =(Summary!$C$64*H16+Summary!$C$65*I16+Summary!$C$66*J16)/Summary!$C$67 -> 0 | L16: ='Anchor-AI'!P14 -> 0 | M16: ='Anchor-AI'!Q14 -> 0 | N16: ='Anchor-AI'!R14 -> 0 | O16: ='Anchor-AI'!S14 -> 0 | P16: ='Anchor-AI'!T14 -> 0 | Q16: ='Anchor-AI'!U14 -> 0 | R16: ='Anchor-AI'!V14 -> 0 | S16: ='Anchor-AI'!W14 -> 0 | T16: ='Anchor-AI'!X14 -> 0 | U16: =10*LOG10(1/((Summary!$C$81/10^(R16/10)+Summary!$C$82/10^(S16/10)+Summary!$C$83/10^(T16/10))/Summary!$C$84)) -> 0 | V16: ='Anchor-AI'!Y14 -> 0 | W16: ='Anchor-AI'!Z14 -> 0 | X16: ='Anchor-AI'!AA14 -> 0 | Y16: 0 | AA16: ='Test-AI'!L14 -> 0 | AB16: ='Test-AI'!M14 -> 0 | AC16: ='Test-AI'!N14 -> 0 | AD16: ='Test-AI'!O14 -> 0 | AE16: =(Summary!$C$64*AB16+Summary!$C$65*AC16+Summary!$C$66*AD16)/Summary!$C$67 -> 0 | AF16: ='Test-AI'!P14 -> 0 | AG16: ='Test-AI'!Q14 -> 0 | AH16: ='Test-AI'!R14 -> 0 | AI16: ='Test-AI'!S14 -> 0 | AJ16: ='Test-AI'!T14 -> 0 | AK16: ='Test-AI'!U14 -> 0 | AL16: ='Test-AI'!V14 -> 0 | AM16: ='Test-AI'!W14 -> 0 | AN16: ='Test-AI'!X14 -> 0 | AO16: =10*LOG10(1/((Summary!$C$81/10^(AL16/10)+Summary!$C$82/10^(AM16/10)+Summary!$C$83/10^(AN16/10))/Summary!$C$84)) -> 0 | AP16: ='Test-AI'!Y14 -> 0 | AQ16: ='Test-AI'!Z14 -> 0 | AR16: ='Test-AI'!AA14 -> 0 | AS16: 0 | AX16: High | AY16: =bdRateExtend($G16:$G19,H16:H19,$AA16:$AA19,AB16:AB19) ->  | AZ16: =bdRateExtend($G16:$G21,H16:H21,$AA16:$AA21,AB16:AB21) ->  | BA16: =bdRateExtend($G16:$G21,I16:I21,$AA16:$AA21,AC16:AC21) ->  | BB16: =bdRateExtend($G16:$G21,J16:J21,$AA16:$AA21,AD16:AD21) ->  | BC16: =bdRateExtend($G16:$G21,K16:K21,$AA16:$AA21,AE16:AE21) ->  | BD16: =(Summary!$C$95*AZ16+Summary!$C$96*BA16+Summary!$C$97*BB16)/Summary!$C$98 ->  | BE16: =bdRateExtend($G16:$G19,L16:L19,$AA16:$AA19,AF16:AF19) ->  | BF16: =bdRateExtend($G16:$G21,L16:L21,$AA16:$AA21,AF16:AF21) ->  | BG16: =bdRateExtend($G16:$G19,M16:M19,$AA16:$AA19,AG16:AG19) ->  | BH16: =bdRateExtend($G16:$G21,M16:M21,$AA16:$AA21,AG16:AG21) ->  | BI16: =bdRateExtend($G16:$G19,N16:N19,$AA16:$AA19,AH16:AH19,"None", FALSE,1) ->  | BJ16: =bdRateExtend($G16:$G21,N16:N21,$AA16:$AA21,AH16:AH21,"None", FALSE,1) ->  | BK16: =bdRateExtend($G16:$G19,O16:O19,$AA16:$AA19,AI16:AI19,"None", FALSE,1) ->  | BL16: =bdRateExtend($G16:$G21,O16:O21,$AA16:$AA21,AI16:AI21,"None", FALSE,1) ->  | BM16: =bdRateExtend($G16:$G19,P16:P19,$AA16:$AA19,AJ16:AJ19) ->  | BN16: =bdRateExtend($G16:$G21,P16:P21,$AA16:$AA21,AJ16:AJ21) ->  | BO16: =bdRateExtend($G16:$G19,Q16:Q19,$AA16:$AA19,AK16:AK19) ->  | BP16: =bdRateExtend($G16:$G21,Q16:Q21,$AA16:$AA21,AK16:AK21) ->  | BQ16: =bdRateExtend($G16:$G19,R16:R19,$AA16:$AA19,AL16:AL19) ->  | BR16: =bdRateExtend($G16:$G21,R16:R21,$AA16:$AA21,AL16:AL21) ->  | BS16: =bdRateExtend($G16:$G21,S16:S21,$AA16:$AA21,AM16:AM21) ->  | BT16: =bdRateExtend($G16:$G21,T16:T21,$AA16:$AA21,AN16:AN21) ->  | BU16: =bdRateExtend($G16:$G21,U16:U21,$AA16:$AA21,AO16:AO21) ->  | BV16: =(Summary!$C$109*BR16+Summary!$C$110*BS16+Summary!$C$111*BT16)/Summary!$C$112 ->  | BW16: =bdCAMBIExtend($G16:$G19,V16:V19,$AA16:$AA19,AP16:AP19) ->  | BX16: =bdCAMBIExtend($G16:$G21,V16:V21,$AA16:$AA21,AP16:AP21) ->  | BY16: =testVMAFRange($G16:$G19,N16:N19,$AA16:$AA19,AH16:AH19) -> 0 | BZ16: =testVMAFRange($G16:$G21,N16:N21,$AA16:$AA21,AH16:AH21) -> 0 | CA16: =testVMAFRange($G16:$G19,O16:O19,$AA16:$AA19,AI16:AI19) -> 0 | CB16: =testVMAFRange($G16:$G21,O16:O21,$AA16:$AA21,AI16:AI21) -> 0
F17: 110 | G17: ='Anchor-AI'!L15 -> 0 | H17: ='Anchor-AI'!M15 -> 0 | I17: ='Anchor-AI'!N15 -> 0 | J17: ='Anchor-AI'!O15 -> 0 | K17: =(Summary!$C$64*H17+Summary!$C$65*I17+Summary!$C$66*J17)/Summary!$C$67 -> 0 | L17: ='Anchor-AI'!P15 -> 0 | M17: ='Anchor-AI'!Q15 -> 0 | N17: ='Anchor-AI'!R15 -> 0 | O17: ='Anchor-AI'!S15 -> 0 | P17: ='Anchor-AI'!T15 -> 0 | Q17: ='Anchor-AI'!U15 -> 0 | R17: ='Anchor-AI'!V15 -> 0 | S17: ='Anchor-AI'!W15 -> 0 | T17: ='Anchor-AI'!X15 -> 0 | U17: =10*LOG10(1/((Summary!$C$81/10^(R17/10)+Summary!$C$82/10^(S17/10)+Summary!$C$83/10^(T17/10))/Summary!$C$84)) -> 0 | V17: ='Anchor-AI'!Y15 -> 0 | W17: ='Anchor-AI'!Z15 -> 0 | X17: ='Anchor-AI'!AA15 -> 0 | Y17: 0 | AA17: ='Test-AI'!L15 -> 0 | AB17: ='Test-AI'!M15 -> 0 | AC17: ='Test-AI'!N15 -> 0 | AD17: ='Test-AI'!O15 -> 0 | AE17: =(Summary!$C$64*AB17+Summary!$C$65*AC17+Summary!$C$66*AD17)/Summary!$C$67 -> 0 | AF17: ='Test-AI'!P15 -> 0 | AG17: ='Test-AI'!Q15 -> 0 | AH17: ='Test-AI'!R15 -> 0 | AI17: ='Test-AI'!S15 -> 0 | AJ17: ='Test-AI'!T15 -> 0 | AK17: ='Test-AI'!U15 -> 0 | AL17: ='Test-AI'!V15 -> 0 | AM17: ='Test-AI'!W15 -> 0 | AN17: ='Test-AI'!X15 -> 0 | AO17: =10*LOG10(1/((Summary!$C$81/10^(AL17/10)+Summary!$C$82/10^(AM17/10)+Summary!$C$83/10^(AN17/10))/Summary!$C$84)) -> 0 | AP17: ='Test-AI'!Y15 -> 0 | AQ17: ='Test-AI'!Z15 -> 0 | AR17: ='Test-AI'!AA15 -> 0 | AS17: 0
F18: 135 | G18: ='Anchor-AI'!L16 -> 0 | H18: ='Anchor-AI'!M16 -> 0 | I18: ='Anchor-AI'!N16 -> 0 | J18: ='Anchor-AI'!O16 -> 0 | K18: =(Summary!$C$64*H18+Summary!$C$65*I18+Summary!$C$66*J18)/Summary!$C$67 -> 0 | L18: ='Anchor-AI'!P16 -> 0 | M18: ='Anchor-AI'!Q16 -> 0 | N18: ='Anchor-AI'!R16 -> 0 | O18: ='Anchor-AI'!S16 -> 0 | P18: ='Anchor-AI'!T16 -> 0 | Q18: ='Anchor-AI'!U16 -> 0 | R18: ='Anchor-AI'!V16 -> 0 | S18: ='Anchor-AI'!W16 -> 0 | T18: ='Anchor-AI'!X16 -> 0 | U18: =10*LOG10(1/((Summary!$C$81/10^(R18/10)+Summary!$C$82/10^(S18/10)+Summary!$C$83/10^(T18/10))/Summary!$C$84)) -> 0 | V18: ='Anchor-AI'!Y16 -> 0 | W18: ='Anchor-AI'!Z16 -> 0 | X18: ='Anchor-AI'!AA16 -> 0 | Y18: 0 | AA18: ='Test-AI'!L16 -> 0 | AB18: ='Test-AI'!M16 -> 0 | AC18: ='Test-AI'!N16 -> 0 | AD18: ='Test-AI'!O16 -> 0 | AE18: =(Summary!$C$64*AB18+Summary!$C$65*AC18+Summary!$C$66*AD18)/Summary!$C$67 -> 0 | AF18: ='Test-AI'!P16 -> 0 | AG18: ='Test-AI'!Q16 -> 0 | AH18: ='Test-AI'!R16 -> 0 | AI18: ='Test-AI'!S16 -> 0 | AJ18: ='Test-AI'!T16 -> 0 | AK18: ='Test-AI'!U16 -> 0 | AL18: ='Test-AI'!V16 -> 0 | AM18: ='Test-AI'!W16 -> 0 | AN18: ='Test-AI'!X16 -> 0 | AO18: =10*LOG10(1/((Summary!$C$81/10^(AL18/10)+Summary!$C$82/10^(AM18/10)+Summary!$C$83/10^(AN18/10))/Summary!$C$84)) -> 0 | AP18: ='Test-AI'!Y16 -> 0 | AQ18: ='Test-AI'!Z16 -> 0 | AR18: ='Test-AI'!AA16 -> 0 | AS18: 0 | AX18: Med | AY18: =bdRateExtend($G17:$G20,H17:H20,$AA17:$AA20,AB17:AB20) ->  | BE18: =bdRateExtend($G17:$G20,L17:L20,$AA17:$AA20,AF17:AF20) ->  | BG18: =bdRateExtend($G17:$G20,M17:M20,$AA17:$AA20,AG17:AG20) ->  | BI18: =bdRateExtend($G17:$G20,N17:N20,$AA17:$AA20,AH17:AH20,"None", FALSE,1) ->  | BK18: =bdRateExtend($G17:$G20,O17:O20,$AA17:$AA20,AI17:AI20,"None", FALSE,1) ->  | BM18: =bdRateExtend($G17:$G20,P17:P20,$AA17:$AA20,AJ17:AJ20) ->  | BO18: =bdRateExtend($G17:$G20,Q17:Q20,$AA17:$AA20,AK17:AK20) ->  | BQ18: =bdRateExtend($G17:$G20,R17:R20,$AA17:$AA20,AL17:AL20) ->  | BW18: =bdCAMBIExtend($G17:$G20,V17:V20,$AA17:$AA20,AP17:AP20) ->  | BY18: =testVMAFRange($G17:$G20,N17:N20,$AA17:$AA20,AH17:AH20) -> 0 | CA18: =testVMAFRange($G17:$G20,O17:O20,$AA17:$AA20,AI17:AI20) -> 0
F19: 160 | G19: ='Anchor-AI'!L17 -> 0 | H19: ='Anchor-AI'!M17 -> 0 | I19: ='Anchor-AI'!N17 -> 0 | J19: ='Anchor-AI'!O17 -> 0 | K19: =(Summary!$C$64*H19+Summary!$C$65*I19+Summary!$C$66*J19)/Summary!$C$67 -> 0 | L19: ='Anchor-AI'!P17 -> 0 | M19: ='Anchor-AI'!Q17 -> 0 | N19: ='Anchor-AI'!R17 -> 0 | O19: ='Anchor-AI'!S17 -> 0 | P19: ='Anchor-AI'!T17 -> 0 | Q19: ='Anchor-AI'!U17 -> 0 | R19: ='Anchor-AI'!V17 -> 0 | S19: ='Anchor-AI'!W17 -> 0 | T19: ='Anchor-AI'!X17 -> 0 | U19: =10*LOG10(1/((Summary!$C$81/10^(R19/10)+Summary!$C$82/10^(S19/10)+Summary!$C$83/10^(T19/10))/Summary!$C$84)) -> 0 | V19: ='Anchor-AI'!Y17 -> 0 | W19: ='Anchor-AI'!Z17 -> 0 | X19: ='Anchor-AI'!AA17 -> 0 | Y19: 0 | AA19: ='Test-AI'!L17 -> 0 | AB19: ='Test-AI'!M17 -> 0 | AC19: ='Test-AI'!N17 -> 0 | AD19: ='Test-AI'!O17 -> 0 | AE19: =(Summary!$C$64*AB19+Summary!$C$65*AC19+Summary!$C$66*AD19)/Summary!$C$67 -> 0 | AF19: ='Test-AI'!P17 -> 0 | AG19: ='Test-AI'!Q17 -> 0 | AH19: ='Test-AI'!R17 -> 0 | AI19: ='Test-AI'!S17 -> 0 | AJ19: ='Test-AI'!T17 -> 0 | AK19: ='Test-AI'!U17 -> 0 | AL19: ='Test-AI'!V17 -> 0 | AM19: ='Test-AI'!W17 -> 0 | AN19: ='Test-AI'!X17 -> 0 | AO19: =10*LOG10(1/((Summary!$C$81/10^(AL19/10)+Summary!$C$82/10^(AM19/10)+Summary!$C$83/10^(AN19/10))/Summary!$C$84)) -> 0 | AP19: ='Test-AI'!Y17 -> 0 | AQ19: ='Test-AI'!Z17 -> 0 | AR19: ='Test-AI'!AA17 -> 0 | AS19: 0
F20: 185 | G20: ='Anchor-AI'!L18 -> 0 | H20: ='Anchor-AI'!M18 -> 0 | I20: ='Anchor-AI'!N18 -> 0 | J20: ='Anchor-AI'!O18 -> 0 | K20: =(Summary!$C$64*H20+Summary!$C$65*I20+Summary!$C$66*J20)/Summary!$C$67 -> 0 | L20: ='Anchor-AI'!P18 -> 0 | M20: ='Anchor-AI'!Q18 -> 0 | N20: ='Anchor-AI'!R18 -> 0 | O20: ='Anchor-AI'!S18 -> 0 | P20: ='Anchor-AI'!T18 -> 0 | Q20: ='Anchor-AI'!U18 -> 0 | R20: ='Anchor-AI'!V18 -> 0 | S20: ='Anchor-AI'!W18 -> 0 | T20: ='Anchor-AI'!X18 -> 0 | U20: =10*LOG10(1/((Summary!$C$81/10^(R20/10)+Summary!$C$82/10^(S20/10)+Summary!$C$83/10^(T20/10))/Summary!$C$84)) -> 0 | V20: ='Anchor-AI'!Y18 -> 0 | W20: ='Anchor-AI'!Z18 -> 0 | X20: ='Anchor-AI'!AA18 -> 0 | Y20: 0 | AA20: ='Test-AI'!L18 -> 0 | AB20: ='Test-AI'!M18 -> 0 | AC20: ='Test-AI'!N18 -> 0 | AD20: ='Test-AI'!O18 -> 0 | AE20: =(Summary!$C$64*AB20+Summary!$C$65*AC20+Summary!$C$66*AD20)/Summary!$C$67 -> 0 | AF20: ='Test-AI'!P18 -> 0 | AG20: ='Test-AI'!Q18 -> 0 | AH20: ='Test-AI'!R18 -> 0 | AI20: ='Test-AI'!S18 -> 0 | AJ20: ='Test-AI'!T18 -> 0 | AK20: ='Test-AI'!U18 -> 0 | AL20: ='Test-AI'!V18 -> 0 | AM20: ='Test-AI'!W18 -> 0 | AN20: ='Test-AI'!X18 -> 0 | AO20: =10*LOG10(1/((Summary!$C$81/10^(AL20/10)+Summary!$C$82/10^(AM20/10)+Summary!$C$83/10^(AN20/10))/Summary!$C$84)) -> 0 | AP20: ='Test-AI'!Y18 -> 0 | AQ20: ='Test-AI'!Z18 -> 0 | AR20: ='Test-AI'!AA18 -> 0 | AS20: 0 | AX20: Low | AY20: =bdRateExtend($G18:$G21,H18:H21,$AA18:$AA21,AB18:AB21) ->  | BE20: =bdRateExtend($G18:$G21,L18:L21,$AA18:$AA21,AF18:AF21) ->  | BG20: =bdRateExtend($G18:$G21,M18:M21,$AA18:$AA21,AG18:AG21) ->  | BI20: =bdRateExtend($G18:$G21,N18:N21,$AA18:$AA21,AH18:AH21,"None", FALSE,1) ->  | BK20: =bdRateExtend($G18:$G21,O18:O21,$AA18:$AA21,AI18:AI21,"None", FALSE,1) ->  | BM20: =bdRateExtend($G18:$G21,P18:P21,$AA18:$AA21,AJ18:AJ21) ->  | BO20: =bdRateExtend($G18:$G21,Q18:Q21,$AA18:$AA21,AK18:AK21) ->  | BQ20: =bdRateExtend($G18:$G21,R18:R21,$AA18:$AA21,AL18:AL21) ->  | BW20: =bdCAMBIExtend($G18:$G21,V18:V21,$AA18:$AA21,AP18:AP21) ->  | BY20: =testVMAFRange($G18:$G21,N18:N21,$AA18:$AA21,AH18:AH21) -> 0 | CA20: =testVMAFRange($G18:$G21,O18:O21,$AA18:$AA21,AI18:AI21) -> 0
F21: 210 | G21: ='Anchor-AI'!L19 -> 0 | H21: ='Anchor-AI'!M19 -> 0 | I21: ='Anchor-AI'!N19 -> 0 | J21: ='Anchor-AI'!O19 -> 0 | K21: =(Summary!$C$64*H21+Summary!$C$65*I21+Summary!$C$66*J21)/Summary!$C$67 -> 0 | L21: ='Anchor-AI'!P19 -> 0 | M21: ='Anchor-AI'!Q19 -> 0 | N21: ='Anchor-AI'!R19 -> 0 | O21: ='Anchor-AI'!S19 -> 0 | P21: ='Anchor-AI'!T19 -> 0 | Q21: ='Anchor-AI'!U19 -> 0 | R21: ='Anchor-AI'!V19 -> 0 | S21: ='Anchor-AI'!W19 -> 0 | T21: ='Anchor-AI'!X19 -> 0 | U21: =10*LOG10(1/((Summary!$C$81/10^(R21/10)+Summary!$C$82/10^(S21/10)+Summary!$C$83/10^(T21/10))/Summary!$C$84)) -> 0 | V21: ='Anchor-AI'!Y19 -> 0 | W21: ='Anchor-AI'!Z19 -> 0 | X21: ='Anchor-AI'!AA19 -> 0 | Y21: 0 | AA21: ='Test-AI'!L19 -> 0 | AB21: ='Test-AI'!M19 -> 0 | AC21: ='Test-AI'!N19 -> 0 | AD21: ='Test-AI'!O19 -> 0 | AE21: =(Summary!$C$64*AB21+Summary!$C$65*AC21+Summary!$C$66*AD21)/Summary!$C$67 -> 0 | AF21: ='Test-AI'!P19 -> 0 | AG21: ='Test-AI'!Q19 -> 0 | AH21: ='Test-AI'!R19 -> 0 | AI21: ='Test-AI'!S19 -> 0 | AJ21: ='Test-AI'!T19 -> 0 | AK21: ='Test-AI'!U19 -> 0 | AL21: ='Test-AI'!V19 -> 0 | AM21: ='Test-AI'!W19 -> 0 | AN21: ='Test-AI'!X19 -> 0 | AO21: =10*LOG10(1/((Summary!$C$81/10^(AL21/10)+Summary!$C$82/10^(AM21/10)+Summary!$C$83/10^(AN21/10))/Summary!$C$84)) -> 0 | AP21: ='Test-AI'!Y19 -> 0 | AQ21: ='Test-AI'!Z19 -> 0 | AR21: ='Test-AI'!AA19 -> 0 | AS21: 0
B22: 3840x2160 | C22: Neon1224_3840x2160_2997fps | D22: 29.97 | E22: 10 | F22: 85 | G22: ='Anchor-AI'!L20 -> 0 | H22: ='Anchor-AI'!M20 -> 0 | I22: ='Anchor-AI'!N20 -> 0 | J22: ='Anchor-AI'!O20 -> 0 | K22: =(Summary!$C$64*H22+Summary!$C$65*I22+Summary!$C$66*J22)/Summary!$C$67 -> 0 | L22: ='Anchor-AI'!P20 -> 0 | M22: ='Anchor-AI'!Q20 -> 0 | N22: ='Anchor-AI'!R20 -> 0 | O22: ='Anchor-AI'!S20 -> 0 | P22: ='Anchor-AI'!T20 -> 0 | Q22: ='Anchor-AI'!U20 -> 0 | R22: ='Anchor-AI'!V20 -> 0 | S22: ='Anchor-AI'!W20 -> 0 | T22: ='Anchor-AI'!X20 -> 0 | U22: =10*LOG10(1/((Summary!$C$81/10^(R22/10)+Summary!$C$82/10^(S22/10)+Summary!$C$83/10^(T22/10))/Summary!$C$84)) -> 0 | V22: ='Anchor-AI'!Y20 -> 0 | W22: ='Anchor-AI'!Z20 -> 0 | X22: ='Anchor-AI'!AA20 -> 0 | Y22: 0 | AA22: ='Test-AI'!L20 -> 0 | AB22: ='Test-AI'!M20 -> 0 | AC22: ='Test-AI'!N20 -> 0 | AD22: ='Test-AI'!O20 -> 0 | AE22: =(Summary!$C$64*AB22+Summary!$C$65*AC22+Summary!$C$66*AD22)/Summary!$C$67 -> 0 | AF22: ='Test-AI'!P20 -> 0 | AG22: ='Test-AI'!Q20 -> 0 | AH22: ='Test-AI'!R20 -> 0 | AI22: ='Test-AI'!S20 -> 0 | AJ22: ='Test-AI'!T20 -> 0 | AK22: ='Test-AI'!U20 -> 0 | AL22: ='Test-AI'!V20 -> 0 | AM22: ='Test-AI'!W20 -> 0 | AN22: ='Test-AI'!X20 -> 0 | AO22: =10*LOG10(1/((Summary!$C$81/10^(AL22/10)+Summary!$C$82/10^(AM22/10)+Summary!$C$83/10^(AN22/10))/Summary!$C$84)) -> 0 | AP22: ='Test-AI'!Y20 -> 0 | AQ22: ='Test-AI'!Z20 -> 0 | AR22: ='Test-AI'!AA20 -> 0 | AS22: 0 | AX22: High | AY22: =bdRateExtend($G22:$G25,H22:H25,$AA22:$AA25,AB22:AB25) ->  | AZ22: =bdRateExtend($G22:$G27,H22:H27,$AA22:$AA27,AB22:AB27) ->  | BA22: =bdRateExtend($G22:$G27,I22:I27,$AA22:$AA27,AC22:AC27) ->  | BB22: =bdRateExtend($G22:$G27,J22:J27,$AA22:$AA27,AD22:AD27) ->  | BC22: =bdRateExtend($G22:$G27,K22:K27,$AA22:$AA27,AE22:AE27) ->  | BD22: =(Summary!$C$95*AZ22+Summary!$C$96*BA22+Summary!$C$97*BB22)/Summary!$C$98 ->  | BE22: =bdRateExtend($G22:$G25,L22:L25,$AA22:$AA25,AF22:AF25) ->  | BF22: =bdRateExtend($G22:$G27,L22:L27,$AA22:$AA27,AF22:AF27) ->  | BG22: =bdRateExtend($G22:$G25,M22:M25,$AA22:$AA25,AG22:AG25) ->  | BH22: =bdRateExtend($G22:$G27,M22:M27,$AA22:$AA27,AG22:AG27) ->  | BI22: =bdRateExtend($G22:$G25,N22:N25,$AA22:$AA25,AH22:AH25,"None", FALSE,1) ->  | BJ22: =bdRateExtend($G22:$G27,N22:N27,$AA22:$AA27,AH22:AH27,"None", FALSE,1) ->  | BK22: =bdRateExtend($G22:$G25,O22:O25,$AA22:$AA25,AI22:AI25,"None", FALSE,1) ->  | BL22: =bdRateExtend($G22:$G27,O22:O27,$AA22:$AA27,AI22:AI27,"None", FALSE,1) ->  | BM22: =bdRateExtend($G22:$G25,P22:P25,$AA22:$AA25,AJ22:AJ25) ->  | BN22: =bdRateExtend($G22:$G27,P22:P27,$AA22:$AA27,AJ22:AJ27) ->  | BO22: =bdRateExtend($G22:$G25,Q22:Q25,$AA22:$AA25,AK22:AK25) ->  | BP22: =bdRateExtend($G22:$G27,Q22:Q27,$AA22:$AA27,AK22:AK27) ->  | BQ22: =bdRateExtend($G22:$G25,R22:R25,$AA22:$AA25,AL22:AL25) ->  | BR22: =bdRateExtend($G22:$G27,R22:R27,$AA22:$AA27,AL22:AL27) ->  | BS22: =bdRateExtend($G22:$G27,S22:S27,$AA22:$AA27,AM22:AM27) ->  | BT22: =bdRateExtend($G22:$G27,T22:T27,$AA22:$AA27,AN22:AN27) ->  | BU22: =bdRateExtend($G22:$G27,U22:U27,$AA22:$AA27,AO22:AO27) ->  | BV22: =(Summary!$C$109*BR22+Summary!$C$110*BS22+Summary!$C$111*BT22)/Summary!$C$112 ->  | BW22: =bdCAMBIExtend($G22:$G25,V22:V25,$AA22:$AA25,AP22:AP25) ->  | BX22: =bdCAMBIExtend($G22:$G27,V22:V27,$AA22:$AA27,AP22:AP27) ->  | BY22: =testVMAFRange($G22:$G25,N22:N25,$AA22:$AA25,AH22:AH25) -> 0 | BZ22: =testVMAFRange($G22:$G27,N22:N27,$AA22:$AA27,AH22:AH27) -> 0 | CA22: =testVMAFRange($G22:$G25,O22:O25,$AA22:$AA25,AI22:AI25) -> 0 | CB22: =testVMAFRange($G22:$G27,O22:O27,$AA22:$AA27,AI22:AI27) -> 0
F23: 110 | G23: ='Anchor-AI'!L21 -> 0 | H23: ='Anchor-AI'!M21 -> 0 | I23: ='Anchor-AI'!N21 -> 0 | J23: ='Anchor-AI'!O21 -> 0 | K23: =(Summary!$C$64*H23+Summary!$C$65*I23+Summary!$C$66*J23)/Summary!$C$67 -> 0 | L23: ='Anchor-AI'!P21 -> 0 | M23: ='Anchor-AI'!Q21 -> 0 | N23: ='Anchor-AI'!R21 -> 0 | O23: ='Anchor-AI'!S21 -> 0 | P23: ='Anchor-AI'!T21 -> 0 | Q23: ='Anchor-AI'!U21 -> 0 | R23: ='Anchor-AI'!V21 -> 0 | S23: ='Anchor-AI'!W21 -> 0 | T23: ='Anchor-AI'!X21 -> 0 | U23: =10*LOG10(1/((Summary!$C$81/10^(R23/10)+Summary!$C$82/10^(S23/10)+Summary!$C$83/10^(T23/10))/Summary!$C$84)) -> 0 | V23: ='Anchor-AI'!Y21 -> 0 | W23: ='Anchor-AI'!Z21 -> 0 | X23: ='Anchor-AI'!AA21 -> 0 | Y23: 0 | AA23: ='Test-AI'!L21 -> 0 | AB23: ='Test-AI'!M21 -> 0 | AC23: ='Test-AI'!N21 -> 0 | AD23: ='Test-AI'!O21 -> 0 | AE23: =(Summary!$C$64*AB23+Summary!$C$65*AC23+Summary!$C$66*AD23)/Summary!$C$67 -> 0 | AF23: ='Test-AI'!P21 -> 0 | AG23: ='Test-AI'!Q21 -> 0 | AH23: ='Test-AI'!R21 -> 0 | AI23: ='Test-AI'!S21 -> 0 | AJ23: ='Test-AI'!T21 -> 0 | AK23: ='Test-AI'!U21 -> 0 | AL23: ='Test-AI'!V21 -> 0 | AM23: ='Test-AI'!W21 -> 0 | AN23: ='Test-AI'!X21 -> 0 | AO23: =10*LOG10(1/((Summary!$C$81/10^(AL23/10)+Summary!$C$82/10^(AM23/10)+Summary!$C$83/10^(AN23/10))/Summary!$C$84)) -> 0 | AP23: ='Test-AI'!Y21 -> 0 | AQ23: ='Test-AI'!Z21 -> 0 | AR23: ='Test-AI'!AA21 -> 0 | AS23: 0
F24: 135 | G24: ='Anchor-AI'!L22 -> 0 | H24: ='Anchor-AI'!M22 -> 0 | I24: ='Anchor-AI'!N22 -> 0 | J24: ='Anchor-AI'!O22 -> 0 | K24: =(Summary!$C$64*H24+Summary!$C$65*I24+Summary!$C$66*J24)/Summary!$C$67 -> 0 | L24: ='Anchor-AI'!P22 -> 0 | M24: ='Anchor-AI'!Q22 -> 0 | N24: ='Anchor-AI'!R22 -> 0 | O24: ='Anchor-AI'!S22 -> 0 | P24: ='Anchor-AI'!T22 -> 0 | Q24: ='Anchor-AI'!U22 -> 0 | R24: ='Anchor-AI'!V22 -> 0 | S24: ='Anchor-AI'!W22 -> 0 | T24: ='Anchor-AI'!X22 -> 0 | U24: =10*LOG10(1/((Summary!$C$81/10^(R24/10)+Summary!$C$82/10^(S24/10)+Summary!$C$83/10^(T24/10))/Summary!$C$84)) -> 0 | V24: ='Anchor-AI'!Y22 -> 0 | W24: ='Anchor-AI'!Z22 -> 0 | X24: ='Anchor-AI'!AA22 -> 0 | Y24: 0 | AA24: ='Test-AI'!L22 -> 0 | AB24: ='Test-AI'!M22 -> 0 | AC24: ='Test-AI'!N22 -> 0 | AD24: ='Test-AI'!O22 -> 0 | AE24: =(Summary!$C$64*AB24+Summary!$C$65*AC24+Summary!$C$66*AD24)/Summary!$C$67 -> 0 | AF24: ='Test-AI'!P22 -> 0 | AG24: ='Test-AI'!Q22 -> 0 | AH24: ='Test-AI'!R22 -> 0 | AI24: ='Test-AI'!S22 -> 0 | AJ24: ='Test-AI'!T22 -> 0 | AK24: ='Test-AI'!U22 -> 0 | AL24: ='Test-AI'!V22 -> 0 | AM24: ='Test-AI'!W22 -> 0 | AN24: ='Test-AI'!X22 -> 0 | AO24: =10*LOG10(1/((Summary!$C$81/10^(AL24/10)+Summary!$C$82/10^(AM24/10)+Summary!$C$83/10^(AN24/10))/Summary!$C$84)) -> 0 | AP24: ='Test-AI'!Y22 -> 0 | AQ24: ='Test-AI'!Z22 -> 0 | AR24: ='Test-AI'!AA22 -> 0 | AS24: 0 | AX24: Med | AY24: =bdRateExtend($G23:$G26,H23:H26,$AA23:$AA26,AB23:AB26) ->  | BE24: =bdRateExtend($G23:$G26,L23:L26,$AA23:$AA26,AF23:AF26) ->  | BG24: =bdRateExtend($G23:$G26,M23:M26,$AA23:$AA26,AG23:AG26) ->  | BI24: =bdRateExtend($G23:$G26,N23:N26,$AA23:$AA26,AH23:AH26,"None", FALSE,1) ->  | BK24: =bdRateExtend($G23:$G26,O23:O26,$AA23:$AA26,AI23:AI26,"None", FALSE,1) ->  | BM24: =bdRateExtend($G23:$G26,P23:P26,$AA23:$AA26,AJ23:AJ26) ->  | BO24: =bdRateExtend($G23:$G26,Q23:Q26,$AA23:$AA26,AK23:AK26) ->  | BQ24: =bdRateExtend($G23:$G26,R23:R26,$AA23:$AA26,AL23:AL26) ->  | BW24: =bdCAMBIExtend($G23:$G26,V23:V26,$AA23:$AA26,AP23:AP26) ->  | BY24: =testVMAFRange($G23:$G26,N23:N26,$AA23:$AA26,AH23:AH26) -> 0 | CA24: =testVMAFRange($G23:$G26,O23:O26,$AA23:$AA26,AI23:AI26) -> 0
F25: 160 | G25: ='Anchor-AI'!L23 -> 0 | H25: ='Anchor-AI'!M23 -> 0 | I25: ='Anchor-AI'!N23 -> 0 | J25: ='Anchor-AI'!O23 -> 0 | K25: =(Summary!$C$64*H25+Summary!$C$65*I25+Summary!$C$66*J25)/Summary!$C$67 -> 0 | L25: ='Anchor-AI'!P23 -> 0 | M25: ='Anchor-AI'!Q23 -> 0 | N25: ='Anchor-AI'!R23 -> 0 | O25: ='Anchor-AI'!S23 -> 0 | P25: ='Anchor-AI'!T23 -> 0 | Q25: ='Anchor-AI'!U23 -> 0 | R25: ='Anchor-AI'!V23 -> 0 | S25: ='Anchor-AI'!W23 -> 0 | T25: ='Anchor-AI'!X23 -> 0 | U25: =10*LOG10(1/((Summary!$C$81/10^(R25/10)+Summary!$C$82/10^(S25/10)+Summary!$C$83/10^(T25/10))/Summary!$C$84)) -> 0 | V25: ='Anchor-AI'!Y23 -> 0 | W25: ='Anchor-AI'!Z23 -> 0 | X25: ='Anchor-AI'!AA23 -> 0 | Y25: 0 | AA25: ='Test-AI'!L23 -> 0 | AB25: ='Test-AI'!M23 -> 0 | AC25: ='Test-AI'!N23 -> 0 | AD25: ='Test-AI'!O23 -> 0 | AE25: =(Summary!$C$64*AB25+Summary!$C$65*AC25+Summary!$C$66*AD25)/Summary!$C$67 -> 0 | AF25: ='Test-AI'!P23 -> 0 | AG25: ='Test-AI'!Q23 -> 0 | AH25: ='Test-AI'!R23 -> 0 | AI25: ='Test-AI'!S23 -> 0 | AJ25: ='Test-AI'!T23 -> 0 | AK25: ='Test-AI'!U23 -> 0 | AL25: ='Test-AI'!V23 -> 0 | AM25: ='Test-AI'!W23 -> 0 | AN25: ='Test-AI'!X23 -> 0 | AO25: =10*LOG10(1/((Summary!$C$81/10^(AL25/10)+Summary!$C$82/10^(AM25/10)+Summary!$C$83/10^(AN25/10))/Summary!$C$84)) -> 0 | AP25: ='Test-AI'!Y23 -> 0 | AQ25: ='Test-AI'!Z23 -> 0 | AR25: ='Test-AI'!AA23 -> 0 | AS25: 0
F26: 185 | G26: ='Anchor-AI'!L24 -> 0 | H26: ='Anchor-AI'!M24 -> 0 | I26: ='Anchor-AI'!N24 -> 0 | J26: ='Anchor-AI'!O24 -> 0 | K26: =(Summary!$C$64*H26+Summary!$C$65*I26+Summary!$C$66*J26)/Summary!$C$67 -> 0 | L26: ='Anchor-AI'!P24 -> 0 | M26: ='Anchor-AI'!Q24 -> 0 | N26: ='Anchor-AI'!R24 -> 0 | O26: ='Anchor-AI'!S24 -> 0 | P26: ='Anchor-AI'!T24 -> 0 | Q26: ='Anchor-AI'!U24 -> 0 | R26: ='Anchor-AI'!V24 -> 0 | S26: ='Anchor-AI'!W24 -> 0 | T26: ='Anchor-AI'!X24 -> 0 | U26: =10*LOG10(1/((Summary!$C$81/10^(R26/10)+Summary!$C$82/10^(S26/10)+Summary!$C$83/10^(T26/10))/Summary!$C$84)) -> 0 | V26: ='Anchor-AI'!Y24 -> 0 | W26: ='Anchor-AI'!Z24 -> 0 | X26: ='Anchor-AI'!AA24 -> 0 | Y26: 0 | AA26: ='Test-AI'!L24 -> 0 | AB26: ='Test-AI'!M24 -> 0 | AC26: ='Test-AI'!N24 -> 0 | AD26: ='Test-AI'!O24 -> 0 | AE26: =(Summary!$C$64*AB26+Summary!$C$65*AC26+Summary!$C$66*AD26)/Summary!$C$67 -> 0 | AF26: ='Test-AI'!P24 -> 0 | AG26: ='Test-AI'!Q24 -> 0 | AH26: ='Test-AI'!R24 -> 0 | AI26: ='Test-AI'!S24 -> 0 | AJ26: ='Test-AI'!T24 -> 0 | AK26: ='Test-AI'!U24 -> 0 | AL26: ='Test-AI'!V24 -> 0 | AM26: ='Test-AI'!W24 -> 0 | AN26: ='Test-AI'!X24 -> 0 | AO26: =10*LOG10(1/((Summary!$C$81/10^(AL26/10)+Summary!$C$82/10^(AM26/10)+Summary!$C$83/10^(AN26/10))/Summary!$C$84)) -> 0 | AP26: ='Test-AI'!Y24 -> 0 | AQ26: ='Test-AI'!Z24 -> 0 | AR26: ='Test-AI'!AA24 -> 0 | AS26: 0 | AX26: Low | AY26: =bdRateExtend($G24:$G27,H24:H27,$AA24:$AA27,AB24:AB27) ->  | BE26: =bdRateExtend($G24:$G27,L24:L27,$AA24:$AA27,AF24:AF27) ->  | BG26: =bdRateExtend($G24:$G27,M24:M27,$AA24:$AA27,AG24:AG27) ->  | BI26: =bdRateExtend($G24:$G27,N24:N27,$AA24:$AA27,AH24:AH27,"None", FALSE,1) ->  | BK26: =bdRateExtend($G24:$G27,O24:O27,$AA24:$AA27,AI24:AI27,"None", FALSE,1) ->  | BM26: =bdRateExtend($G24:$G27,P24:P27,$AA24:$AA27,AJ24:AJ27) ->  | BO26: =bdRateExtend($G24:$G27,Q24:Q27,$AA24:$AA27,AK24:AK27) ->  | BQ26: =bdRateExtend($G24:$G27,R24:R27,$AA24:$AA27,AL24:AL27) ->  | BW26: =bdCAMBIExtend($G24:$G27,V24:V27,$AA24:$AA27,AP24:AP27) ->  | BY26: =testVMAFRange($G24:$G27,N24:N27,$AA24:$AA27,AH24:AH27) -> 0 | CA26: =testVMAFRange($G24:$G27,O24:O27,$AA24:$AA27,AI24:AI27) -> 0
F27: 210 | G27: ='Anchor-AI'!L25 -> 0 | H27: ='Anchor-AI'!M25 -> 0 | I27: ='Anchor-AI'!N25 -> 0 | J27: ='Anchor-AI'!O25 -> 0 | K27: =(Summary!$C$64*H27+Summary!$C$65*I27+Summary!$C$66*J27)/Summary!$C$67 -> 0 | L27: ='Anchor-AI'!P25 -> 0 | M27: ='Anchor-AI'!Q25 -> 0 | N27: ='Anchor-AI'!R25 -> 0 | O27: ='Anchor-AI'!S25 -> 0 | P27: ='Anchor-AI'!T25 -> 0 | Q27: ='Anchor-AI'!U25 -> 0 | R27: ='Anchor-AI'!V25 -> 0 | S27: ='Anchor-AI'!W25 -> 0 | T27: ='Anchor-AI'!X25 -> 0 | U27: =10*LOG10(1/((Summary!$C$81/10^(R27/10)+Summary!$C$82/10^(S27/10)+Summary!$C$83/10^(T27/10))/Summary!$C$84)) -> 0 | V27: ='Anchor-AI'!Y25 -> 0 | W27: ='Anchor-AI'!Z25 -> 0 | X27: ='Anchor-AI'!AA25 -> 0 | Y27: 0 | AA27: ='Test-AI'!L25 -> 0 | AB27: ='Test-AI'!M25 -> 0 | AC27: ='Test-AI'!N25 -> 0 | AD27: ='Test-AI'!O25 -> 0 | AE27: =(Summary!$C$64*AB27+Summary!$C$65*AC27+Summary!$C$66*AD27)/Summary!$C$67 -> 0 | AF27: ='Test-AI'!P25 -> 0 | AG27: ='Test-AI'!Q25 -> 0 | AH27: ='Test-AI'!R25 -> 0 | AI27: ='Test-AI'!S25 -> 0 | AJ27: ='Test-AI'!T25 -> 0 | AK27: ='Test-AI'!U25 -> 0 | AL27: ='Test-AI'!V25 -> 0 | AM27: ='Test-AI'!W25 -> 0 | AN27: ='Test-AI'!X25 -> 0 | AO27: =10*LOG10(1/((Summary!$C$81/10^(AL27/10)+Summary!$C$82/10^(AM27/10)+Summary!$C$83/10^(AN27/10))/Summary!$C$84)) -> 0 | AP27: ='Test-AI'!Y25 -> 0 | AQ27: ='Test-AI'!Z25 -> 0 | AR27: ='Test-AI'!AA25 -> 0 | AS27: 0
B28: 3840x2160 | C28: NocturneDance_3840x2160p_10bit_60fps | D28: 60 | E28: 10 | F28: 85 | G28: ='Anchor-AI'!L26 -> 0 | H28: ='Anchor-AI'!M26 -> 0 | I28: ='Anchor-AI'!N26 -> 0 | J28: ='Anchor-AI'!O26 -> 0 | K28: =(Summary!$C$64*H28+Summary!$C$65*I28+Summary!$C$66*J28)/Summary!$C$67 -> 0 | L28: ='Anchor-AI'!P26 -> 0 | M28: ='Anchor-AI'!Q26 -> 0 | N28: ='Anchor-AI'!R26 -> 0 | O28: ='Anchor-AI'!S26 -> 0 | P28: ='Anchor-AI'!T26 -> 0 | Q28: ='Anchor-AI'!U26 -> 0 | R28: ='Anchor-AI'!V26 -> 0 | S28: ='Anchor-AI'!W26 -> 0 | T28: ='Anchor-AI'!X26 -> 0 | U28: =10*LOG10(1/((Summary!$C$81/10^(R28/10)+Summary!$C$82/10^(S28/10)+Summary!$C$83/10^(T28/10))/Summary!$C$84)) -> 0 | V28: ='Anchor-AI'!Y26 -> 0 | W28: ='Anchor-AI'!Z26 -> 0 | X28: ='Anchor-AI'!AA26 -> 0 | Y28: 0 | AA28: ='Test-AI'!L26 -> 0 | AB28: ='Test-AI'!M26 -> 0 | AC28: ='Test-AI'!N26 -> 0 | AD28: ='Test-AI'!O26 -> 0 | AE28: =(Summary!$C$64*AB28+Summary!$C$65*AC28+Summary!$C$66*AD28)/Summary!$C$67 -> 0 | AF28: ='Test-AI'!P26 -> 0 | AG28: ='Test-AI'!Q26 -> 0 | AH28: ='Test-AI'!R26 -> 0 | AI28: ='Test-AI'!S26 -> 0 | AJ28: ='Test-AI'!T26 -> 0 | AK28: ='Test-AI'!U26 -> 0 | AL28: ='Test-AI'!V26 -> 0 | AM28: ='Test-AI'!W26 -> 0 | AN28: ='Test-AI'!X26 -> 0 | AO28: =10*LOG10(1/((Summary!$C$81/10^(AL28/10)+Summary!$C$82/10^(AM28/10)+Summary!$C$83/10^(AN28/10))/Summary!$C$84)) -> 0 | AP28: ='Test-AI'!Y26 -> 0 | AQ28: ='Test-AI'!Z26 -> 0 | AR28: ='Test-AI'!AA26 -> 0 | AS28: 0 | AX28: High | AY28: =bdRateExtend($G28:$G31,H28:H31,$AA28:$AA31,AB28:AB31) ->  | AZ28: =bdRateExtend($G28:$G33,H28:H33,$AA28:$AA33,AB28:AB33) ->  | BA28: =bdRateExtend($G28:$G33,I28:I33,$AA28:$AA33,AC28:AC33) ->  | BB28: =bdRateExtend($G28:$G33,J28:J33,$AA28:$AA33,AD28:AD33) ->  | BC28: =bdRateExtend($G28:$G33,K28:K33,$AA28:$AA33,AE28:AE33) ->  | BD28: =(Summary!$C$95*AZ28+Summary!$C$96*BA28+Summary!$C$97*BB28)/Summary!$C$98 ->  | BE28: =bdRateExtend($G28:$G31,L28:L31,$AA28:$AA31,AF28:AF31) ->  | BF28: =bdRateExtend($G28:$G33,L28:L33,$AA28:$AA33,AF28:AF33) ->  | BG28: =bdRateExtend($G28:$G31,M28:M31,$AA28:$AA31,AG28:AG31) ->  | BH28: =bdRateExtend($G28:$G33,M28:M33,$AA28:$AA33,AG28:AG33) ->  | BI28: =bdRateExtend($G28:$G31,N28:N31,$AA28:$AA31,AH28:AH31,"None", FALSE,1) ->  | BJ28: =bdRateExtend($G28:$G33,N28:N33,$AA28:$AA33,AH28:AH33,"None", FALSE,1) ->  | BK28: =bdRateExtend($G28:$G31,O28:O31,$AA28:$AA31,AI28:AI31,"None", FALSE,1) ->  | BL28: =bdRateExtend($G28:$G33,O28:O33,$AA28:$AA33,AI28:AI33,"None", FALSE,1) ->  | BM28: =bdRateExtend($G28:$G31,P28:P31,$AA28:$AA31,AJ28:AJ31) ->  | BN28: =bdRateExtend($G28:$G33,P28:P33,$AA28:$AA33,AJ28:AJ33) ->  | BO28: =bdRateExtend($G28:$G31,Q28:Q31,$AA28:$AA31,AK28:AK31) ->  | BP28: =bdRateExtend($G28:$G33,Q28:Q33,$AA28:$AA33,AK28:AK33) ->  | BQ28: =bdRateExtend($G28:$G31,R28:R31,$AA28:$AA31,AL28:AL31) ->  | BR28: =bdRateExtend($G28:$G33,R28:R33,$AA28:$AA33,AL28:AL33) ->  | BS28: =bdRateExtend($G28:$G33,S28:S33,$AA28:$AA33,AM28:AM33) ->  | BT28: =bdRateExtend($G28:$G33,T28:T33,$AA28:$AA33,AN28:AN33) ->  | BU28: =bdRateExtend($G28:$G33,U28:U33,$AA28:$AA33,AO28:AO33) ->  | BV28: =(Summary!$C$109*BR28+Summary!$C$110*BS28+Summary!$C$111*BT28)/Summary!$C$112 ->  | BW28: =bdCAMBIExtend($G28:$G31,V28:V31,$AA28:$AA31,AP28:AP31) ->  | BX28: =bdCAMBIExtend($G28:$G33,V28:V33,$AA28:$AA33,AP28:AP33) ->  | BY28: =testVMAFRange($G28:$G31,N28:N31,$AA28:$AA31,AH28:AH31) -> 0 | BZ28: =testVMAFRange($G28:$G33,N28:N33,$AA28:$AA33,AH28:AH33) -> 0 | CA28: =testVMAFRange($G28:$G31,O28:O31,$AA28:$AA31,AI28:AI31) -> 0 | CB28: =testVMAFRange($G28:$G33,O28:O33,$AA28:$AA33,AI28:AI33) -> 0
F29: 110 | G29: ='Anchor-AI'!L27 -> 0 | H29: ='Anchor-AI'!M27 -> 0 | I29: ='Anchor-AI'!N27 -> 0 | J29: ='Anchor-AI'!O27 -> 0 | K29: =(Summary!$C$64*H29+Summary!$C$65*I29+Summary!$C$66*J29)/Summary!$C$67 -> 0 | L29: ='Anchor-AI'!P27 -> 0 | M29: ='Anchor-AI'!Q27 -> 0 | N29: ='Anchor-AI'!R27 -> 0 | O29: ='Anchor-AI'!S27 -> 0 | P29: ='Anchor-AI'!T27 -> 0 | Q29: ='Anchor-AI'!U27 -> 0 | R29: ='Anchor-AI'!V27 -> 0 | S29: ='Anchor-AI'!W27 -> 0 | T29: ='Anchor-AI'!X27 -> 0 | U29: =10*LOG10(1/((Summary!$C$81/10^(R29/10)+Summary!$C$82/10^(S29/10)+Summary!$C$83/10^(T29/10))/Summary!$C$84)) -> 0 | V29: ='Anchor-AI'!Y27 -> 0 | W29: ='Anchor-AI'!Z27 -> 0 | X29: ='Anchor-AI'!AA27 -> 0 | Y29: 0 | AA29: ='Test-AI'!L27 -> 0 | AB29: ='Test-AI'!M27 -> 0 | AC29: ='Test-AI'!N27 -> 0 | AD29: ='Test-AI'!O27 -> 0 | AE29: =(Summary!$C$64*AB29+Summary!$C$65*AC29+Summary!$C$66*AD29)/Summary!$C$67 -> 0 | AF29: ='Test-AI'!P27 -> 0 | AG29: ='Test-AI'!Q27 -> 0 | AH29: ='Test-AI'!R27 -> 0 | AI29: ='Test-AI'!S27 -> 0 | AJ29: ='Test-AI'!T27 -> 0 | AK29: ='Test-AI'!U27 -> 0 | AL29: ='Test-AI'!V27 -> 0 | AM29: ='Test-AI'!W27 -> 0 | AN29: ='Test-AI'!X27 -> 0 | AO29: =10*LOG10(1/((Summary!$C$81/10^(AL29/10)+Summary!$C$82/10^(AM29/10)+Summary!$C$83/10^(AN29/10))/Summary!$C$84)) -> 0 | AP29: ='Test-AI'!Y27 -> 0 | AQ29: ='Test-AI'!Z27 -> 0 | AR29: ='Test-AI'!AA27 -> 0 | AS29: 0
F30: 135 | G30: ='Anchor-AI'!L28 -> 0 | H30: ='Anchor-AI'!M28 -> 0 | I30: ='Anchor-AI'!N28 -> 0 | J30: ='Anchor-AI'!O28 -> 0 | K30: =(Summary!$C$64*H30+Summary!$C$65*I30+Summary!$C$66*J30)/Summary!$C$67 -> 0 | L30: ='Anchor-AI'!P28 -> 0 | M30: ='Anchor-AI'!Q28 -> 0 | N30: ='Anchor-AI'!R28 -> 0 | O30: ='Anchor-AI'!S28 -> 0 | P30: ='Anchor-AI'!T28 -> 0 | Q30: ='Anchor-AI'!U28 -> 0 | R30: ='Anchor-AI'!V28 -> 0 | S30: ='Anchor-AI'!W28 -> 0 | T30: ='Anchor-AI'!X28 -> 0 | U30: =10*LOG10(1/((Summary!$C$81/10^(R30/10)+Summary!$C$82/10^(S30/10)+Summary!$C$83/10^(T30/10))/Summary!$C$84)) -> 0 | V30: ='Anchor-AI'!Y28 -> 0 | W30: ='Anchor-AI'!Z28 -> 0 | X30: ='Anchor-AI'!AA28 -> 0 | Y30: 0 | AA30: ='Test-AI'!L28 -> 0 | AB30: ='Test-AI'!M28 -> 0 | AC30: ='Test-AI'!N28 -> 0 | AD30: ='Test-AI'!O28 -> 0 | AE30: =(Summary!$C$64*AB30+Summary!$C$65*AC30+Summary!$C$66*AD30)/Summary!$C$67 -> 0 | AF30: ='Test-AI'!P28 -> 0 | AG30: ='Test-AI'!Q28 -> 0 | AH30: ='Test-AI'!R28 -> 0 | AI30: ='Test-AI'!S28 -> 0 | AJ30: ='Test-AI'!T28 -> 0 | AK30: ='Test-AI'!U28 -> 0 | AL30: ='Test-AI'!V28 -> 0 | AM30: ='Test-AI'!W28 -> 0 | AN30: ='Test-AI'!X28 -> 0 | AO30: =10*LOG10(1/((Summary!$C$81/10^(AL30/10)+Summary!$C$82/10^(AM30/10)+Summary!$C$83/10^(AN30/10))/Summary!$C$84)) -> 0 | AP30: ='Test-AI'!Y28 -> 0 | AQ30: ='Test-AI'!Z28 -> 0 | AR30: ='Test-AI'!AA28 -> 0 | AS30: 0 | AX30: Med | AY30: =bdRateExtend($G29:$G32,H29:H32,$AA29:$AA32,AB29:AB32) ->  | BE30: =bdRateExtend($G29:$G32,L29:L32,$AA29:$AA32,AF29:AF32) ->  | BG30: =bdRateExtend($G29:$G32,M29:M32,$AA29:$AA32,AG29:AG32) ->  | BI30: =bdRateExtend($G29:$G32,N29:N32,$AA29:$AA32,AH29:AH32,"None", FALSE,1) ->  | BK30: =bdRateExtend($G29:$G32,O29:O32,$AA29:$AA32,AI29:AI32,"None", FALSE,1) ->  | BM30: =bdRateExtend($G29:$G32,P29:P32,$AA29:$AA32,AJ29:AJ32) ->  | BO30: =bdRateExtend($G29:$G32,Q29:Q32,$AA29:$AA32,AK29:AK32) ->  | BQ30: =bdRateExtend($G29:$G32,R29:R32,$AA29:$AA32,AL29:AL32) ->  | BW30: =bdCAMBIExtend($G29:$G32,V29:V32,$AA29:$AA32,AP29:AP32) ->  | BY30: =testVMAFRange($G29:$G32,N29:N32,$AA29:$AA32,AH29:AH32) -> 0 | CA30: =testVMAFRange($G29:$G32,O29:O32,$AA29:$AA32,AI29:AI32) -> 0
F31: 160 | G31: ='Anchor-AI'!L29 -> 0 | H31: ='Anchor-AI'!M29 -> 0 | I31: ='Anchor-AI'!N29 -> 0 | J31: ='Anchor-AI'!O29 -> 0 | K31: =(Summary!$C$64*H31+Summary!$C$65*I31+Summary!$C$66*J31)/Summary!$C$67 -> 0 | L31: ='Anchor-AI'!P29 -> 0 | M31: ='Anchor-AI'!Q29 -> 0 | N31: ='Anchor-AI'!R29 -> 0 | O31: ='Anchor-AI'!S29 -> 0 | P31: ='Anchor-AI'!T29 -> 0 | Q31: ='Anchor-AI'!U29 -> 0 | R31: ='Anchor-AI'!V29 -> 0 | S31: ='Anchor-AI'!W29 -> 0 | T31: ='Anchor-AI'!X29 -> 0 | U31: =10*LOG10(1/((Summary!$C$81/10^(R31/10)+Summary!$C$82/10^(S31/10)+Summary!$C$83/10^(T31/10))/Summary!$C$84)) -> 0 | V31: ='Anchor-AI'!Y29 -> 0 | W31: ='Anchor-AI'!Z29 -> 0 | X31: ='Anchor-AI'!AA29 -> 0 | Y31: 0 | AA31: ='Test-AI'!L29 -> 0 | AB31: ='Test-AI'!M29 -> 0 | AC31: ='Test-AI'!N29 -> 0 | AD31: ='Test-AI'!O29 -> 0 | AE31: =(Summary!$C$64*AB31+Summary!$C$65*AC31+Summary!$C$66*AD31)/Summary!$C$67 -> 0 | AF31: ='Test-AI'!P29 -> 0 | AG31: ='Test-AI'!Q29 -> 0 | AH31: ='Test-AI'!R29 -> 0 | AI31: ='Test-AI'!S29 -> 0 | AJ31: ='Test-AI'!T29 -> 0 | AK31: ='Test-AI'!U29 -> 0 | AL31: ='Test-AI'!V29 -> 0 | AM31: ='Test-AI'!W29 -> 0 | AN31: ='Test-AI'!X29 -> 0 | AO31: =10*LOG10(1/((Summary!$C$81/10^(AL31/10)+Summary!$C$82/10^(AM31/10)+Summary!$C$83/10^(AN31/10))/Summary!$C$84)) -> 0 | AP31: ='Test-AI'!Y29 -> 0 | AQ31: ='Test-AI'!Z29 -> 0 | AR31: ='Test-AI'!AA29 -> 0 | AS31: 0
F32: 185 | G32: ='Anchor-AI'!L30 -> 0 | H32: ='Anchor-AI'!M30 -> 0 | I32: ='Anchor-AI'!N30 -> 0 | J32: ='Anchor-AI'!O30 -> 0 | K32: =(Summary!$C$64*H32+Summary!$C$65*I32+Summary!$C$66*J32)/Summary!$C$67 -> 0 | L32: ='Anchor-AI'!P30 -> 0 | M32: ='Anchor-AI'!Q30 -> 0 | N32: ='Anchor-AI'!R30 -> 0 | O32: ='Anchor-AI'!S30 -> 0 | P32: ='Anchor-AI'!T30 -> 0 | Q32: ='Anchor-AI'!U30 -> 0 | R32: ='Anchor-AI'!V30 -> 0 | S32: ='Anchor-AI'!W30 -> 0 | T32: ='Anchor-AI'!X30 -> 0 | U32: =10*LOG10(1/((Summary!$C$81/10^(R32/10)+Summary!$C$82/10^(S32/10)+Summary!$C$83/10^(T32/10))/Summary!$C$84)) -> 0 | V32: ='Anchor-AI'!Y30 -> 0 | W32: ='Anchor-AI'!Z30 -> 0 | X32: ='Anchor-AI'!AA30 -> 0 | Y32: 0 | AA32: ='Test-AI'!L30 -> 0 | AB32: ='Test-AI'!M30 -> 0 | AC32: ='Test-AI'!N30 -> 0 | AD32: ='Test-AI'!O30 -> 0 | AE32: =(Summary!$C$64*AB32+Summary!$C$65*AC32+Summary!$C$66*AD32)/Summary!$C$67 -> 0 | AF32: ='Test-AI'!P30 -> 0 | AG32: ='Test-AI'!Q30 -> 0 | AH32: ='Test-AI'!R30 -> 0 | AI32: ='Test-AI'!S30 -> 0 | AJ32: ='Test-AI'!T30 -> 0 | AK32: ='Test-AI'!U30 -> 0 | AL32: ='Test-AI'!V30 -> 0 | AM32: ='Test-AI'!W30 -> 0 | AN32: ='Test-AI'!X30 -> 0 | AO32: =10*LOG10(1/((Summary!$C$81/10^(AL32/10)+Summary!$C$82/10^(AM32/10)+Summary!$C$83/10^(AN32/10))/Summary!$C$84)) -> 0 | AP32: ='Test-AI'!Y30 -> 0 | AQ32: ='Test-AI'!Z30 -> 0 | AR32: ='Test-AI'!AA30 -> 0 | AS32: 0 | AX32: Low | AY32: =bdRateExtend($G30:$G33,H30:H33,$AA30:$AA33,AB30:AB33) ->  | BE32: =bdRateExtend($G30:$G33,L30:L33,$AA30:$AA33,AF30:AF33) ->  | BG32: =bdRateExtend($G30:$G33,M30:M33,$AA30:$AA33,AG30:AG33) ->  | BI32: =bdRateExtend($G30:$G33,N30:N33,$AA30:$AA33,AH30:AH33,"None", FALSE,1) ->  | BK32: =bdRateExtend($G30:$G33,O30:O33,$AA30:$AA33,AI30:AI33,"None", FALSE,1) ->  | BM32: =bdRateExtend($G30:$G33,P30:P33,$AA30:$AA33,AJ30:AJ33) ->  | BO32: =bdRateExtend($G30:$G33,Q30:Q33,$AA30:$AA33,AK30:AK33) ->  | BQ32: =bdRateExtend($G30:$G33,R30:R33,$AA30:$AA33,AL30:AL33) ->  | BW32: =bdCAMBIExtend($G30:$G33,V30:V33,$AA30:$AA33,AP30:AP33) ->  | BY32: =testVMAFRange($G30:$G33,N30:N33,$AA30:$AA33,AH30:AH33) -> 0 | CA32: =testVMAFRange($G30:$G33,O30:O33,$AA30:$AA33,AI30:AI33) -> 0
F33: 210 | G33: ='Anchor-AI'!L31 -> 0 | H33: ='Anchor-AI'!M31 -> 0 | I33: ='Anchor-AI'!N31 -> 0 | J33: ='Anchor-AI'!O31 -> 0 | K33: =(Summary!$C$64*H33+Summary!$C$65*I33+Summary!$C$66*J33)/Summary!$C$67 -> 0 | L33: ='Anchor-AI'!P31 -> 0 | M33: ='Anchor-AI'!Q31 -> 0 | N33: ='Anchor-AI'!R31 -> 0 | O33: ='Anchor-AI'!S31 -> 0 | P33: ='Anchor-AI'!T31 -> 0 | Q33: ='Anchor-AI'!U31 -> 0 | R33: ='Anchor-AI'!V31 -> 0 | S33: ='Anchor-AI'!W31 -> 0 | T33: ='Anchor-AI'!X31 -> 0 | U33: =10*LOG10(1/((Summary!$C$81/10^(R33/10)+Summary!$C$82/10^(S33/10)+Summary!$C$83/10^(T33/10))/Summary!$C$84)) -> 0 | V33: ='Anchor-AI'!Y31 -> 0 | W33: ='Anchor-AI'!Z31 -> 0 | X33: ='Anchor-AI'!AA31 -> 0 | Y33: 0 | AA33: ='Test-AI'!L31 -> 0 | AB33: ='Test-AI'!M31 -> 0 | AC33: ='Test-AI'!N31 -> 0 | AD33: ='Test-AI'!O31 -> 0 | AE33: =(Summary!$C$64*AB33+Summary!$C$65*AC33+Summary!$C$66*AD33)/Summary!$C$67 -> 0 | AF33: ='Test-AI'!P31 -> 0 | AG33: ='Test-AI'!Q31 -> 0 | AH33: ='Test-AI'!R31 -> 0 | AI33: ='Test-AI'!S31 -> 0 | AJ33: ='Test-AI'!T31 -> 0 | AK33: ='Test-AI'!U31 -> 0 | AL33: ='Test-AI'!V31 -> 0 | AM33: ='Test-AI'!W31 -> 0 | AN33: ='Test-AI'!X31 -> 0 | AO33: =10*LOG10(1/((Summary!$C$81/10^(AL33/10)+Summary!$C$82/10^(AM33/10)+Summary!$C$83/10^(AN33/10))/Summary!$C$84)) -> 0 | AP33: ='Test-AI'!Y31 -> 0 | AQ33: ='Test-AI'!Z31 -> 0 | AR33: ='Test-AI'!AA31 -> 0 | AS33: 0
B34: 3840x2160 | C34: PierSeaSide_3840x2160_2997fps_10bit_420 | D34: 29.97 | E34: 10 | F34: 85 | G34: ='Anchor-AI'!L32 -> 0 | H34: ='Anchor-AI'!M32 -> 0 | I34: ='Anchor-AI'!N32 -> 0 | J34: ='Anchor-AI'!O32 -> 0 | K34: =(Summary!$C$64*H34+Summary!$C$65*I34+Summary!$C$66*J34)/Summary!$C$67 -> 0 | L34: ='Anchor-AI'!P32 -> 0 | M34: ='Anchor-AI'!Q32 -> 0 | N34: ='Anchor-AI'!R32 -> 0 | O34: ='Anchor-AI'!S32 -> 0 | P34: ='Anchor-AI'!T32 -> 0 | Q34: ='Anchor-AI'!U32 -> 0 | R34: ='Anchor-AI'!V32 -> 0 | S34: ='Anchor-AI'!W32 -> 0 | T34: ='Anchor-AI'!X32 -> 0 | U34: =10*LOG10(1/((Summary!$C$81/10^(R34/10)+Summary!$C$82/10^(S34/10)+Summary!$C$83/10^(T34/10))/Summary!$C$84)) -> 0 | V34: ='Anchor-AI'!Y32 -> 0 | W34: ='Anchor-AI'!Z32 -> 0 | X34: ='Anchor-AI'!AA32 -> 0 | Y34: 0 | AA34: ='Test-AI'!L32 -> 0 | AB34: ='Test-AI'!M32 -> 0 | AC34: ='Test-AI'!N32 -> 0 | AD34: ='Test-AI'!O32 -> 0 | AE34: =(Summary!$C$64*AB34+Summary!$C$65*AC34+Summary!$C$66*AD34)/Summary!$C$67 -> 0 | AF34: ='Test-AI'!P32 -> 0 | AG34: ='Test-AI'!Q32 -> 0 | AH34: ='Test-AI'!R32 -> 0 | AI34: ='Test-AI'!S32 -> 0 | AJ34: ='Test-AI'!T32 -> 0 | AK34: ='Test-AI'!U32 -> 0 | AL34: ='Test-AI'!V32 -> 0 | AM34: ='Test-AI'!W32 -> 0 | AN34: ='Test-AI'!X32 -> 0 | AO34: =10*LOG10(1/((Summary!$C$81/10^(AL34/10)+Summary!$C$82/10^(AM34/10)+Summary!$C$83/10^(AN34/10))/Summary!$C$84)) -> 0 | AP34: ='Test-AI'!Y32 -> 0 | AQ34: ='Test-AI'!Z32 -> 0 | AR34: ='Test-AI'!AA32 -> 0 | AS34: 0 | AX34: High | AY34: =bdRateExtend($G34:$G37,H34:H37,$AA34:$AA37,AB34:AB37) ->  | AZ34: =bdRateExtend($G34:$G39,H34:H39,$AA34:$AA39,AB34:AB39) ->  | BA34: =bdRateExtend($G34:$G39,I34:I39,$AA34:$AA39,AC34:AC39) ->  | BB34: =bdRateExtend($G34:$G39,J34:J39,$AA34:$AA39,AD34:AD39) ->  | BC34: =bdRateExtend($G34:$G39,K34:K39,$AA34:$AA39,AE34:AE39) ->  | BD34: =(Summary!$C$95*AZ34+Summary!$C$96*BA34+Summary!$C$97*BB34)/Summary!$C$98 ->  | BE34: =bdRateExtend($G34:$G37,L34:L37,$AA34:$AA37,AF34:AF37) ->  | BF34: =bdRateExtend($G34:$G39,L34:L39,$AA34:$AA39,AF34:AF39) ->  | BG34: =bdRateExtend($G34:$G37,M34:M37,$AA34:$AA37,AG34:AG37) ->  | BH34: =bdRateExtend($G34:$G39,M34:M39,$AA34:$AA39,AG34:AG39) ->  | BI34: =bdRateExtend($G34:$G37,N34:N37,$AA34:$AA37,AH34:AH37,"None", FALSE,1) ->  | BJ34: =bdRateExtend($G34:$G39,N34:N39,$AA34:$AA39,AH34:AH39,"None", FALSE,1) ->  | BK34: =bdRateExtend($G34:$G37,O34:O37,$AA34:$AA37,AI34:AI37,"None", FALSE,1) ->  | BL34: =bdRateExtend($G34:$G39,O34:O39,$AA34:$AA39,AI34:AI39,"None", FALSE,1) ->  | BM34: =bdRateExtend($G34:$G37,P34:P37,$AA34:$AA37,AJ34:AJ37) ->  | BN34: =bdRateExtend($G34:$G39,P34:P39,$AA34:$AA39,AJ34:AJ39) ->  | BO34: =bdRateExtend($G34:$G37,Q34:Q37,$AA34:$AA37,AK34:AK37) ->  | BP34: =bdRateExtend($G34:$G39,Q34:Q39,$AA34:$AA39,AK34:AK39) ->  | BQ34: =bdRateExtend($G34:$G37,R34:R37,$AA34:$AA37,AL34:AL37) ->  | BR34: =bdRateExtend($G34:$G39,R34:R39,$AA34:$AA39,AL34:AL39) ->  | BS34: =bdRateExtend($G34:$G39,S34:S39,$AA34:$AA39,AM34:AM39) ->  | BT34: =bdRateExtend($G34:$G39,T34:T39,$AA34:$AA39,AN34:AN39) ->  | BU34: =bdRateExtend($G34:$G39,U34:U39,$AA34:$AA39,AO34:AO39) ->  | BV34: =(Summary!$C$109*BR34+Summary!$C$110*BS34+Summary!$C$111*BT34)/Summary!$C$112 ->  | BW34: =bdCAMBIExtend($G34:$G37,V34:V37,$AA34:$AA37,AP34:AP37) ->  | BX34: =bdCAMBIExtend($G34:$G39,V34:V39,$AA34:$AA39,AP34:AP39) ->  | BY34: =testVMAFRange($G34:$G37,N34:N37,$AA34:$AA37,AH34:AH37) -> 0 | BZ34: =testVMAFRange($G34:$G39,N34:N39,$AA34:$AA39,AH34:AH39) -> 0 | CA34: =testVMAFRange($G34:$G37,O34:O37,$AA34:$AA37,AI34:AI37) -> 0 | CB34: =testVMAFRange($G34:$G39,O34:O39,$AA34:$AA39,AI34:AI39) -> 0
F35: 110 | G35: ='Anchor-AI'!L33 -> 0 | H35: ='Anchor-AI'!M33 -> 0 | I35: ='Anchor-AI'!N33 -> 0 | J35: ='Anchor-AI'!O33 -> 0 | K35: =(Summary!$C$64*H35+Summary!$C$65*I35+Summary!$C$66*J35)/Summary!$C$67 -> 0 | L35: ='Anchor-AI'!P33 -> 0 | M35: ='Anchor-AI'!Q33 -> 0 | N35: ='Anchor-AI'!R33 -> 0 | O35: ='Anchor-AI'!S33 -> 0 | P35: ='Anchor-AI'!T33 -> 0 | Q35: ='Anchor-AI'!U33 -> 0 | R35: ='Anchor-AI'!V33 -> 0 | S35: ='Anchor-AI'!W33 -> 0 | T35: ='Anchor-AI'!X33 -> 0 | U35: =10*LOG10(1/((Summary!$C$81/10^(R35/10)+Summary!$C$82/10^(S35/10)+Summary!$C$83/10^(T35/10))/Summary!$C$84)) -> 0 | V35: ='Anchor-AI'!Y33 -> 0 | W35: ='Anchor-AI'!Z33 -> 0 | X35: ='Anchor-AI'!AA33 -> 0 | Y35: 0 | AA35: ='Test-AI'!L33 -> 0 | AB35: ='Test-AI'!M33 -> 0 | AC35: ='Test-AI'!N33 -> 0 | AD35: ='Test-AI'!O33 -> 0 | AE35: =(Summary!$C$64*AB35+Summary!$C$65*AC35+Summary!$C$66*AD35)/Summary!$C$67 -> 0 | AF35: ='Test-AI'!P33 -> 0 | AG35: ='Test-AI'!Q33 -> 0 | AH35: ='Test-AI'!R33 -> 0 | AI35: ='Test-AI'!S33 -> 0 | AJ35: ='Test-AI'!T33 -> 0 | AK35: ='Test-AI'!U33 -> 0 | AL35: ='Test-AI'!V33 -> 0 | AM35: ='Test-AI'!W33 -> 0 | AN35: ='Test-AI'!X33 -> 0 | AO35: =10*LOG10(1/((Summary!$C$81/10^(AL35/10)+Summary!$C$82/10^(AM35/10)+Summary!$C$83/10^(AN35/10))/Summary!$C$84)) -> 0 | AP35: ='Test-AI'!Y33 -> 0 | AQ35: ='Test-AI'!Z33 -> 0 | AR35: ='Test-AI'!AA33 -> 0 | AS35: 0
F36: 135 | G36: ='Anchor-AI'!L34 -> 0 | H36: ='Anchor-AI'!M34 -> 0 | I36: ='Anchor-AI'!N34 -> 0 | J36: ='Anchor-AI'!O34 -> 0 | K36: =(Summary!$C$64*H36+Summary!$C$65*I36+Summary!$C$66*J36)/Summary!$C$67 -> 0 | L36: ='Anchor-AI'!P34 -> 0 | M36: ='Anchor-AI'!Q34 -> 0 | N36: ='Anchor-AI'!R34 -> 0 | O36: ='Anchor-AI'!S34 -> 0 | P36: ='Anchor-AI'!T34 -> 0 | Q36: ='Anchor-AI'!U34 -> 0 | R36: ='Anchor-AI'!V34 -> 0 | S36: ='Anchor-AI'!W34 -> 0 | T36: ='Anchor-AI'!X34 -> 0 | U36: =10*LOG10(1/((Summary!$C$81/10^(R36/10)+Summary!$C$82/10^(S36/10)+Summary!$C$83/10^(T36/10))/Summary!$C$84)) -> 0 | V36: ='Anchor-AI'!Y34 -> 0 | W36: ='Anchor-AI'!Z34 -> 0 | X36: ='Anchor-AI'!AA34 -> 0 | Y36: 0 | AA36: ='Test-AI'!L34 -> 0 | AB36: ='Test-AI'!M34 -> 0 | AC36: ='Test-AI'!N34 -> 0 | AD36: ='Test-AI'!O34 -> 0 | AE36: =(Summary!$C$64*AB36+Summary!$C$65*AC36+Summary!$C$66*AD36)/Summary!$C$67 -> 0 | AF36: ='Test-AI'!P34 -> 0 | AG36: ='Test-AI'!Q34 -> 0 | AH36: ='Test-AI'!R34 -> 0 | AI36: ='Test-AI'!S34 -> 0 | AJ36: ='Test-AI'!T34 -> 0 | AK36: ='Test-AI'!U34 -> 0 | AL36: ='Test-AI'!V34 -> 0 | AM36: ='Test-AI'!W34 -> 0 | AN36: ='Test-AI'!X34 -> 0 | AO36: =10*LOG10(1/((Summary!$C$81/10^(AL36/10)+Summary!$C$82/10^(AM36/10)+Summary!$C$83/10^(AN36/10))/Summary!$C$84)) -> 0 | AP36: ='Test-AI'!Y34 -> 0 | AQ36: ='Test-AI'!Z34 -> 0 | AR36: ='Test-AI'!AA34 -> 0 | AS36: 0 | AX36: Med | AY36: =bdRateExtend($G35:$G38,H35:H38,$AA35:$AA38,AB35:AB38) ->  | BE36: =bdRateExtend($G35:$G38,L35:L38,$AA35:$AA38,AF35:AF38) ->  | BG36: =bdRateExtend($G35:$G38,M35:M38,$AA35:$AA38,AG35:AG38) ->  | BI36: =bdRateExtend($G35:$G38,N35:N38,$AA35:$AA38,AH35:AH38,"None", FALSE,1) ->  | BK36: =bdRateExtend($G35:$G38,O35:O38,$AA35:$AA38,AI35:AI38,"None", FALSE,1) ->  | BM36: =bdRateExtend($G35:$G38,P35:P38,$AA35:$AA38,AJ35:AJ38) ->  | BO36: =bdRateExtend($G35:$G38,Q35:Q38,$AA35:$AA38,AK35:AK38) ->  | BQ36: =bdRateExtend($G35:$G38,R35:R38,$AA35:$AA38,AL35:AL38) ->  | BW36: =bdCAMBIExtend($G35:$G38,V35:V38,$AA35:$AA38,AP35:AP38) ->  | BY36: =testVMAFRange($G35:$G38,N35:N38,$AA35:$AA38,AH35:AH38) -> 0 | CA36: =testVMAFRange($G35:$G38,O35:O38,$AA35:$AA38,AI35:AI38) -> 0
F37: 160 | G37: ='Anchor-AI'!L35 -> 0 | H37: ='Anchor-AI'!M35 -> 0 | I37: ='Anchor-AI'!N35 -> 0 | J37: ='Anchor-AI'!O35 -> 0 | K37: =(Summary!$C$64*H37+Summary!$C$65*I37+Summary!$C$66*J37)/Summary!$C$67 -> 0 | L37: ='Anchor-AI'!P35 -> 0 | M37: ='Anchor-AI'!Q35 -> 0 | N37: ='Anchor-AI'!R35 -> 0 | O37: ='Anchor-AI'!S35 -> 0 | P37: ='Anchor-AI'!T35 -> 0 | Q37: ='Anchor-AI'!U35 -> 0 | R37: ='Anchor-AI'!V35 -> 0 | S37: ='Anchor-AI'!W35 -> 0 | T37: ='Anchor-AI'!X35 -> 0 | U37: =10*LOG10(1/((Summary!$C$81/10^(R37/10)+Summary!$C$82/10^(S37/10)+Summary!$C$83/10^(T37/10))/Summary!$C$84)) -> 0 | V37: ='Anchor-AI'!Y35 -> 0 | W37: ='Anchor-AI'!Z35 -> 0 | X37: ='Anchor-AI'!AA35 -> 0 | Y37: 0 | AA37: ='Test-AI'!L35 -> 0 | AB37: ='Test-AI'!M35 -> 0 | AC37: ='Test-AI'!N35 -> 0 | AD37: ='Test-AI'!O35 -> 0 | AE37: =(Summary!$C$64*AB37+Summary!$C$65*AC37+Summary!$C$66*AD37)/Summary!$C$67 -> 0 | AF37: ='Test-AI'!P35 -> 0 | AG37: ='Test-AI'!Q35 -> 0 | AH37: ='Test-AI'!R35 -> 0 | AI37: ='Test-AI'!S35 -> 0 | AJ37: ='Test-AI'!T35 -> 0 | AK37: ='Test-AI'!U35 -> 0 | AL37: ='Test-AI'!V35 -> 0 | AM37: ='Test-AI'!W35 -> 0 | AN37: ='Test-AI'!X35 -> 0 | AO37: =10*LOG10(1/((Summary!$C$81/10^(AL37/10)+Summary!$C$82/10^(AM37/10)+Summary!$C$83/10^(AN37/10))/Summary!$C$84)) -> 0 | AP37: ='Test-AI'!Y35 -> 0 | AQ37: ='Test-AI'!Z35 -> 0 | AR37: ='Test-AI'!AA35 -> 0 | AS37: 0
F38: 185 | G38: ='Anchor-AI'!L36 -> 0 | H38: ='Anchor-AI'!M36 -> 0 | I38: ='Anchor-AI'!N36 -> 0 | J38: ='Anchor-AI'!O36 -> 0 | K38: =(Summary!$C$64*H38+Summary!$C$65*I38+Summary!$C$66*J38)/Summary!$C$67 -> 0 | L38: ='Anchor-AI'!P36 -> 0 | M38: ='Anchor-AI'!Q36 -> 0 | N38: ='Anchor-AI'!R36 -> 0 | O38: ='Anchor-AI'!S36 -> 0 | P38: ='Anchor-AI'!T36 -> 0 | Q38: ='Anchor-AI'!U36 -> 0 | R38: ='Anchor-AI'!V36 -> 0 | S38: ='Anchor-AI'!W36 -> 0 | T38: ='Anchor-AI'!X36 -> 0 | U38: =10*LOG10(1/((Summary!$C$81/10^(R38/10)+Summary!$C$82/10^(S38/10)+Summary!$C$83/10^(T38/10))/Summary!$C$84)) -> 0 | V38: ='Anchor-AI'!Y36 -> 0 | W38: ='Anchor-AI'!Z36 -> 0 | X38: ='Anchor-AI'!AA36 -> 0 | Y38: 0 | AA38: ='Test-AI'!L36 -> 0 | AB38: ='Test-AI'!M36 -> 0 | AC38: ='Test-AI'!N36 -> 0 | AD38: ='Test-AI'!O36 -> 0 | AE38: =(Summary!$C$64*AB38+Summary!$C$65*AC38+Summary!$C$66*AD38)/Summary!$C$67 -> 0 | AF38: ='Test-AI'!P36 -> 0 | AG38: ='Test-AI'!Q36 -> 0 | AH38: ='Test-AI'!R36 -> 0 | AI38: ='Test-AI'!S36 -> 0 | AJ38: ='Test-AI'!T36 -> 0 | AK38: ='Test-AI'!U36 -> 0 | AL38: ='Test-AI'!V36 -> 0 | AM38: ='Test-AI'!W36 -> 0 | AN38: ='Test-AI'!X36 -> 0 | AO38: =10*LOG10(1/((Summary!$C$81/10^(AL38/10)+Summary!$C$82/10^(AM38/10)+Summary!$C$83/10^(AN38/10))/Summary!$C$84)) -> 0 | AP38: ='Test-AI'!Y36 -> 0 | AQ38: ='Test-AI'!Z36 -> 0 | AR38: ='Test-AI'!AA36 -> 0 | AS38: 0 | AX38: Low | AY38: =bdRateExtend($G36:$G39,H36:H39,$AA36:$AA39,AB36:AB39) ->  | BE38: =bdRateExtend($G36:$G39,L36:L39,$AA36:$AA39,AF36:AF39) ->  | BG38: =bdRateExtend($G36:$G39,M36:M39,$AA36:$AA39,AG36:AG39) ->  | BI38: =bdRateExtend($G36:$G39,N36:N39,$AA36:$AA39,AH36:AH39,"None", FALSE,1) ->  | BK38: =bdRateExtend($G36:$G39,O36:O39,$AA36:$AA39,AI36:AI39,"None", FALSE,1) ->  | BM38: =bdRateExtend($G36:$G39,P36:P39,$AA36:$AA39,AJ36:AJ39) ->  | BO38: =bdRateExtend($G36:$G39,Q36:Q39,$AA36:$AA39,AK36:AK39) ->  | BQ38: =bdRateExtend($G36:$G39,R36:R39,$AA36:$AA39,AL36:AL39) ->  | BW38: =bdCAMBIExtend($G36:$G39,V36:V39,$AA36:$AA39,AP36:AP39) ->  | BY38: =testVMAFRange($G36:$G39,N36:N39,$AA36:$AA39,AH36:AH39) -> 0 | CA38: =testVMAFRange($G36:$G39,O36:O39,$AA36:$AA39,AI36:AI39) -> 0
F39: 210 | G39: ='Anchor-AI'!L37 -> 0 | H39: ='Anchor-AI'!M37 -> 0 | I39: ='Anchor-AI'!N37 -> 0 | J39: ='Anchor-AI'!O37 -> 0 | K39: =(Summary!$C$64*H39+Summary!$C$65*I39+Summary!$C$66*J39)/Summary!$C$67 -> 0 | L39: ='Anchor-AI'!P37 -> 0 | M39: ='Anchor-AI'!Q37 -> 0 | N39: ='Anchor-AI'!R37 -> 0 | O39: ='Anchor-AI'!S37 -> 0 | P39: ='Anchor-AI'!T37 -> 0 | Q39: ='Anchor-AI'!U37 -> 0 | R39: ='Anchor-AI'!V37 -> 0 | S39: ='Anchor-AI'!W37 -> 0 | T39: ='Anchor-AI'!X37 -> 0 | U39: =10*LOG10(1/((Summary!$C$81/10^(R39/10)+Summary!$C$82/10^(S39/10)+Summary!$C$83/10^(T39/10))/Summary!$C$84)) -> 0 | V39: ='Anchor-AI'!Y37 -> 0 | W39: ='Anchor-AI'!Z37 -> 0 | X39: ='Anchor-AI'!AA37 -> 0 | Y39: 0 | AA39: ='Test-AI'!L37 -> 0 | AB39: ='Test-AI'!M37 -> 0 | AC39: ='Test-AI'!N37 -> 0 | AD39: ='Test-AI'!O37 -> 0 | AE39: =(Summary!$C$64*AB39+Summary!$C$65*AC39+Summary!$C$66*AD39)/Summary!$C$67 -> 0 | AF39: ='Test-AI'!P37 -> 0 | AG39: ='Test-AI'!Q37 -> 0 | AH39: ='Test-AI'!R37 -> 0 | AI39: ='Test-AI'!S37 -> 0 | AJ39: ='Test-AI'!T37 -> 0 | AK39: ='Test-AI'!U37 -> 0 | AL39: ='Test-AI'!V37 -> 0 | AM39: ='Test-AI'!W37 -> 0 | AN39: ='Test-AI'!X37 -> 0 | AO39: =10*LOG10(1/((Summary!$C$81/10^(AL39/10)+Summary!$C$82/10^(AM39/10)+Summary!$C$83/10^(AN39/10))/Summary!$C$84)) -> 0 | AP39: ='Test-AI'!Y37 -> 0 | AQ39: ='Test-AI'!Z37 -> 0 | AR39: ='Test-AI'!AA37 -> 0 | AS39: 0
B40: 3840x2160 | C40: Tango_3840x2160_5994fps_10bit_420 | D40: 59.94 | E40: 10 | F40: 85 | G40: ='Anchor-AI'!L38 -> 0 | H40: ='Anchor-AI'!M38 -> 0 | I40: ='Anchor-AI'!N38 -> 0 | J40: ='Anchor-AI'!O38 -> 0 | K40: =(Summary!$C$64*H40+Summary!$C$65*I40+Summary!$C$66*J40)/Summary!$C$67 -> 0 | L40: ='Anchor-AI'!P38 -> 0 | M40: ='Anchor-AI'!Q38 -> 0 | N40: ='Anchor-AI'!R38 -> 0 | O40: ='Anchor-AI'!S38 -> 0 | P40: ='Anchor-AI'!T38 -> 0 | Q40: ='Anchor-AI'!U38 -> 0 | R40: ='Anchor-AI'!V38 -> 0 | S40: ='Anchor-AI'!W38 -> 0 | T40: ='Anchor-AI'!X38 -> 0 | U40: =10*LOG10(1/((Summary!$C$81/10^(R40/10)+Summary!$C$82/10^(S40/10)+Summary!$C$83/10^(T40/10))/Summary!$C$84)) -> 0 | V40: ='Anchor-AI'!Y38 -> 0 | W40: ='Anchor-AI'!Z38 -> 0 | X40: ='Anchor-AI'!AA38 -> 0 | Y40: 0 | AA40: ='Test-AI'!L38 -> 0 | AB40: ='Test-AI'!M38 -> 0 | AC40: ='Test-AI'!N38 -> 0 | AD40: ='Test-AI'!O38 -> 0 | AE40: =(Summary!$C$64*AB40+Summary!$C$65*AC40+Summary!$C$66*AD40)/Summary!$C$67 -> 0 | AF40: ='Test-AI'!P38 -> 0 | AG40: ='Test-AI'!Q38 -> 0 | AH40: ='Test-AI'!R38 -> 0 | AI40: ='Test-AI'!S38 -> 0 | AJ40: ='Test-AI'!T38 -> 0 | AK40: ='Test-AI'!U38 -> 0 | AL40: ='Test-AI'!V38 -> 0 | AM40: ='Test-AI'!W38 -> 0 | AN40: ='Test-AI'!X38 -> 0 | AO40: =10*LOG10(1/((Summary!$C$81/10^(AL40/10)+Summary!$C$82/10^(AM40/10)+Summary!$C$83/10^(AN40/10))/Summary!$C$84)) -> 0 | AP40: ='Test-AI'!Y38 -> 0 | AQ40: ='Test-AI'!Z38 -> 0 | AR40: ='Test-AI'!AA38 -> 0 | AS40: 0 | AX40: High | AY40: =bdRateExtend($G40:$G43,H40:H43,$AA40:$AA43,AB40:AB43) ->  | AZ40: =bdRateExtend($G40:$G45,H40:H45,$AA40:$AA45,AB40:AB45) ->  | BA40: =bdRateExtend($G40:$G45,I40:I45,$AA40:$AA45,AC40:AC45) ->  | BB40: =bdRateExtend($G40:$G45,J40:J45,$AA40:$AA45,AD40:AD45) ->  | BC40: =bdRateExtend($G40:$G45,K40:K45,$AA40:$AA45,AE40:AE45) ->  | BD40: =(Summary!$C$95*AZ40+Summary!$C$96*BA40+Summary!$C$97*BB40)/Summary!$C$98 ->  | BE40: =bdRateExtend($G40:$G43,L40:L43,$AA40:$AA43,AF40:AF43) ->  | BF40: =bdRateExtend($G40:$G45,L40:L45,$AA40:$AA45,AF40:AF45) ->  | BG40: =bdRateExtend($G40:$G43,M40:M43,$AA40:$AA43,AG40:AG43) ->  | BH40: =bdRateExtend($G40:$G45,M40:M45,$AA40:$AA45,AG40:AG45) ->  | BI40: =bdRateExtend($G40:$G43,N40:N43,$AA40:$AA43,AH40:AH43,"None", FALSE,1) ->  | BJ40: =bdRateExtend($G40:$G45,N40:N45,$AA40:$AA45,AH40:AH45,"None", FALSE,1) ->  | BK40: =bdRateExtend($G40:$G43,O40:O43,$AA40:$AA43,AI40:AI43,"None", FALSE,1) ->  | BL40: =bdRateExtend($G40:$G45,O40:O45,$AA40:$AA45,AI40:AI45,"None", FALSE,1) ->  | BM40: =bdRateExtend($G40:$G43,P40:P43,$AA40:$AA43,AJ40:AJ43) ->  | BN40: =bdRateExtend($G40:$G45,P40:P45,$AA40:$AA45,AJ40:AJ45) ->  | BO40: =bdRateExtend($G40:$G43,Q40:Q43,$AA40:$AA43,AK40:AK43) ->  | BP40: =bdRateExtend($G40:$G45,Q40:Q45,$AA40:$AA45,AK40:AK45) ->  | BQ40: =bdRateExtend($G40:$G43,R40:R43,$AA40:$AA43,AL40:AL43) ->  | BR40: =bdRateExtend($G40:$G45,R40:R45,$AA40:$AA45,AL40:AL45) ->  | BS40: =bdRateExtend($G40:$G45,S40:S45,$AA40:$AA45,AM40:AM45) ->  | BT40: =bdRateExtend($G40:$G45,T40:T45,$AA40:$AA45,AN40:AN45) ->  | BU40: =bdRateExtend($G40:$G45,U40:U45,$AA40:$AA45,AO40:AO45) ->  | BV40: =(Summary!$C$109*BR40+Summary!$C$110*BS40+Summary!$C$111*BT40)/Summary!$C$112 ->  | BW40: =bdCAMBIExtend($G40:$G43,V40:V43,$AA40:$AA43,AP40:AP43) ->  | BX40: =bdCAMBIExtend($G40:$G45,V40:V45,$AA40:$AA45,AP40:AP45) ->  | BY40: =testVMAFRange($G40:$G43,N40:N43,$AA40:$AA43,AH40:AH43) -> 0 | BZ40: =testVMAFRange($G40:$G45,N40:N45,$AA40:$AA45,AH40:AH45) -> 0 | CA40: =testVMAFRange($G40:$G43,O40:O43,$AA40:$AA43,AI40:AI43) -> 0 | CB40: =testVMAFRange($G40:$G45,O40:O45,$AA40:$AA45,AI40:AI45) -> 0
F41: 110 | G41: ='Anchor-AI'!L39 -> 0 | H41: ='Anchor-AI'!M39 -> 0 | I41: ='Anchor-AI'!N39 -> 0 | J41: ='Anchor-AI'!O39 -> 0 | K41: =(Summary!$C$64*H41+Summary!$C$65*I41+Summary!$C$66*J41)/Summary!$C$67 -> 0 | L41: ='Anchor-AI'!P39 -> 0 | M41: ='Anchor-AI'!Q39 -> 0 | N41: ='Anchor-AI'!R39 -> 0 | O41: ='Anchor-AI'!S39 -> 0 | P41: ='Anchor-AI'!T39 -> 0 | Q41: ='Anchor-AI'!U39 -> 0 | R41: ='Anchor-AI'!V39 -> 0 | S41: ='Anchor-AI'!W39 -> 0 | T41: ='Anchor-AI'!X39 -> 0 | U41: =10*LOG10(1/((Summary!$C$81/10^(R41/10)+Summary!$C$82/10^(S41/10)+Summary!$C$83/10^(T41/10))/Summary!$C$84)) -> 0 | V41: ='Anchor-AI'!Y39 -> 0 | W41: ='Anchor-AI'!Z39 -> 0 | X41: ='Anchor-AI'!AA39 -> 0 | Y41: 0 | AA41: ='Test-AI'!L39 -> 0 | AB41: ='Test-AI'!M39 -> 0 | AC41: ='Test-AI'!N39 -> 0 | AD41: ='Test-AI'!O39 -> 0 | AE41: =(Summary!$C$64*AB41+Summary!$C$65*AC41+Summary!$C$66*AD41)/Summary!$C$67 -> 0 | AF41: ='Test-AI'!P39 -> 0 | AG41: ='Test-AI'!Q39 -> 0 | AH41: ='Test-AI'!R39 -> 0 | AI41: ='Test-AI'!S39 -> 0 | AJ41: ='Test-AI'!T39 -> 0 | AK41: ='Test-AI'!U39 -> 0 | AL41: ='Test-AI'!V39 -> 0 | AM41: ='Test-AI'!W39 -> 0 | AN41: ='Test-AI'!X39 -> 0 | AO41: =10*LOG10(1/((Summary!$C$81/10^(AL41/10)+Summary!$C$82/10^(AM41/10)+Summary!$C$83/10^(AN41/10))/Summary!$C$84)) -> 0 | AP41: ='Test-AI'!Y39 -> 0 | AQ41: ='Test-AI'!Z39 -> 0 | AR41: ='Test-AI'!AA39 -> 0 | AS41: 0
F42: 135 | G42: ='Anchor-AI'!L40 -> 0 | H42: ='Anchor-AI'!M40 -> 0 | I42: ='Anchor-AI'!N40 -> 0 | J42: ='Anchor-AI'!O40 -> 0 | K42: =(Summary!$C$64*H42+Summary!$C$65*I42+Summary!$C$66*J42)/Summary!$C$67 -> 0 | L42: ='Anchor-AI'!P40 -> 0 | M42: ='Anchor-AI'!Q40 -> 0 | N42: ='Anchor-AI'!R40 -> 0 | O42: ='Anchor-AI'!S40 -> 0 | P42: ='Anchor-AI'!T40 -> 0 | Q42: ='Anchor-AI'!U40 -> 0 | R42: ='Anchor-AI'!V40 -> 0 | S42: ='Anchor-AI'!W40 -> 0 | T42: ='Anchor-AI'!X40 -> 0 | U42: =10*LOG10(1/((Summary!$C$81/10^(R42/10)+Summary!$C$82/10^(S42/10)+Summary!$C$83/10^(T42/10))/Summary!$C$84)) -> 0 | V42: ='Anchor-AI'!Y40 -> 0 | W42: ='Anchor-AI'!Z40 -> 0 | X42: ='Anchor-AI'!AA40 -> 0 | Y42: 0 | AA42: ='Test-AI'!L40 -> 0 | AB42: ='Test-AI'!M40 -> 0 | AC42: ='Test-AI'!N40 -> 0 | AD42: ='Test-AI'!O40 -> 0 | AE42: =(Summary!$C$64*AB42+Summary!$C$65*AC42+Summary!$C$66*AD42)/Summary!$C$67 -> 0 | AF42: ='Test-AI'!P40 -> 0 | AG42: ='Test-AI'!Q40 -> 0 | AH42: ='Test-AI'!R40 -> 0 | AI42: ='Test-AI'!S40 -> 0 | AJ42: ='Test-AI'!T40 -> 0 | AK42: ='Test-AI'!U40 -> 0 | AL42: ='Test-AI'!V40 -> 0 | AM42: ='Test-AI'!W40 -> 0 | AN42: ='Test-AI'!X40 -> 0 | AO42: =10*LOG10(1/((Summary!$C$81/10^(AL42/10)+Summary!$C$82/10^(AM42/10)+Summary!$C$83/10^(AN42/10))/Summary!$C$84)) -> 0 | AP42: ='Test-AI'!Y40 -> 0 | AQ42: ='Test-AI'!Z40 -> 0 | AR42: ='Test-AI'!AA40 -> 0 | AS42: 0 | AX42: Med | AY42: =bdRateExtend($G41:$G44,H41:H44,$AA41:$AA44,AB41:AB44) ->  | BE42: =bdRateExtend($G41:$G44,L41:L44,$AA41:$AA44,AF41:AF44) ->  | BG42: =bdRateExtend($G41:$G44,M41:M44,$AA41:$AA44,AG41:AG44) ->  | BI42: =bdRateExtend($G41:$G44,N41:N44,$AA41:$AA44,AH41:AH44,"None", FALSE,1) ->  | BK42: =bdRateExtend($G41:$G44,O41:O44,$AA41:$AA44,AI41:AI44,"None", FALSE,1) ->  | BM42: =bdRateExtend($G41:$G44,P41:P44,$AA41:$AA44,AJ41:AJ44) ->  | BO42: =bdRateExtend($G41:$G44,Q41:Q44,$AA41:$AA44,AK41:AK44) ->  | BQ42: =bdRateExtend($G41:$G44,R41:R44,$AA41:$AA44,AL41:AL44) ->  | BW42: =bdCAMBIExtend($G41:$G44,V41:V44,$AA41:$AA44,AP41:AP44) ->  | BY42: =testVMAFRange($G41:$G44,N41:N44,$AA41:$AA44,AH41:AH44) -> 0 | CA42: =testVMAFRange($G41:$G44,O41:O44,$AA41:$AA44,AI41:AI44) -> 0
F43: 160 | G43: ='Anchor-AI'!L41 -> 0 | H43: ='Anchor-AI'!M41 -> 0 | I43: ='Anchor-AI'!N41 -> 0 | J43: ='Anchor-AI'!O41 -> 0 | K43: =(Summary!$C$64*H43+Summary!$C$65*I43+Summary!$C$66*J43)/Summary!$C$67 -> 0 | L43: ='Anchor-AI'!P41 -> 0 | M43: ='Anchor-AI'!Q41 -> 0 | N43: ='Anchor-AI'!R41 -> 0 | O43: ='Anchor-AI'!S41 -> 0 | P43: ='Anchor-AI'!T41 -> 0 | Q43: ='Anchor-AI'!U41 -> 0 | R43: ='Anchor-AI'!V41 -> 0 | S43: ='Anchor-AI'!W41 -> 0 | T43: ='Anchor-AI'!X41 -> 0 | U43: =10*LOG10(1/((Summary!$C$81/10^(R43/10)+Summary!$C$82/10^(S43/10)+Summary!$C$83/10^(T43/10))/Summary!$C$84)) -> 0 | V43: ='Anchor-AI'!Y41 -> 0 | W43: ='Anchor-AI'!Z41 -> 0 | X43: ='Anchor-AI'!AA41 -> 0 | Y43: 0 | AA43: ='Test-AI'!L41 -> 0 | AB43: ='Test-AI'!M41 -> 0 | AC43: ='Test-AI'!N41 -> 0 | AD43: ='Test-AI'!O41 -> 0 | AE43: =(Summary!$C$64*AB43+Summary!$C$65*AC43+Summary!$C$66*AD43)/Summary!$C$67 -> 0 | AF43: ='Test-AI'!P41 -> 0 | AG43: ='Test-AI'!Q41 -> 0 | AH43: ='Test-AI'!R41 -> 0 | AI43: ='Test-AI'!S41 -> 0 | AJ43: ='Test-AI'!T41 -> 0 | AK43: ='Test-AI'!U41 -> 0 | AL43: ='Test-AI'!V41 -> 0 | AM43: ='Test-AI'!W41 -> 0 | AN43: ='Test-AI'!X41 -> 0 | AO43: =10*LOG10(1/((Summary!$C$81/10^(AL43/10)+Summary!$C$82/10^(AM43/10)+Summary!$C$83/10^(AN43/10))/Summary!$C$84)) -> 0 | AP43: ='Test-AI'!Y41 -> 0 | AQ43: ='Test-AI'!Z41 -> 0 | AR43: ='Test-AI'!AA41 -> 0 | AS43: 0
F44: 185 | G44: ='Anchor-AI'!L42 -> 0 | H44: ='Anchor-AI'!M42 -> 0 | I44: ='Anchor-AI'!N42 -> 0 | J44: ='Anchor-AI'!O42 -> 0 | K44: =(Summary!$C$64*H44+Summary!$C$65*I44+Summary!$C$66*J44)/Summary!$C$67 -> 0 | L44: ='Anchor-AI'!P42 -> 0 | M44: ='Anchor-AI'!Q42 -> 0 | N44: ='Anchor-AI'!R42 -> 0 | O44: ='Anchor-AI'!S42 -> 0 | P44: ='Anchor-AI'!T42 -> 0 | Q44: ='Anchor-AI'!U42 -> 0 | R44: ='Anchor-AI'!V42 -> 0 | S44: ='Anchor-AI'!W42 -> 0 | T44: ='Anchor-AI'!X42 -> 0 | U44: =10*LOG10(1/((Summary!$C$81/10^(R44/10)+Summary!$C$82/10^(S44/10)+Summary!$C$83/10^(T44/10))/Summary!$C$84)) -> 0 | V44: ='Anchor-AI'!Y42 -> 0 | W44: ='Anchor-AI'!Z42 -> 0 | X44: ='Anchor-AI'!AA42 -> 0 | Y44: 0 | AA44: ='Test-AI'!L42 -> 0 | AB44: ='Test-AI'!M42 -> 0 | AC44: ='Test-AI'!N42 -> 0 | AD44: ='Test-AI'!O42 -> 0 | AE44: =(Summary!$C$64*AB44+Summary!$C$65*AC44+Summary!$C$66*AD44)/Summary!$C$67 -> 0 | AF44: ='Test-AI'!P42 -> 0 | AG44: ='Test-AI'!Q42 -> 0 | AH44: ='Test-AI'!R42 -> 0 | AI44: ='Test-AI'!S42 -> 0 | AJ44: ='Test-AI'!T42 -> 0 | AK44: ='Test-AI'!U42 -> 0 | AL44: ='Test-AI'!V42 -> 0 | AM44: ='Test-AI'!W42 -> 0 | AN44: ='Test-AI'!X42 -> 0 | AO44: =10*LOG10(1/((Summary!$C$81/10^(AL44/10)+Summary!$C$82/10^(AM44/10)+Summary!$C$83/10^(AN44/10))/Summary!$C$84)) -> 0 | AP44: ='Test-AI'!Y42 -> 0 | AQ44: ='Test-AI'!Z42 -> 0 | AR44: ='Test-AI'!AA42 -> 0 | AS44: 0 | AX44: Low | AY44: =bdRateExtend($G42:$G45,H42:H45,$AA42:$AA45,AB42:AB45) ->  | BE44: =bdRateExtend($G42:$G45,L42:L45,$AA42:$AA45,AF42:AF45) ->  | BG44: =bdRateExtend($G42:$G45,M42:M45,$AA42:$AA45,AG42:AG45) ->  | BI44: =bdRateExtend($G42:$G45,N42:N45,$AA42:$AA45,AH42:AH45,"None", FALSE,1) ->  | BK44: =bdRateExtend($G42:$G45,O42:O45,$AA42:$AA45,AI42:AI45,"None", FALSE,1) ->  | BM44: =bdRateExtend($G42:$G45,P42:P45,$AA42:$AA45,AJ42:AJ45) ->  | BO44: =bdRateExtend($G42:$G45,Q42:Q45,$AA42:$AA45,AK42:AK45) ->  | BQ44: =bdRateExtend($G42:$G45,R42:R45,$AA42:$AA45,AL42:AL45) ->  | BW44: =bdCAMBIExtend($G42:$G45,V42:V45,$AA42:$AA45,AP42:AP45) ->  | BY44: =testVMAFRange($G42:$G45,N42:N45,$AA42:$AA45,AH42:AH45) -> 0 | CA44: =testVMAFRange($G42:$G45,O42:O45,$AA42:$AA45,AI42:AI45) -> 0
F45: 210 | G45: ='Anchor-AI'!L43 -> 0 | H45: ='Anchor-AI'!M43 -> 0 | I45: ='Anchor-AI'!N43 -> 0 | J45: ='Anchor-AI'!O43 -> 0 | K45: =(Summary!$C$64*H45+Summary!$C$65*I45+Summary!$C$66*J45)/Summary!$C$67 -> 0 | L45: ='Anchor-AI'!P43 -> 0 | M45: ='Anchor-AI'!Q43 -> 0 | N45: ='Anchor-AI'!R43 -> 0 | O45: ='Anchor-AI'!S43 -> 0 | P45: ='Anchor-AI'!T43 -> 0 | Q45: ='Anchor-AI'!U43 -> 0 | R45: ='Anchor-AI'!V43 -> 0 | S45: ='Anchor-AI'!W43 -> 0 | T45: ='Anchor-AI'!X43 -> 0 | U45: =10*LOG10(1/((Summary!$C$81/10^(R45/10)+Summary!$C$82/10^(S45/10)+Summary!$C$83/10^(T45/10))/Summary!$C$84)) -> 0 | V45: ='Anchor-AI'!Y43 -> 0 | W45: ='Anchor-AI'!Z43 -> 0 | X45: ='Anchor-AI'!AA43 -> 0 | Y45: 0 | AA45: ='Test-AI'!L43 -> 0 | AB45: ='Test-AI'!M43 -> 0 | AC45: ='Test-AI'!N43 -> 0 | AD45: ='Test-AI'!O43 -> 0 | AE45: =(Summary!$C$64*AB45+Summary!$C$65*AC45+Summary!$C$66*AD45)/Summary!$C$67 -> 0 | AF45: ='Test-AI'!P43 -> 0 | AG45: ='Test-AI'!Q43 -> 0 | AH45: ='Test-AI'!R43 -> 0 | AI45: ='Test-AI'!S43 -> 0 | AJ45: ='Test-AI'!T43 -> 0 | AK45: ='Test-AI'!U43 -> 0 | AL45: ='Test-AI'!V43 -> 0 | AM45: ='Test-AI'!W43 -> 0 | AN45: ='Test-AI'!X43 -> 0 | AO45: =10*LOG10(1/((Summary!$C$81/10^(AL45/10)+Summary!$C$82/10^(AM45/10)+Summary!$C$83/10^(AN45/10))/Summary!$C$84)) -> 0 | AP45: ='Test-AI'!Y43 -> 0 | AQ45: ='Test-AI'!Z43 -> 0 | AR45: ='Test-AI'!AA43 -> 0 | AS45: 0
B46: 3840x2160 | C46: TimeLapse_3840x2160_5994fps_10bit_420 | D46: 59.94 | E46: 10 | F46: 85 | G46: ='Anchor-AI'!L44 -> 0 | H46: ='Anchor-AI'!M44 -> 0 | I46: ='Anchor-AI'!N44 -> 0 | J46: ='Anchor-AI'!O44 -> 0 | K46: =(Summary!$C$64*H46+Summary!$C$65*I46+Summary!$C$66*J46)/Summary!$C$67 -> 0 | L46: ='Anchor-AI'!P44 -> 0 | M46: ='Anchor-AI'!Q44 -> 0 | N46: ='Anchor-AI'!R44 -> 0 | O46: ='Anchor-AI'!S44 -> 0 | P46: ='Anchor-AI'!T44 -> 0 | Q46: ='Anchor-AI'!U44 -> 0 | R46: ='Anchor-AI'!V44 -> 0 | S46: ='Anchor-AI'!W44 -> 0 | T46: ='Anchor-AI'!X44 -> 0 | U46: =10*LOG10(1/((Summary!$C$81/10^(R46/10)+Summary!$C$82/10^(S46/10)+Summary!$C$83/10^(T46/10))/Summary!$C$84)) -> 0 | V46: ='Anchor-AI'!Y44 -> 0 | W46: ='Anchor-AI'!Z44 -> 0 | X46: ='Anchor-AI'!AA44 -> 0 | Y46: 0 | AA46: ='Test-AI'!L44 -> 0 | AB46: ='Test-AI'!M44 -> 0 | AC46: ='Test-AI'!N44 -> 0 | AD46: ='Test-AI'!O44 -> 0 | AE46: =(Summary!$C$64*AB46+Summary!$C$65*AC46+Summary!$C$66*AD46)/Summary!$C$67 -> 0 | AF46: ='Test-AI'!P44 -> 0 | AG46: ='Test-AI'!Q44 -> 0 | AH46: ='Test-AI'!R44 -> 0 | AI46: ='Test-AI'!S44 -> 0 | AJ46: ='Test-AI'!T44 -> 0 | AK46: ='Test-AI'!U44 -> 0 | AL46: ='Test-AI'!V44 -> 0 | AM46: ='Test-AI'!W44 -> 0 | AN46: ='Test-AI'!X44 -> 0 | AO46: =10*LOG10(1/((Summary!$C$81/10^(AL46/10)+Summary!$C$82/10^(AM46/10)+Summary!$C$83/10^(AN46/10))/Summary!$C$84)) -> 0 | AP46: ='Test-AI'!Y44 -> 0 | AQ46: ='Test-AI'!Z44 -> 0 | AR46: ='Test-AI'!AA44 -> 0 | AS46: 0 | AX46: High | AY46: =bdRateExtend($G46:$G49,H46:H49,$AA46:$AA49,AB46:AB49) ->  | AZ46: =bdRateExtend($G46:$G51,H46:H51,$AA46:$AA51,AB46:AB51) ->  | BA46: =bdRateExtend($G46:$G51,I46:I51,$AA46:$AA51,AC46:AC51) ->  | BB46: =bdRateExtend($G46:$G51,J46:J51,$AA46:$AA51,AD46:AD51) ->  | BC46: =bdRateExtend($G46:$G51,K46:K51,$AA46:$AA51,AE46:AE51) ->  | BD46: =(Summary!$C$95*AZ46+Summary!$C$96*BA46+Summary!$C$97*BB46)/Summary!$C$98 ->  | BE46: =bdRateExtend($G46:$G49,L46:L49,$AA46:$AA49,AF46:AF49) ->  | BF46: =bdRateExtend($G46:$G51,L46:L51,$AA46:$AA51,AF46:AF51) ->  | BG46: =bdRateExtend($G46:$G49,M46:M49,$AA46:$AA49,AG46:AG49) ->  | BH46: =bdRateExtend($G46:$G51,M46:M51,$AA46:$AA51,AG46:AG51) ->  | BI46: =bdRateExtend($G46:$G49,N46:N49,$AA46:$AA49,AH46:AH49,"None", FALSE,1) ->  | BJ46: =bdRateExtend($G46:$G51,N46:N51,$AA46:$AA51,AH46:AH51,"None", FALSE,1) ->  | BK46: =bdRateExtend($G46:$G49,O46:O49,$AA46:$AA49,AI46:AI49,"None", FALSE,1) ->  | BL46: =bdRateExtend($G46:$G51,O46:O51,$AA46:$AA51,AI46:AI51,"None", FALSE,1) ->  | BM46: =bdRateExtend($G46:$G49,P46:P49,$AA46:$AA49,AJ46:AJ49) ->  | BN46: =bdRateExtend($G46:$G51,P46:P51,$AA46:$AA51,AJ46:AJ51) ->  | BO46: =bdRateExtend($G46:$G49,Q46:Q49,$AA46:$AA49,AK46:AK49) ->  | BP46: =bdRateExtend($G46:$G51,Q46:Q51,$AA46:$AA51,AK46:AK51) ->  | BQ46: =bdRateExtend($G46:$G49,R46:R49,$AA46:$AA49,AL46:AL49) ->  | BR46: =bdRateExtend($G46:$G51,R46:R51,$AA46:$AA51,AL46:AL51) ->  | BS46: =bdRateExtend($G46:$G51,S46:S51,$AA46:$AA51,AM46:AM51) ->  | BT46: =bdRateExtend($G46:$G51,T46:T51,$AA46:$AA51,AN46:AN51) ->  | BU46: =bdRateExtend($G46:$G51,U46:U51,$AA46:$AA51,AO46:AO51) ->  | BV46: =(Summary!$C$109*BR46+Summary!$C$110*BS46+Summary!$C$111*BT46)/Summary!$C$112 ->  | BW46: =bdCAMBIExtend($G46:$G49,V46:V49,$AA46:$AA49,AP46:AP49) ->  | BX46: =bdCAMBIExtend($G46:$G51,V46:V51,$AA46:$AA51,AP46:AP51) ->  | BY46: =testVMAFRange($G46:$G49,N46:N49,$AA46:$AA49,AH46:AH49) -> 0 | BZ46: =testVMAFRange($G46:$G51,N46:N51,$AA46:$AA51,AH46:AH51) -> 0 | CA46: =testVMAFRange($G46:$G49,O46:O49,$AA46:$AA49,AI46:AI49) -> 0 | CB46: =testVMAFRange($G46:$G51,O46:O51,$AA46:$AA51,AI46:AI51) -> 0
F47: 110 | G47: ='Anchor-AI'!L45 -> 0 | H47: ='Anchor-AI'!M45 -> 0 | I47: ='Anchor-AI'!N45 -> 0 | J47: ='Anchor-AI'!O45 -> 0 | K47: =(Summary!$C$64*H47+Summary!$C$65*I47+Summary!$C$66*J47)/Summary!$C$67 -> 0 | L47: ='Anchor-AI'!P45 -> 0 | M47: ='Anchor-AI'!Q45 -> 0 | N47: ='Anchor-AI'!R45 -> 0 | O47: ='Anchor-AI'!S45 -> 0 | P47: ='Anchor-AI'!T45 -> 0 | Q47: ='Anchor-AI'!U45 -> 0 | R47: ='Anchor-AI'!V45 -> 0 | S47: ='Anchor-AI'!W45 -> 0 | T47: ='Anchor-AI'!X45 -> 0 | U47: =10*LOG10(1/((Summary!$C$81/10^(R47/10)+Summary!$C$82/10^(S47/10)+Summary!$C$83/10^(T47/10))/Summary!$C$84)) -> 0 | V47: ='Anchor-AI'!Y45 -> 0 | W47: ='Anchor-AI'!Z45 -> 0 | X47: ='Anchor-AI'!AA45 -> 0 | Y47: 0 | AA47: ='Test-AI'!L45 -> 0 | AB47: ='Test-AI'!M45 -> 0 | AC47: ='Test-AI'!N45 -> 0 | AD47: ='Test-AI'!O45 -> 0 | AE47: =(Summary!$C$64*AB47+Summary!$C$65*AC47+Summary!$C$66*AD47)/Summary!$C$67 -> 0 | AF47: ='Test-AI'!P45 -> 0 | AG47: ='Test-AI'!Q45 -> 0 | AH47: ='Test-AI'!R45 -> 0 | AI47: ='Test-AI'!S45 -> 0 | AJ47: ='Test-AI'!T45 -> 0 | AK47: ='Test-AI'!U45 -> 0 | AL47: ='Test-AI'!V45 -> 0 | AM47: ='Test-AI'!W45 -> 0 | AN47: ='Test-AI'!X45 -> 0 | AO47: =10*LOG10(1/((Summary!$C$81/10^(AL47/10)+Summary!$C$82/10^(AM47/10)+Summary!$C$83/10^(AN47/10))/Summary!$C$84)) -> 0 | AP47: ='Test-AI'!Y45 -> 0 | AQ47: ='Test-AI'!Z45 -> 0 | AR47: ='Test-AI'!AA45 -> 0 | AS47: 0
F48: 135 | G48: ='Anchor-AI'!L46 -> 0 | H48: ='Anchor-AI'!M46 -> 0 | I48: ='Anchor-AI'!N46 -> 0 | J48: ='Anchor-AI'!O46 -> 0 | K48: =(Summary!$C$64*H48+Summary!$C$65*I48+Summary!$C$66*J48)/Summary!$C$67 -> 0 | L48: ='Anchor-AI'!P46 -> 0 | M48: ='Anchor-AI'!Q46 -> 0 | N48: ='Anchor-AI'!R46 -> 0 | O48: ='Anchor-AI'!S46 -> 0 | P48: ='Anchor-AI'!T46 -> 0 | Q48: ='Anchor-AI'!U46 -> 0 | R48: ='Anchor-AI'!V46 -> 0 | S48: ='Anchor-AI'!W46 -> 0 | T48: ='Anchor-AI'!X46 -> 0 | U48: =10*LOG10(1/((Summary!$C$81/10^(R48/10)+Summary!$C$82/10^(S48/10)+Summary!$C$83/10^(T48/10))/Summary!$C$84)) -> 0 | V48: ='Anchor-AI'!Y46 -> 0 | W48: ='Anchor-AI'!Z46 -> 0 | X48: ='Anchor-AI'!AA46 -> 0 | Y48: 0 | AA48: ='Test-AI'!L46 -> 0 | AB48: ='Test-AI'!M46 -> 0 | AC48: ='Test-AI'!N46 -> 0 | AD48: ='Test-AI'!O46 -> 0 | AE48: =(Summary!$C$64*AB48+Summary!$C$65*AC48+Summary!$C$66*AD48)/Summary!$C$67 -> 0 | AF48: ='Test-AI'!P46 -> 0 | AG48: ='Test-AI'!Q46 -> 0 | AH48: ='Test-AI'!R46 -> 0 | AI48: ='Test-AI'!S46 -> 0 | AJ48: ='Test-AI'!T46 -> 0 | AK48: ='Test-AI'!U46 -> 0 | AL48: ='Test-AI'!V46 -> 0 | AM48: ='Test-AI'!W46 -> 0 | AN48: ='Test-AI'!X46 -> 0 | AO48: =10*LOG10(1/((Summary!$C$81/10^(AL48/10)+Summary!$C$82/10^(AM48/10)+Summary!$C$83/10^(AN48/10))/Summary!$C$84)) -> 0 | AP48: ='Test-AI'!Y46 -> 0 | AQ48: ='Test-AI'!Z46 -> 0 | AR48: ='Test-AI'!AA46 -> 0 | AS48: 0 | AX48: Med | AY48: =bdRateExtend($G47:$G50,H47:H50,$AA47:$AA50,AB47:AB50) ->  | BE48: =bdRateExtend($G47:$G50,L47:L50,$AA47:$AA50,AF47:AF50) ->  | BG48: =bdRateExtend($G47:$G50,M47:M50,$AA47:$AA50,AG47:AG50) ->  | BI48: =bdRateExtend($G47:$G50,N47:N50,$AA47:$AA50,AH47:AH50,"None", FALSE,1) ->  | BK48: =bdRateExtend($G47:$G50,O47:O50,$AA47:$AA50,AI47:AI50,"None", FALSE,1) ->  | BM48: =bdRateExtend($G47:$G50,P47:P50,$AA47:$AA50,AJ47:AJ50) ->  | BO48: =bdRateExtend($G47:$G50,Q47:Q50,$AA47:$AA50,AK47:AK50) ->  | BQ48: =bdRateExtend($G47:$G50,R47:R50,$AA47:$AA50,AL47:AL50) ->  | BW48: =bdCAMBIExtend($G47:$G50,V47:V50,$AA47:$AA50,AP47:AP50) ->  | BY48: =testVMAFRange($G47:$G50,N47:N50,$AA47:$AA50,AH47:AH50) -> 0 | CA48: =testVMAFRange($G47:$G50,O47:O50,$AA47:$AA50,AI47:AI50) -> 0
F49: 160 | G49: ='Anchor-AI'!L47 -> 0 | H49: ='Anchor-AI'!M47 -> 0 | I49: ='Anchor-AI'!N47 -> 0 | J49: ='Anchor-AI'!O47 -> 0 | K49: =(Summary!$C$64*H49+Summary!$C$65*I49+Summary!$C$66*J49)/Summary!$C$67 -> 0 | L49: ='Anchor-AI'!P47 -> 0 | M49: ='Anchor-AI'!Q47 -> 0 | N49: ='Anchor-AI'!R47 -> 0 | O49: ='Anchor-AI'!S47 -> 0 | P49: ='Anchor-AI'!T47 -> 0 | Q49: ='Anchor-AI'!U47 -> 0 | R49: ='Anchor-AI'!V47 -> 0 | S49: ='Anchor-AI'!W47 -> 0 | T49: ='Anchor-AI'!X47 -> 0 | U49: =10*LOG10(1/((Summary!$C$81/10^(R49/10)+Summary!$C$82/10^(S49/10)+Summary!$C$83/10^(T49/10))/Summary!$C$84)) -> 0 | V49: ='Anchor-AI'!Y47 -> 0 | W49: ='Anchor-AI'!Z47 -> 0 | X49: ='Anchor-AI'!AA47 -> 0 | Y49: 0 | AA49: ='Test-AI'!L47 -> 0 | AB49: ='Test-AI'!M47 -> 0 | AC49: ='Test-AI'!N47 -> 0 | AD49: ='Test-AI'!O47 -> 0 | AE49: =(Summary!$C$64*AB49+Summary!$C$65*AC49+Summary!$C$66*AD49)/Summary!$C$67 -> 0 | AF49: ='Test-AI'!P47 -> 0 | AG49: ='Test-AI'!Q47 -> 0 | AH49: ='Test-AI'!R47 -> 0 | AI49: ='Test-AI'!S47 -> 0 | AJ49: ='Test-AI'!T47 -> 0 | AK49: ='Test-AI'!U47 -> 0 | AL49: ='Test-AI'!V47 -> 0 | AM49: ='Test-AI'!W47 -> 0 | AN49: ='Test-AI'!X47 -> 0 | AO49: =10*LOG10(1/((Summary!$C$81/10^(AL49/10)+Summary!$C$82/10^(AM49/10)+Summary!$C$83/10^(AN49/10))/Summary!$C$84)) -> 0 | AP49: ='Test-AI'!Y47 -> 0 | AQ49: ='Test-AI'!Z47 -> 0 | AR49: ='Test-AI'!AA47 -> 0 | AS49: 0
F50: 185 | G50: ='Anchor-AI'!L48 -> 0 | H50: ='Anchor-AI'!M48 -> 0 | I50: ='Anchor-AI'!N48 -> 0 | J50: ='Anchor-AI'!O48 -> 0 | K50: =(Summary!$C$64*H50+Summary!$C$65*I50+Summary!$C$66*J50)/Summary!$C$67 -> 0 | L50: ='Anchor-AI'!P48 -> 0 | M50: ='Anchor-AI'!Q48 -> 0 | N50: ='Anchor-AI'!R48 -> 0 | O50: ='Anchor-AI'!S48 -> 0 | P50: ='Anchor-AI'!T48 -> 0 | Q50: ='Anchor-AI'!U48 -> 0 | R50: ='Anchor-AI'!V48 -> 0 | S50: ='Anchor-AI'!W48 -> 0 | T50: ='Anchor-AI'!X48 -> 0 | U50: =10*LOG10(1/((Summary!$C$81/10^(R50/10)+Summary!$C$82/10^(S50/10)+Summary!$C$83/10^(T50/10))/Summary!$C$84)) -> 0 | V50: ='Anchor-AI'!Y48 -> 0 | W50: ='Anchor-AI'!Z48 -> 0 | X50: ='Anchor-AI'!AA48 -> 0 | Y50: 0 | AA50: ='Test-AI'!L48 -> 0 | AB50: ='Test-AI'!M48 -> 0 | AC50: ='Test-AI'!N48 -> 0 | AD50: ='Test-AI'!O48 -> 0 | AE50: =(Summary!$C$64*AB50+Summary!$C$65*AC50+Summary!$C$66*AD50)/Summary!$C$67 -> 0 | AF50: ='Test-AI'!P48 -> 0 | AG50: ='Test-AI'!Q48 -> 0 | AH50: ='Test-AI'!R48 -> 0 | AI50: ='Test-AI'!S48 -> 0 | AJ50: ='Test-AI'!T48 -> 0 | AK50: ='Test-AI'!U48 -> 0 | AL50: ='Test-AI'!V48 -> 0 | AM50: ='Test-AI'!W48 -> 0 | AN50: ='Test-AI'!X48 -> 0 | AO50: =10*LOG10(1/((Summary!$C$81/10^(AL50/10)+Summary!$C$82/10^(AM50/10)+Summary!$C$83/10^(AN50/10))/Summary!$C$84)) -> 0 | AP50: ='Test-AI'!Y48 -> 0 | AQ50: ='Test-AI'!Z48 -> 0 | AR50: ='Test-AI'!AA48 -> 0 | AS50: 0 | AX50: Low | AY50: =bdRateExtend($G48:$G51,H48:H51,$AA48:$AA51,AB48:AB51) ->  | BE50: =bdRateExtend($G48:$G51,L48:L51,$AA48:$AA51,AF48:AF51) ->  | BG50: =bdRateExtend($G48:$G51,M48:M51,$AA48:$AA51,AG48:AG51) ->  | BI50: =bdRateExtend($G48:$G51,N48:N51,$AA48:$AA51,AH48:AH51,"None", FALSE,1) ->  | BK50: =bdRateExtend($G48:$G51,O48:O51,$AA48:$AA51,AI48:AI51,"None", FALSE,1) ->  | BM50: =bdRateExtend($G48:$G51,P48:P51,$AA48:$AA51,AJ48:AJ51) ->  | BO50: =bdRateExtend($G48:$G51,Q48:Q51,$AA48:$AA51,AK48:AK51) ->  | BQ50: =bdRateExtend($G48:$G51,R48:R51,$AA48:$AA51,AL48:AL51) ->  | BW50: =bdCAMBIExtend($G48:$G51,V48:V51,$AA48:$AA51,AP48:AP51) ->  | BY50: =testVMAFRange($G48:$G51,N48:N51,$AA48:$AA51,AH48:AH51) -> 0 | CA50: =testVMAFRange($G48:$G51,O48:O51,$AA48:$AA51,AI48:AI51) -> 0
F51: 210 | G51: ='Anchor-AI'!L49 -> 0 | H51: ='Anchor-AI'!M49 -> 0 | I51: ='Anchor-AI'!N49 -> 0 | J51: ='Anchor-AI'!O49 -> 0 | K51: =(Summary!$C$64*H51+Summary!$C$65*I51+Summary!$C$66*J51)/Summary!$C$67 -> 0 | L51: ='Anchor-AI'!P49 -> 0 | M51: ='Anchor-AI'!Q49 -> 0 | N51: ='Anchor-AI'!R49 -> 0 | O51: ='Anchor-AI'!S49 -> 0 | P51: ='Anchor-AI'!T49 -> 0 | Q51: ='Anchor-AI'!U49 -> 0 | R51: ='Anchor-AI'!V49 -> 0 | S51: ='Anchor-AI'!W49 -> 0 | T51: ='Anchor-AI'!X49 -> 0 | U51: =10*LOG10(1/((Summary!$C$81/10^(R51/10)+Summary!$C$82/10^(S51/10)+Summary!$C$83/10^(T51/10))/Summary!$C$84)) -> 0 | V51: ='Anchor-AI'!Y49 -> 0 | W51: ='Anchor-AI'!Z49 -> 0 | X51: ='Anchor-AI'!AA49 -> 0 | Y51: 0 | AA51: ='Test-AI'!L49 -> 0 | AB51: ='Test-AI'!M49 -> 0 | AC51: ='Test-AI'!N49 -> 0 | AD51: ='Test-AI'!O49 -> 0 | AE51: =(Summary!$C$64*AB51+Summary!$C$65*AC51+Summary!$C$66*AD51)/Summary!$C$67 -> 0 | AF51: ='Test-AI'!P49 -> 0 | AG51: ='Test-AI'!Q49 -> 0 | AH51: ='Test-AI'!R49 -> 0 | AI51: ='Test-AI'!S49 -> 0 | AJ51: ='Test-AI'!T49 -> 0 | AK51: ='Test-AI'!U49 -> 0 | AL51: ='Test-AI'!V49 -> 0 | AM51: ='Test-AI'!W49 -> 0 | AN51: ='Test-AI'!X49 -> 0 | AO51: =10*LOG10(1/((Summary!$C$81/10^(AL51/10)+Summary!$C$82/10^(AM51/10)+Summary!$C$83/10^(AN51/10))/Summary!$C$84)) -> 0 | AP51: ='Test-AI'!Y49 -> 0 | AQ51: ='Test-AI'!Z49 -> 0 | AR51: ='Test-AI'!AA49 -> 0 | AS51: 0
A52: A2_2K | B52: 1920x1080 | C52: Aerial3200_1920x1080_5994_10bit_420 | D52: 59.94 | E52: 10 | F52: 85 | G52: ='Anchor-AI'!L50 -> 0 | H52: ='Anchor-AI'!M50 -> 0 | I52: ='Anchor-AI'!N50 -> 0 | J52: ='Anchor-AI'!O50 -> 0 | K52: =(Summary!$C$64*H52+Summary!$C$65*I52+Summary!$C$66*J52)/Summary!$C$67 -> 0 | L52: ='Anchor-AI'!P50 -> 0 | M52: ='Anchor-AI'!Q50 -> 0 | N52: ='Anchor-AI'!R50 -> 0 | O52: ='Anchor-AI'!S50 -> 0 | P52: ='Anchor-AI'!T50 -> 0 | Q52: ='Anchor-AI'!U50 -> 0 | R52: ='Anchor-AI'!V50 -> 0 | S52: ='Anchor-AI'!W50 -> 0 | T52: ='Anchor-AI'!X50 -> 0 | U52: =10*LOG10(1/((Summary!$C$81/10^(R52/10)+Summary!$C$82/10^(S52/10)+Summary!$C$83/10^(T52/10))/Summary!$C$84)) -> 0 | V52: ='Anchor-AI'!Y50 -> 0 | W52: ='Anchor-AI'!Z50 -> 0 | X52: ='Anchor-AI'!AA50 -> 0 | Y52: 0 | AA52: ='Test-AI'!L50 -> 0 | AB52: ='Test-AI'!M50 -> 0 | AC52: ='Test-AI'!N50 -> 0 | AD52: ='Test-AI'!O50 -> 0 | AE52: =(Summary!$C$64*AB52+Summary!$C$65*AC52+Summary!$C$66*AD52)/Summary!$C$67 -> 0 | AF52: ='Test-AI'!P50 -> 0 | AG52: ='Test-AI'!Q50 -> 0 | AH52: ='Test-AI'!R50 -> 0 | AI52: ='Test-AI'!S50 -> 0 | AJ52: ='Test-AI'!T50 -> 0 | AK52: ='Test-AI'!U50 -> 0 | AL52: ='Test-AI'!V50 -> 0 | AM52: ='Test-AI'!W50 -> 0 | AN52: ='Test-AI'!X50 -> 0 | AO52: =10*LOG10(1/((Summary!$C$81/10^(AL52/10)+Summary!$C$82/10^(AM52/10)+Summary!$C$83/10^(AN52/10))/Summary!$C$84)) -> 0 | AP52: ='Test-AI'!Y50 -> 0 | AQ52: ='Test-AI'!Z50 -> 0 | AR52: ='Test-AI'!AA50 -> 0 | AS52: 0 | AX52: High | AY52: =bdRateExtend($G52:$G55,H52:H55,$AA52:$AA55,AB52:AB55) ->  | AZ52: =bdRateExtend($G52:$G57,H52:H57,$AA52:$AA57,AB52:AB57) ->  | BA52: =bdRateExtend($G52:$G57,I52:I57,$AA52:$AA57,AC52:AC57) ->  | BB52: =bdRateExtend($G52:$G57,J52:J57,$AA52:$AA57,AD52:AD57) ->  | BC52: =bdRateExtend($G52:$G57,K52:K57,$AA52:$AA57,AE52:AE57) ->  | BD52: =(Summary!$C$95*AZ52+Summary!$C$96*BA52+Summary!$C$97*BB52)/Summary!$C$98 ->  | BE52: =bdRateExtend($G52:$G55,L52:L55,$AA52:$AA55,AF52:AF55) ->  | BF52: =bdRateExtend($G52:$G57,L52:L57,$AA52:$AA57,AF52:AF57) ->  | BG52: =bdRateExtend($G52:$G55,M52:M55,$AA52:$AA55,AG52:AG55) ->  | BH52: =bdRateExtend($G52:$G57,M52:M57,$AA52:$AA57,AG52:AG57) ->  | BI52: =bdRateExtend($G52:$G55,N52:N55,$AA52:$AA55,AH52:AH55,"None", FALSE,1) ->  | BJ52: =bdRateExtend($G52:$G57,N52:N57,$AA52:$AA57,AH52:AH57,"None", FALSE,1) ->  | BK52: =bdRateExtend($G52:$G55,O52:O55,$AA52:$AA55,AI52:AI55,"None", FALSE,1) ->  | BL52: =bdRateExtend($G52:$G57,O52:O57,$AA52:$AA57,AI52:AI57,"None", FALSE,1) ->  | BM52: =bdRateExtend($G52:$G55,P52:P55,$AA52:$AA55,AJ52:AJ55) ->  | BN52: =bdRateExtend($G52:$G57,P52:P57,$AA52:$AA57,AJ52:AJ57) ->  | BO52: =bdRateExtend($G52:$G55,Q52:Q55,$AA52:$AA55,AK52:AK55) ->  | BP52: =bdRateExtend($G52:$G57,Q52:Q57,$AA52:$AA57,AK52:AK57) ->  | BQ52: =bdRateExtend($G52:$G55,R52:R55,$AA52:$AA55,AL52:AL55) ->  | BR52: =bdRateExtend($G52:$G57,R52:R57,$AA52:$AA57,AL52:AL57) ->  | BS52: =bdRateExtend($G52:$G57,S52:S57,$AA52:$AA57,AM52:AM57) ->  | BT52: =bdRateExtend($G52:$G57,T52:T57,$AA52:$AA57,AN52:AN57) ->  | BU52: =bdRateExtend($G52:$G57,U52:U57,$AA52:$AA57,AO52:AO57) ->  | BV52: =(Summary!$C$109*BR52+Summary!$C$110*BS52+Summary!$C$111*BT52)/Summary!$C$112 ->  | BW52: =bdCAMBIExtend($G52:$G55,V52:V55,$AA52:$AA55,AP52:AP55) ->  | BX52: =bdCAMBIExtend($G52:$G57,V52:V57,$AA52:$AA57,AP52:AP57) ->  | BY52: =testVMAFRange($G52:$G55,N52:N55,$AA52:$AA55,AH52:AH55) -> 0 | BZ52: =testVMAFRange($G52:$G57,N52:N57,$AA52:$AA57,AH52:AH57) -> 0 | CA52: =testVMAFRange($G52:$G55,O52:O55,$AA52:$AA55,AI52:AI55) -> 0 | CB52: =testVMAFRange($G52:$G57,O52:O57,$AA52:$AA57,AI52:AI57) -> 0
F53: 110 | G53: ='Anchor-AI'!L51 -> 0 | H53: ='Anchor-AI'!M51 -> 0 | I53: ='Anchor-AI'!N51 -> 0 | J53: ='Anchor-AI'!O51 -> 0 | K53: =(Summary!$C$64*H53+Summary!$C$65*I53+Summary!$C$66*J53)/Summary!$C$67 -> 0 | L53: ='Anchor-AI'!P51 -> 0 | M53: ='Anchor-AI'!Q51 -> 0 | N53: ='Anchor-AI'!R51 -> 0 | O53: ='Anchor-AI'!S51 -> 0 | P53: ='Anchor-AI'!T51 -> 0 | Q53: ='Anchor-AI'!U51 -> 0 | R53: ='Anchor-AI'!V51 -> 0 | S53: ='Anchor-AI'!W51 -> 0 | T53: ='Anchor-AI'!X51 -> 0 | U53: =10*LOG10(1/((Summary!$C$81/10^(R53/10)+Summary!$C$82/10^(S53/10)+Summary!$C$83/10^(T53/10))/Summary!$C$84)) -> 0 | V53: ='Anchor-AI'!Y51 -> 0 | W53: ='Anchor-AI'!Z51 -> 0 | X53: ='Anchor-AI'!AA51 -> 0 | Y53: 0 | AA53: ='Test-AI'!L51 -> 0 | AB53: ='Test-AI'!M51 -> 0 | AC53: ='Test-AI'!N51 -> 0 | AD53: ='Test-AI'!O51 -> 0 | AE53: =(Summary!$C$64*AB53+Summary!$C$65*AC53+Summary!$C$66*AD53)/Summary!$C$67 -> 0 | AF53: ='Test-AI'!P51 -> 0 | AG53: ='Test-AI'!Q51 -> 0 | AH53: ='Test-AI'!R51 -> 0 | AI53: ='Test-AI'!S51 -> 0 | AJ53: ='Test-AI'!T51 -> 0 | AK53: ='Test-AI'!U51 -> 0 | AL53: ='Test-AI'!V51 -> 0 | AM53: ='Test-AI'!W51 -> 0 | AN53: ='Test-AI'!X51 -> 0 | AO53: =10*LOG10(1/((Summary!$C$81/10^(AL53/10)+Summary!$C$82/10^(AM53/10)+Summary!$C$83/10^(AN53/10))/Summary!$C$84)) -> 0 | AP53: ='Test-AI'!Y51 -> 0 | AQ53: ='Test-AI'!Z51 -> 0 | AR53: ='Test-AI'!AA51 -> 0 | AS53: 0
F54: 135 | G54: ='Anchor-AI'!L52 -> 0 | H54: ='Anchor-AI'!M52 -> 0 | I54: ='Anchor-AI'!N52 -> 0 | J54: ='Anchor-AI'!O52 -> 0 | K54: =(Summary!$C$64*H54+Summary!$C$65*I54+Summary!$C$66*J54)/Summary!$C$67 -> 0 | L54: ='Anchor-AI'!P52 -> 0 | M54: ='Anchor-AI'!Q52 -> 0 | N54: ='Anchor-AI'!R52 -> 0 | O54: ='Anchor-AI'!S52 -> 0 | P54: ='Anchor-AI'!T52 -> 0 | Q54: ='Anchor-AI'!U52 -> 0 | R54: ='Anchor-AI'!V52 -> 0 | S54: ='Anchor-AI'!W52 -> 0 | T54: ='Anchor-AI'!X52 -> 0 | U54: =10*LOG10(1/((Summary!$C$81/10^(R54/10)+Summary!$C$82/10^(S54/10)+Summary!$C$83/10^(T54/10))/Summary!$C$84)) -> 0 | V54: ='Anchor-AI'!Y52 -> 0 | W54: ='Anchor-AI'!Z52 -> 0 | X54: ='Anchor-AI'!AA52 -> 0 | Y54: 0 | AA54: ='Test-AI'!L52 -> 0 | AB54: ='Test-AI'!M52 -> 0 | AC54: ='Test-AI'!N52 -> 0 | AD54: ='Test-AI'!O52 -> 0 | AE54: =(Summary!$C$64*AB54+Summary!$C$65*AC54+Summary!$C$66*AD54)/Summary!$C$67 -> 0 | AF54: ='Test-AI'!P52 -> 0 | AG54: ='Test-AI'!Q52 -> 0 | AH54: ='Test-AI'!R52 -> 0 | AI54: ='Test-AI'!S52 -> 0 | AJ54: ='Test-AI'!T52 -> 0 | AK54: ='Test-AI'!U52 -> 0 | AL54: ='Test-AI'!V52 -> 0 | AM54: ='Test-AI'!W52 -> 0 | AN54: ='Test-AI'!X52 -> 0 | AO54: =10*LOG10(1/((Summary!$C$81/10^(AL54/10)+Summary!$C$82/10^(AM54/10)+Summary!$C$83/10^(AN54/10))/Summary!$C$84)) -> 0 | AP54: ='Test-AI'!Y52 -> 0 | AQ54: ='Test-AI'!Z52 -> 0 | AR54: ='Test-AI'!AA52 -> 0 | AS54: 0 | AX54: Med | AY54: =bdRateExtend($G53:$G56,H53:H56,$AA53:$AA56,AB53:AB56) ->  | BE54: =bdRateExtend($G53:$G56,L53:L56,$AA53:$AA56,AF53:AF56) ->  | BG54: =bdRateExtend($G53:$G56,M53:M56,$AA53:$AA56,AG53:AG56) ->  | BI54: =bdRateExtend($G53:$G56,N53:N56,$AA53:$AA56,AH53:AH56,"None", FALSE,1) ->  | BK54: =bdRateExtend($G53:$G56,O53:O56,$AA53:$AA56,AI53:AI56,"None", FALSE,1) ->  | BM54: =bdRateExtend($G53:$G56,P53:P56,$AA53:$AA56,AJ53:AJ56) ->  | BO54: =bdRateExtend($G53:$G56,Q53:Q56,$AA53:$AA56,AK53:AK56) ->  | BQ54: =bdRateExtend($G53:$G56,R53:R56,$AA53:$AA56,AL53:AL56) ->  | BW54: =bdCAMBIExtend($G53:$G56,V53:V56,$AA53:$AA56,AP53:AP56) ->  | BY54: =testVMAFRange($G53:$G56,N53:N56,$AA53:$AA56,AH53:AH56) -> 0 | CA54: =testVMAFRange($G53:$G56,O53:O56,$AA53:$AA56,AI53:AI56) -> 0
F55: 160 | G55: ='Anchor-AI'!L53 -> 0 | H55: ='Anchor-AI'!M53 -> 0 | I55: ='Anchor-AI'!N53 -> 0 | J55: ='Anchor-AI'!O53 -> 0 | K55: =(Summary!$C$64*H55+Summary!$C$65*I55+Summary!$C$66*J55)/Summary!$C$67 -> 0 | L55: ='Anchor-AI'!P53 -> 0 | M55: ='Anchor-AI'!Q53 -> 0 | N55: ='Anchor-AI'!R53 -> 0 | O55: ='Anchor-AI'!S53 -> 0 | P55: ='Anchor-AI'!T53 -> 0 | Q55: ='Anchor-AI'!U53 -> 0 | R55: ='Anchor-AI'!V53 -> 0 | S55: ='Anchor-AI'!W53 -> 0 | T55: ='Anchor-AI'!X53 -> 0 | U55: =10*LOG10(1/((Summary!$C$81/10^(R55/10)+Summary!$C$82/10^(S55/10)+Summary!$C$83/10^(T55/10))/Summary!$C$84)) -> 0 | V55: ='Anchor-AI'!Y53 -> 0 | W55: ='Anchor-AI'!Z53 -> 0 | X55: ='Anchor-AI'!AA53 -> 0 | Y55: 0 | AA55: ='Test-AI'!L53 -> 0 | AB55: ='Test-AI'!M53 -> 0 | AC55: ='Test-AI'!N53 -> 0 | AD55: ='Test-AI'!O53 -> 0 | AE55: =(Summary!$C$64*AB55+Summary!$C$65*AC55+Summary!$C$66*AD55)/Summary!$C$67 -> 0 | AF55: ='Test-AI'!P53 -> 0 | AG55: ='Test-AI'!Q53 -> 0 | AH55: ='Test-AI'!R53 -> 0 | AI55: ='Test-AI'!S53 -> 0 | AJ55: ='Test-AI'!T53 -> 0 | AK55: ='Test-AI'!U53 -> 0 | AL55: ='Test-AI'!V53 -> 0 | AM55: ='Test-AI'!W53 -> 0 | AN55: ='Test-AI'!X53 -> 0 | AO55: =10*LOG10(1/((Summary!$C$81/10^(AL55/10)+Summary!$C$82/10^(AM55/10)+Summary!$C$83/10^(AN55/10))/Summary!$C$84)) -> 0 | AP55: ='Test-AI'!Y53 -> 0 | AQ55: ='Test-AI'!Z53 -> 0 | AR55: ='Test-AI'!AA53 -> 0 | AS55: 0
F56: 185 | G56: ='Anchor-AI'!L54 -> 0 | H56: ='Anchor-AI'!M54 -> 0 | I56: ='Anchor-AI'!N54 -> 0 | J56: ='Anchor-AI'!O54 -> 0 | K56: =(Summary!$C$64*H56+Summary!$C$65*I56+Summary!$C$66*J56)/Summary!$C$67 -> 0 | L56: ='Anchor-AI'!P54 -> 0 | M56: ='Anchor-AI'!Q54 -> 0 | N56: ='Anchor-AI'!R54 -> 0 | O56: ='Anchor-AI'!S54 -> 0 | P56: ='Anchor-AI'!T54 -> 0 | Q56: ='Anchor-AI'!U54 -> 0 | R56: ='Anchor-AI'!V54 -> 0 | S56: ='Anchor-AI'!W54 -> 0 | T56: ='Anchor-AI'!X54 -> 0 | U56: =10*LOG10(1/((Summary!$C$81/10^(R56/10)+Summary!$C$82/10^(S56/10)+Summary!$C$83/10^(T56/10))/Summary!$C$84)) -> 0 | V56: ='Anchor-AI'!Y54 -> 0 | W56: ='Anchor-AI'!Z54 -> 0 | X56: ='Anchor-AI'!AA54 -> 0 | Y56: 0 | AA56: ='Test-AI'!L54 -> 0 | AB56: ='Test-AI'!M54 -> 0 | AC56: ='Test-AI'!N54 -> 0 | AD56: ='Test-AI'!O54 -> 0 | AE56: =(Summary!$C$64*AB56+Summary!$C$65*AC56+Summary!$C$66*AD56)/Summary!$C$67 -> 0 | AF56: ='Test-AI'!P54 -> 0 | AG56: ='Test-AI'!Q54 -> 0 | AH56: ='Test-AI'!R54 -> 0 | AI56: ='Test-AI'!S54 -> 0 | AJ56: ='Test-AI'!T54 -> 0 | AK56: ='Test-AI'!U54 -> 0 | AL56: ='Test-AI'!V54 -> 0 | AM56: ='Test-AI'!W54 -> 0 | AN56: ='Test-AI'!X54 -> 0 | AO56: =10*LOG10(1/((Summary!$C$81/10^(AL56/10)+Summary!$C$82/10^(AM56/10)+Summary!$C$83/10^(AN56/10))/Summary!$C$84)) -> 0 | AP56: ='Test-AI'!Y54 -> 0 | AQ56: ='Test-AI'!Z54 -> 0 | AR56: ='Test-AI'!AA54 -> 0 | AS56: 0 | AX56: Low | AY56: =bdRateExtend($G54:$G57,H54:H57,$AA54:$AA57,AB54:AB57) ->  | BE56: =bdRateExtend($G54:$G57,L54:L57,$AA54:$AA57,AF54:AF57) ->  | BG56: =bdRateExtend($G54:$G57,M54:M57,$AA54:$AA57,AG54:AG57) ->  | BI56: =bdRateExtend($G54:$G57,N54:N57,$AA54:$AA57,AH54:AH57,"None", FALSE,1) ->  | BK56: =bdRateExtend($G54:$G57,O54:O57,$AA54:$AA57,AI54:AI57,"None", FALSE,1) ->  | BM56: =bdRateExtend($G54:$G57,P54:P57,$AA54:$AA57,AJ54:AJ57) ->  | BO56: =bdRateExtend($G54:$G57,Q54:Q57,$AA54:$AA57,AK54:AK57) ->  | BQ56: =bdRateExtend($G54:$G57,R54:R57,$AA54:$AA57,AL54:AL57) ->  | BW56: =bdCAMBIExtend($G54:$G57,V54:V57,$AA54:$AA57,AP54:AP57) ->  | BY56: =testVMAFRange($G54:$G57,N54:N57,$AA54:$AA57,AH54:AH57) -> 0 | CA56: =testVMAFRange($G54:$G57,O54:O57,$AA54:$AA57,AI54:AI57) -> 0
F57: 210 | G57: ='Anchor-AI'!L55 -> 0 | H57: ='Anchor-AI'!M55 -> 0 | I57: ='Anchor-AI'!N55 -> 0 | J57: ='Anchor-AI'!O55 -> 0 | K57: =(Summary!$C$64*H57+Summary!$C$65*I57+Summary!$C$66*J57)/Summary!$C$67 -> 0 | L57: ='Anchor-AI'!P55 -> 0 | M57: ='Anchor-AI'!Q55 -> 0 | N57: ='Anchor-AI'!R55 -> 0 | O57: ='Anchor-AI'!S55 -> 0 | P57: ='Anchor-AI'!T55 -> 0 | Q57: ='Anchor-AI'!U55 -> 0 | R57: ='Anchor-AI'!V55 -> 0 | S57: ='Anchor-AI'!W55 -> 0 | T57: ='Anchor-AI'!X55 -> 0 | U57: =10*LOG10(1/((Summary!$C$81/10^(R57/10)+Summary!$C$82/10^(S57/10)+Summary!$C$83/10^(T57/10))/Summary!$C$84)) -> 0 | V57: ='Anchor-AI'!Y55 -> 0 | W57: ='Anchor-AI'!Z55 -> 0 | X57: ='Anchor-AI'!AA55 -> 0 | Y57: 0 | AA57: ='Test-AI'!L55 -> 0 | AB57: ='Test-AI'!M55 -> 0 | AC57: ='Test-AI'!N55 -> 0 | AD57: ='Test-AI'!O55 -> 0 | AE57: =(Summary!$C$64*AB57+Summary!$C$65*AC57+Summary!$C$66*AD57)/Summary!$C$67 -> 0 | AF57: ='Test-AI'!P55 -> 0 | AG57: ='Test-AI'!Q55 -> 0 | AH57: ='Test-AI'!R55 -> 0 | AI57: ='Test-AI'!S55 -> 0 | AJ57: ='Test-AI'!T55 -> 0 | AK57: ='Test-AI'!U55 -> 0 | AL57: ='Test-AI'!V55 -> 0 | AM57: ='Test-AI'!W55 -> 0 | AN57: ='Test-AI'!X55 -> 0 | AO57: =10*LOG10(1/((Summary!$C$81/10^(AL57/10)+Summary!$C$82/10^(AM57/10)+Summary!$C$83/10^(AN57/10))/Summary!$C$84)) -> 0 | AP57: ='Test-AI'!Y55 -> 0 | AQ57: ='Test-AI'!Z55 -> 0 | AR57: ='Test-AI'!AA55 -> 0 | AS57: 0
B58: 1920x1080 | C58: Boat_1920x1080_5994_10bit_420 | D58: 59.94 | E58: 10 | F58: 85 | G58: ='Anchor-AI'!L56 -> 0 | H58: ='Anchor-AI'!M56 -> 0 | I58: ='Anchor-AI'!N56 -> 0 | J58: ='Anchor-AI'!O56 -> 0 | K58: =(Summary!$C$64*H58+Summary!$C$65*I58+Summary!$C$66*J58)/Summary!$C$67 -> 0 | L58: ='Anchor-AI'!P56 -> 0 | M58: ='Anchor-AI'!Q56 -> 0 | N58: ='Anchor-AI'!R56 -> 0 | O58: ='Anchor-AI'!S56 -> 0 | P58: ='Anchor-AI'!T56 -> 0 | Q58: ='Anchor-AI'!U56 -> 0 | R58: ='Anchor-AI'!V56 -> 0 | S58: ='Anchor-AI'!W56 -> 0 | T58: ='Anchor-AI'!X56 -> 0 | U58: =10*LOG10(1/((Summary!$C$81/10^(R58/10)+Summary!$C$82/10^(S58/10)+Summary!$C$83/10^(T58/10))/Summary!$C$84)) -> 0 | V58: ='Anchor-AI'!Y56 -> 0 | W58: ='Anchor-AI'!Z56 -> 0 | X58: ='Anchor-AI'!AA56 -> 0 | Y58: 0 | AA58: ='Test-AI'!L56 -> 0 | AB58: ='Test-AI'!M56 -> 0 | AC58: ='Test-AI'!N56 -> 0 | AD58: ='Test-AI'!O56 -> 0 | AE58: =(Summary!$C$64*AB58+Summary!$C$65*AC58+Summary!$C$66*AD58)/Summary!$C$67 -> 0 | AF58: ='Test-AI'!P56 -> 0 | AG58: ='Test-AI'!Q56 -> 0 | AH58: ='Test-AI'!R56 -> 0 | AI58: ='Test-AI'!S56 -> 0 | AJ58: ='Test-AI'!T56 -> 0 | AK58: ='Test-AI'!U56 -> 0 | AL58: ='Test-AI'!V56 -> 0 | AM58: ='Test-AI'!W56 -> 0 | AN58: ='Test-AI'!X56 -> 0 | AO58: =10*LOG10(1/((Summary!$C$81/10^(AL58/10)+Summary!$C$82/10^(AM58/10)+Summary!$C$83/10^(AN58/10))/Summary!$C$84)) -> 0 | AP58: ='Test-AI'!Y56 -> 0 | AQ58: ='Test-AI'!Z56 -> 0 | AR58: ='Test-AI'!AA56 -> 0 | AS58: 0 | AX58: High | AY58: =bdRateExtend($G58:$G61,H58:H61,$AA58:$AA61,AB58:AB61) ->  | AZ58: =bdRateExtend($G58:$G63,H58:H63,$AA58:$AA63,AB58:AB63) ->  | BA58: =bdRateExtend($G58:$G63,I58:I63,$AA58:$AA63,AC58:AC63) ->  | BB58: =bdRateExtend($G58:$G63,J58:J63,$AA58:$AA63,AD58:AD63) ->  | BC58: =bdRateExtend($G58:$G63,K58:K63,$AA58:$AA63,AE58:AE63) ->  | BD58: =(Summary!$C$95*AZ58+Summary!$C$96*BA58+Summary!$C$97*BB58)/Summary!$C$98 ->  | BE58: =bdRateExtend($G58:$G61,L58:L61,$AA58:$AA61,AF58:AF61) ->  | BF58: =bdRateExtend($G58:$G63,L58:L63,$AA58:$AA63,AF58:AF63) ->  | BG58: =bdRateExtend($G58:$G61,M58:M61,$AA58:$AA61,AG58:AG61) ->  | BH58: =bdRateExtend($G58:$G63,M58:M63,$AA58:$AA63,AG58:AG63) ->  | BI58: =bdRateExtend($G58:$G61,N58:N61,$AA58:$AA61,AH58:AH61,"None", FALSE,1) ->  | BJ58: =bdRateExtend($G58:$G63,N58:N63,$AA58:$AA63,AH58:AH63,"None", FALSE,1) ->  | BK58: =bdRateExtend($G58:$G61,O58:O61,$AA58:$AA61,AI58:AI61,"None", FALSE,1) ->  | BL58: =bdRateExtend($G58:$G63,O58:O63,$AA58:$AA63,AI58:AI63,"None", FALSE,1) ->  | BM58: =bdRateExtend($G58:$G61,P58:P61,$AA58:$AA61,AJ58:AJ61) ->  | BN58: =bdRateExtend($G58:$G63,P58:P63,$AA58:$AA63,AJ58:AJ63) ->  | BO58: =bdRateExtend($G58:$G61,Q58:Q61,$AA58:$AA61,AK58:AK61) ->  | BP58: =bdRateExtend($G58:$G63,Q58:Q63,$AA58:$AA63,AK58:AK63) ->  | BQ58: =bdRateExtend($G58:$G61,R58:R61,$AA58:$AA61,AL58:AL61) ->  | BR58: =bdRateExtend($G58:$G63,R58:R63,$AA58:$AA63,AL58:AL63) ->  | BS58: =bdRateExtend($G58:$G63,S58:S63,$AA58:$AA63,AM58:AM63) ->  | BT58: =bdRateExtend($G58:$G63,T58:T63,$AA58:$AA63,AN58:AN63) ->  | BU58: =bdRateExtend($G58:$G63,U58:U63,$AA58:$AA63,AO58:AO63) ->  | BV58: =(Summary!$C$109*BR58+Summary!$C$110*BS58+Summary!$C$111*BT58)/Summary!$C$112 ->  | BW58: =bdCAMBIExtend($G58:$G61,V58:V61,$AA58:$AA61,AP58:AP61) ->  | BX58: =bdCAMBIExtend($G58:$G63,V58:V63,$AA58:$AA63,AP58:AP63) ->  | BY58: =testVMAFRange($G58:$G61,N58:N61,$AA58:$AA61,AH58:AH61) -> 0 | BZ58: =testVMAFRange($G58:$G63,N58:N63,$AA58:$AA63,AH58:AH63) -> 0 | CA58: =testVMAFRange($G58:$G61,O58:O61,$AA58:$AA61,AI58:AI61) -> 0 | CB58: =testVMAFRange($G58:$G63,O58:O63,$AA58:$AA63,AI58:AI63) -> 0
F59: 110 | G59: ='Anchor-AI'!L57 -> 0 | H59: ='Anchor-AI'!M57 -> 0 | I59: ='Anchor-AI'!N57 -> 0 | J59: ='Anchor-AI'!O57 -> 0 | K59: =(Summary!$C$64*H59+Summary!$C$65*I59+Summary!$C$66*J59)/Summary!$C$67 -> 0 | L59: ='Anchor-AI'!P57 -> 0 | M59: ='Anchor-AI'!Q57 -> 0 | N59: ='Anchor-AI'!R57 -> 0 | O59: ='Anchor-AI'!S57 -> 0 | P59: ='Anchor-AI'!T57 -> 0 | Q59: ='Anchor-AI'!U57 -> 0 | R59: ='Anchor-AI'!V57 -> 0 | S59: ='Anchor-AI'!W57 -> 0 | T59: ='Anchor-AI'!X57 -> 0 | U59: =10*LOG10(1/((Summary!$C$81/10^(R59/10)+Summary!$C$82/10^(S59/10)+Summary!$C$83/10^(T59/10))/Summary!$C$84)) -> 0 | V59: ='Anchor-AI'!Y57 -> 0 | W59: ='Anchor-AI'!Z57 -> 0 | X59: ='Anchor-AI'!AA57 -> 0 | Y59: 0 | AA59: ='Test-AI'!L57 -> 0 | AB59: ='Test-AI'!M57 -> 0 | AC59: ='Test-AI'!N57 -> 0 | AD59: ='Test-AI'!O57 -> 0 | AE59: =(Summary!$C$64*AB59+Summary!$C$65*AC59+Summary!$C$66*AD59)/Summary!$C$67 -> 0 | AF59: ='Test-AI'!P57 -> 0 | AG59: ='Test-AI'!Q57 -> 0 | AH59: ='Test-AI'!R57 -> 0 | AI59: ='Test-AI'!S57 -> 0 | AJ59: ='Test-AI'!T57 -> 0 | AK59: ='Test-AI'!U57 -> 0 | AL59: ='Test-AI'!V57 -> 0 | AM59: ='Test-AI'!W57 -> 0 | AN59: ='Test-AI'!X57 -> 0 | AO59: =10*LOG10(1/((Summary!$C$81/10^(AL59/10)+Summary!$C$82/10^(AM59/10)+Summary!$C$83/10^(AN59/10))/Summary!$C$84)) -> 0 | AP59: ='Test-AI'!Y57 -> 0 | AQ59: ='Test-AI'!Z57 -> 0 | AR59: ='Test-AI'!AA57 -> 0 | AS59: 0
F60: 135 | G60: ='Anchor-AI'!L58 -> 0 | H60: ='Anchor-AI'!M58 -> 0 | I60: ='Anchor-AI'!N58 -> 0 | J60: ='Anchor-AI'!O58 -> 0 | K60: =(Summary!$C$64*H60+Summary!$C$65*I60+Summary!$C$66*J60)/Summary!$C$67 -> 0 | L60: ='Anchor-AI'!P58 -> 0 | M60: ='Anchor-AI'!Q58 -> 0 | N60: ='Anchor-AI'!R58 -> 0 | O60: ='Anchor-AI'!S58 -> 0 | P60: ='Anchor-AI'!T58 -> 0 | Q60: ='Anchor-AI'!U58 -> 0 | R60: ='Anchor-AI'!V58 -> 0 | S60: ='Anchor-AI'!W58 -> 0 | T60: ='Anchor-AI'!X58 -> 0 | U60: =10*LOG10(1/((Summary!$C$81/10^(R60/10)+Summary!$C$82/10^(S60/10)+Summary!$C$83/10^(T60/10))/Summary!$C$84)) -> 0 | V60: ='Anchor-AI'!Y58 -> 0 | W60: ='Anchor-AI'!Z58 -> 0 | X60: ='Anchor-AI'!AA58 -> 0 | Y60: 0 | AA60: ='Test-AI'!L58 -> 0 | AB60: ='Test-AI'!M58 -> 0 | AC60: ='Test-AI'!N58 -> 0 | AD60: ='Test-AI'!O58 -> 0 | AE60: =(Summary!$C$64*AB60+Summary!$C$65*AC60+Summary!$C$66*AD60)/Summary!$C$67 -> 0 | AF60: ='Test-AI'!P58 -> 0 | AG60: ='Test-AI'!Q58 -> 0 | AH60: ='Test-AI'!R58 -> 0 | AI60: ='Test-AI'!S58 -> 0 | AJ60: ='Test-AI'!T58 -> 0 | AK60: ='Test-AI'!U58 -> 0 | AL60: ='Test-AI'!V58 -> 0 | AM60: ='Test-AI'!W58 -> 0 | AN60: ='Test-AI'!X58 -> 0 | AO60: =10*LOG10(1/((Summary!$C$81/10^(AL60/10)+Summary!$C$82/10^(AM60/10)+Summary!$C$83/10^(AN60/10))/Summary!$C$84)) -> 0 | AP60: ='Test-AI'!Y58 -> 0 | AQ60: ='Test-AI'!Z58 -> 0 | AR60: ='Test-AI'!AA58 -> 0 | AS60: 0 | AX60: Med | AY60: =bdRateExtend($G59:$G62,H59:H62,$AA59:$AA62,AB59:AB62) ->  | BE60: =bdRateExtend($G59:$G62,L59:L62,$AA59:$AA62,AF59:AF62) ->  | BG60: =bdRateExtend($G59:$G62,M59:M62,$AA59:$AA62,AG59:AG62) ->  | BI60: =bdRateExtend($G59:$G62,N59:N62,$AA59:$AA62,AH59:AH62,"None", FALSE,1) ->  | BK60: =bdRateExtend($G59:$G62,O59:O62,$AA59:$AA62,AI59:AI62,"None", FALSE,1) ->  | BM60: =bdRateExtend($G59:$G62,P59:P62,$AA59:$AA62,AJ59:AJ62) ->  | BO60: =bdRateExtend($G59:$G62,Q59:Q62,$AA59:$AA62,AK59:AK62) ->  | BQ60: =bdRateExtend($G59:$G62,R59:R62,$AA59:$AA62,AL59:AL62) ->  | BW60: =bdCAMBIExtend($G59:$G62,V59:V62,$AA59:$AA62,AP59:AP62) ->  | BY60: =testVMAFRange($G59:$G62,N59:N62,$AA59:$AA62,AH59:AH62) -> 0 | CA60: =testVMAFRange($G59:$G62,O59:O62,$AA59:$AA62,AI59:AI62) -> 0
F61: 160 | G61: ='Anchor-AI'!L59 -> 0 | H61: ='Anchor-AI'!M59 -> 0 | I61: ='Anchor-AI'!N59 -> 0 | J61: ='Anchor-AI'!O59 -> 0 | K61: =(Summary!$C$64*H61+Summary!$C$65*I61+Summary!$C$66*J61)/Summary!$C$67 -> 0 | L61: ='Anchor-AI'!P59 -> 0 | M61: ='Anchor-AI'!Q59 -> 0 | N61: ='Anchor-AI'!R59 -> 0 | O61: ='Anchor-AI'!S59 -> 0 | P61: ='Anchor-AI'!T59 -> 0 | Q61: ='Anchor-AI'!U59 -> 0 | R61: ='Anchor-AI'!V59 -> 0 | S61: ='Anchor-AI'!W59 -> 0 | T61: ='Anchor-AI'!X59 -> 0 | U61: =10*LOG10(1/((Summary!$C$81/10^(R61/10)+Summary!$C$82/10^(S61/10)+Summary!$C$83/10^(T61/10))/Summary!$C$84)) -> 0 | V61: ='Anchor-AI'!Y59 -> 0 | W61: ='Anchor-AI'!Z59 -> 0 | X61: ='Anchor-AI'!AA59 -> 0 | Y61: 0 | AA61: ='Test-AI'!L59 -> 0 | AB61: ='Test-AI'!M59 -> 0 | AC61: ='Test-AI'!N59 -> 0 | AD61: ='Test-AI'!O59 -> 0 | AE61: =(Summary!$C$64*AB61+Summary!$C$65*AC61+Summary!$C$66*AD61)/Summary!$C$67 -> 0 | AF61: ='Test-AI'!P59 -> 0 | AG61: ='Test-AI'!Q59 -> 0 | AH61: ='Test-AI'!R59 -> 0 | AI61: ='Test-AI'!S59 -> 0 | AJ61: ='Test-AI'!T59 -> 0 | AK61: ='Test-AI'!U59 -> 0 | AL61: ='Test-AI'!V59 -> 0 | AM61: ='Test-AI'!W59 -> 0 | AN61: ='Test-AI'!X59 -> 0 | AO61: =10*LOG10(1/((Summary!$C$81/10^(AL61/10)+Summary!$C$82/10^(AM61/10)+Summary!$C$83/10^(AN61/10))/Summary!$C$84)) -> 0 | AP61: ='Test-AI'!Y59 -> 0 | AQ61: ='Test-AI'!Z59 -> 0 | AR61: ='Test-AI'!AA59 -> 0 | AS61: 0
F62: 185 | G62: ='Anchor-AI'!L60 -> 0 | H62: ='Anchor-AI'!M60 -> 0 | I62: ='Anchor-AI'!N60 -> 0 | J62: ='Anchor-AI'!O60 -> 0 | K62: =(Summary!$C$64*H62+Summary!$C$65*I62+Summary!$C$66*J62)/Summary!$C$67 -> 0 | L62: ='Anchor-AI'!P60 -> 0 | M62: ='Anchor-AI'!Q60 -> 0 | N62: ='Anchor-AI'!R60 -> 0 | O62: ='Anchor-AI'!S60 -> 0 | P62: ='Anchor-AI'!T60 -> 0 | Q62: ='Anchor-AI'!U60 -> 0 | R62: ='Anchor-AI'!V60 -> 0 | S62: ='Anchor-AI'!W60 -> 0 | T62: ='Anchor-AI'!X60 -> 0 | U62: =10*LOG10(1/((Summary!$C$81/10^(R62/10)+Summary!$C$82/10^(S62/10)+Summary!$C$83/10^(T62/10))/Summary!$C$84)) -> 0 | V62: ='Anchor-AI'!Y60 -> 0 | W62: ='Anchor-AI'!Z60 -> 0 | X62: ='Anchor-AI'!AA60 -> 0 | Y62: 0 | AA62: ='Test-AI'!L60 -> 0 | AB62: ='Test-AI'!M60 -> 0 | AC62: ='Test-AI'!N60 -> 0 | AD62: ='Test-AI'!O60 -> 0 | AE62: =(Summary!$C$64*AB62+Summary!$C$65*AC62+Summary!$C$66*AD62)/Summary!$C$67 -> 0 | AF62: ='Test-AI'!P60 -> 0 | AG62: ='Test-AI'!Q60 -> 0 | AH62: ='Test-AI'!R60 -> 0 | AI62: ='Test-AI'!S60 -> 0 | AJ62: ='Test-AI'!T60 -> 0 | AK62: ='Test-AI'!U60 -> 0 | AL62: ='Test-AI'!V60 -> 0 | AM62: ='Test-AI'!W60 -> 0 | AN62: ='Test-AI'!X60 -> 0 | AO62: =10*LOG10(1/((Summary!$C$81/10^(AL62/10)+Summary!$C$82/10^(AM62/10)+Summary!$C$83/10^(AN62/10))/Summary!$C$84)) -> 0 | AP62: ='Test-AI'!Y60 -> 0 | AQ62: ='Test-AI'!Z60 -> 0 | AR62: ='Test-AI'!AA60 -> 0 | AS62: 0 | AX62: Low | AY62: =bdRateExtend($G60:$G63,H60:H63,$AA60:$AA63,AB60:AB63) ->  | BE62: =bdRateExtend($G60:$G63,L60:L63,$AA60:$AA63,AF60:AF63) ->  | BG62: =bdRateExtend($G60:$G63,M60:M63,$AA60:$AA63,AG60:AG63) ->  | BI62: =bdRateExtend($G60:$G63,N60:N63,$AA60:$AA63,AH60:AH63,"None", FALSE,1) ->  | BK62: =bdRateExtend($G60:$G63,O60:O63,$AA60:$AA63,AI60:AI63,"None", FALSE,1) ->  | BM62: =bdRateExtend($G60:$G63,P60:P63,$AA60:$AA63,AJ60:AJ63) ->  | BO62: =bdRateExtend($G60:$G63,Q60:Q63,$AA60:$AA63,AK60:AK63) ->  | BQ62: =bdRateExtend($G60:$G63,R60:R63,$AA60:$AA63,AL60:AL63) ->  | BW62: =bdCAMBIExtend($G60:$G63,V60:V63,$AA60:$AA63,AP60:AP63) ->  | BY62: =testVMAFRange($G60:$G63,N60:N63,$AA60:$AA63,AH60:AH63) -> 0 | CA62: =testVMAFRange($G60:$G63,O60:O63,$AA60:$AA63,AI60:AI63) -> 0
F63: 210 | G63: ='Anchor-AI'!L61 -> 0 | H63: ='Anchor-AI'!M61 -> 0 | I63: ='Anchor-AI'!N61 -> 0 | J63: ='Anchor-AI'!O61 -> 0 | K63: =(Summary!$C$64*H63+Summary!$C$65*I63+Summary!$C$66*J63)/Summary!$C$67 -> 0 | L63: ='Anchor-AI'!P61 -> 0 | M63: ='Anchor-AI'!Q61 -> 0 | N63: ='Anchor-AI'!R61 -> 0 | O63: ='Anchor-AI'!S61 -> 0 | P63: ='Anchor-AI'!T61 -> 0 | Q63: ='Anchor-AI'!U61 -> 0 | R63: ='Anchor-AI'!V61 -> 0 | S63: ='Anchor-AI'!W61 -> 0 | T63: ='Anchor-AI'!X61 -> 0 | U63: =10*LOG10(1/((Summary!$C$81/10^(R63/10)+Summary!$C$82/10^(S63/10)+Summary!$C$83/10^(T63/10))/Summary!$C$84)) -> 0 | V63: ='Anchor-AI'!Y61 -> 0 | W63: ='Anchor-AI'!Z61 -> 0 | X63: ='Anchor-AI'!AA61 -> 0 | Y63: 0 | AA63: ='Test-AI'!L61 -> 0 | AB63: ='Test-AI'!M61 -> 0 | AC63: ='Test-AI'!N61 -> 0 | AD63: ='Test-AI'!O61 -> 0 | AE63: =(Summary!$C$64*AB63+Summary!$C$65*AC63+Summary!$C$66*AD63)/Summary!$C$67 -> 0 | AF63: ='Test-AI'!P61 -> 0 | AG63: ='Test-AI'!Q61 -> 0 | AH63: ='Test-AI'!R61 -> 0 | AI63: ='Test-AI'!S61 -> 0 | AJ63: ='Test-AI'!T61 -> 0 | AK63: ='Test-AI'!U61 -> 0 | AL63: ='Test-AI'!V61 -> 0 | AM63: ='Test-AI'!W61 -> 0 | AN63: ='Test-AI'!X61 -> 0 | AO63: =10*LOG10(1/((Summary!$C$81/10^(AL63/10)+Summary!$C$82/10^(AM63/10)+Summary!$C$83/10^(AN63/10))/Summary!$C$84)) -> 0 | AP63: ='Test-AI'!Y61 -> 0 | AQ63: ='Test-AI'!Z61 -> 0 | AR63: ='Test-AI'!AA61 -> 0 | AS63: 0
B64: 1920x1080 | C64: CrowdRun_1920x1080p50 | D64: 50 | E64: 8 | F64: 85 | G64: ='Anchor-AI'!L62 -> 0 | H64: ='Anchor-AI'!M62 -> 0 | I64: ='Anchor-AI'!N62 -> 0 | J64: ='Anchor-AI'!O62 -> 0 | K64: =(Summary!$C$64*H64+Summary!$C$65*I64+Summary!$C$66*J64)/Summary!$C$67 -> 0 | L64: ='Anchor-AI'!P62 -> 0 | M64: ='Anchor-AI'!Q62 -> 0 | N64: ='Anchor-AI'!R62 -> 0 | O64: ='Anchor-AI'!S62 -> 0 | P64: ='Anchor-AI'!T62 -> 0 | Q64: ='Anchor-AI'!U62 -> 0 | R64: ='Anchor-AI'!V62 -> 0 | S64: ='Anchor-AI'!W62 -> 0 | T64: ='Anchor-AI'!X62 -> 0 | U64: =10*LOG10(1/((Summary!$C$81/10^(R64/10)+Summary!$C$82/10^(S64/10)+Summary!$C$83/10^(T64/10))/Summary!$C$84)) -> 0 | V64: ='Anchor-AI'!Y62 -> 0 | W64: ='Anchor-AI'!Z62 -> 0 | X64: ='Anchor-AI'!AA62 -> 0 | Y64: 0 | AA64: ='Test-AI'!L62 -> 0 | AB64: ='Test-AI'!M62 -> 0 | AC64: ='Test-AI'!N62 -> 0 | AD64: ='Test-AI'!O62 -> 0 | AE64: =(Summary!$C$64*AB64+Summary!$C$65*AC64+Summary!$C$66*AD64)/Summary!$C$67 -> 0 | AF64: ='Test-AI'!P62 -> 0 | AG64: ='Test-AI'!Q62 -> 0 | AH64: ='Test-AI'!R62 -> 0 | AI64: ='Test-AI'!S62 -> 0 | AJ64: ='Test-AI'!T62 -> 0 | AK64: ='Test-AI'!U62 -> 0 | AL64: ='Test-AI'!V62 -> 0 | AM64: ='Test-AI'!W62 -> 0 | AN64: ='Test-AI'!X62 -> 0 | AO64: =10*LOG10(1/((Summary!$C$81/10^(AL64/10)+Summary!$C$82/10^(AM64/10)+Summary!$C$83/10^(AN64/10))/Summary!$C$84)) -> 0 | AP64: ='Test-AI'!Y62 -> 0 | AQ64: ='Test-AI'!Z62 -> 0 | AR64: ='Test-AI'!AA62 -> 0 | AS64: 0 | AX64: High | AY64: =bdRateExtend($G64:$G67,H64:H67,$AA64:$AA67,AB64:AB67) ->  | AZ64: =bdRateExtend($G64:$G69,H64:H69,$AA64:$AA69,AB64:AB69) ->  | BA64: =bdRateExtend($G64:$G69,I64:I69,$AA64:$AA69,AC64:AC69) ->  | BB64: =bdRateExtend($G64:$G69,J64:J69,$AA64:$AA69,AD64:AD69) ->  | BC64: =bdRateExtend($G64:$G69,K64:K69,$AA64:$AA69,AE64:AE69) ->  | BD64: =(Summary!$C$95*AZ64+Summary!$C$96*BA64+Summary!$C$97*BB64)/Summary!$C$98 ->  | BE64: =bdRateExtend($G64:$G67,L64:L67,$AA64:$AA67,AF64:AF67) ->  | BF64: =bdRateExtend($G64:$G69,L64:L69,$AA64:$AA69,AF64:AF69) ->  | BG64: =bdRateExtend($G64:$G67,M64:M67,$AA64:$AA67,AG64:AG67) ->  | BH64: =bdRateExtend($G64:$G69,M64:M69,$AA64:$AA69,AG64:AG69) ->  | BI64: =bdRateExtend($G64:$G67,N64:N67,$AA64:$AA67,AH64:AH67,"None", FALSE,1) ->  | BJ64: =bdRateExtend($G64:$G69,N64:N69,$AA64:$AA69,AH64:AH69,"None", FALSE,1) ->  | BK64: =bdRateExtend($G64:$G67,O64:O67,$AA64:$AA67,AI64:AI67,"None", FALSE,1) ->  | BL64: =bdRateExtend($G64:$G69,O64:O69,$AA64:$AA69,AI64:AI69,"None", FALSE,1) ->  | BM64: =bdRateExtend($G64:$G67,P64:P67,$AA64:$AA67,AJ64:AJ67) ->  | BN64: =bdRateExtend($G64:$G69,P64:P69,$AA64:$AA69,AJ64:AJ69) ->  | BO64: =bdRateExtend($G64:$G67,Q64:Q67,$AA64:$AA67,AK64:AK67) ->  | BP64: =bdRateExtend($G64:$G69,Q64:Q69,$AA64:$AA69,AK64:AK69) ->  | BQ64: =bdRateExtend($G64:$G67,R64:R67,$AA64:$AA67,AL64:AL67) ->  | BR64: =bdRateExtend($G64:$G69,R64:R69,$AA64:$AA69,AL64:AL69) ->  | BS64: =bdRateExtend($G64:$G69,S64:S69,$AA64:$AA69,AM64:AM69) ->  | BT64: =bdRateExtend($G64:$G69,T64:T69,$AA64:$AA69,AN64:AN69) ->  | BU64: =bdRateExtend($G64:$G69,U64:U69,$AA64:$AA69,AO64:AO69) ->  | BV64: =(Summary!$C$109*BR64+Summary!$C$110*BS64+Summary!$C$111*BT64)/Summary!$C$112 ->  | BW64: =bdCAMBIExtend($G64:$G67,V64:V67,$AA64:$AA67,AP64:AP67) ->  | BX64: =bdCAMBIExtend($G64:$G69,V64:V69,$AA64:$AA69,AP64:AP69) ->  | BY64: =testVMAFRange($G64:$G67,N64:N67,$AA64:$AA67,AH64:AH67) -> 0 | BZ64: =testVMAFRange($G64:$G69,N64:N69,$AA64:$AA69,AH64:AH69) -> 0 | CA64: =testVMAFRange($G64:$G67,O64:O67,$AA64:$AA67,AI64:AI67) -> 0 | CB64: =testVMAFRange($G64:$G69,O64:O69,$AA64:$AA69,AI64:AI69) -> 0
F65: 110 | G65: ='Anchor-AI'!L63 -> 0 | H65: ='Anchor-AI'!M63 -> 0 | I65: ='Anchor-AI'!N63 -> 0 | J65: ='Anchor-AI'!O63 -> 0 | K65: =(Summary!$C$64*H65+Summary!$C$65*I65+Summary!$C$66*J65)/Summary!$C$67 -> 0 | L65: ='Anchor-AI'!P63 -> 0 | M65: ='Anchor-AI'!Q63 -> 0 | N65: ='Anchor-AI'!R63 -> 0 | O65: ='Anchor-AI'!S63 -> 0 | P65: ='Anchor-AI'!T63 -> 0 | Q65: ='Anchor-AI'!U63 -> 0 | R65: ='Anchor-AI'!V63 -> 0 | S65: ='Anchor-AI'!W63 -> 0 | T65: ='Anchor-AI'!X63 -> 0 | U65: =10*LOG10(1/((Summary!$C$81/10^(R65/10)+Summary!$C$82/10^(S65/10)+Summary!$C$83/10^(T65/10))/Summary!$C$84)) -> 0 | V65: ='Anchor-AI'!Y63 -> 0 | W65: ='Anchor-AI'!Z63 -> 0 | X65: ='Anchor-AI'!AA63 -> 0 | Y65: 0 | AA65: ='Test-AI'!L63 -> 0 | AB65: ='Test-AI'!M63 -> 0 | AC65: ='Test-AI'!N63 -> 0 | AD65: ='Test-AI'!O63 -> 0 | AE65: =(Summary!$C$64*AB65+Summary!$C$65*AC65+Summary!$C$66*AD65)/Summary!$C$67 -> 0 | AF65: ='Test-AI'!P63 -> 0 | AG65: ='Test-AI'!Q63 -> 0 | AH65: ='Test-AI'!R63 -> 0 | AI65: ='Test-AI'!S63 -> 0 | AJ65: ='Test-AI'!T63 -> 0 | AK65: ='Test-AI'!U63 -> 0 | AL65: ='Test-AI'!V63 -> 0 | AM65: ='Test-AI'!W63 -> 0 | AN65: ='Test-AI'!X63 -> 0 | AO65: =10*LOG10(1/((Summary!$C$81/10^(AL65/10)+Summary!$C$82/10^(AM65/10)+Summary!$C$83/10^(AN65/10))/Summary!$C$84)) -> 0 | AP65: ='Test-AI'!Y63 -> 0 | AQ65: ='Test-AI'!Z63 -> 0 | AR65: ='Test-AI'!AA63 -> 0 | AS65: 0
F66: 135 | G66: ='Anchor-AI'!L64 -> 0 | H66: ='Anchor-AI'!M64 -> 0 | I66: ='Anchor-AI'!N64 -> 0 | J66: ='Anchor-AI'!O64 -> 0 | K66: =(Summary!$C$64*H66+Summary!$C$65*I66+Summary!$C$66*J66)/Summary!$C$67 -> 0 | L66: ='Anchor-AI'!P64 -> 0 | M66: ='Anchor-AI'!Q64 -> 0 | N66: ='Anchor-AI'!R64 -> 0 | O66: ='Anchor-AI'!S64 -> 0 | P66: ='Anchor-AI'!T64 -> 0 | Q66: ='Anchor-AI'!U64 -> 0 | R66: ='Anchor-AI'!V64 -> 0 | S66: ='Anchor-AI'!W64 -> 0 | T66: ='Anchor-AI'!X64 -> 0 | U66: =10*LOG10(1/((Summary!$C$81/10^(R66/10)+Summary!$C$82/10^(S66/10)+Summary!$C$83/10^(T66/10))/Summary!$C$84)) -> 0 | V66: ='Anchor-AI'!Y64 -> 0 | W66: ='Anchor-AI'!Z64 -> 0 | X66: ='Anchor-AI'!AA64 -> 0 | Y66: 0 | AA66: ='Test-AI'!L64 -> 0 | AB66: ='Test-AI'!M64 -> 0 | AC66: ='Test-AI'!N64 -> 0 | AD66: ='Test-AI'!O64 -> 0 | AE66: =(Summary!$C$64*AB66+Summary!$C$65*AC66+Summary!$C$66*AD66)/Summary!$C$67 -> 0 | AF66: ='Test-AI'!P64 -> 0 | AG66: ='Test-AI'!Q64 -> 0 | AH66: ='Test-AI'!R64 -> 0 | AI66: ='Test-AI'!S64 -> 0 | AJ66: ='Test-AI'!T64 -> 0 | AK66: ='Test-AI'!U64 -> 0 | AL66: ='Test-AI'!V64 -> 0 | AM66: ='Test-AI'!W64 -> 0 | AN66: ='Test-AI'!X64 -> 0 | AO66: =10*LOG10(1/((Summary!$C$81/10^(AL66/10)+Summary!$C$82/10^(AM66/10)+Summary!$C$83/10^(AN66/10))/Summary!$C$84)) -> 0 | AP66: ='Test-AI'!Y64 -> 0 | AQ66: ='Test-AI'!Z64 -> 0 | AR66: ='Test-AI'!AA64 -> 0 | AS66: 0 | AX66: Med | AY66: =bdRateExtend($G65:$G68,H65:H68,$AA65:$AA68,AB65:AB68) ->  | BE66: =bdRateExtend($G65:$G68,L65:L68,$AA65:$AA68,AF65:AF68) ->  | BG66: =bdRateExtend($G65:$G68,M65:M68,$AA65:$AA68,AG65:AG68) ->  | BI66: =bdRateExtend($G65:$G68,N65:N68,$AA65:$AA68,AH65:AH68,"None", FALSE,1) ->  | BK66: =bdRateExtend($G65:$G68,O65:O68,$AA65:$AA68,AI65:AI68,"None", FALSE,1) ->  | BM66: =bdRateExtend($G65:$G68,P65:P68,$AA65:$AA68,AJ65:AJ68) ->  | BO66: =bdRateExtend($G65:$G68,Q65:Q68,$AA65:$AA68,AK65:AK68) ->  | BQ66: =bdRateExtend($G65:$G68,R65:R68,$AA65:$AA68,AL65:AL68) ->  | BW66: =bdCAMBIExtend($G65:$G68,V65:V68,$AA65:$AA68,AP65:AP68) ->  | BY66: =testVMAFRange($G65:$G68,N65:N68,$AA65:$AA68,AH65:AH68) -> 0 | CA66: =testVMAFRange($G65:$G68,O65:O68,$AA65:$AA68,AI65:AI68) -> 0
F67: 160 | G67: ='Anchor-AI'!L65 -> 0 | H67: ='Anchor-AI'!M65 -> 0 | I67: ='Anchor-AI'!N65 -> 0 | J67: ='Anchor-AI'!O65 -> 0 | K67: =(Summary!$C$64*H67+Summary!$C$65*I67+Summary!$C$66*J67)/Summary!$C$67 -> 0 | L67: ='Anchor-AI'!P65 -> 0 | M67: ='Anchor-AI'!Q65 -> 0 | N67: ='Anchor-AI'!R65 -> 0 | O67: ='Anchor-AI'!S65 -> 0 | P67: ='Anchor-AI'!T65 -> 0 | Q67: ='Anchor-AI'!U65 -> 0 | R67: ='Anchor-AI'!V65 -> 0 | S67: ='Anchor-AI'!W65 -> 0 | T67: ='Anchor-AI'!X65 -> 0 | U67: =10*LOG10(1/((Summary!$C$81/10^(R67/10)+Summary!$C$82/10^(S67/10)+Summary!$C$83/10^(T67/10))/Summary!$C$84)) -> 0 | V67: ='Anchor-AI'!Y65 -> 0 | W67: ='Anchor-AI'!Z65 -> 0 | X67: ='Anchor-AI'!AA65 -> 0 | Y67: 0 | AA67: ='Test-AI'!L65 -> 0 | AB67: ='Test-AI'!M65 -> 0 | AC67: ='Test-AI'!N65 -> 0 | AD67: ='Test-AI'!O65 -> 0 | AE67: =(Summary!$C$64*AB67+Summary!$C$65*AC67+Summary!$C$66*AD67)/Summary!$C$67 -> 0 | AF67: ='Test-AI'!P65 -> 0 | AG67: ='Test-AI'!Q65 -> 0 | AH67: ='Test-AI'!R65 -> 0 | AI67: ='Test-AI'!S65 -> 0 | AJ67: ='Test-AI'!T65 -> 0 | AK67: ='Test-AI'!U65 -> 0 | AL67: ='Test-AI'!V65 -> 0 | AM67: ='Test-AI'!W65 -> 0 | AN67: ='Test-AI'!X65 -> 0 | AO67: =10*LOG10(1/((Summary!$C$81/10^(AL67/10)+Summary!$C$82/10^(AM67/10)+Summary!$C$83/10^(AN67/10))/Summary!$C$84)) -> 0 | AP67: ='Test-AI'!Y65 -> 0 | AQ67: ='Test-AI'!Z65 -> 0 | AR67: ='Test-AI'!AA65 -> 0 | AS67: 0
F68: 185 | G68: ='Anchor-AI'!L66 -> 0 | H68: ='Anchor-AI'!M66 -> 0 | I68: ='Anchor-AI'!N66 -> 0 | J68: ='Anchor-AI'!O66 -> 0 | K68: =(Summary!$C$64*H68+Summary!$C$65*I68+Summary!$C$66*J68)/Summary!$C$67 -> 0 | L68: ='Anchor-AI'!P66 -> 0 | M68: ='Anchor-AI'!Q66 -> 0 | N68: ='Anchor-AI'!R66 -> 0 | O68: ='Anchor-AI'!S66 -> 0 | P68: ='Anchor-AI'!T66 -> 0 | Q68: ='Anchor-AI'!U66 -> 0 | R68: ='Anchor-AI'!V66 -> 0 | S68: ='Anchor-AI'!W66 -> 0 | T68: ='Anchor-AI'!X66 -> 0 | U68: =10*LOG10(1/((Summary!$C$81/10^(R68/10)+Summary!$C$82/10^(S68/10)+Summary!$C$83/10^(T68/10))/Summary!$C$84)) -> 0 | V68: ='Anchor-AI'!Y66 -> 0 | W68: ='Anchor-AI'!Z66 -> 0 | X68: ='Anchor-AI'!AA66 -> 0 | Y68: =W68/3600 -> 0 | AA68: ='Test-AI'!L66 -> 0 | AB68: ='Test-AI'!M66 -> 0 | AC68: ='Test-AI'!N66 -> 0 | AD68: ='Test-AI'!O66 -> 0 | AE68: =(Summary!$C$64*AB68+Summary!$C$65*AC68+Summary!$C$66*AD68)/Summary!$C$67 -> 0 | AF68: ='Test-AI'!P66 -> 0 | AG68: ='Test-AI'!Q66 -> 0 | AH68: ='Test-AI'!R66 -> 0 | AI68: ='Test-AI'!S66 -> 0 | AJ68: ='Test-AI'!T66 -> 0 | AK68: ='Test-AI'!U66 -> 0 | AL68: ='Test-AI'!V66 -> 0 | AM68: ='Test-AI'!W66 -> 0 | AN68: ='Test-AI'!X66 -> 0 | AO68: =10*LOG10(1/((Summary!$C$81/10^(AL68/10)+Summary!$C$82/10^(AM68/10)+Summary!$C$83/10^(AN68/10))/Summary!$C$84)) -> 0 | AP68: ='Test-AI'!Y66 -> 0 | AQ68: ='Test-AI'!Z66 -> 0 | AR68: ='Test-AI'!AA66 -> 0 | AS68: =AQ68/3600 -> 0 | AT68: =AQ68/W68 ->  | AU68: =AR68/X68 ->  | AX68: Low | AY68: =bdRateExtend($G66:$G69,H66:H69,$AA66:$AA69,AB66:AB69) ->  | BE68: =bdRateExtend($G66:$G69,L66:L69,$AA66:$AA69,AF66:AF69) ->  | BG68: =bdRateExtend($G66:$G69,M66:M69,$AA66:$AA69,AG66:AG69) ->  | BI68: =bdRateExtend($G66:$G69,N66:N69,$AA66:$AA69,AH66:AH69,"None", FALSE,1) ->  | BK68: =bdRateExtend($G66:$G69,O66:O69,$AA66:$AA69,AI66:AI69,"None", FALSE,1) ->  | BM68: =bdRateExtend($G66:$G69,P66:P69,$AA66:$AA69,AJ66:AJ69) ->  | BO68: =bdRateExtend($G66:$G69,Q66:Q69,$AA66:$AA69,AK66:AK69) ->  | BQ68: =bdRateExtend($G66:$G69,R66:R69,$AA66:$AA69,AL66:AL69) ->  | BW68: =bdCAMBIExtend($G66:$G69,V66:V69,$AA66:$AA69,AP66:AP69) ->  | BY68: =testVMAFRange($G66:$G69,N66:N69,$AA66:$AA69,AH66:AH69) -> 0 | CA68: =testVMAFRange($G66:$G69,O66:O69,$AA66:$AA69,AI66:AI69) -> 0
F69: 210 | G69: ='Anchor-AI'!L67 -> 0 | H69: ='Anchor-AI'!M67 -> 0 | I69: ='Anchor-AI'!N67 -> 0 | J69: ='Anchor-AI'!O67 -> 0 | K69: =(Summary!$C$64*H69+Summary!$C$65*I69+Summary!$C$66*J69)/Summary!$C$67 -> 0 | L69: ='Anchor-AI'!P67 -> 0 | M69: ='Anchor-AI'!Q67 -> 0 | N69: ='Anchor-AI'!R67 -> 0 | O69: ='Anchor-AI'!S67 -> 0 | P69: ='Anchor-AI'!T67 -> 0 | Q69: ='Anchor-AI'!U67 -> 0 | R69: ='Anchor-AI'!V67 -> 0 | S69: ='Anchor-AI'!W67 -> 0 | T69: ='Anchor-AI'!X67 -> 0 | U69: =10*LOG10(1/((Summary!$C$81/10^(R69/10)+Summary!$C$82/10^(S69/10)+Summary!$C$83/10^(T69/10))/Summary!$C$84)) -> 0 | V69: ='Anchor-AI'!Y67 -> 0 | W69: ='Anchor-AI'!Z67 -> 0 | X69: ='Anchor-AI'!AA67 -> 0 | Y69: 0 | AA69: ='Test-AI'!L67 -> 0 | AB69: ='Test-AI'!M67 -> 0 | AC69: ='Test-AI'!N67 -> 0 | AD69: ='Test-AI'!O67 -> 0 | AE69: =(Summary!$C$64*AB69+Summary!$C$65*AC69+Summary!$C$66*AD69)/Summary!$C$67 -> 0 | AF69: ='Test-AI'!P67 -> 0 | AG69: ='Test-AI'!Q67 -> 0 | AH69: ='Test-AI'!R67 -> 0 | AI69: ='Test-AI'!S67 -> 0 | AJ69: ='Test-AI'!T67 -> 0 | AK69: ='Test-AI'!U67 -> 0 | AL69: ='Test-AI'!V67 -> 0 | AM69: ='Test-AI'!W67 -> 0 | AN69: ='Test-AI'!X67 -> 0 | AO69: =10*LOG10(1/((Summary!$C$81/10^(AL69/10)+Summary!$C$82/10^(AM69/10)+Summary!$C$83/10^(AN69/10))/Summary!$C$84)) -> 0 | AP69: ='Test-AI'!Y67 -> 0 | AQ69: ='Test-AI'!Z67 -> 0 | AR69: ='Test-AI'!AA67 -> 0 | AS69: 0
B70: 1920x1080 | C70: DinnerSceneCropped_1920x1080_2997fps_10bit_420 | D70: 29.97 | E70: 10 | F70: 85 | G70: ='Anchor-AI'!L68 -> 0 | H70: ='Anchor-AI'!M68 -> 0 | I70: ='Anchor-AI'!N68 -> 0 | J70: ='Anchor-AI'!O68 -> 0 | K70: =(Summary!$C$64*H70+Summary!$C$65*I70+Summary!$C$66*J70)/Summary!$C$67 -> 0 | L70: ='Anchor-AI'!P68 -> 0 | M70: ='Anchor-AI'!Q68 -> 0 | N70: ='Anchor-AI'!R68 -> 0 | O70: ='Anchor-AI'!S68 -> 0 | P70: ='Anchor-AI'!T68 -> 0 | Q70: ='Anchor-AI'!U68 -> 0 | R70: ='Anchor-AI'!V68 -> 0 | S70: ='Anchor-AI'!W68 -> 0 | T70: ='Anchor-AI'!X68 -> 0 | U70: =10*LOG10(1/((Summary!$C$81/10^(R70/10)+Summary!$C$82/10^(S70/10)+Summary!$C$83/10^(T70/10))/Summary!$C$84)) -> 0 | V70: ='Anchor-AI'!Y68 -> 0 | W70: ='Anchor-AI'!Z68 -> 0 | X70: ='Anchor-AI'!AA68 -> 0 | Y70: 0 | AA70: ='Test-AI'!L68 -> 0 | AB70: ='Test-AI'!M68 -> 0 | AC70: ='Test-AI'!N68 -> 0 | AD70: ='Test-AI'!O68 -> 0 | AE70: =(Summary!$C$64*AB70+Summary!$C$65*AC70+Summary!$C$66*AD70)/Summary!$C$67 -> 0 | AF70: ='Test-AI'!P68 -> 0 | AG70: ='Test-AI'!Q68 -> 0 | AH70: ='Test-AI'!R68 -> 0 | AI70: ='Test-AI'!S68 -> 0 | AJ70: ='Test-AI'!T68 -> 0 | AK70: ='Test-AI'!U68 -> 0 | AL70: ='Test-AI'!V68 -> 0 | AM70: ='Test-AI'!W68 -> 0 | AN70: ='Test-AI'!X68 -> 0 | AO70: =10*LOG10(1/((Summary!$C$81/10^(AL70/10)+Summary!$C$82/10^(AM70/10)+Summary!$C$83/10^(AN70/10))/Summary!$C$84)) -> 0 | AP70: ='Test-AI'!Y68 -> 0 | AQ70: ='Test-AI'!Z68 -> 0 | AR70: ='Test-AI'!AA68 -> 0 | AS70: 0 | AX70: High | AY70: =bdRateExtend($G70:$G73,H70:H73,$AA70:$AA73,AB70:AB73) ->  | AZ70: =bdRateExtend($G70:$G75,H70:H75,$AA70:$AA75,AB70:AB75) ->  | BA70: =bdRateExtend($G70:$G75,I70:I75,$AA70:$AA75,AC70:AC75) ->  | BB70: =bdRateExtend($G70:$G75,J70:J75,$AA70:$AA75,AD70:AD75) ->  | BC70: =bdRateExtend($G70:$G75,K70:K75,$AA70:$AA75,AE70:AE75) ->  | BD70: =(Summary!$C$95*AZ70+Summary!$C$96*BA70+Summary!$C$97*BB70)/Summary!$C$98 ->  | BE70: =bdRateExtend($G70:$G73,L70:L73,$AA70:$AA73,AF70:AF73) ->  | BF70: =bdRateExtend($G70:$G75,L70:L75,$AA70:$AA75,AF70:AF75) ->  | BG70: =bdRateExtend($G70:$G73,M70:M73,$AA70:$AA73,AG70:AG73) ->  | BH70: =bdRateExtend($G70:$G75,M70:M75,$AA70:$AA75,AG70:AG75) ->  | BI70: =bdRateExtend($G70:$G73,N70:N73,$AA70:$AA73,AH70:AH73,"None", FALSE,1) ->  | BJ70: =bdRateExtend($G70:$G75,N70:N75,$AA70:$AA75,AH70:AH75,"None", FALSE,1) ->  | BK70: =bdRateExtend($G70:$G73,O70:O73,$AA70:$AA73,AI70:AI73,"None", FALSE,1) ->  | BL70: =bdRateExtend($G70:$G75,O70:O75,$AA70:$AA75,AI70:AI75,"None", FALSE,1) ->  | BM70: =bdRateExtend($G70:$G73,P70:P73,$AA70:$AA73,AJ70:AJ73) ->  | BN70: =bdRateExtend($G70:$G75,P70:P75,$AA70:$AA75,AJ70:AJ75) ->  | BO70: =bdRateExtend($G70:$G73,Q70:Q73,$AA70:$AA73,AK70:AK73) ->  | BP70: =bdRateExtend($G70:$G75,Q70:Q75,$AA70:$AA75,AK70:AK75) ->  | BQ70: =bdRateExtend($G70:$G73,R70:R73,$AA70:$AA73,AL70:AL73) ->  | BR70: =bdRateExtend($G70:$G75,R70:R75,$AA70:$AA75,AL70:AL75) ->  | BS70: =bdRateExtend($G70:$G75,S70:S75,$AA70:$AA75,AM70:AM75) ->  | BT70: =bdRateExtend($G70:$G75,T70:T75,$AA70:$AA75,AN70:AN75) ->  | BU70: =bdRateExtend($G70:$G75,U70:U75,$AA70:$AA75,AO70:AO75) ->  | BV70: =(Summary!$C$109*BR70+Summary!$C$110*BS70+Summary!$C$111*BT70)/Summary!$C$112 ->  | BW70: =bdCAMBIExtend($G70:$G73,V70:V73,$AA70:$AA73,AP70:AP73) ->  | BX70: =bdCAMBIExtend($G70:$G75,V70:V75,$AA70:$AA75,AP70:AP75) ->  | BY70: =testVMAFRange($G70:$G73,N70:N73,$AA70:$AA73,AH70:AH73) -> 0 | BZ70: =testVMAFRange($G70:$G75,N70:N75,$AA70:$AA75,AH70:AH75) -> 0 | CA70: =testVMAFRange($G70:$G73,O70:O73,$AA70:$AA73,AI70:AI73) -> 0 | CB70: =testVMAFRange($G70:$G75,O70:O75,$AA70:$AA75,AI70:AI75) -> 0
F71: 110 | G71: ='Anchor-AI'!L69 -> 0 | H71: ='Anchor-AI'!M69 -> 0 | I71: ='Anchor-AI'!N69 -> 0 | J71: ='Anchor-AI'!O69 -> 0 | K71: =(Summary!$C$64*H71+Summary!$C$65*I71+Summary!$C$66*J71)/Summary!$C$67 -> 0 | L71: ='Anchor-AI'!P69 -> 0 | M71: ='Anchor-AI'!Q69 -> 0 | N71: ='Anchor-AI'!R69 -> 0 | O71: ='Anchor-AI'!S69 -> 0 | P71: ='Anchor-AI'!T69 -> 0 | Q71: ='Anchor-AI'!U69 -> 0 | R71: ='Anchor-AI'!V69 -> 0 | S71: ='Anchor-AI'!W69 -> 0 | T71: ='Anchor-AI'!X69 -> 0 | U71: =10*LOG10(1/((Summary!$C$81/10^(R71/10)+Summary!$C$82/10^(S71/10)+Summary!$C$83/10^(T71/10))/Summary!$C$84)) -> 0 | V71: ='Anchor-AI'!Y69 -> 0 | W71: ='Anchor-AI'!Z69 -> 0 | X71: ='Anchor-AI'!AA69 -> 0 | Y71: 0 | AA71: ='Test-AI'!L69 -> 0 | AB71: ='Test-AI'!M69 -> 0 | AC71: ='Test-AI'!N69 -> 0 | AD71: ='Test-AI'!O69 -> 0 | AE71: =(Summary!$C$64*AB71+Summary!$C$65*AC71+Summary!$C$66*AD71)/Summary!$C$67 -> 0 | AF71: ='Test-AI'!P69 -> 0 | AG71: ='Test-AI'!Q69 -> 0 | AH71: ='Test-AI'!R69 -> 0 | AI71: ='Test-AI'!S69 -> 0 | AJ71: ='Test-AI'!T69 -> 0 | AK71: ='Test-AI'!U69 -> 0 | AL71: ='Test-AI'!V69 -> 0 | AM71: ='Test-AI'!W69 -> 0 | AN71: ='Test-AI'!X69 -> 0 | AO71: =10*LOG10(1/((Summary!$C$81/10^(AL71/10)+Summary!$C$82/10^(AM71/10)+Summary!$C$83/10^(AN71/10))/Summary!$C$84)) -> 0 | AP71: ='Test-AI'!Y69 -> 0 | AQ71: ='Test-AI'!Z69 -> 0 | AR71: ='Test-AI'!AA69 -> 0 | AS71: 0
F72: 135 | G72: ='Anchor-AI'!L70 -> 0 | H72: ='Anchor-AI'!M70 -> 0 | I72: ='Anchor-AI'!N70 -> 0 | J72: ='Anchor-AI'!O70 -> 0 | K72: =(Summary!$C$64*H72+Summary!$C$65*I72+Summary!$C$66*J72)/Summary!$C$67 -> 0 | L72: ='Anchor-AI'!P70 -> 0 | M72: ='Anchor-AI'!Q70 -> 0 | N72: ='Anchor-AI'!R70 -> 0 | O72: ='Anchor-AI'!S70 -> 0 | P72: ='Anchor-AI'!T70 -> 0 | Q72: ='Anchor-AI'!U70 -> 0 | R72: ='Anchor-AI'!V70 -> 0 | S72: ='Anchor-AI'!W70 -> 0 | T72: ='Anchor-AI'!X70 -> 0 | U72: =10*LOG10(1/((Summary!$C$81/10^(R72/10)+Summary!$C$82/10^(S72/10)+Summary!$C$83/10^(T72/10))/Summary!$C$84)) -> 0 | V72: ='Anchor-AI'!Y70 -> 0 | W72: ='Anchor-AI'!Z70 -> 0 | X72: ='Anchor-AI'!AA70 -> 0 | Y72: 0 | AA72: ='Test-AI'!L70 -> 0 | AB72: ='Test-AI'!M70 -> 0 | AC72: ='Test-AI'!N70 -> 0 | AD72: ='Test-AI'!O70 -> 0 | AE72: =(Summary!$C$64*AB72+Summary!$C$65*AC72+Summary!$C$66*AD72)/Summary!$C$67 -> 0 | AF72: ='Test-AI'!P70 -> 0 | AG72: ='Test-AI'!Q70 -> 0 | AH72: ='Test-AI'!R70 -> 0 | AI72: ='Test-AI'!S70 -> 0 | AJ72: ='Test-AI'!T70 -> 0 | AK72: ='Test-AI'!U70 -> 0 | AL72: ='Test-AI'!V70 -> 0 | AM72: ='Test-AI'!W70 -> 0 | AN72: ='Test-AI'!X70 -> 0 | AO72: =10*LOG10(1/((Summary!$C$81/10^(AL72/10)+Summary!$C$82/10^(AM72/10)+Summary!$C$83/10^(AN72/10))/Summary!$C$84)) -> 0 | AP72: ='Test-AI'!Y70 -> 0 | AQ72: ='Test-AI'!Z70 -> 0 | AR72: ='Test-AI'!AA70 -> 0 | AS72: 0 | AX72: Med | AY72: =bdRateExtend($G71:$G74,H71:H74,$AA71:$AA74,AB71:AB74) ->  | BE72: =bdRateExtend($G71:$G74,L71:L74,$AA71:$AA74,AF71:AF74) ->  | BG72: =bdRateExtend($G71:$G74,M71:M74,$AA71:$AA74,AG71:AG74) ->  | BI72: =bdRateExtend($G71:$G74,N71:N74,$AA71:$AA74,AH71:AH74,"None", FALSE,1) ->  | BK72: =bdRateExtend($G71:$G74,O71:O74,$AA71:$AA74,AI71:AI74,"None", FALSE,1) ->  | BM72: =bdRateExtend($G71:$G74,P71:P74,$AA71:$AA74,AJ71:AJ74) ->  | BO72: =bdRateExtend($G71:$G74,Q71:Q74,$AA71:$AA74,AK71:AK74) ->  | BQ72: =bdRateExtend($G71:$G74,R71:R74,$AA71:$AA74,AL71:AL74) ->  | BW72: =bdCAMBIExtend($G71:$G74,V71:V74,$AA71:$AA74,AP71:AP74) ->  | BY72: =testVMAFRange($G71:$G74,N71:N74,$AA71:$AA74,AH71:AH74) -> 0 | CA72: =testVMAFRange($G71:$G74,O71:O74,$AA71:$AA74,AI71:AI74) -> 0
F73: 160 | G73: ='Anchor-AI'!L71 -> 0 | H73: ='Anchor-AI'!M71 -> 0 | I73: ='Anchor-AI'!N71 -> 0 | J73: ='Anchor-AI'!O71 -> 0 | K73: =(Summary!$C$64*H73+Summary!$C$65*I73+Summary!$C$66*J73)/Summary!$C$67 -> 0 | L73: ='Anchor-AI'!P71 -> 0 | M73: ='Anchor-AI'!Q71 -> 0 | N73: ='Anchor-AI'!R71 -> 0 | O73: ='Anchor-AI'!S71 -> 0 | P73: ='Anchor-AI'!T71 -> 0 | Q73: ='Anchor-AI'!U71 -> 0 | R73: ='Anchor-AI'!V71 -> 0 | S73: ='Anchor-AI'!W71 -> 0 | T73: ='Anchor-AI'!X71 -> 0 | U73: =10*LOG10(1/((Summary!$C$81/10^(R73/10)+Summary!$C$82/10^(S73/10)+Summary!$C$83/10^(T73/10))/Summary!$C$84)) -> 0 | V73: ='Anchor-AI'!Y71 -> 0 | W73: ='Anchor-AI'!Z71 -> 0 | X73: ='Anchor-AI'!AA71 -> 0 | Y73: 0 | AA73: ='Test-AI'!L71 -> 0 | AB73: ='Test-AI'!M71 -> 0 | AC73: ='Test-AI'!N71 -> 0 | AD73: ='Test-AI'!O71 -> 0 | AE73: =(Summary!$C$64*AB73+Summary!$C$65*AC73+Summary!$C$66*AD73)/Summary!$C$67 -> 0 | AF73: ='Test-AI'!P71 -> 0 | AG73: ='Test-AI'!Q71 -> 0 | AH73: ='Test-AI'!R71 -> 0 | AI73: ='Test-AI'!S71 -> 0 | AJ73: ='Test-AI'!T71 -> 0 | AK73: ='Test-AI'!U71 -> 0 | AL73: ='Test-AI'!V71 -> 0 | AM73: ='Test-AI'!W71 -> 0 | AN73: ='Test-AI'!X71 -> 0 | AO73: =10*LOG10(1/((Summary!$C$81/10^(AL73/10)+Summary!$C$82/10^(AM73/10)+Summary!$C$83/10^(AN73/10))/Summary!$C$84)) -> 0 | AP73: ='Test-AI'!Y71 -> 0 | AQ73: ='Test-AI'!Z71 -> 0 | AR73: ='Test-AI'!AA71 -> 0 | AS73: 0
F74: 185 | G74: ='Anchor-AI'!L72 -> 0 | H74: ='Anchor-AI'!M72 -> 0 | I74: ='Anchor-AI'!N72 -> 0 | J74: ='Anchor-AI'!O72 -> 0 | K74: =(Summary!$C$64*H74+Summary!$C$65*I74+Summary!$C$66*J74)/Summary!$C$67 -> 0 | L74: ='Anchor-AI'!P72 -> 0 | M74: ='Anchor-AI'!Q72 -> 0 | N74: ='Anchor-AI'!R72 -> 0 | O74: ='Anchor-AI'!S72 -> 0 | P74: ='Anchor-AI'!T72 -> 0 | Q74: ='Anchor-AI'!U72 -> 0 | R74: ='Anchor-AI'!V72 -> 0 | S74: ='Anchor-AI'!W72 -> 0 | T74: ='Anchor-AI'!X72 -> 0 | U74: =10*LOG10(1/((Summary!$C$81/10^(R74/10)+Summary!$C$82/10^(S74/10)+Summary!$C$83/10^(T74/10))/Summary!$C$84)) -> 0 | V74: ='Anchor-AI'!Y72 -> 0 | W74: ='Anchor-AI'!Z72 -> 0 | X74: ='Anchor-AI'!AA72 -> 0 | Y74: 0 | AA74: ='Test-AI'!L72 -> 0 | AB74: ='Test-AI'!M72 -> 0 | AC74: ='Test-AI'!N72 -> 0 | AD74: ='Test-AI'!O72 -> 0 | AE74: =(Summary!$C$64*AB74+Summary!$C$65*AC74+Summary!$C$66*AD74)/Summary!$C$67 -> 0 | AF74: ='Test-AI'!P72 -> 0 | AG74: ='Test-AI'!Q72 -> 0 | AH74: ='Test-AI'!R72 -> 0 | AI74: ='Test-AI'!S72 -> 0 | AJ74: ='Test-AI'!T72 -> 0 | AK74: ='Test-AI'!U72 -> 0 | AL74: ='Test-AI'!V72 -> 0 | AM74: ='Test-AI'!W72 -> 0 | AN74: ='Test-AI'!X72 -> 0 | AO74: =10*LOG10(1/((Summary!$C$81/10^(AL74/10)+Summary!$C$82/10^(AM74/10)+Summary!$C$83/10^(AN74/10))/Summary!$C$84)) -> 0 | AP74: ='Test-AI'!Y72 -> 0 | AQ74: ='Test-AI'!Z72 -> 0 | AR74: ='Test-AI'!AA72 -> 0 | AS74: 0 | AX74: Low | AY74: =bdRateExtend($G72:$G75,H72:H75,$AA72:$AA75,AB72:AB75) ->  | BE74: =bdRateExtend($G72:$G75,L72:L75,$AA72:$AA75,AF72:AF75) ->  | BG74: =bdRateExtend($G72:$G75,M72:M75,$AA72:$AA75,AG72:AG75) ->  | BI74: =bdRateExtend($G72:$G75,N72:N75,$AA72:$AA75,AH72:AH75,"None", FALSE,1) ->  | BK74: =bdRateExtend($G72:$G75,O72:O75,$AA72:$AA75,AI72:AI75,"None", FALSE,1) ->  | BM74: =bdRateExtend($G72:$G75,P72:P75,$AA72:$AA75,AJ72:AJ75) ->  | BO74: =bdRateExtend($G72:$G75,Q72:Q75,$AA72:$AA75,AK72:AK75) ->  | BQ74: =bdRateExtend($G72:$G75,R72:R75,$AA72:$AA75,AL72:AL75) ->  | BW74: =bdCAMBIExtend($G72:$G75,V72:V75,$AA72:$AA75,AP72:AP75) ->  | BY74: =testVMAFRange($G72:$G75,N72:N75,$AA72:$AA75,AH72:AH75) -> 0 | CA74: =testVMAFRange($G72:$G75,O72:O75,$AA72:$AA75,AI72:AI75) -> 0
F75: 210 | G75: ='Anchor-AI'!L73 -> 0 | H75: ='Anchor-AI'!M73 -> 0 | I75: ='Anchor-AI'!N73 -> 0 | J75: ='Anchor-AI'!O73 -> 0 | K75: =(Summary!$C$64*H75+Summary!$C$65*I75+Summary!$C$66*J75)/Summary!$C$67 -> 0 | L75: ='Anchor-AI'!P73 -> 0 | M75: ='Anchor-AI'!Q73 -> 0 | N75: ='Anchor-AI'!R73 -> 0 | O75: ='Anchor-AI'!S73 -> 0 | P75: ='Anchor-AI'!T73 -> 0 | Q75: ='Anchor-AI'!U73 -> 0 | R75: ='Anchor-AI'!V73 -> 0 | S75: ='Anchor-AI'!W73 -> 0 | T75: ='Anchor-AI'!X73 -> 0 | U75: =10*LOG10(1/((Summary!$C$81/10^(R75/10)+Summary!$C$82/10^(S75/10)+Summary!$C$83/10^(T75/10))/Summary!$C$84)) -> 0 | V75: ='Anchor-AI'!Y73 -> 0 | W75: ='Anchor-AI'!Z73 -> 0 | X75: ='Anchor-AI'!AA73 -> 0 | Y75: 0 | AA75: ='Test-AI'!L73 -> 0 | AB75: ='Test-AI'!M73 -> 0 | AC75: ='Test-AI'!N73 -> 0 | AD75: ='Test-AI'!O73 -> 0 | AE75: =(Summary!$C$64*AB75+Summary!$C$65*AC75+Summary!$C$66*AD75)/Summary!$C$67 -> 0 | AF75: ='Test-AI'!P73 -> 0 | AG75: ='Test-AI'!Q73 -> 0 | AH75: ='Test-AI'!R73 -> 0 | AI75: ='Test-AI'!S73 -> 0 | AJ75: ='Test-AI'!T73 -> 0 | AK75: ='Test-AI'!U73 -> 0 | AL75: ='Test-AI'!V73 -> 0 | AM75: ='Test-AI'!W73 -> 0 | AN75: ='Test-AI'!X73 -> 0 | AO75: =10*LOG10(1/((Summary!$C$81/10^(AL75/10)+Summary!$C$82/10^(AM75/10)+Summary!$C$83/10^(AN75/10))/Summary!$C$84)) -> 0 | AP75: ='Test-AI'!Y73 -> 0 | AQ75: ='Test-AI'!Z73 -> 0 | AR75: ='Test-AI'!AA73 -> 0 | AS75: 0
